Workbook

Sheet 0_Tabla Forrajes (hidden)
A1: Nombre Forrajes | B1: MS % | C1: UFL | D1: UFV | E1: MNT_PB | F1: PDIA | G1: PDI | H1: BPR | I1: UEL | J1: UEB | K1: UEM | L1: NI ref | M1: dMO | N1: MOD | O1: EE | P1: FB | Q1: NDF | R1: ADF | S1: Lignina | T1: Cenizas | U1: Ca | V1: P | W1: Mg | X1: Cl | Y1: K | Z1: Na | AA1: S | AB1: Co | AC1: Cu | AD1: Mo | AE1: Almidón | AF1: Fe | AG1: Mn | AH1: Se | AI1: Zn | AJ1: Vit A | AK1: Vit D | AL1: Vit E | AM1: AG | AN1: DT_N | AO1: PF | AP1: MOF
A3: ENSILADO Alfalfa antes floración prehenificado | B3: 43 | C3: 0.9478567903 | D3: 0.9046584391 | E3: 198.2 | F3: 21.802 | G3: 61.32585238 | H3: 64.24775046 | I3: 0.9937421911 | J3: 0.9777668498 | K3: 1.121023222 | L3: 2.403858178 | M3: 0.707306 | N3: 605.0295524 | O3: 18.7 | P3: 249.7 | Q3: 424.6 | R3: 336.1 | S3: 65.9 | T3: 144.6 | U3: 3.84 | V3: 1.82 | AJ3: 3000 | AK3: 200 | AL3: 5 | AM3: 25.2206 | AN3: 0.8 | AO3: 80 | AP3: 534.6627196
A4: ENSILADO Alfalfa Inicio botones florales prehenificado | B4: 45 | C4: 0.980732297 | D4: 0.9375437283 | E4: 213.6 | F4: 22.3212 | G4: 62.68377642 | H4: 81.82328754 | I4: 0.9797376592 | J4: 0.954797698 | K4: 1.099990717 | L4: 2.449821438 | M4: 0.709856 | N4: 621.9758272 | O4: 20.8 | P4: 247.2 | Q4: 407.2 | R4: 320.1 | S4: 64.3 | T4: 123.8 | U4: 3.84 | V4: 1.82 | AJ4: 3000 | AK4: 200 | AL4: 5 | AM4: 26.4988 | AN4: 0.83 | AO4: 80 | AP4: 550.6914111
A5: ENSILADO Alfalfa rebrotes floración prehenificado | B5: 47 | C5: 1.003207297 | D5: 0.9674763745 | E5: 219.7 | F5: 27.79205 | G5: 68.85859238 | H5: 78.00981843 | I5: 0.972568435 | J5: 0.942718323 | K5: 1.084479733 | L5: 2.484860488 | M5: 0.726176 | N5: 627.779152 | O5: 17.8 | P5: 231.2 | Q5: 391.4 | R5: 298.9 | S5: 61.9 | T5: 135.5 | U5: 5.22 | V5: 2.45 | AJ5: 3000 | AK5: 200 | AL5: 5 | AM5: 27.0051 | AN5: 0.79 | AO5: 80 | AP5: 551.9218578
A6: ENSILADO Raigrás italiano 1 semana antes inicio espigado prehenificado | B6: 33.5 | C6: 0.9154038958 | D6: 0.8723292381 | E6: 123 | F6: 17 | G6: 67 | H6: 5 | I6: 1.05 | J6: 1.07 | K6: 1.35 | L6: 2 | M6: 0.73 | N6: 649.7 | O6: 36 | P6: 246 | Q6: 510 | R6: 275 | T6: 110 | U6: 1.84 | V6: 1.56 | AJ6: 8000 | AK6: 200 | AL6: 5 | AM6: 19 | AN6: 0.79 | AO6: 80 | AP6: 588.49475
A7: ENSILADO Raigrás italiano Final espigado prehenificado | B7: 33.5 | C7: 0.78 | D7: 0.71 | E7: 95 | F7: 12 | G7: 59 | H7: -14 | I7: 1.11 | J7: 1.18 | K7: 1.62 | L7: 1.7 | M7: 0.66 | N7: 594.66 | O7: 33 | P7: 297 | Q7: 571 | R7: 327 | T7: 99 | U7: 1.84 | V7: 1.38 | AJ7: 8000 | AK7: 200 | AL7: 5 | AM7: 17 | AN7: 0.79 | AO7: 80 | AP7: 534.52605
A8: ENSILADO Raigrás italiano Inicio espigado prehenificado | B8: 33.5 | C8: 0.88 | D8: 0.82 | E8: 117 | F8: 16 | G8: 65 | H8: 1 | I8: 1.06 | J8: 1.08 | K8: 1.39 | L8: 1.9 | M8: 0.706043 | N8: 631.9 | O8: 35 | P8: 254 | Q8: 520 | R8: 283 | T8: 110 | U8: 1.84 | V8: 1.56 | AJ8: 8000 | AK8: 200 | AL8: 5 | AM8: 19 | AN8: 0.79 | AO8: 80 | AP8: 570.0426753
A9: ENSILADO Avena Lechoso-pastoso | B9: 31 | C9: 0.6642411484 | D9: 0.5695207363 | E9: 96.6 | F9: 18.9336 | G9: 47.97507469 | H9: -17.51123621 | I9: 1.154955419 | J9: 1.282660589 | K9: 1.791224433 | L9: 1.504435061 | M9: 0.56 | N9: 508.704 | O9: 45 | P9: 333.4 | Q9: 600.1 | R9: 385.3 | S9: 49.3 | T9: 91.6 | U9: 2.16 | V9: 1.848 | AC9: 5 | AD9: 0.13 | AG9: 30 | AJ9: 5000 | AK9: 200 | AL9: 5 | AM9: 19 | AN9: 0.72 | AO9: 80 | AP9: 433.84195
A10: ENSILADO Avena lechoso-pastoso | B10: 31 | C10: 0.6642411484 | D10: 0.5695207363 | E10: 96.6 | F10: 18.9336 | G10: 47.97507469 | H10: -17.51123621 | I10: 1.154955419 | J10: 1.282660589 | K10: 1.791224433 | L10: 1.504435061 | M10: 0.56 | N10: 508.704 | O10: 45 | P10: 333.4 | Q10: 600.1 | R10: 385.3 | S10: 49.3 | T10: 91.6 | U10: 1.6 | V10: 1.7 | AC10: 5 | AD10: 0.13 | AG10: 30 | AJ10: 5000 | AK10: 200 | AL10: 5 | AM10: 19 | AN10: 0.72 | AO10: 80 | AP10: 433.84195
A11: ENSILADO Cebada Lechoso-pastoso | B11: 30.5 | C11: 0.721420216 | D11: 0.6340131908 | E11: 98.8 | F11: 19.3648 | G11: 51.13221978 | H11: -18.30719857 | I11: 1.147495958 | J11: 1.265287422 | K11: 1.745392764 | L11: 1.543939505 | M11: 0.5903225806 | N11: 540.1451613 | O11: 40.7 | P11: 278.4 | Q11: 533.3 | R11: 328.5 | S11: 42.9 | T11: 85 | U11: 2.12 | V11: 1.782 | AJ11: 5000 | AK11: 200 | AL11: 5 | AM11: 19 | AN11: 0.72 | AO11: 80 | AP11: 466.9429565
A12: ENSILADO Maíz Lechoso | B12: 25 | C12: 0.9421569565 | D12: 0.8895769703 | E12: 80 | F12: 12 | G12: 61 | H12: -29 | I12: 1.080663836 | J12: 1.21 | K12: 1.28 | L12: 1.4 | M12: 0.71 | N12: 674 | O12: 31 | P12: 228 | Q12: 446 | R12: 235 | S12: 30.4 | T12: 50 | U12: 0.8 | V12: 1.3 | W12: 1.2 | AE12: 193 | AM12: 24 | AN12: 0.75 | AO12: 100 | AP12: 588.3446
A13: ENSILADO Maíz Lechoso-pastoso | B13: 27.5 | C13: 0.9460784782 | D13: 0.8997884851 | E13: 79 | F13: 12 | G13: 61 | H13: -30.5 | I13: 1.046979863 | J13: 1.16 | K13: 1.279261934 | L13: 1.4 | M13: 0.7135 | N13: 680 | O13: 31 | P13: 217.5 | Q13: 429.5 | R13: 222.5 | S13: 29.85 | T13: 48.5 | U13: 0.8 | V13: 1.3 | W13: 1.2 | AE13: 282 | AM13: 24 | AN13: 0.75 | AO13: 125 | AP13: 608.5998
A14: ENSILADO Maíz Pastoso | B14: 30 | C14: 0.95 | D14: 0.91 | E14: 78 | F14: 12 | G14: 61 | H14: -32 | I14: 1.01329589 | J14: 1.11 | K14: 1.278523867 | L14: 1.4 | M14: 0.717 | N14: 686 | O14: 31 | P14: 207 | Q14: 413 | R14: 210 | S14: 29.3 | T14: 47 | U14: 0.8 | V14: 1.3 | W14: 1.2 | AE14: 234 | AM14: 24 | AN14: 0.75 | AO14: 80 | AP14: 619.39492
A15: ENSILADO Maíz Pastoso-vidrioso | B15: 32.5 | C15: 0.9570058234 | D15: 0.9127317295 | E15: 77 | F15: 12 | G15: 61.5 | H15: -33.5 | I15: 0.9816479448 | J15: 1.075 | K15: 1.279261934 | L15: 1.4 | M15: 0.7235 | N15: 688 | O15: 31 | P15: 203.5 | Q15: 406.5 | R15: 207 | S15: 27.9 | T15: 45.5 | U15: 0.8 | V15: 1.3 | W15: 1.2 | AE15: 278 | AM15: 24 | AN15: 0.75 | AO15: 100 | AP15: 612.5872382
A16: ENSILADO Maíz vidrioso | B16: 35 | C16: 0.9640116468 | D16: 0.9154634589 | E16: 76 | F16: 12 | G16: 62 | H16: -35 | I16: 0.95 | J16: 1.04 | K16: 1.28 | L16: 1.4 | M16: 0.73 | N16: 690 | O16: 31 | P16: 200 | Q16: 400 | R16: 204 | S16: 26.5 | T16: 44 | U16: 0.8 | V16: 1.3 | W16: 1.2 | AE16: 322 | AM16: 24 | AN16: 0.75 | AO16: 80 | AP16: 601.7570275
A17: Ensilado Maíz vidrioso < 35% MS | B17: 41.5 | C17: 0.95 | D17: 0.91 | E17: 79 | F17: 12 | G17: 63 | H17: -33 | I17: 0.9 | J17: 0.96 | K17: 1.28 | L17: 1.4 | M17: 0.72 | N17: 690 | O17: 31 | P17: 202 | Q17: 403 | R17: 204 | T17: 41 | U17: 0.8 | V17: 1.3 | W17: 1.2
A18: Ensilado Maíz, espigas completas (Pastone) | B18: 53 | C18: 1,08 | E18: 83 | F18: 27 | G18: 78 | H18: -42 | I18: 0,97 | L18: 1,4 | M18: 0.78 | N18: 768.16 | O18: 31 | P18: 90 | Q18: 318 | R18: 104 | T18: 19 | U18: 0.8 | V18: 1.26 | W18: 1.5 | AE18: 400 | AM18: 24 | AN18: 0.63 | AO18: 0.87
A19: ENSILADO Prat natural plano, gramíneas en gran parte | B19: 48 | C19: 0.9301076693 | D19: 0.8656931921 | E19: 114.3 | F19: 15.0876 | G19: 51.5305866 | H19: -5.252929949 | I19: 1.131789867 | J19: 1.229566374 | K19: 1.638343115 | L19: 1.644820804 | M19: 0.668711 | N19: 599.165056 | O19: 22.2 | P19: 311.3 | Q19: 584.2 | R19: 385 | T19: 104 | U19: 3.48 | V19: 1.82 | AJ19: 8000 | AK19: 200 | AL19: 5 | AM19: 18.2569 | AN19: 0.78 | AO19: 115 | AP19: 535.9795542
A20: ENSILADO Sorgo Pastoso | B20: 24 | C20: 0.8946611737 | D20: 0.8448988526 | E20: 102.3 | F20: 26.4957 | G20: 67.48794219 | H20: -32.54844063 | I20: 1.126297354 | J20: 1.216028017 | K20: 1.608406605 | L20: 1.675435074 | M20: 0.701 | N20: 644.7097 | O20: 25 | P20: 293.4 | Q20: 586.4 | R20: 346.8 | S20: 42.4 | T20: 80.3 | U20: 2.24 | V20: 1.584 | AJ20: 5000 | AK20: 200 | AL20: 5 | AM20: 19 | AN20: 0.63 | AO20: 80 | AP20: 572.00891
A21: ENSILADO Triticale lechoso | B21: 28.1 | C21: 0.7185428841 | D21: 0.6315093177 | E21: 99.8 | F21: 19.5608 | G21: 51.20239422 | H21: -17.39059614 | I21: 1.146293336 | J21: 1.262798213 | K21: 1.742230253 | L21: 1.546742077 | M21: 0.5903225806 | N21: 537.6067742 | O21: 46.6 | P21: 329.3 | Q21: 589.7 | R21: 373.5 | S21: 46.2 | T21: 89.3 | U21: 1.96 | V21: 1.914 | AJ21: 5000 | AK21: 200 | AL21: 5 | AM21: 19 | AN21: 0.72 | AO21: 80 | AP21: 464.2085694
A22: ENSILADO Zulla Botones Florales Floracion, Bolas | B22: 27.16 | C22: 0.754603903 | D22: 0.6728644459 | E22: 140.9 | F22: 16.27395 | G22: 57.0350509 | H22: 33.42177985 | I22: 1.075441606 | J22: 1.126048654 | K22: 1.267021205 | L22: 2.126863251 | M22: 0.60143 | N22: 526.25125 | O22: 27 | P22: 353.5 | Q22: 537.2 | R22: 351.6765 | T22: 125 | U22: 3.6 | V22: 2.1 | AM22: 20.4647 | AN22: 0.79 | AO22: 150 | AP22: 306.2478463 | AQ22: 18.9901 | AR22: 2.96 | AS22: 4.2346 | AT22: 20.182 | AU22: 48.0613
A23: ENSILADO Zulla Inicio Floración en Fructificación | B23: 19.66 | C23: 0.7669925154 | D23: 0.6858718121 | E23: 135.6 | F23: 15.6618 | G23: 56.90934942 | H23: 28.47470403 | I23: 1.080492689 | J23: 1.135321292 | K23: 1.273160331 | L23: 2.116607605 | M23: 0.605612 | N23: 535.7243752 | O23: 27 | P23: 349.4 | Q23: 589.3 | R23: 349.3026 | T23: 115.4 | U23: 3.6 | V23: 2.1 | AM23: 20.0248 | AN23: 0.79 | AO23: 150 | AP23: 316.8191373 | AQ23: 19.0484 | AR23: 2.96 | AS23: 4.2664 | AT23: 20.288 | AU23: 47.7592
A24: ENSITJAT Trigo Lechoso-pastoso | B24: 35 | C24: 0.69 | D24: 0.6 | E24: 98 | F24: 17 | G24: 62 | H24: -12 | I24: 1.01 | J24: 1.01 | K24: 1.36 | L24: 2 | M24: 0.59 | N24: 526 | O24: 25 | P24: 267 | Q24: 522 | R24: 313 | T24: 108 | U24: 1.6 | V24: 1.7 | W24: 1.4
A25: HENO Alfalfa Botones florales | B25: 85 | C25: 0.72 | D25: 0.63 | E25: 174 | F25: 39 | G25: 86 | H25: 37 | I25: 1.03 | J25: 1.04 | K25: 1.2 | L25: 2.2 | M25: 0.6 | N25: 544 | O25: 26 | P25: 351 | Q25: 548 | R25: 352 | T25: 93 | U25: 3.8 | V25: 1.4 | W25: 2.5 | AC25: 7.1 | AG25: 29 | AI25: 24.6 | AJ25: 45000 | AK25: 400 | AL25: 10 | AM25: 21.823 | AN25: 0.72 | AP25: 344.9931188
A26: HENO Alfalfa Floración | B26: 85 | C26: 0.66 | D26: 0.56 | E26: 163 | F26: 36 | G26: 82 | H26: 30 | I26: 1.04 | J26: 1.05 | K26: 1.23 | L26: 2.2 | M26: 0.57 | N26: 521 | O26: 25 | P26: 374 | Q26: 564 | R26: 367 | T26: 85 | U26: 3.6 | V26: 1.3 | W26: 2.5 | AJ26: 45000 | AK26: 400 | AL26: 10 | AM26: 20.91 | AN26: 0.72 | AP26: 324.6684585
A27: HENO Alfalfa floración (Cataluña) | B27: 89 | C27: 0.7804774848 | D27: 0.7084236384 | E27: 174.5 | F27: 36.645 | G27: 73.40253262 | H27: 36.23664732 | I27: 1.017963166 | J27: 1.029102189 | K27: 1.286335584 | L27: 2.094928316 | M27: 0.623962 | N27: 555.950142 | O27: 19.8 | P27: 271.5 | Q27: 446.6 | R27: 316.7 | S27: 69.1 | T27: 109 | U27: 5.67 | V27: 2.1 | AB27: 0.1 | AC27: 4.6 | AD27: 0.6 | AG27: 42.9 | AH27: 0.03 | AI27: 21.3 | AJ27: 45000 | AK27: 400 | AL27: 10 | AM27: 22.1135 | AN27: 0.72 | AP27: 466.3887716
A28: HENO Alfalfa Inicio vegetación | B28: 85 | C28: 0.7631700038 | D28: 0.6873563 | E28: 168.5 | F28: 35.385 | G28: 71.39879666 | H28: 32.37218784 | I28: 1.027253066 | J28: 1.045286018 | K28: 1.31089825 | L28: 2.055675061 | M28: 0.612562 | N28: 548.9168082 | O28: 21.2 | P28: 283.4 | Q28: 483.1 | R28: 326.7 | S28: 69.3 | T28: 103.9 | U28: 3.75 | V28: 1.68 | AB28: 0.1 | AC28: 4.6 | AD28: 0.6 | AG28: 42.9 | AH28: 0.03 | AI28: 21.3 | AJ28: 45000 | AK28: 400 | AL28: 10 | AM28: 21.6155 | AN28: 0.72 | AP28: 460.0530203
A29: HENO Alfalfa rebrotes (Cataluña) | B29: 89 | C29: 0.8220547044 | D29: 0.7561386752 | E29: 179.3 | F29: 37.653 | G29: 76.25857889 | H29: 38.09099042 | I29: 1.006503009 | J29: 1.009490389 | K29: 1.256671417 | L29: 2.14437983 | M29: 0.64471 | N29: 577.982515 | O29: 19.8 | P29: 259.6 | Q29: 442.1 | R29: 298.5 | S29: 65.8 | T29: 103.5 | U29: 3.3 | V29: 1.54 | AB29: 0.1 | AC29: 4.6 | AD29: 0.6 | AG29: 42.9 | AH29: 0.03 | AI29: 21.3 | AJ29: 45000 | AK29: 400 | AL29: 10 | AM29: 22.5119 | AN29: 0.72 | AP29: 488.6649455
A30: HENO Alfalfa rebrotes de floración | B30: 85 | C30: 0.71 | D30: 0.62 | E30: 177 | F30: 38 | G30: 85 | H30: 39 | I30: 1.03 | J30: 1.04 | K30: 1.17 | L30: 2.3 | M30: 0.6 | N30: 548 | O30: 26 | P30: 361 | Q30: 555 | R30: 359 | T30: 86 | U30: 3.3 | V30: 1.3 | W30: 2 | AB30: 0.1 | AC30: 4.6 | AD30: 0.6 | AG30: 42.9 | AH30: 0.03 | AI30: 21.3 | AJ30: 45000 | AK30: 400 | AL30: 10 | AM30: 22.072 | AN30: 0.72 | AP30: 334.8526972
A31: HENO Alfalfa Sin especificar (primavera) IAMZ | B31: 90 | C31: 0.8022678479 | D31: 0.7359621515 | E31: 171 | F31: 35.91 | G31: 73.93543875 | H31: 32.77416797 | I31: 1.014835798 | J31: 1.023836553 | K31: 1.278138126 | L31: 2.108364335 | M31: 0.64072 | N31: 567.0372 | O31: 25 | P31: 300 | Q31: 394 | R31: 302 | T31: 115 | U31: 4.38 | V31: 3.15 | AJ31: 45000 | AK31: 400 | AL31: 10 | AM31: 21.823 | AN31: 0.72 | AP31: 479.4969685
A32: HENO Alfalfa Sin especificar (verano) IAMZ | B32: 90 | C32: 0.8027529859 | D32: 0.732612327 | E32: 187 | F32: 39.27 | G32: 76.69014372 | H32: 44.68883486 | I32: 1.004731173 | J32: 1.006321977 | K32: 1.25219197 | L32: 2.152050886 | M32: 0.631828 | N32: 566.117888 | O32: 25 | P32: 284 | Q32: 583.76 | R32: 309.8 | T32: 104 | U32: 5.82 | V32: 2.03 | AJ32: 45000 | AK32: 400 | AL32: 10 | AM32: 23.151 | AN32: 0.72 | AP32: 474.0078601
A33: HENO Avena Floración | B33: 90 | C33: 0.6748031786 | D33: 0.5822746186 | E33: 140 | F33: 33.32 | G33: 65.22813994 | H33: 6.340615698 | I33: 1.074914591 | J33: 1.131741987 | K33: 1.444961085 | L33: 1.864950459 | M33: 0.55566 | N33: 509.54022 | O33: 33 | P33: 320 | Q33: 620 | R33: 390 | S33: 60 | T33: 83 | U33: 2.52 | V33: 0.66 | AJ33: 50000 | AK33: 50 | AL33: 5 | AM33: 19.25 | AN33: 0.66 | AP33: 419.8801711
A34: HENO Avena Inicio espigado | B34: 90 | C34: 0.7865238981 | D34: 0.7057522891 | E34: 175 | F34: 41.65 | G34: 77.97898436 | H34: 25.71188765 | I34: 1.023756676 | J34: 1.039063255 | K34: 1.301625956 | L34: 2.070318916 | M34: 0.60695 | N34: 567.49825 | O34: 26 | P34: 290 | Q34: 580 | R34: 350 | S34: 40 | T34: 65 | U34: 2.52 | V34: 0.66 | AJ34: 50000 | AK34: 50 | AL34: 5 | AM34: 22.155 | AN34: 0.66 | AP34: 471.7400882
A35: HENO Bromo Final vegetación | B35: 85 | C35: 0.7641928518 | D35: 0.6935543947 | E35: 100 | F35: 20.3 | G35: 58.49315002 | H35: -20.42784718 | I35: 1.083509489 | J35: 1.149054212 | K35: 1.470370044 | L35: 1.832722892 | M35: 0.62749 | N35: 564.741 | O35: 34 | P35: 320 | Q35: 640 | R35: 333 | T35: 100 | U35: 1.24 | V35: 2.03 | AJ35: 50000 | AK35: 50 | AL35: 5 | AM35: 15.93 | AN35: 0.71 | AP35: 494.5458579
A36: HENO Cebada Espigado | B36: 78.5 | C36: 0.5919301713 | D36: 0.4925934379 | E36: 112 | F36: 26.656 | G36: 55.09811221 | H36: -9.266789075 | I36: 1.11967543 | J36: 1.218703295 | K36: 1.584554034 | L36: 1.700655693 | M36: 0.514628 | N36: 464.709084 | O36: 12.5 | P36: 285 | Q36: 584.9 | R36: 422 | T36: 97 | U36: 1.18 | V36: 1.65 | W36: 1.6 | Y36: 14.15 | Z36: 1.75 | AA36: 1.7 | AB36: 0.07 | AC36: 24 | AF36: 101 | AG36: 27 | AH36: 0.16 | AI36: 48 | AM36: 16.926 | AN36: 0.66 | AP36: 379.9275254
A37: HENO Cebada Inicio espigado | B37: 83.7 | C37: 0.7873403043 | D37: 0.7263260237 | E37: 108 | F37: 25.704 | G37: 65.002965 | H37: -20.29450546 | I37: 1.065656642 | J37: 1.11556277 | K37: 1.417509819 | L37: 1.901066789 | M37: 0.653002 | N37: 570.723748 | O37: 12.5 | P37: 285 | Q37: 584.9 | R37: 313 | T37: 126 | U37: 1.18 | V37: 1.65 | W37: 1.6 | Y37: 14.15 | Z37: 1.75 | AA37: 1.7 | AB37: 0.07 | AC37: 24 | AF37: 101 | AG37: 27 | AH37: 0.16 | AI37: 48 | AJ37: 50000 | AK37: 50 | AL37: 5 | AM37: 16.594 | AN37: 0.66 | AP37: 496.5856114
A38: HENO Cebada Lechoso | B38: 90 | C38: 0.7063206172 | D38: 0.6214014901 | E38: 135 | F38: 32.13 | G38: 65.96134992 | H38: 1.60549777 | I38: 1.06938303 | J38: 1.121640879 | K38: 1.428604953 | L38: 1.886302322 | M38: 0.58099 | N38: 526.37694 | O38: 12.5 | P38: 285 | Q38: 610 | R38: 370 | T38: 94 | U38: 1.44 | V38: 1.584 | W38: 1.6 | Y38: 14.15 | Z38: 1.75 | AA38: 1.7 | AB38: 0.07 | AC38: 24 | AF38: 101 | AG38: 27 | AH38: 0.16 | AI38: 48 | AJ38: 50000 | AK38: 50 | AL38: 5 | AM38: 18.835 | AN38: 0.66 | AP38: 439.8400866
A39: HENO Cebada vidrioso | B39: 76.3 | C39: 0.7403468234 | D39: 0.6622083638 | E39: 99 | F39: 23.562 | G39: 60.20475676 | H39: -25.00432611 | I39: 1.093450987 | J39: 1.167979739 | K39: 1.500772141 | L39: 1.795596257 | M39: 0.605886 | N39: 554.38569 | O39: 12.5 | P39: 285 | Q39: 584.9 | R39: 350 | T39: 85 | U39: 1.44 | V39: 1.584 | W39: 1.8 | Y39: 11.8 | Z39: 1.4 | AA39: 1.7 | AB39: 0.07 | AC39: 24 | AF39: 101 | AG39: 27 | AH39: 0.16 | AI39: 48 | AJ39: 50000 | AK39: 50 | AL39: 5 | AM39: 15.847 | AN39: 0.66 | AP39: 479.4760238
A40: HENO Dáctilo Floración | B40: 85 | C40: 0.6267609342 | D40: 0.5315550907 | E40: 88 | F40: 17.248 | G40: 48.36165599 | H40: -22.60508827 | I40: 1.134465219 | J40: 1.249296501 | K40: 1.633810149 | L40: 1.649384319 | M40: 0.537152 | N40: 491.49408 | O40: 27 | P40: 372 | Q40: 684.08 | R40: 404 | T40: 85 | U40: 0.92 | V40: 1.26 | AJ40: 50000 | AK40: 50 | AL40: 5 | AM40: 14.934 | AN40: 0.72 | AP40: 418.5686824
A41: HENO Festuca Floración | B41: 88.2 | C41: 0.7394322088 | D41: 0.6592885094 | E41: 116 | F41: 23.548 | G41: 59.75765181 | H41: -7.64311645 | I41: 1.079354117 | J41: 1.140751809 | K41: 1.457997654 | L41: 1.848275155 | M41: 0.6004725 | N41: 550.6332825 | O41: 27 | P41: 331 | Q41: 637.34 | R41: 354.45 | T41: 83 | U41: 0.92 | V41: 1.26 | AJ41: 50000 | AK41: 50 | AL41: 5 | AM41: 17.258 | AN41: 0.71 | AP41: 474.7304096
A42: HENO raigrás italiano Espigado | B42: 85 | C42: 0.7551388452 | D42: 0.682416558 | E42: 79 | F42: 13.825 | G42: 52.18563094 | H42: -32.77260482 | I42: 1.106265531 | J42: 1.193403103 | K42: 1.540819033 | L42: 1.74892754 | M42: 0.622116 | N42: 566.12556 | O42: 26 | P42: 307 | Q42: 609.98 | R42: 337 | T42: 90 | U42: 1.6 | V42: 1.61 | W42: 2 | Y42: 20 | Z42: 2 | AC42: 4.9 | AG42: 110 | AI42: 26.5 | AJ42: 50000 | AK42: 50 | AL42: 5 | AM42: 14.187 | AN42: 0.75 | AP42: 502.8178696
A43: HENO raigrás italiano Floración | B43: 85 | C43: 0.6767027483 | D43: 0.590716319 | E43: 52 | F43: 10.92 | G43: 45.71239642 | H43: -52.98300282 | I43: 1.155610109 | J43: 1.294411723 | K43: 1.707296002 | L43: 1.578391115 | M43: 0.574748 | N43: 528.76816 | O43: 24 | P43: 344 | Q43: 652.16 | R43: 374 | T43: 80 | U43: 1.6 | V43: 1.26 | AJ43: 50000 | AK43: 50 | AL43: 5 | AM43: 11.946 | AN43: 0.7 | AP43: 466.1057416
A44: HENO raigrás italiano rebrotes de espigado con hojas | B44: 85 | C44: 0.8845575231 | D44: 0.835550182 | E44: 107 | F44: 23.219 | G44: 65.95615613 | H44: -22.33097018 | I44: 1.050313537 | J44: 1.087684312 | K44: 1.37366381 | L44: 1.961746987 | M44: 0.69441 | N44: 629.13546 | O44: 29 | P44: 256 | Q44: 567 | R44: 291 | T44: 94 | U44: 1.6 | V44: 1.89 | W44: 2 | Y44: 20 | Z44: 2 | AJ44: 50000 | AK44: 50 | AL44: 5 | AM44: 16.511 | AN44: 0.69 | AP44: 560.3751069
A45: HENO Trébol blanco Vegetativo | B45: 90 | C45: 0.7981872668 | D45: 0.7236613654 | E45: 220 | F45: 56.1 | G45: 91.79713043 | H45: 57.22036526 | I45: 0.9822368086 | J45: 0.9683089799 | K45: 1.196312677 | L45: 2.252572334 | M45: 0.6202 | N45: 557.5598 | O45: 27 | P45: 212 | Q45: 360 | R45: 320 | S45: 70 | T45: 101 | U45: 4.05 | V45: 2.17 | W45: 4.3 | X45: 3.2 | Y45: 16.2 | Z45: 1.9 | AA45: 1.7 | AB45: 0.16 | AC45: 11 | AF45: 184 | AG45: 73 | AI45: 17 | AJ45: 45000 | AK45: 400 | AL45: 10 | AM45: 25.89 | AN45: 0.66 | AP45: 446.5874095
A46: HENO Trébol violeta Final floración | B46: 89 | C46: 0.7112930165 | D46: 0.6233057215 | E46: 160 | F46: 40.8 | G46: 73.88731868 | H46: 18.87200844 | I46: 1.049059571 | J46: 1.083978186 | K46: 1.370545909 | L46: 1.966209831 | M46: 0.5746 | N46: 525.759 | O46: 28 | P46: 288 | Q46: 460 | R46: 360 | S46: 80 | T46: 85 | U46: 4.59 | V46: 1.75 | AJ46: 45000 | AK46: 400 | AL46: 10 | AM46: 20.91 | AN46: 0.66 | AP46: 429.1792985
A47: HENO Veza (<20%) - Avena corte precoz INRA | B47: 75 | C47: 0.66 | D47: 129 | E47: 29 | F47: 81 | G47: -31.06451623 | H47: 1.031870043 | I47: 1.053472022 | J47: 1.21 | K47: 2.23 | L47: 0.7 | M47: 870 | O47: 270 | P47: 575 | Q47: 308 | S47: 130 | AM47: 0.64 | AO47: 803.2617
A48: HENO Veza (<20%) - Avena corte tardío INRA | B48: 86 | C48: 0.61 | D48: 0.52 | E48: 74 | F48: 17 | G48: 66 | H48: -72.15889383 | I48: 1.124534122 | J48: 1.228533002 | K48: 1.25 | L48: 2.16 | M48: 0.6 | N48: 916 | P48: 324 | Q48: 664 | R48: 377 | T48: 84 | AN48: 0.61 | AP48: 854.3657
A49: HENO Veza (> 50%) - Avena corte precoz INRA | B49: 84 | C49: 0.73 | D49: 0.65 | E49: 158 | F49: 42 | G49: 93 | H49: -18.58155175 | I49: 1.020408163 | J49: 1.024501769 | K49: 0.86 | L49: 3.13 | M49: 0.68 | N49: 881 | P49: 333 | Q49: 674 | R49: 378 | T49: 119 | AN49: 0.6 | AP49: 799.8825
A50: HENO Veza (> 50%) - Avena corte tardío INRA | B50: 65 | C50: 0.55 | D50: 123 | E50: 31 | F50: 81 | G50: -43.47657607 | H50: 1.07880684 | I50: 1.128333036 | J50: 0.89 | K50: 3.02 | L50: 0.61 | M50: 929 | O50: 268 | P50: 584 | Q50: 309 | S50: 71 | AM50: 0.6 | AO50: 854.0553
A51: HENO Veza (20-50%) - Avena corte precoz INRA | B51: 79 | C51: 0.72 | D51: 0.65 | E51: 104 | F51: 24 | G51: 75 | H51: -50.30615175 | I51: 1.065092359 | J51: 1.108776844 | K51: 1.21 | L51: 2.23 | M51: 0.68 | N51: 897 | P51: 280 | Q51: 595 | R51: 323 | T51: 103 | AN51: 0.63 | AP51: 833.8825
A52: HENO Veza (20-50%) - Avena corte tardío INRA | B52: 64 | C52: 0.55 | D52: 99 | E52: 23 | F52: 72 | G52: -53.56774055 | H52: 1.090181359 | I52: 1.155366373 | J52: 1.39 | K52: 1.94 | L52: 0.63 | M52: 901 | O52: 333 | P52: 675 | Q52: 385 | S52: 99 | AM52: 0.63 | AO52: 835.4345
A53: HENO Veza Botones | B53: 92 | C53: 0.7602900998 | D53: 0.6840692248 | E53: 217 | F53: 55.335 | G53: 89.49619547 | H53: 56.93371672 | I53: 0.9884905805 | J53: 0.9786155001 | K53: 1.211628532 | L53: 2.224098202 | M53: 0.6088 | N53: 533.9176 | O53: 25 | P53: 244 | Q53: 470 | R53: 330 | T53: 123 | U53: 5.28 | V53: 1.54 | AJ53: 45000 | AK53: 400 | AL53: 10 | AM53: 25.641 | AN53: 0.66 | AP53: 423.0359288
A54: HENO Veza Final floración | B54: 85 | C54: 0.9139505759 | D54: 0.8625564777 | E54: 197 | F54: 50.235 | G54: 92.18452814 | H54: 36.48201349 | I54: 0.9773405656 | J54: 0.960845548 | K54: 1.184313609 | L54: 2.275394642 | M54: 0.688144 | N54: 623.458464 | O54: 25 | P54: 232 | Q54: 524.48 | R54: 260.4 | T54: 94 | U54: 4.41 | V54: 2.17 | AJ54: 45000 | AK54: 400 | AL54: 10 | AM54: 23.981 | AN54: 0.66 | AP54: 523.89411
A55: HENO Veza Fructificación | B55: 91 | C55: 0.8320963568 | D55: 0.7657742026 | E55: 186 | F55: 47.43 | G55: 85.84481608 | H55: 32.08838466 | I55: 1.000806021 | J55: 0.9997563541 | K55: 1.242213475 | L55: 2.169337956 | M55: 0.64528 | N55: 583.33312 | O55: 20 | P55: 236 | Q55: 453 | R55: 298 | T55: 96 | U55: 4.53 | V55: 1.19 | AJ55: 45000 | AK55: 400 | AL55: 10 | AM55: 23.068 | AN55: 0.66 | AP55: 484.0280298
A56: HENO Veza Inicio botones | B56: 91.4 | C56: 0.9721214262 | D56: 0.932227536 | E56: 196 | F56: 49.98 | G56: 94.63849626 | H56: 33.46866561 | I56: 0.9680489979 | J56: 0.9458914147 | K56: 1.16210933 | L56: 2.318870324 | M56: 0.718468 | N56: 653.80588 | O56: 25 | P56: 204 | Q56: 492.56 | R56: 233.8 | T56: 90 | U56: 5.28 | V56: 1.54 | AJ56: 45000 | AK56: 400 | AL56: 10 | AM56: 23.898 | AN56: 0.66 | AP56: 556.6249568
A57: HENO Veza Inicio floración | B57: 90 | C57: 0.7518572372 | D57: 0.6734733305 | E57: 225 | F57: 57.375 | G57: 90.85954176 | H57: 62.84705998 | I57: 0.9844856593 | J57: 0.9718713426 | K57: 1.201833094 | L57: 2.242225526 | M57: 0.60196 | N57: 527.91892 | O57: 25 | P57: 244 | Q57: 538.16 | R57: 336 | T57: 123 | U57: 5.28 | V57: 1.54 | AJ57: 45000 | AK57: 400 | AL57: 10 | AM57: 26.305 | AN57: 0.66 | AP57: 414.2272603
A58: HENO Veza Pastoso | B58: 90.2 | C58: 0.9492342693 | D58: 0.908971077 | E58: 188 | F58: 47.94 | G58: 91.99944958 | H58: 28.96923571 | I58: 0.9750278921 | J58: 0.9572930027 | K58: 1.178699078 | L58: 2.286233093 | M58: 0.71596 | N58: 640.7842 | O58: 20 | P58: 278 | Q58: 576.92 | R58: 236 | T58: 105 | U58: 4.8 | V58: 2.1 | AJ58: 45000 | AK58: 400 | AL58: 10 | AM58: 23.234 | AN58: 0.66 | AP58: 545.7686271
A59: HENO Zulla Final floración | B59: 87.6 | C59: 0.7974276922 | D59: 0.7271766252 | E59: 143 | F59: 30.03 | G59: 68.40600963 | H59: 11.57181812 | I59: 1.041902847 | J59: 1.071676354 | K59: 1.350515054 | L59: 1.995372678 | M59: 0.63274 | N59: 575.16066 | O59: 13.5 | P59: 287 | Q59: 414 | R59: 309 | T59: 91 | U59: 0.36 | V59: 0.21 | AJ59: 45000 | AK59: 400 | AL59: 10 | AM59: 19.499 | AN59: 0.72 | AP59: 493.9941847
A60: PAJA Avena | B60: 88 | C60: 0.5381272518 | D60: 0.4366356893 | E60: 32 | F60: 7.392 | G60: 35.09975274 | H60: -62.00686823 | I60: 1.219499726 | J60: 1.436733453 | K60: 1.955627715 | L60: 1.377962083 | M60: 0.491918 | N60: 447.64538 | O60: 15 | P60: 420 | Q60: 738.8 | R60: 439 | T60: 90 | U60: 1.4 | V60: 0.66 | AJ60: 50000 | AK60: 50 | AL60: 5 | AM60: 10.286 | AN60: 0.67 | AP60: 383.5447598
A61: PAJA Cebada | B61: 88 | C61: 0.54583885 | D61: 0.4430524613 | E61: 38 | F61: 8.512 | G61: 36.3914354 | H61: -57.86991626 | I61: 1.212233533 | J61: 1.419628584 | K61: 1.925323806 | L61: 1.399650714 | M61: 0.492002 | N61: 452.64184 | O61: 12.5 | P61: 420 | Q61: 738.8 | R61: 439 | T61: 80 | U61: 1.4 | V61: 0.66 | W61: 1.4 | Y61: 16.5 | Z61: 2.1 | AC61: 3.1 | AG61: 17.6 | AI61: 7.3 | AJ61: 50000 | AK61: 50 | AL61: 5 | AM61: 10.784 | AN61: 0.68 | AP61: 387.2032859
A62: PAJA Cebada tratada amoniaco | B62: 88 | C62: 0.565316952 | D62: 0.4605385981 | E62: 100 | F62: 22.4 | G62: 49.60791438 | H62: -16.60686793 | I62: 1.141925732 | J62: 1.264114285 | K62: 1.659586355 | L62: 1.623766568 | M62: 0.49287 | N62: 453.4404 | O62: 12.5 | P62: 420 | Q62: 738.8 | R62: 439 | T62: 80 | U62: 1.4 | V62: 0.66 | AM62: 15.93 | AN62: 0.66 | AP62: 371.8618627
A63: PAJA Maíz rastrojo | B63: 85 | C63: 0.6529503033 | D63: 0.5611555319 | E63: 59 | F63: 14.042 | G63: 47.1604761 | H63: -49.08081739 | I63: 1.157472222 | J63: 1.298062411 | K63: 1.714069322 | L63: 1.572153941 | M63: 0.554526 | N63: 514.600128 | O63: 13 | P63: 344 | Q63: 670 | R63: 390 | S63: 110 | T63: 72 | U63: 2.28 | V63: 0.66 | W63: 1.4 | Y63: 16.5 | Z63: 2.1 | AJ63: 50000 | AK63: 50 | AL63: 5 | AM63: 12.527 | AN63: 0.66 | AP63: 447.1601862
A64: PAJA trigo | B64: 88 | C64: 0.5448944996 | D64: 0.4422046337 | E64: 35 | F64: 7.84 | G64: 35.75192835 | H64: -59.96328956 | I64: 1.215855774 | J64: 1.428129804 | K64: 1.940357448 | L64: 1.388806399 | M64: 0.49196 | N64: 452.6032 | O64: 15 | P64: 420 | Q64: 738.8 | R64: 439 | T64: 80 | U64: 0.8 | V64: 0.66 | W64: 1.4 | Y64: 16.5 | Z64: 2.1 | AM64: 10.535 | AN64: 0.68 | AP64: 387.9456129
A65: PAJA Trigo tratada amoniaco | B65: 88 | C65: 0.565316952 | D65: 0.4605385981 | E65: 100 | F65: 22.4 | G65: 49.60791438 | H65: -16.60686793 | I65: 1.141925732 | J65: 1.264114285 | K65: 1.659586355 | L65: 1.623766568 | M65: 0.49287 | N65: 453.4404 | O65: 15 | P65: 420 | Q65: 738.8 | R65: 439 | T65: 80 | U65: 0.8 | V65: 0.7 | AM65: 15.93 | AN65: 0.66 | AP65: 371.8618627
A66: VERDE Alfalfa Inicio botones florales | B66: 19.83 | C66: 0.8954507068 | D66: 0.8453932124 | E66: 196.7 | F66: 33.93075 | G66: 74.37573864 | H66: 59.44643611 | I66: 0.9783295072 | J66: 0.9618149826 | K66: 0.9515972519 | L66: 2.83185017 | M66: 0.674826 | N66: 585.2091072 | O66: 22.6 | P66: 277.4 | Q66: 442.1 | R66: 334.4 | S66: 74.3 | T66: 132.8 | U66: 5.43 | V66: 1.75 | AC66: 8.8 | AD66: 1.3 | AG66: 26.7 | AI66: 32.3 | AJ66: 120000 | AK66: 20 | AL66: 100 | AM66: 20.3135 | AN66: 0.77 | AP66: 502.6782183
A67: VERDE Alfalfa Vegetativo 30 cm | B67: 14.4 | C67: 1.057970395 | D67: 1.037917837 | E67: 246 | F67: 40.59 | G67: 87.13790609 | H67: 95.11408255 | I67: 0.9343019937 | J67: 0.8904932233 | K67: 0.8622791436 | L67: 3.125183834 | M67: 0.75199 | N67: 654.98329 | O67: 33 | P67: 201 | Q67: 489.14 | R67: 259 | T67: 129 | U67: 4.95 | V67: 3.15 | AC67: 8.8 | AD67: 1.3 | AG67: 26.7 | AI67: 32.3 | AJ67: 120000 | AK67: 20 | AL67: 100 | AM67: 25.49 | AN67: 0.78 | AP67: 568.7888379
A68: VERDE Avena Floración | B68: 17.7 | C68: 0.8229420319 | D68: 0.7662555366 | E68: 101 | F68: 18.9375 | G68: 59.89304518 | H68: -17.97919135 | I68: 1.102855944 | J68: 1.190232315 | K68: 1.265754423 | L68: 2.128991841 | M68: 0.66 | N68: 594 | O68: 32 | P68: 333 | Q68: 639.62 | R68: 364 | T68: 100 | U68: 1.6 | V68: 1.98 | AJ68: 80000 | AK68: 30 | AL68: 20 | AM68: 17.835 | AN68: 0.75 | AP68: 526.5534262
A69: VERDE Avena Inicio alargamiento tallos | B69: 14.9 | C69: 1.064086631 | D69: 1.064854725 | E69: 120 | F69: 26.1 | G69: 78.54094724 | H69: -13.57775696 | I69: 1.020791557 | J69: 1.034988504 | K69: 1.047364373 | L69: 2.572916273 | M69: 0.8100113766 | N69: 712 | O69: 34 | P69: 230 | Q69: 522.2 | R69: 257 | T69: 121 | U69: 2 | V69: 2.64 | AJ69: 80000 | AK69: 30 | AL69: 20 | AM69: 19.83 | AN69: 0.74 | AP69: 646.839457
A70: VERDE Avena Inicio espigado | B70: 20.6 | C70: 0.9133309306 | D70: 0.8741939522 | E70: 102 | F70: 19.89 | G70: 65.21758227 | H70: -21.9507916 | I70: 1.060258573 | J70: 1.1072336 | K70: 1.146303874 | L70: 2.350843351 | M70: 0.7104972376 | N70: 643 | O70: 32 | P70: 302 | Q70: 604.28 | R70: 331 | T70: 95 | U70: 1.8 | V70: 2.31 | AJ70: 80000 | AK70: 30 | AL70: 20 | AM70: 17.94 | AN70: 0.74 | AP70: 578.0360445
A71: VERDE Avena Lechoso-pastoso | B71: 31.8 | C71: 0.735658448 | D71: 0.6565506562 | E71: 67 | F71: 12.5625 | G71: 48.69970816 | H71: -40.32371469 | I71: 1.10231487 | J71: 1.18914327 | K71: 1.26414502 | L71: 2.131702295 | M71: 0.5894396552 | N71: 547 | O71: 25 | P71: 270 | Q71: 567.8 | R71: 298 | T71: 72 | U71: 1.4 | V71: 1.65 | AJ71: 80000 | AK71: 30 | AL71: 20 | AM71: 14.265 | AN71: 0.75 | AP71: 482.6664074
A72: VERDE Avena Pastoso | B72: 38.3 | C72: 0.7072537332 | D72: 0.6232506884 | E72: 63 | F72: 12.285 | G72: 46.82400532 | H72: -42.66801408 | I72: 1.085210225 | J72: 1.155186303 | K72: 1.214532939 | L72: 2.218779543 | M72: 0.5698924731 | N72: 530 | O72: 25 | P72: 263 | Q72: 559.82 | R72: 291 | T72: 70 | U72: 1.2 | V72: 1.65 | AJ72: 80000 | AK72: 30 | AL72: 20 | AM72: 13.845 | AN72: 0.74 | AP72: 464.7846187
A73: VERDE Maíz Pastoso | B73: 30.7 | C73: 1.336519373 | D73: 1.297656969 | E73: 77.4 | F73: 13.932 | G73: 58.79146932 | H73: -42.36519209 | I73: 1.02870768 | J73: 1.049139944 | K73: 1.066392013 | L73: 1.4 | M73: 0.720464135 | N73: 687.4668776 | O73: 23.8 | P73: 208 | Q73: 454.4 | R73: 243.9 | S73: 29.5 | T73: 45.8 | U73: 0.84 | V73: 1.61 | AA73: 1.1 | AF73: 160 | AJ73: 80000 | AK73: 30 | AL73: 20 | AM73: 15.357 | AN73: 0.76 | AP73: 630.3086521
A74: VERDE raigrás italiano 1 semana antes inicio espigado | B74: 16.4 | C74: 0.9568987067 | D74: 0.9279323027 | E74: 112 | F74: 22.68 | G74: 69.96884231 | H74: -17.0368975 | I74: 1.057101244 | J74: 1.101295022 | K74: 1.137999252 | L74: 2.36799878 | M74: 0.7379 | N74: 663.3721 | O74: 33 | P74: 230 | Q74: 522.2 | R74: 257 | T74: 101 | U74: 1.8 | V74: 1.8 | W74: 1.7 | Y74: 30 | Z74: 3 | AA74: 1 | AC74: 6 | AG74: 80 | AI74: 23 | AJ74: 80000 | AK74: 30 | AL74: 20 | AM74: 18.99 | AN74: 0.73 | AP74: 597.0361265
A75: VERDE raigrás italiano Espiga a 10 cm | B75: 15.8 | C75: 1.073514419 | D75: 1.069426873 | E75: 168 | F75: 26.46 | G75: 77.8462145 | H75: 31.10451486 | I75: 0.9910346389 | J75: 0.9832391547 | K75: 0.9791911182 | L75: 2.752047879 | M75: 0.79572 | N75: 705.00792 | O75: 39 | P75: 188 | Q75: 474.32 | R75: 213 | T75: 114 | U75: 1.8 | V75: 2.1 | W75: 1.7 | Y75: 30 | Z75: 3 | AA75: 1 | AC75: 8.1 | AG75: 85.1 | AM75: 24.87 | AN75: 0.79 | AP75: 636.2376237
A76: VERDE raigrás italiano Espigado | B76: 17.8 | C76: 0.8818407587 | D76: 0.8377966687 | E76: 88 | F76: 19.14 | G76: 63.38289694 | H76: -34.0522143 | I76: 1.091434895 | J76: 1.167439208 | K76: 1.232308365 | L76: 2.186774769 | M76: 0.69765 | N76: 629.97795 | O76: 30 | P76: 265 | Q76: 562.1 | R76: 293 | T76: 97 | U76: 1.8 | V76: 1.5 | AC76: 5 | AG76: 79.6 | AI76: 23.8 | AJ76: 80000 | AK76: 30 | AL76: 20 | AM76: 16.47 | AN76: 0.71 | AP76: 565.5384465
A77: VERDE raigrás italiano Final espigado | B77: 20.4 | C77: 0.8544008851 | D77: 0.8031831803 | E77: 80 | F77: 17.4 | G77: 60.32551195 | H77: -38.91893425 | I77: 1.096771795 | J77: 1.178039486 | K77: 1.247801042 | L77: 2.15962381 | M77: 0.67756 | N77: 617.93472 | O77: 29 | P77: 284 | Q77: 583.76 | R77: 313 | T77: 88 | U77: 1.8 | V77: 1.5 | W77: 2.3 | Y77: 26 | Z77: 1.5 | AJ77: 80000 | AK77: 30 | AL77: 20 | AM77: 15.63 | AN77: 0.71 | AP77: 554.2271801
A78: VERDE raigrás italiano Floración | B78: 27.5 | C78: 0.8068536711 | D78: 0.7469697818 | E78: 60 | F78: 13.5 | G78: 54.39933876 | H78: -52.28407859 | I78: 1.094509341 | J78: 1.173534971 | K78: 1.241204453 | L78: 2.171101492 | M78: 0.64963 | N78: 595.06108 | O78: 27 | P78: 307 | Q78: 609.98 | R78: 337 | T78: 84 | U78: 1.8 | V78: 1.2 | AJ78: 80000 | AK78: 30 | AL78: 20 | AM78: 13.53 | AN78: 0.7 | AP78: 534.2709123
A79: VERDE raigrás italiano Hoja otoño / invierno | B79: 16.6 | C79: 0.987525423 | D79: 0.968623439 | E79: 190 | F79: 37.05 | G79: 83.72930525 | H79: 43.99629972 | I79: 0.9908485486 | J79: 0.9829225231 | K79: 0.9787806617 | L79: 2.753201964 | M79: 0.75792 | N79: 649.53744 | O79: 41 | P79: 238 | Q79: 531.32 | R79: 265 | T79: 143 | U79: 2.28 | V79: 2.58 | AM79: 27.18 | AN79: 0.74 | AP79: 566.5326882
A80: VERDE raigrás italiano Hoja primavera | B80: 15.1 | C80: 1.1 | D80: 1.09899354 | E80: 191 | F80: 34.38 | G80: 86.07504607 | H80: 44.12488481 | I80: 0.9708980146 | J80: 0.9494630462 | K80: 0.9358514742 | L80: 2.879496281 | M80: 0.81287 | N80: 704.75829 | O80: 43 | P80: 178 | Q80: 462.92 | R80: 203 | T80: 133 | U80: 2 | V80: 2.4 | W80: 1.7 | Y80: 30 | Z80: 3 | AC80: 8.1 | AG80: 85.1 | AM80: 27.285 | AN80: 0.76 | AP80: 628.165719
A81: VERDE raigrás italiano Inicio espigado | B81: 16.5 | C81: 0.9368495611 | D81: 0.9041024886 | E81: 105 | F81: 21.2625 | G81: 67.81242603 | H81: -21.5953848 | I81: 1.067222853 | J81: 1.120433875 | K81: 1.164876603 | L81: 2.313361632 | M81: 0.72817 | N81: 654.62483 | O81: 32 | P81: 238 | Q81: 531.32 | R81: 265 | T81: 101 | U81: 1.8 | V81: 1.8 | W81: 1.7 | Y81: 30 | Z81: 3 | AA81: 1 | AC81: 5 | AG81: 80 | AI81: 23 | AJ81: 80000 | AK81: 30 | AL81: 20 | AM81: 18.255 | AN81: 0.73 | AP81: 589.3655744
A82: VERDE raigrás italiano Inicio floración | B82: 24 | C82: 0.8342394507 | D82: 0.7793634604 | E82: 70 | F82: 15.225 | G82: 57.3422064 | H82: -45.48047731 | I82: 1.094099952 | J82: 1.172721579 | K82: 1.240015355 | L82: 2.173183444 | M82: 0.66587 | N82: 608.60518 | O82: 28 | P82: 293 | Q82: 594.02 | R82: 322 | T82: 86 | U82: 1.8 | V82: 1.2 | AJ82: 80000 | AK82: 30 | AL82: 20 | AM82: 14.58 | AN82: 0.71 | AP82: 546.7382102
A83: VERDE Triticale Lechoso-pastoso | B83: 40.51 | C83: 0.7866308836 | D83: 0.7130740068 | E83: 71.9 | F83: 13.48125 | G83: 51.74268223 | H83: -38.67729114 | I83: 1.046395966 | J83: 1.081369429 | K83: 1.110363008 | L83: 2.426936796 | M83: 0.6102620087 | N83: 574.9278384 | O83: 14.8 | P83: 299 | Q83: 618.4 | R83: 350.1 | S83: 43.5 | T83: 57.9 | U83: 1.16 | V83: 0.99 | W83: 2.7 | Y83: 25 | Z83: 1.7 | AA83: 3 | AC83: 8.6 | AD83: 0.44 | AG83: 43.9 | AI83: 24.1 | AJ83: 80000 | AK83: 30 | AL83: 20 | AM83: 14.7795 | AN83: 0.75 | AP83: 510.8802662
A84: VERDE Zulla Botones | B84: 11 | C84: 0.9871458131 | D84: 0.9668537027 | E84: 199 | F84: 40.2975 | G84: 86.21303252 | H84: 49.55476384 | I84: 0.9828422118 | J84: 0.9693798556 | K84: 0.9612993691 | L84: 2.803269123 | M84: 0.753 | N84: 637.791 | O84: 27 | P84: 200 | Q84: 488 | R84: 230 | T84: 153 | U84: 3.3 | V84: 2.1 | AJ84: 120000 | AK84: 20 | AL84: 100 | AM84: 20.555 | AN84: 0.73 | AP84: 554.1757463
A85: VERDE Zulla Botones florales, 1º año | B85: 13.77 | C85: 0.9661408557 | D85: 0.9305393291 | E85: 168.9 | F85: 34.20225 | G85: 86.94535264 | H85: 26.68590212 | I85: 1.000730959 | J85: 0.9998558827 | K85: 1.000844288 | L85: 2.692507587 | M85: 0.717953 | N85: 645.1525658 | O85: 27 | P85: 234.7 | Q85: 348.5 | R85: 330.4 | T85: 101.4 | U85: 3.6 | V85: 2.1 | AM85: 17.3945 | AN85: 0.73 | AP85: 566.6355756 | AQ85: 18.61229065 | AR85: 3.0503485 | AS85: 4.075486 | AT85: 19.84688 | AU85: 47.99488794
A86: VERDE Zulla Botones Florales, 2º año | B86: 12.51 | C86: 0.8951169505 | D86: 0.8483103437 | E86: 168.9 | F86: 34.20225 | G86: 85.02746379 | H86: 29.68260345 | I86: 1.021257856 | J86: 1.035817512 | K86: 1.048474402 | L86: 2.570192304 | M86: 0.686441 | N86: 605.6468943 | O86: 27 | P86: 265.9 | Q86: 382.3 | R86: 352.4 | T86: 117.7 | U86: 3.6 | V86: 2.1 | AM86: 17.3945 | AN86: 0.73 | AP86: 524.9568365 | AQ86: 18.61229065 | AR86: 3.0503485 | AS86: 4.075486 | AT86: 19.84688 | AU86: 47.99488794
A87: VERDE Zulla Final floración | B87: 15.3 | C87: 0.8276145297 | D87: 0.7672213764 | E87: 152 | F87: 29.64 | G87: 68.69210074 | H87: 20.9161303 | I87: 1.041416423 | J87: 1.072209943 | K87: 1.097775658 | L87: 2.454764615 | M87: 0.64695 | N87: 574.4916 | O87: 21 | P87: 305 | Q87: 607.7 | R87: 329.75 | T87: 112 | U87: 2.7 | V87: 3.5 | AJ87: 120000 | AK87: 20 | AL87: 100 | AM87: 15.62 | AN87: 0.74 | AP87: 496.437687
A88: VERDE Zulla Floración | B88: 13.5 | C88: 0.8566351193 | D88: 0.8059033998 | E88: 155 | F88: 30.225 | G88: 70.91503133 | H88: 22.20440079 | I88: 1.033625341 | J88: 1.058015117 | K88: 1.078411657 | L88: 2.498842463 | M88: 0.67321 | N88: 586.36591 | O88: 23 | P88: 279 | Q88: 578.06 | R88: 305.05 | T88: 129 | U88: 3.6 | V88: 2.1 | AJ88: 120000 | AK88: 20 | AL88: 100 | AM88: 15.935 | AN88: 0.74 | AP88: 509.3963728
A89: VERDE Zulla Floración, 1º año | B89: 14.92 | C89: 0.8896999035 | D89: 0.8413566291 | E89: 162.4 | F89: 31.668 | G89: 82.56252045 | H89: 26.45331179 | I89: 1.017849675 | J89: 1.029771407 | K89: 1.040391915 | L89: 2.590159344 | M89: 0.682098 | N89: 604.6116672 | O89: 23 | P89: 270.2 | Q89: 390.1 | R89: 346.3 | T89: 113.6 | U89: 2.7 | V89: 3.5 | AM89: 16.712 | AN89: 0.74 | AP89: 526.4629793 | AQ89: 18.79961472 | AR89: 3.068776 | AS89: 4.110976 | AT89: 19.95608 | AU89: 47.51869267
A90: VERDE Zulla Floración, 2º año | B90: 17.12 | C90: 0.8321434211 | D90: 0.7722857657 | E90: 141.1 | F90: 27.5145 | G90: 77.40801428 | H90: 12.25538394 | I90: 1.04040746 | J90: 1.070362352 | K90: 1.095245434 | L90: 2.460435584 | M90: 0.64897 | N90: 579.984489 | O90: 23 | P90: 303 | Q90: 452.6 | R90: 406.5 | T90: 106.3 | U90: 2.7 | V90: 3.5 | AM90: 14.4755 | AN90: 0.74 | AP90: 504.7095418 | AQ90: 19.446103 | AR90: 3.1291615 | AS90: 4.227274 | AT90: 20.31392 | AU90: 45.8798973
A91: VERDE Zulla Fructificación, 1º año | B91: 18.93 | C91: 0.7740194666 | D91: 0.7050334795 | E91: 130.8 | F91: 25.506 | G91: 74.01316404 | H91: 6.799556184 | I91: 1.056133358 | J91: 1.099480224 | K91: 1.135467666 | L91: 2.373278359 | M91: 0.618165 | N91: 549.4868685 | O91: 21 | P91: 333.5 | Q91: 519.6 | R91: 450.7 | T91: 111.1 | U91: 2.7 | V91: 3.5 | AM91: 13.394 | AN91: 0.74 | AP91: 474.5819724 | AQ91: 19.77666618 | AR91: 3.158362 | AS91: 4.283512 | AT91: 20.48696 | AU91: 45.04436717
A92: VERDE Zulla Fructificación, 2º año | B92: 20.03 | C92: 0.7714311913 | D92: 0.6990913505 | E92: 135.4 | F92: 26.403 | G92: 74.79356037 | H92: 10.38574942 | I92: 1.052200861 | J92: 1.092134028 | K92: 1.125249773 | L92: 2.394829046 | M92: 0.609681 | N92: 548.6519319 | O92: 21 | P92: 341.9 | Q92: 491.1 | R92: 452.9 | T92: 100.1 | U92: 2.7 | V92: 3.5 | AM92: 13.877 | AN92: 0.74 | AP92: 472.0479914 | AQ92: 19.62759064 | AR92: 3.145321 | AS92: 4.258396 | AT92: 20.40968 | AU92: 45.42098545
A93: VERDE Zulla hoja, 1º año | B93: 11 | C93: 1.096854529 | D93: 1.092315415 | E93: 233.5 | F93: 47.28375 | G93: 101.4759961 | H93: 71.57961546 | I93: 0.9440674911 | J93: 0.9059343706 | K93: 0.8812924975 | L93: 3.057759878 | M93: 0.789865 | N93: 687.814442 | O93: 27 | P93: 163.5 | Q93: 249.6 | R93: 234.1 | T93: 129.2 | U93: 3.3 | V93: 2.1 | AM93: 24.1775 | AN93: 0.73 | AP93: 598.1277405 | AQ93: 17.00377003 | AR93: 2.8672075 | AS93: 3.72277 | AT93: 18.7616 | AU93: 52.11987442
A94: VERDE Zulla hoja, 2º año | B94: 11 | C94: 1.099747568 | D94: 1.095573936 | E94: 240.5 | F94: 48.70125 | G94: 102.775997 | H94: 76.87320774 | I94: 0.9385770623 | J94: 0.8972271293 | K94: 0.8705493025 | L94: 3.095494801 | M94: 0.790269 | N94: 686.9808417 | O94: 27 | P94: 163.1 | Q94: 272.8 | R94: 253.3 | T94: 130.7 | U94: 3.3 | V94: 2.1 | AM94: 24.9125 | AN94: 0.73 | AP94: 595.5743013 | AQ94: 16.85710078 | AR94: 2.8473625 | AS94: 3.68455 | AT94: 18.644 | AU94: 52.50054562
A95: VERDE Zulla Inicio Floración, 1º año | B95: 14.5 | C95: 0.9196215428 | D95: 0.8756744961 | E95: 167 | F95: 32.565 | G95: 84.17295987 | H95: 28.74256271 | I95: 1.010019035 | J95: 1.015994101 | K95: 1.022087499 | L95: 2.63654613 | M95: 0.695127 | N95: 620.3313348 | O95: 23 | P95: 257.3 | Q95: 366 | R95: 334.1 | T95: 107.6 | U95: 3.6 | V95: 2.1 | AM95: 17.195 | AN95: 0.74 | AP95: 541.967139 | AQ95: 18.66656512 | AR95: 3.055735 | AS95: 4.08586 | AT95: 19.8788 | AU95: 47.8568487
A96: VERDE Zulla Inicio Floración, 2º año | B96: 15.37 | C96: 0.8688196702 | D96: 0.8142223989 | E96: 151.5 | F96: 29.5425 | G96: 80.22335033 | H96: 18.72117137 | I96: 1.03172308 | J96: 1.054574304 | K96: 1.073743818 | L96: 2.50970557 | M96: 0.666039 | N96: 598.4360415 | O96: 23 | P96: 286.1 | Q96: 406 | R96: 371.5 | T96: 101.5 | U96: 3.6 | V96: 2.1 | AM96: 15.5675 | AN96: 0.74 | AP96: 521.8195916 | AQ96: 19.12419778 | AR96: 3.0996775 | AS96: 4.17049 | AT96: 20.1392 | AU96: 46.69505782
A97: VERDE Zulla tallo hoja, 1º año | B97: 11.5 | C97: 1.018584209 | D97: 0.9979952283 | E97: 186 | F97: 37.665 | G97: 91.19718606 | H97: 37.93595928 | I97: 0.988232989 | J97: 0.9784811434 | K97: 0.9730315989 | L97: 2.76946899 | M97: 0.754515 | N97: 664.0486515 | O97: 27 | P97: 198.5 | Q97: 280.5 | R97: 269.9 | T97: 119.9 | U97: 3.3 | V97: 2.1 | AM97: 19.19 | AN97: 0.73 | AP97: 583.7835984 | AQ97: 18.1417305 | AR97: 3.00187 | AS97: 3.98212 | AT97: 19.5596 | AU97: 49.1942568
A98: VERDE Zulla tallo hoja, 2º año | B98: 10.03 | C98: 1.027185591 | D98: 1.007222315 | E98: 206.5 | F98: 41.81625 | G98: 95.04208597 | H98: 53.3796313 | I98: 0.9734076994 | J98: 0.9536197806 | K98: 0.9411371114 | L98: 2.863324384 | M98: 0.755121 | N98: 662.4676533 | O98: 27 | P98: 197.9 | Q98: 311.2 | R98: 290.4 | T98: 122.7 | U98: 3.3 | V98: 2.1 | AM98: 21.3425 | AN98: 0.73 | AP98: 577.1261293 | AQ98: 17.62009903 | AR98: 2.9437525 | AS98: 3.87019 | AT98: 19.2152 | AU98: 50.53011982
A99: VERDE Zulla yemas florales, 1º año | B99: 11.91 | C99: 0.971662067 | D99: 0.9400058138 | E99: 170.3 | F99: 34.48575 | G99: 87.26725566 | H99: 27.64789741 | I99: 1.00280174 | J99: 1.003435006 | K99: 1.005537317 | L99: 2.679941156 | M99: 0.727447 | N99: 645.6819572 | O99: 27 | P99: 225.3 | Q99: 323.9 | R99: 304.2 | T99: 112.4 | U99: 3.6 | V99: 2.1 | AM99: 17.5415 | AN99: 0.73 | AP99: 567.4701334 | AQ99: 18.57255361 | AR99: 3.0463795 | AS99: 4.067842 | AT99: 19.82336 | AU99: 48.09598983
A100: VERDE Zulla yemas florales, 2º año | B100: 12.06 | C100: 0.9414798783 | D100: 0.9030186208 | E100: 177.4 | F100: 35.9235 | G100: 87.76027264 | H100: 34.30704275 | I100: 1.00595395 | J100: 1.008904022 | K100: 1.012728493 | L100: 2.660911447 | M100: 0.709469 | N100: 628.1638526 | O100: 27 | P100: 243.1 | Q100: 360.2 | R100: 330.5 | T100: 114.6 | U100: 3.6 | V100: 2.1 | AM100: 18.287 | AN100: 0.73 | AP100: 546.9396001 | AQ100: 18.37435685 | AR100: 3.026251 | AS100: 4.029076 | AT100: 19.70408 | AU100: 48.60073657
AU183: 42.3956712
AU184: Falta valor MNT
AU185: Falta valor MNT
AU186: Falta valor MNT
AU187: Falta valor MNT
AU188: 46.5085928
AU189: 46.87
AU190: 40.675
AU191: 62.7678912
AU192: 49.73
AU193: 40.39
AU194: 49.3864328
AU195: 54.28
AU196: 54.28
AU197: 54.28
AU299: Falta valor MNT
AU300: Falta valor MNT
AU301: Falta valor MNT
AU302: Falta valor MNT
AU303: Falta valor MNT
AU304: Falta valor MNT
AU305: Falta valor MNT
AU306: Falta valor MNT
AU307: Falta valor MNT
AU308: Falta valor MNT
AU309: Falta valor MNT
AU310: Falta valor MNT
AU311: Falta valor MNT
AU312: Falta valor MNT
AU313: Falta valor MNT
AU314: Falta valor MNT
AU315: Falta valor MNT
AU316: Falta valor MNT
AU317: Falta valor MNT
AU318: Falta valor MNT
AU319: Falta valor MNT
AU320: Falta valor MNT
AU321: Falta valor MNT
AU322: Falta valor MNT
AU323: Falta valor MNT
AU324: Falta valor MNT
AU325: Falta valor MNT
AU326: Falta valor MNT
AU327: Falta valor MNT
AU328: Falta valor MNT
AU329: Falta valor MNT
AU330: Falta valor MNT
AU331: Falta valor MNT
AU332: Falta valor MNT
AU333: Falta valor MNT
AU334: Falta valor MNT
AU335: Falta valor MNT
AU336: Falta valor MNT
AU337: Falta valor MNT
AU338: Falta valor MNT
AU339: Falta valor MNT
AU340: Falta valor MNT
AU341: Falta valor MNT
AU342: Falta valor MNT
AU343: Falta valor MNT
AU344: Falta valor MNT
AU345: Falta valor MNT
AU346: Falta valor MNT
AU347: Falta valor MNT
AU348: Falta valor MNT
AU349: Falta valor MNT
AU350: Falta valor MNT
AU351: Falta valor MNT
AU352: Falta valor MNT
AU353: Falta valor MNT
AU354: Falta valor MNT
AU355: Falta valor MNT
AU356: Falta valor MNT
AU357: Falta valor MNT
AU358: Falta valor MNT
AU359: Falta valor MNT
AU360: Falta valor MNT
AU361: Falta valor MNT
AU362: Falta valor MNT
AU363: Falta valor MNT
AU364: Falta valor MNT
AU365: Falta valor MNT
AU366: Falta valor MNT
AU367: Falta valor MNT
AU368: Falta valor MNT
AU369: Falta valor MNT
AU370: Falta valor MNT
AU371: Falta valor MNT
AU372: Falta valor MNT
AU373: Falta valor MNT
AU374: Falta valor MNT
AU375: Falta valor MNT
AU376: Falta valor MNT
AU377: Falta valor MNT
AU378: Falta valor MNT
AU379: Falta valor MNT
AU380: Falta valor MNT
AU381: Falta valor MNT
AU382: Falta valor MNT
AU383: Falta valor MNT
AU384: Falta valor MNT
... 84 more rows

Sheet 0_Tabla Concentrados (hidden)
A1: Nombre Concentrados | B1: MS | C1: UFL | D1: UFV | E1: MNT_PB | F1: PDIA | G1: PDI | H1: BPR | I1: UEL | J1: UEB | K1: UEM | L1: NI ref | M1: dMO | N1: MOD_TDN | O1: EE | P1: FB | Q1: NDF | R1: ADF | S1: Lignina | T1: Cenizas | U1: Ca | V1: P | W1: Mg | X1: Cl | Y1: K | Z1: Na | AA1: S | AB1: Co | AC1: Cu | AD1: Mo | AE1: Almidón | AF1: Fe | AG1: Mn | AH1: Se | AI1: Zn | AJ1: Vit A | AK1: Vit D | AL1: Vit E | AM1: AG | AN1: DT_N | AO1: dr | AP1: MOF
A3: Alfalfa deshidratada y aglomerados | B3: 90.2 | C3: 0.7398701174 | D3: 0.6738447078 | E3: 233 | F3: 68.64631679 | G3: 116.147103 | H3: 51.38002158 | I3: 0.3789 | L3: 2 | M3: 0.6658 | N3: 579.9118 | O3: 34 | P3: 237 | Q3: 405 | R3: 280 | S3: 76 | T3: 129 | U3: 3.84 | V3: 1.768 | AM3: 17 | AN3: 0.6663643659 | AO3: 0.8830573093
A4: Alforfón grano | B4: 88 | C4: 1.000775785 | D4: 0.9661592102 | E4: 125 | F4: 34.09988724 | G4: 90.96989041 | H4: -20.55937996 | I4: 0.2129 | L4: 2 | M4: 0.74393 | N4: 726.81961 | O4: 28 | P4: 118 | Q4: 301 | R4: 158.9 | S4: 33.4 | T4: 23 | U4: 0.605 | V4: 2.775 | W4: 1.2 | X4: 0.5 | Y4: 5.1 | Z4: 0.6 | AA4: 1.6 | AB4: 0.06 | AC4: 11 | AF4: 50 | AG4: 38 | AI4: 10 | AM4: 21 | AN4: 0.6993867196 | AO4: 0.9074752038 | AP4: 668.2667467
A5: Alforfón segundas | B5: 89 | C5: 1.185521315 | D5: 1.168586189 | E5: 335 | F5: 98.39838218 | G5: 150.650279 | H5: 125.2564113 | I5: 0.2129 | L5: 2 | M5: 0.79562 | N5: 751.8609 | O5: 82 | P5: 83 | Q5: 251.39 | R5: 114.99 | S5: 22.61 | T5: 55 | U5: 0.275 | V5: 2.925 | AM5: 65.6 | AN5: 0.6946621902 | AO5: 0.9619722962 | AP5: 273.3737151
A6: Algarrobo (algarroba) | B6: 87 | C6: 0.843494905 | D6: 0.8273952756 | E6: 58 | F6: 20.57803675 | G6: 81.08159627 | H6: -76.25681175 | I6: 0.288174289 | L6: 2 | M6: 0.8014563863 | N6: 771.8025 | O6: 11 | P6: 87 | Q6: 257.16 | R6: 120.01 | S6: 23.83 | T6: 37 | U6: 0.825 | V6: 0.408 | AM6: 9.9 | AN6: 0.6052595731 | AO6: 0.8988026382 | AP6: 645.9087874
A7: Algarrobo pulpa deshidratada sin semilla, IAMZ | B7: 86 | C7: 0.8175571336 | D7: 0.8010099087 | E7: 56 | F7: 19.88740459 | G7: 81.02326077 | H7: -78.36477527 | I7: 0.286199543 | L7: 2 | M7: 0.8034925234 | N7: 773.7633 | O7: 0.1 | P7: 84.5 | Q7: 253.55 | R7: 116.87 | S7: 23.07 | T7: 37 | U7: 0.825 | V7: 0.408 | AM7: 0.08 | AN7: 0.6049783161 | AO7: 0.8990195713 | AP7: 332.8963114
A8: Algodón cáscara | B8: 91 | C8: 0.3662081422 | D8: 0.2380788633 | E8: 81 | F8: 16.10308659 | G8: 54.6536023 | H8: -25.8351808 | I8: 0.65129486 | L8: 2 | M8: 0.323182 | N8: 309.608356 | O8: 19 | P8: 547 | Q8: 900 | R8: 697.4 | S8: 184.6 | T8: 42 | U8: 0.77 | V8: 0.693 | AM8: 14.25 | AN8: 0.7237543586 | AO8: 0.7196621715 | AP8: 816.2571164
A9: Algodón torta sin aceite | B9: 89 | C9: 1.150192028 | D9: 1.125943813 | E9: 466 | F9: 160.9221094 | G9: 212.6445717 | H9: 184.5836527 | I9: 0.2994882 | L9: 2 | M9: 0.802196 | N9: 750.855456 | O9: 20 | P9: 127 | Q9: 232 | R9: 138 | S9: 32 | T9: 64 | U9: 2.585 | V9: 5.922 | W9: 5.2 | Y9: 15.2 | Z9: 0.4 | AM9: 15 | AN9: 0.6409096727 | AO9: 0.9616700558 | AP9: 814.2065213
A10: Algodón, grano | B10: 92 | C10: 1.105745464 | D10: 1.027155353 | E10: 220 | F10: 48.76444907 | G10: 91.65479282 | H10: 70.58383788 | I10: 0.5034 | L10: 2 | M10: 0.64652 | N10: 618.71964 | O10: 198 | P10: 276 | Q10: 456 | R10: 354 | S10: 105 | T10: 43 | U10: 1.155 | V10: 4.736 | AM10: 188.1 | AN10: 0.7394108541 | AO10: 0.8505979247 | AP10: 581.8575174
A11: Altramuz extrusionado | B11: 88 | C11: 1.52751288 | D11: 1.578192665 | E11: 406 | F11: 69.23209069 | G11: 127.7145253 | H11: 223.2811959 | I11: 0.1714 | L11: 2 | M11: 0.91027 | N11: 877.50028 | O11: 109 | P11: 121 | Q11: 214 | R11: 175 | S11: 34.4 | T11: 36 | U11: 1.1 | V11: 3.06 | W11: 1.7 | X11: 0.23 | Y11: 10 | Z11: 0.11 | AM11: 83.93 | AN11: 0.8224029302 | AO11: 0.9601644388 | AP11: 769.7935828
A12: Altramuz grano | B12: 86.7 | C12: 1.49857485 | D12: 1.544346092 | E12: 399 | F12: 69.09881582 | G12: 127.2670334 | H12: 218.10216 | I12: 0.1714 | L12: 2 | M12: 0.90507 | N12: 864.34185 | O12: 104 | P12: 161 | Q12: 229 | R12: 172 | S12: 17 | T12: 45 | U12: 1.1 | V12: 3.128 | W12: 2.5 | Y12: 9.5 | Z12: 0.55 | AM12: 93.6 | AN12: 0.822898728 | AO12: 0.9778585299 | AP12: 864.527247
A13: Avena | B13: 87.4 | C13: 1.002754804 | D13: 0.9548146189 | E13: 111 | F13: 20.39754399 | G13: 75.33304787 | H13: -14.56672481 | I13: 0.3208 | L13: 2 | M13: 0.72867 | N13: 706.8099 | O13: 67 | P13: 135 | Q13: 336 | R13: 162 | S13: 27 | T13: 30 | U13: 0.55 | V13: 3 | W13: 1.75 | Y13: 4.3 | Z13: 0.5 | AB13: 0.02 | AC13: 3.5 | AD13: 0.7 | AG13: 38.4 | AH13: 0.04 | AI13: 25.2 | AL13: 15 | AM13: 60.3 | AN13: 0.7980031538 | AO13: 0.9097253799 | AP13: 747.5170565
A14: Cacahuete, torta 48 | B14: 88.6 | C14: 1.194433583 | D14: 1.186516039 | E14: 524 | F14: 143.3022223 | G14: 198.101494 | H14: 261.736138 | I14: 0.2876 | L14: 2 | M14: 0.84376 | N14: 789.75936 | O14: 16 | P14: 77 | Q14: 150 | R14: 101 | S14: 26 | T14: 64 | U14: 0.99 | V14: 4.29 | W14: 3 | AB14: 0.3 | AC14: 14.5 | AD14: 1.7 | AF14: 450 | AG14: 47.5 | AH14: 0.11 | AI14: 61.5 | AM14: 12 | AN14: 0.7179423819 | AO14: 0.969580348 | AP14: 807.1947924
A15: Cacao torta | B15: 86.6 | C15: 0.9215256292 | D15: 0.8794694618 | E15: 232 | F15: 88.67087909 | G15: 140.270913 | H15: 25.81494705 | I15: 0.34659281 | L15: 2 | M15: 0.745465 | N15: 673.154895 | O15: 20 | P15: 161 | Q15: 363.86 | R15: 212.9 | S15: 47.29 | T15: 97 | U15: 1.43 | V15: 0.884 | AM15: 15 | AN15: 0.5829749087 | AO15: 0.9164965682 | AP15: 268.232459
A16: Cebada bagazo cervecería fresco | B16: 20.5 | C16: 0.8640921799 | D16: 0.7703702942 | E16: 300 | F16: 129.9487159 | G16: 172.9796551 | H16: 53.5641575 | I16: 0.4951 | L16: 2 | M16: 0.6385 | N16: 606.575 | O16: 86 | P16: 150 | Q16: 525 | R16: 206 | S16: 47 | T16: 50 | U16: 1.815 | V16: 4.446 | W16: 1.6 | Y16: 0.7 | Z16: 1.6 | AB16: 0.08 | AC16: 22.2 | AD16: 0.5 | AG16: 38.5 | AH16: 0.06 | AI16: 85 | AL16: 29 | AM16: 38.7 | AN16: 0.5325076887 | AO16: 0.9265657975 | AP16: 565.2052521
A17: Cebada bagazo cervecería seco | B17: 91.9 | C17: 0.871193565 | D17: 0.7805426295 | E17: 262.4 | F17: 107.6156328 | G17: 151.6383987 | H17: 35.09442835 | I17: 0.4951 | L17: 2 | M17: 0.62732 | N17: 601.348952 | O17: 79.9 | P17: 161.6 | Q17: 643.3 | R17: 236.4 | S17: 78.9 | T17: 41.4 | U17: 1.265 | V17: 4.914 | AB17: 0.08 | AC17: 22.2 | AD17: 0.5 | AG17: 38.5 | AH17: 0.06 | AI17: 85 | AL17: 29 | AM17: 35.955 | AN17: 0.5371850665 | AO17: 0.886143731 | AP17: 529.6572154
A18: Cebada grano | B18: 88.8 | C18: 1.078969989 | D18: 1.067752556 | E18: 112 | F18: 27.59508246 | G18: 89.46220189 | H18: -31.34737412 | I18: 0.2046 | L18: 2 | M18: 0.837328 | N18: 816.3948 | O18: 19 | P18: 54 | Q18: 215 | R18: 65 | S18: 12 | T18: 25 | U18: 0.44 | V18: 2.964 | W18: 1.3 | Y18: 5.55 | Z18: 0.35 | AB18: 0.01 | AC18: 4.1 | AD18: 0.3 | AF18: 90 | AG18: 17.6 | AH18: 0.02 | AI18: 24.4 | AJ18: 1000 | AL18: 25 | AM18: 14.25 | AN18: 0.7349259949 | AO18: 0.9294938772 | AP18: 596.0833771
A19: Cebada malta, grano germinado y secado | B19: 89.6 | C19: 0.8231856487 | D19: 0.7581965961 | E19: 255 | F19: 66.35502136 | G19: 127.2527654 | H19: 71.69727487 | I19: 0.2959 | L19: 2 | M19: 0.89925 | N19: 840.79875 | O19: 23 | P19: 10 | Q19: 94 | R19: 10 | S19: 6 | T19: 65 | U19: 1.485 | V19: 5.625 | AL19: 16 | AM19: 10.35 | AN19: 0.7318227862 | AO19: 0.9703127509 | AP19: 363.3900279
A20: Cebada salvado | B20: 89 | C20: 0.7604950037 | D20: 0.683000715 | E20: 118 | F20: 25.13276462 | G20: 75.56717545 | H20: -8.043766921 | I20: 0.3630071 | L20: 2 | M20: 0.620602 | N20: 581.504074 | O20: 32 | P20: 187 | Q20: 539 | R20: 239 | S20: 28 | T20: 63 | U20: 0.44 | V20: 2.925 | AB20: 0.03 | AC20: 11.7 | AD20: 0.6 | AG20: 123 | AH20: 0.05 | AI20: 59 | AM20: 25.6 | AN20: 0.7651033494 | AO20: 0.9067371975 | AP20: 563.5193635
A21: Centeno grano | B21: 86.5 | C21: 1.19 | D21: 1.21 | E21: 97 | F21: 20 | G21: 81 | H21: -34.72904868 | I21: 0.2129 | L21: 2 | M21: 0.88214 | N21: 864.4972 | O21: 16.2 | P21: 26 | Q21: 132 | R21: 42 | S21: 14 | T21: 20 | U21: 0.385 | V21: 3 | W21: 1.35 | Y21: 5.25 | Z21: 0.3 | AB21: 0.03 | AC21: 4.5 | AD21: 0.2 | AG21: 55 | AH21: 0.03 | AI21: 30 | AL21: 17 | AM21: 12.15 | AN21: 0.7769651377 | AO21: 0.9244544324 | AP21: 415.4862894
A22: Coco torta | B22: 90 | C22: 0.9709595673 | D22: 0.9339995141 | E22: 239 | F22: 87.26903545 | G22: 138.2098434 | H22: 30.48498753 | I22: 0.2876 | L22: 2 | M22: 0.71604 | N22: 660.18888 | O22: 18 | P22: 178 | Q22: 580 | R22: 316 | S22: 78 | T22: 78 | U22: 1.1 | V22: 4.488 | W22: 4 | Z22: 0.6 | AC22: 20 | AF22: 500 | AG22: 60 | AI22: 70 | AM22: 16.2 | AN22: 0.5872269422 | AO22: 0.8846081419 | AP22: 201.6193367
A23: Colza, grano | B23: 89.9 | C23: 1.96875359 | D23: 2.026164505 | E23: 217 | F23: 41.88482236 | G23: 81.98060891 | H23: 90.24033351 | I23: 0.2959 | L23: 2 | M23: 0.84608 | N23: 798.69952 | O23: 457 | P23: 68 | Q23: 199 | R23: 116 | S23: 41 | T23: 56 | U23: 1.815 | V23: 3.763 | AM23: 388.45 | AN23: 0.7911253228 | AO23: 0.924083365 | AP23: 581.9454468
A24: Colza, grano semidescascarillado | B24: 90 | C24: 2.006824385 | D24: 2.066056386 | E24: 217 | F24: 41.88482236 | G24: 80.92224091 | H24: 91.89403351 | I24: 0.2959 | L24: 2 | M24: 0.84608 | N24: 798.69952 | O24: 480 | P24: 68 | Q24: 115 | R24: 84 | S24: 41 | T24: 56 | U24: 1.815 | V24: 3.763 | AM24: 379.2 | AN24: 0.7911253228 | AO24: 0.924083365 | AP24: 817.1113866
A25: Colza, turtó | B25: 90 | C25: 0.958005025 | D25: 0.9098593603 | E25: 418 | F25: 103.9119909 | G25: 155.8627084 | H25: 193.047004 | I25: 0.3125 | L25: 2 | M25: 0.7842 | N25: 704.9958 | O25: 26 | P25: 120 | Q25: 287 | R25: 182 | S25: 74 | T25: 101 | U25: 4.62 | V25: 8.804 | W25: 5.15 | Y25: 12.4 | Z25: 0.75 | AB25: 0.1 | AC25: 5.5 | AD25: 0.5 | AF25: 300 | AG25: 63.5 | AH25: 0.07 | AI25: 64.5 | AL25: 20 | AM25: 20.8 | AN25: 0.7277738088 | AO25: 0.9131864885 | AP25: 325.121416
A26: Colza, turtó tanne, curtido | B26: 89 | C26: 1.240309081 | D26: 1.253284486 | E26: 391 | F26: 143.4249536 | G26: 193.4731611 | H26: 118.7396757 | I26: 0.3374 | L26: 2 | M26: 0.77349 | N26: 713.93127 | O26: 26 | P26: 129 | Q26: 302 | R26: 193 | S26: 79 | T26: 77 | U26: 4.62 | V26: 8.804 | Y26: 12.4 | Z26: 0.75 | AB26: 0.1 | AC26: 5.5 | AD26: 0.5 | AF26: 300 | AG26: 63.5 | AH26: 0.07 | AI26: 64.5 | AM26: 17.94 | AN26: 0.5952070214 | AO26: 0.9061810788 | AP26: 550.0468057
A27: Girasol torta descascarillado | B27: 91 | C27: 0.9910764189 | D27: 0.9439708695 | E27: 417 | F27: 80.25381508 | G27: 133.123438 | H27: 220.1112143 | I27: 0.3208 | L27: 2 | M27: 0.745917 | N27: 691.465059 | O27: 22 | P27: 176 | Q27: 299 | R27: 220 | S27: 70 | T27: 73 | U27: 2.09 | V27: 6.435 | W27: 5.5 | X27: 1.2 | Y27: 12 | Z27: 0.33 | AM27: 16.5 | AN27: 0.790120834 | AO27: 0.9169809263 | AP27: 601.9494415
A28: Girasol, grano | B28: 93 | C28: 1.708471184 | D28: 1.695156001 | E28: 174 | F28: 24.64749869 | G28: 60.41910651 | H28: 72.58686279 | I28: 0.2627 | L28: 2 | M28: 0.74312 | N28: 714.13832 | O28: 485 | P28: 164 | Q28: 294 | R28: 200 | S28: 56 | T28: 39 | U28: 0.99 | V28: 3.12 | AM28: 460.75 | AN28: 0.8418449238 | AO28: 0.8956544094 | AP28: 566.2107452
A29: Gramíneas deshidratadas y aglomeradas | B29: 91 | C29: 0.8289959418 | D29: 0.7851460594 | E29: 105 | F29: 26.82240135 | G29: 80.52058238 | H29: -29.85340787 | I29: 0.3818741 | L29: 2 | M29: 0.72207 | N29: 649.14093 | O29: 25 | P29: 238 | Q29: 508 | R29: 269 | S29: 73.08 | T29: 101 | U29: 2.365 | V29: 1.836 | AM29: 12.5 | AN29: 0.7018778114 | AO29: 0.8568682611
A30: Grasa vegetal, manteca de cerdo (todos los tipos) | B30: 99.9 | C30: 3.61 | D30: 3.94 | E30: 1e-07 | F30: 1e-07 | G30: 1e-07 | H30: -14 | I30: 0.25 | L30: 2 | M30: 0.9 | N30: 1e-07 | O30: 999 | P30: 1e-07 | Q30: 1e-07 | R30: 1e-07 | S30: 1e-07 | T30: 1e-07 | U30: 5.5e-08 | V30: 6.8e-08 | W30: 1e-07 | X30: 1e-07 | Y30: 1e-07 | Z30: 1e-07 | AA30: 1e-07 | AB30: 1e-07 | AC30: 1e-07 | AD30: 1e-07 | AF30: 1e-07 | AG30: 1e-07 | AH30: 1e-07 | AI30: 1e-07 | AJ30: 1300 | AK30: 1e-07 | AL30: 95 | AM30: 999 | AN30: 0 | AO30: 0
A31: Guisante grano | B31: 85.7 | C31: 1.262578618 | D31: 1.297789954 | E31: 259 | F31: 44.91173193 | G31: 108.9957771 | H31: 95.45867945 | I31: 0.1714 | L31: 2 | M31: 0.91768 | N31: 877.30208 | O31: 15 | P31: 64 | Q31: 162 | R31: 74 | S31: 3 | T31: 44 | U31: 0.495 | V31: 3.128 | W31: 1.45 | Y31: 11 | Z31: 0.3 | AB31: 0.07 | AC31: 7.2 | AD31: 1.1 | AG31: 8 | AH31: 0.2 | AI31: 37 | AM31: 12 | AN31: 0.8222202176 | AO31: 0.9753885851 | AP31: 696.3958697
A32: Habón grano | B32: 86.9 | C32: 1.286607118 | D32: 1.320957789 | E32: 302 | F32: 51.43027974 | G32: 115.0698849 | H32: 130.983117 | I32: 0.1714 | L32: 2 | M32: 0.9143 | N32: 876.8137 | O32: 16 | P32: 90 | Q32: 171 | R32: 108 | S32: 24.7 | T32: 41 | U32: 0.715 | V32: 3.264 | W32: 1.6 | X32: 0.8 | Y32: 12 | Z32: 0.25 | AB32: 0.4 | AC32: 13.8 | AD32: 1 | AF32: 100 | AG32: 12.7 | AH32: 0.02 | AI32: 43.7 | AM32: 12.8 | AN32: 0.8224539482 | AO32: 0.9591817888 | AP32: 509.2308572
A33: Judía grano | B33: 88 | C33: 1.269417567 | D33: 1.306008103 | E33: 257 | F33: 44.57202968 | G33: 108.5638422 | H33: 93.98279293 | I33: 0.1714 | L33: 2 | M33: 0.91937 | N33: 878.91772 | O33: 19 | P33: 51 | Q33: 162 | R33: 74 | S33: 3 | T33: 44 | U33: 0.715 | V33: 3.468 | W33: 1.6 | Y33: 14 | Z33: 0.4 | AM33: 15.2 | AN33: 0.8221354136 | AO33: 0.9750789946 | AP33: 689.6784425
A34: Lenteja grano | B34: 88 | C34: 1.292742572 | D34: 1.330655343 | E34: 281 | F34: 49.08181296 | G34: 113.199967 | H34: 113.2253843 | I34: 0.1714 | L34: 2 | M34: 0.91963 | N34: 886.52332 | O34: 19.3 | P34: 49 | Q34: 160 | R34: 72 | S34: 3 | T34: 36 | U34: 0.605 | V34: 3.06 | AM34: 14.475 | AN34: 0.8216657174 | AO34: 0.9794436099 | AP34: 617.4800936
A35: Levadura cervecería | B35: 93.3 | C35: 1.18 | D35: 1.17 | E35: 476 | F35: 87 | G35: 143 | H35: 278 | I35: 0.15 | L35: 2 | M35: 0.84 | N35: 756 | O35: 40 | P35: 21 | Q35: 88 | R35: 25 | S35: 7 | T35: 32 | U35: 1.65 | V35: 9.18 | W35: 2.4 | AM35: 32 | AN35: 0.815157707 | AO35: 0.98880568
A36: Linaza torta sin aceite | B36: 89 | C36: 1.151871054 | D36: 1.134141167 | E36: 377 | F36: 129.4671117 | G36: 180.6322598 | H36: 120.744456 | I36: 0.3064061 | L36: 2 | M36: 0.803904 | N36: 752.454144 | O36: 58 | P36: 118 | Q36: 236 | R36: 149 | S36: 88 | T36: 64 | U36: 2.585 | V36: 6.298 | W36: 6.1 | Y36: 14 | Z36: 1.3 | AB36: 0.6 | AC36: 21 | AD36: 0.6 | AF36: 250 | AG36: 59 | AH36: 0.5 | AI36: 73 | AL36: 9 | AM36: 43.5 | AN36: 0.6169566624 | AO36: 0.8965410847 | AP36: 595.3582566
A37: Lino, grano | B37: 90.3 | C37: 1.657583747 | D37: 1.660671498 | E37: 253 | F37: 51.01194867 | G37: 92.3191443 | H37: 111.0075068 | I37: 0.3208 | L37: 2 | M37: 0.780518 | N37: 743.3653432 | O37: 362 | P37: 101.9 | Q37: 244.7 | R37: 148.4 | S37: 62 | T37: 47.6 | U37: 2.314507198 | V37: 4.526024363 | W37: 3.986710963 | X37: 0.6644518272 | Y37: 7.973421927 | Z37: 0.7751937984 | AA37: 2.990033223 | AC37: 13.28903654 | AD37: 0.2214839424 | AF37: 163.8981174 | AG37: 32.11517165 | AI37: 49.83388704 | AM37: 343.9 | AN37: 0.7776919873 | AO37: 0.9069770052 | AP37: 614.3463707
A38: Maíz bagazo | B38: 88.1 | C38: 1.203463873 | D38: 1.20550115 | E38: 151 | F38: 56.28378672 | G38: 116.7748185 | H38: -22.64723712 | I38: 0.2876 | L38: 2 | M38: 0.850092 | N38: 833.940252 | O38: 34 | P38: 68 | Q38: 272 | R38: 78 | S38: 11 | T38: 19 | U38: 0.5 | V38: 3.7 | W38: 1.8 | Y38: 3.5 | Z38: 9.5 | AM38: 25.5 | AN38: 0.6042201418 | AO38: 0.9417869599 | AP38: 567.5727337
A39: Maíz carozo | B39: 90 | C39: 0.5231913971 | D39: 0.4115298955 | E39: 44 | F39: 14.39853914 | G39: 59.97738242 | H39: -62.53694262 | I39: 0.4692912 | L39: 2 | M39: 0.455276 | N39: 437.06496 | O39: 5 | P39: 302 | Q39: 822 | R39: 408 | S39: 38 | T39: 40 | U39: 0.66 | V39: 0.525 | AM39: 2 | AN39: 0.6232120323 | AO39: 0.8684978132 | AP39: 521.7862692
A40: Maíz copos | B40: 89 | C40: 1.285459442 | D40: 1.315633547 | E40: 100 | F40: 41.4985065 | G40: 103.9464693 | H40: -59.77494194 | I40: 0.231567 | L40: 2 | M40: 0.88266 | N40: 868.53744 | O40: 43 | P40: 26 | Q40: 90 | R40: 30 | S40: 10 | T40: 16 | U40: 0.165 | V40: 2.175 | W40: 1.4 | X40: 0.5 | Y40: 3.7 | Z40: 0.3 | AA40: 1.2 | AB40: 0.05 | AC40: 4 | AF40: 30 | AG40: 5 | AH40: 0.08 | AI40: 14 | AJ40: 1000 | AL40: 25 | AM40: 36.55 | AN40: 0.5536620228 | AO40: 0.9297552219 | AP40: 841.6236618
A41: Maíz extrusionado | B41: 90.3 | C41: 1.26592428 | D41: 1.305945141 | E41: 96.35 | F41: 55.42277845 | G41: 120.6512297 | H41: -82.39695502 | I41: 0.21464959 | L41: 2 | M41: 0.9181304 | N41: 904.9093222 | O41: 4.32 | P41: 2.55 | Q41: 12.18 | R41: 3.1 | S41: 0.55 | T41: 14.4 | U41: 0.165 | V41: 2.175 | W41: 1.4 | X41: 0.5 | Y41: 3.7 | Z41: 0.3 | AA41: 1.2 | AB41: 0.05 | AC41: 4 | AF41: 30 | AG41: 5 | AH41: 0.08 | AI41: 14 | AJ41: 1000 | AL41: 25 | AM41: 3.672 | AN41: 0.3880056001 | AO41: 0.9399161825 | AP41: 296.3737151
A42: Maíz gluten feed | B42: 87.7 | C42: 1.056307439 | D42: 1.029893853 | E42: 216 | F42: 53.8646516 | G42: 111.0030461 | H42: 49.88125855 | I42: 0.3125 | L42: 2 | M42: 0.825072 | N42: 769.792176 | O42: 45 | P42: 88 | Q42: 343 | R42: 100 | S42: 13 | T42: 67 | U42: 1.65 | V42: 5.304 | W42: 3.5 | Y42: 10.25 | Z42: 7 | AJ42: 3000 | AL42: 14 | AM42: 40.5 | AN42: 0.7383081976 | AO42: 0.9529277751 | AP42: 400.0063135
A43: Maíz gluten meal | B43: 89.3 | C43: 1.647747782 | D43: 1.703959302 | E43: 661 | F43: 427.8502116 | G43: 474.6927582 | H43: 117.5185209 | I43: 0.4868 | L43: 2 | M43: 0.943652 | N43: 929.49722 | O43: 35 | P43: 21 | Q43: 107 | R43: 28 | S43: 6 | T43: 15 | U43: 0.11 | V43: 2.72 | AJ43: 14000 | AL43: 26 | AM43: 28 | AN43: 0.3436078323 | AO43: 0.986113493 | AP43: 749.4135605
A44: Maíz grano | B44: 86 | C44: 1.24475541 | D44: 1.26 | E44: 89 | F44: 43 | G44: 94 | H44: -53 | I44: 0.3291 | L44: 2 | M44: 0.882846 | N44: 870.486156 | O44: 43 | P44: 26 | Q44: 125 | R44: 31 | S44: 60 | T44: 14 | U44: 0.275 | V44: 2.175 | W44: 1.4 | Y44: 3.6 | Z44: 0.33 | AB44: 0.02 | AC44: 2.3 | AD44: 0.3 | AF44: 80 | AG44: 10.8 | AH44: 0.02 | AI44: 21.4 | AM44: 36.55 | AN44: 0.4465708975 | AO44: 0.8730044467 | AP44: 780.9036423
A45: Maíz hominyfeed (mezcla salvado, germen y almidón) | B45: 90 | C45: 1.153355136 | D45: 1.157966805 | E45: 114 | F45: 46.52415979 | G45: 107.3745235 | H45: -49.99869329 | I45: 0.2535785 | L45: 2 | M45: 0.837476 | N45: 816.5391 | O45: 19 | P45: 54 | Q45: 215 | R45: 65 | S45: 12 | T45: 25 | U45: 0.275 | V45: 4.275 | W45: 2.6 | X45: 0.6 | Y45: 6.5 | Z45: 0.9 | AA45: 0.3 | AB45: 0.06 | AC45: 15 | AF45: 75 | AG45: 16 | AH45: 0.11 | AI45: 3 | AM45: 16.15 | AN45: 0.5612101445 | AO45: 0.9300731538 | AP45: 380.3273066
A46: Maíz salvado | B46: 88.3 | C46: 1.112973677 | D46: 1.10078662 | E46: 101 | F46: 43.23835933 | G46: 96.34428969 | H46: -50.71801618 | I46: 0.3706 | L46: 2 | M46: 0.707252 | N46: 669.060392 | O46: 40 | P46: 150 | Q46: 557 | R46: 164 | S46: 19 | T46: 54 | U46: 0.165 | V46: 1.875 | AM46: 34 | AN46: 0.5317077588 | AO46: 0.9141782203 | AP46: 556.4050738
A47: Maíz torta de gérmenes a presión | B47: 88.1 | C47: 1.17895975 | D47: 1.171602179 | E47: 146 | F47: 59.1015472 | G47: 113.8847817 | H47: -23.87880397 | I47: 0.2642698 | L47: 2 | M47: 0.801524 | N47: 763.050848 | O47: 82 | P47: 72 | Q47: 285 | R47: 82 | S47: 11 | T47: 48 | U47: 0.33 | V47: 3.525 | W47: 4.5 | Y47: 1.8 | Z47: 8.5 | AM47: 65.6 | AN47: 0.5685588128 | AO47: 0.9382625715 | AP47: 625.9611681
A48: Maíz torta de gérmenes con disolvente | B48: 87.9 | C48: 1.041990023 | D48: 1.023538393 | E48: 135 | F48: 54.17190727 | G48: 111.6965778 | H48: -33.88229766 | I48: 0.2686721 | L48: 2 | M48: 0.79028 | N48: 752.34656 | O48: 17 | P48: 79 | Q48: 310 | R48: 89 | S48: 12 | T48: 48 | U48: 0.495 | V48: 3.75 | W48: 4.5 | Y48: 1.8 | Z48: 8.5 | AJ48: 1000 | AL48: 94 | AM48: 12.75 | AN48: 0.5703343944 | AO48: 0.9339201973 | AP48: 543.5361192
A49: Mandioca | B49: 85 | C49: 1.142097463 | D49: 1.174454355 | E49: 31 | F49: 10.10542253 | G49: 75.49002249 | H49: -97.45343744 | I49: 0.1216 | L49: 2 | M49: 0.91762 | N49: 861.64518 | O49: 8.2 | P49: 54 | Q49: 118 | R49: 59 | S49: 14.01 | T49: 61 | U49: 1.375 | V49: 0.68 | W49: 0.9 | Y49: 7.5 | Z49: 0.35 | AC49: 2 | AF49: 50 | AG49: 5 | AI49: 30 | AM49: 6.56 | AN49: 0.638999494 | AO49: 0.9029942241
A50: Manzana desechos | B50: 22 | C50: 1.10018865 | D50: 1.102760433 | E50: 23 | F50: 8.795543217 | G50: 71.56469958 | H50: -100.0868068 | I50: 0.4868 | L50: 2 | M50: 0.82908 | N50: 813.32748 | O50: 18 | P50: 68 | Q50: 229.76 | R50: 96.16 | S50: 18 | T50: 19 | U50: 0.33 | V50: 0.408 | AM50: 16.2 | AN50: 0.5724362337 | AO50: 0.8944044201 | AP50: 695.25
A51: Manzana molienda ( "marco") deshidratada | B51: 94.1 | C51: 0.5535459391 | D51: 0.4298652377 | E51: 79 | F51: 22.41772409 | G51: 65.61179369 | H51: -39.82073375 | I51: 0.4868 | L51: 2 | M51: 0.44368 | N51: 435.25008 | O51: 39 | P51: 478 | Q51: 354 | R51: 610.79 | S51: 121 | T51: 19 | U51: 1.045 | V51: 1.088 | AM51: 35.1 | AN51: 0.6412637776 | AO51: 0.7910231575 | AP51: 0
A52: Manzana residuo deshidratado, NRC | B52: 89 | C52: 1.017592193 | D52: 0.9832011689 | E52: 49 | F52: 17.45620144 | G52: 73.71511167 | H52: -76.13454724 | I52: 0.4868 | L52: 2 | M52: 0.7332 | N52: 717.0696 | O52: 51 | P52: 170 | Q52: 376.83 | R52: 260 | S52: 50.24 | T52: 22 | U52: 0.715 | V52: 0.748 | W52: 0.7 | Y52: 4.6 | Z52: 1.2 | AA52: 0.2 | AC52: 10 | AF52: 300 | AG52: 7 | AM52: 45.9 | AN52: 0.5885548453 | AO52: 0.8658481085 | AP52: 628.0150685
A53: Melaza caña | B53: 75 | C53: 0.8610639099 | D53: 0.8391616233 | E53: 45 | F53: 3.15 | G53: 61.811424 | H53: -64.008475 | I53: -1.5384 | L53: 4 | M53: 0.8 | N53: 710.4 | O53: 12 | P53: 0 | Q53: 0 | R53: 0 | S53: 0 | T53: 112 | U53: 5.115 | V53: 0.748 | W53: 4.7 | X53: 27 | Y53: 33 | Z53: 1.7 | AM53: 12 | AN53: 0.93 | AO53: 1
A54: Melaza Remolacha | B54: 76 | C54: 1.184004733 | D54: 1.207089514 | E54: 146 | F54: 10.22 | G54: 76.74012851 | H54: 17.6422992 | I54: -0.7084 | L54: 3 | M54: 0.89 | N54: 878.252 | O54: 2 | P54: 0 | Q54: 0 | R54: 0 | S54: 0 | T54: 13.2 | U54: 1.925 | V54: 0.34 | W54: 16.5 | Y54: 55 | Z54: 12.5 | AM54: 2 | AN54: 0.93 | AO54: 1
A55: Mijo grano | B55: 88 | C55: 1.009546491 | D55: 0.9776763056 | E55: 131 | F55: 35.90764594 | G55: 91.77812279 | H55: -15.03762007 | I55: 0.2129 | L55: 2 | M55: 0.752754 | N55: 721.138332 | O55: 42 | P55: 106 | Q55: 284.5 | R55: 143.86 | S55: 29.7 | T55: 42 | U55: 0.22 | V55: 2.4 | W55: 1.7 | X55: 0.34 | Y55: 4.66 | Z55: 0.45 | AM55: 37.8 | AN55: 0.6997481148 | AO55: 0.9129140598 | AP55: 460.6219971
A56: Oliva molienda "orujo" | B56: 89 | C56: 0.3555684594 | D56: 0.2315284959 | E56: 111 | F56: 37.77367179 | G56: 72.19608588 | H56: -21.36502202 | I56: 0.5864 | L56: 2 | M56: 0.33429 | N56: 306.87822 | O56: 74 | P56: 339 | Q56: 620.51 | R56: 456.32 | S56: 108.36 | T56: 82 | U56: 7.7 | V56: 2.312 | AM56: 54.76 | AN56: 0.5799513971 | AO56: 0.8101523183 | AP56: 255.9763332
A57: Oliva pulpa de extracción ( "orujo"), IAMZ | B57: 87.6 | C57: 0.2835820822 | D57: 0.1630785602 | E57: 66 | F57: 20.21048157 | G57: 53.34965943 | H57: -38.25996541 | I57: 0.5864 | L57: 2 | M57: 0.26932 | N57: 252.89148 | O57: 74 | P57: 412 | Q57: 725.77 | R57: 527.95 | S57: 134.64 | T57: 61 | U57: 3.08 | V57: 0.612 | AM57: 54.76 | AN57: 0.6005460193 | AO57: 0.7665949833 | AP57: 731.0116457
A58: Oliva pulpa sin extracción, IAMZ | B58: 68.5 | C58: 0.5285256608 | D58: 0.4118821932 | E58: 114 | F58: 44.70328847 | G58: 84.48223093 | H58: -28.4745976 | I58: 0.5864 | L58: 2 | M58: 0.458 | N58: 425.024 | O58: 74 | P58: 200 | Q58: 341 | R58: 295 | S58: 60.21 | T58: 72 | U58: 6.545 | V58: 1.088 | AM58: 54.76 | AN58: 0.5473115864 | AO58: 0.8662340312 | AP58: 172.2609194
A59: Palmito torta (palmiste) | B59: 90 | C59: 0.8319475036 | D59: 0.7632996493 | E59: 206 | F59: 83.76805509 | G59: 136.5208369 | H59: -3.926221648 | I59: 0.4287 | L59: 2 | M59: 0.73056 | N59: 699.14592 | O59: 19 | P59: 167 | Q59: 632 | R59: 241 | S59: 103 | T59: 43 | U59: 1.705 | V59: 4.556 | AM59: 17.1 | AN59: 0.5228718322 | AO59: 0.8522679473 | AP59: 614.3463707
A60: Patata pulpa-ITEB | B60: 17 | C60: 1.047562058 | D60: 1.040325904 | E60: 50 | F60: 15.36772122 | G60: 77.36979178 | H60: -80.57823525 | I60: 0.1216 | L60: 2 | M60: 0.8101 | N60: 789.8475 | O60: 2.5 | P60: 150 | Q60: 348 | R60: 199.09 | S60: 43.7 | T60: 25 | U60: 2.75 | V60: 0.34 | W60: 0.8 | X60: 6 | AM60: 2 | AN60: 0.6489216562 | AO60: 0.8754582267 | AP60: 866.032
A61: Patata-ITEB | B61: 13 | C61: 1.224039877 | D61: 1.270348111 | E61: 100 | F61: 34.23948908 | G61: 100.5831692 | H61: -56.86200025 | I61: 0.1216 | L61: 2 | M61: 0.9445 | N61: 901.9975 | O61: 0.8 | P61: 30 | Q61: 174.97 | R61: 48.46 | S61: 7.28 | T61: 45 | U61: 0.55 | V61: 1.36 | W61: 1 | X61: 22 | AM61: 0.64 | AN61: 0.6332974699 | AO61: 0.9337129217 | AP61: 746.3181739
A62: Pulpas (cítricos) | B62: 90 | C62: 1.09457765 | D62: 1.103551588 | E62: 70 | F62: 20.49453097 | G62: 82.57976854 | H62: -65.70818372 | I62: 0.2212 | L62: 2 | M62: 0.87931 | N62: 822.15485 | O62: 28 | P62: 137 | Q62: 223 | R62: 158 | S62: 14 | T62: 65 | U62: 4.6 | V62: 1.17 | AM62: 16.8 | AN62: 0.6799461392 | AO62: 0.9147804468 | AP62: 367.9099184
A63: Pulpas (cítricos) ensitjades | B63: 21 | C63: 1.224764853 | D63: 1.238763409 | E63: 73 | F63: 20.57651646 | G63: 79.53725613 | H63: -58.87615574 | I63: 0.2212 | L63: 2 | M63: 0.87228 | N63: 824.3046 | O63: 97 | P63: 156 | Q63: 356.65 | R63: 206.62 | S63: 44.65 | T63: 55 | U63: 11.22 | V63: 1.35 | W63: 1.6 | Y63: 6.2 | Z63: 0.9 | AA63: 0.2 | AB63: 0.16 | AC63: 6 | AF63: 160 | AG63: 7 | AI63: 16 | AM63: 58.2 | AN63: 0.6807836781 | AO63: 0.883006504 | AP63: 785.4935134
A64: Remolacha pulpas deshidratadas | B64: 90 | C64: 1.025471629 | D64: 1.019108024 | E64: 98 | F64: 34.16981377 | G64: 94.98664694 | H64: -54.34630184 | I64: 0.2876 | L64: 2 | M64: 0.855001 | N64: 794.2104289 | O64: 9 | P64: 202.7 | Q64: 507.9 | R64: 302.1 | S64: 55.1 | T64: 71.1 | U64: 2.12 | V64: 0.68 | W64: 2.233333333 | X64: 0.4 | Y64: 4 | Z64: 2.233333333 | AA64: 2.2 | AB64: 0.09333333333 | AC64: 7.733333333 | AD64: 0.3 | AF64: 243 | AG64: 47.6 | AH64: 0.03 | AI64: 9.733333333 | AK64: 0.6 | AM64: 4 | AN64: 0.6031402548 | AO64: 0.8785763064 | AP64: 592.8381002
A65: Remolacha pulpas ensitjades | B65: 22 | C65: 1.00766597 | D65: 1.00149028 | E65: 98 | F65: 33.63126047 | G65: 93.73194347 | H65: -53.22731718 | I65: 0.2876 | L65: 2 | M65: 0.85378 | N65: 778.64736 | O65: 9 | P65: 206 | Q65: 428.74 | R65: 269.38 | S65: 62.22 | T65: 88 | U65: 2.6 | V65: 0.68 | AB65: 0.1 | AC65: 4.6 | AD65: 0.3 | AG65: 52.4 | AH65: 0.03 | AI65: 9.6 | AM65: 4.5 | AN65: 0.6057580172 | AO65: 0.8704707824 | AP65: 468.1746973
A66: Residuo pan deshidratado, NRC | B66: 92 | C66: 1.096141567 | D66: 1.054875419 | E66: 107 | F66: 22.01612961 | G66: 70.4665579 | H66: -10.7237942 | I66: 0.294457 | L66: 2 | M66: 0.714218 | N66: 628.1690154 | O66: 127 | P66: 130 | Q66: 180 | R66: 130 | S66: 10 | T66: 44 | U66: 0.77 | V66: 1.768 | W66: 2.6 | X66: 16.1 | Y66: 5.3 | Z66: 12.4 | AA66: 0.2 | AB66: 1.05 | AC66: 5 | AF66: 31 | AG66: 71 | AI66: 16 | AJ66: 2000 | AL66: 45 | AN66: 0.7773884271 | AO66: 0.9242925602
A67: Soja cascarilla | B67: 88.8 | C67: 1,08 | E67: 129 | F67: 38 | G67: 95 | H67: -32 | I67: 0,44 | L67: 2 | M67: 0,80 | N67: 957.6 | O67: 21 | P67: 391 | Q67: 652 | R67: 464 | S67: 24 | T67: 53 | U67: 3.08 | V67: 1.156 | W67: 2.5 | AE67: 57 | AM67: 20 | AN67: 0,56 | AO67: 0,67 | AP67: =N67-E67*(1-AN67)-O67 -> 879.84
A68: Soja torta 44 | B68: 87.2 | C68: 1.165625863 | D68: 1.159793832 | E68: 488 | F68: 153.419998 | G68: 207.0695265 | H68: 219.1726116 | I68: 0.2781056 | L68: 2 | M68: 0.849655 | N68: 779.133635 | O68: 22 | P68: 84 | Q68: 163 | R68: 104 | S68: 8 | T68: 83 | U68: 1.87 | V68: 4.9 | W68: 2.7 | Y68: 20 | Z68: 1.95 | AB68: 0.3 | AC68: 17.1 | AD68: 2.3 | AF68: 200 | AG68: 43.7 | AH68: 0.2 | AI68: 54.6 | AL68: 7 | AM68: 16.5 | AN68: 0.6819996035 | AO68: 0.9886316028 | AP68: 737.9075552
A69: Soja torta 46 | B69: 87.2 | C69: 1.204239972 | D69: 1.205333606 | E69: 505 | F69: 160.0692099 | G69: 214.4558798 | H69: 229.0708283 | I69: 0.2686721 | L69: 2 | M69: 0.863895 | N69: 799.102875 | O69: 20 | P69: 72 | Q69: 143 | R69: 89 | S69: 7 | T69: 75 | U69: 1.87 | V69: 5.18 | W69: 2.7 | Y69: 20 | Z69: 1.95 | AB69: 0.3 | AC69: 17.1 | AD69: 2.3 | AF69: 200 | AG69: 43.7 | AH69: 0.2 | AI69: 54.6 | AM69: 15 | AN69: 0.6799548883 | AO69: 0.99038767 | AP69: 751.5420857
A70: Soja torta 48 | B70: 88.3 | C70: 1.223810674 | D70: 1.22687166 | E70: 520 | F70: 165.0816182 | G70: 219.3151576 | H70: 239.0600948 | I70: 0.2674143 | L70: 2 | M70: 0.867341 | N70: 804.025107 | O70: 23 | P70: 70 | Q70: 140 | R70: 87 | S70: 7 | T70: 73 | U70: 1.87 | V70: 5.46 | W70: 2.7 | Y70: 19.7 | Z70: 1.95 | AB70: 0.3 | AC70: 17.1 | AD70: 2.3 | AF70: 200 | AG70: 43.7 | AH70: 0.2 | AI70: 54.6 | AM70: 17.25 | AN70: 0.6794639687 | AO70: 0.9904179858 | AP70: 186.2528251
A71: Soja torta 48 curtido "Tanne" | B71: 88.8 | C71: 1.223810674 | D71: 1.22687166 | E71: 520 | F71: 165.0816182 | G71: 219.3151576 | H71: 239.0600948 | I71: 0.2674143 | L71: 2 | M71: 0.867341 | N71: 804.025107 | O71: 23 | P71: 70 | Q71: 140 | R71: 87 | S71: 7 | T71: 73 | U71: 1.87 | V71: 5.46 | AB71: 0.3 | AC71: 17.1 | AD71: 2.3 | AF71: 200 | AG71: 43.7 | AH71: 0.2 | AI71: 54.6 | AM71: 15.18 | AN71: 0.6794639687 | AO71: 0.9904179858 | AP71: 152.5275173
A72: Soja torta 50 | B72: 87.8 | C72: 1.225744301 | D72: 1.225565004 | E72: 544 | F72: 172.4045434 | G72: 225.7154558 | H72: 256.1016993 | I72: 0.2498051 | L72: 2 | M72: 0.862027 | N72: 797.374975 | O72: 28 | P72: 77 | Q72: 102 | R72: 59 | S72: 6 | T72: 75 | U72: 1.65 | V72: 5.46 | W72: 2.7 | Y72: 19.7 | Z72: 1.95 | AB72: 0.3 | AC72: 17.1 | AD72: 2.3 | AF72: 200 | AG72: 43.7 | AH72: 0.2 | AI72: 54.6 | AM72: 21 | AN72: 0.6801163265 | AO72: 0.9907355167 | AP72: 299.4175209
A73: Soja, grano extrusionado | B73: 88 | C73: 1.485485602 | D73: 1.497390722 | E73: 402 | F73: 188.4323551 | G73: 238.0406285 | H73: 109.2870728 | I73: 0.3208 | L73: 2 | M73: 0.97179 | N73: 912.51081 | O73: 213 | P73: 74 | Q73: 146 | R73: 92 | S73: 7 | T73: 61 | U73: 1.54 | V73: 4.48 | AM73: 202.35 | AN73: 0.526666784 | AO73: 0.9902901084 | AP73: 704.0018085
A74: Soja, grano tostado | B74: 88.6 | C74: 1.490185728 | D74: 1.502445871 | E74: 397.3 | F74: 133.307895 | G74: 185.6891829 | H74: 158.2262376 | I74: 0.2959 | L74: 2 | M74: 0.975779 | N74: 918.5007727 | O74: 216.7 | P74: 63.2 | Q74: 132 | R74: 77.78 | S74: 13.5 | T74: 58.7 | U74: 1.986455982 | V74: 4.187358916 | W74: 2.595936795 | X74: 0.5643340858 | Y74: 20.76749436 | Z74: 0.9029345372 | AA74: 3.16027088 | AC74: 38.37471783 | AD74: 4.514672686 | AF74: 161.3995485 | AG74: 31.6027088 | AH74: 0.316027088 | AI74: 45.14672686 | AM74: 205.865 | AN74: 0.6587213001 | AO74: 0.9831688769 | AP74: 771.7510797
A75: Sorgo grano | B75: 86 | C75: 1.21 | D75: 1.23 | E75: 105 | F75: 47 | G75: 97.13096315 | H75: -48 | I75: 0.2129 | L75: 2 | M75: 0.884686 | N75: 869.646338 | O75: 37 | P75: 25 | Q75: 107 | R75: 49 | S75: 4 | T75: 17 | U75: 0.165 | V75: 2.4 | W75: 1.75 | Y75: 3.6 | Z75: 0.4 | AC75: 10 | AF75: 160 | AG75: 14 | AI75: 14 | AJ75: 14000 | AL75: 12 | AM75: 33.3 | AN75: 0.5226342292 | AO75: 0.9376856804 | AP75: 581.7628756
A76: Trigo grano | B76: 87 | C76: 1.191513797 | D76: 1.205062577 | E76: 157 | F76: 33.00144942 | G76: 96.50582734 | H76: 5.8944095 | I76: 0.1714 | L76: 2 | M76: 0.87875 | N76: 861.175 | O76: 23 | P76: 29 | Q76: 146 | R76: 38 | S76: 12 | T76: 20 | U76: 0.275 | V76: 2.808 | AB76: 0.02 | AC76: 4.4 | AD76: 0.3 | AG76: 33.7 | AH76: 0.04 | AI76: 32.5 | AL76: 12 | AM76: 17.25 | AN76: 0.7771204339 | AO76: 0.9431116475 | AP76: 740.1774934
A77: Trigo salvado trigo duro | B77: 87.7 | C77: 1.017694369 | D77: 0.9779078471 | E77: 167 | F77: 34.63114108 | G77: 88.47767853 | H77: 25.24478524 | I77: 0.3057772 | L77: 2 | M77: 0.731538 | N77: 692.034948 | O77: 58 | P77: 118 | Q77: 481 | R77: 148 | S77: 38 | T77: 54 | U77: 0.935 | V77: 7.8 | AC77: 10 | AF77: 200 | AG77: 90 | AI77: 80 | AJ77: 1000 | AL77: 21 | AM77: 46.4 | AN77: 0.7727450842 | AO77: 0.9125087639 | AP77: 677.3417032
A78: Triticale grano | B78: 87.1 | C78: 1.191793332 | D78: 1.210362141 | E78: 130 | F78: 38.225488 | G78: 101.2965379 | H78: -26.94851539 | I78: 0.2129 | L78: 2 | M78: 0.87145 | N78: 852.2781 | O78: 17 | P78: 33 | Q78: 148 | R78: 40 | S78: 13 | T78: 22 | U78: 0.275 | V78: 3.45 | AM78: 12.75 | AN78: 0.6853862298 | AO78: 0.9346133045 | AP78: 618.0604347
A79: Urea | B79: 99 | C79: 0.26 | D79: 0.2 | E79: 2870 | F79: 1e-06 | G79: 71 | H79: 2557 | I79: 0.23 | L79: 2 | M79: 0.99 | N79: 1e-06 | O79: 1e-06 | P79: 1e-06 | Q79: 1e-06 | R79: 1e-06 | S79: 1e-06 | T79: 1e-06 | W79: 1e-06 | X79: 1e-06 | Y79: 1e-06 | Z79: 1e-06 | AA79: 1e-06 | AB79: 1e-06 | AC79: 1e-06 | AD79: 1e-06 | AF79: 1e-06 | AG79: 1e-06 | AH79: 1e-06 | AI79: 1e-06 | AJ79: 1e-06 | AK79: 1e-06 | AL79: 1e-06 | AM79: 0 | AN79: 0 | AO79: 0
A80: Uva pulpa | B80: 90 | C80: 0.3048901197 | D80: 0.1865548158 | E80: 120 | F80: 11.60850895 | G80: 48.20840292 | H80: -20.98733433 | I80: 0.5864 | L80: 2 | M80: 0.30492 | N80: 292.41828 | O80: 7 | P80: 372 | Q80: 754 | R80: 653 | S80: 499 | T80: 41 | U80: 4.4 | V80: 2.72 | AM80: 5.25 | AN80: 0.754650443 | AO80: 0.3942846922 | AP80: 477.3495771
A81: Uva torta de huesos | B81: 89 | C81: 0.1623041941 | D81: 0.0678723051 | E81: 112 | F81: -1.654010677 | G81: 29.6262119 | H81: -16.03534777 | I81: 0.5864 | L81: 2 | M81: 0.18833 | N81: 181.17346 | O81: 16 | P81: 503 | Q81: 847 | R81: 751 | S81: 644 | T81: 38 | U81: 3.63 | V81: 0.884 | AM81: 12 | AN81: 1.063280888 | AO81: 0.2333714493 | AP81: 842.2541643
A82: Uva vinaza sin pepitas | B82: 67 | C82: 0.6608050597 | D82: 0.5617156148 | E82: 172 | F82: 20.01576435 | G82: 59.87298187 | H82: -4.236902376 | I82: 0.5864 | L82: 2 | M82: 0.54433 | N82: 483.36504 | O82: 97 | P82: 103 | Q82: 777 | R82: 685 | S82: 536 | T82: 112 | U82: 3.3 | V82: 1.7 | AM82: 72.75 | AN82: 0.6891352988 | AO82: 0.3743452458 | AP82: 0
A83: Pienso 2,5 kg leche | B83: 80.86816523 | C83: 0.9216763367 | E83: 158.473179 | F83: 47.36229362 | G83: 101.215626 | H83: 7.283241724 | I83: 0.2236520049 | L83: 1.805673708 | M83: 0.7478090774 | N83: 716.6804341 | O83: 15.38261847 | P83: 64.31574757 | Q83: 196.3935963 | R83: 82.48178031 | S83: 13.53832076 | X83: 0.003138845981 | Y83: 6.202736226 | Z83: 0.535645275 | AA83: 0.01098596093 | AB83: 0.06258502224 | AC83: 5.2154456 | AD83: 0.5721740227 | AE83: 0 | AG83: 15.7923393 | AH83: 0.04723711048 | AI83: 20.72803053 | AJ83: 413.5321738 | AK83: 0 | AL83: 11.70213069 | AM83: 12.02284322 | AN83: 0.6150233255 | AP83: 580.4701822
A84: pienso | B84: 102.1029529 | C84: 1.220802348 | E84: 151.7184251 | F84: 36.08874399 | G84: 101.215625 | H84: -11.0688203 | I84: 0.301270731 | L84: 2.251112956 | M84: 0.8971322781 | N84: 871.9394409 | O84: 63.90818262 | P84: 113.5175879 | Q84: 299.2457539 | R84: 141.8149932 | S84: 35.59943018 | X84: 0.002843585638 | Y84: 4.93835255 | Z84: 0.3207525497 | AA84: 0.009952549732 | AB84: 0.00888 | AC84: 3.811415138 | AD84: 0.2664 | AE84: 0 | AG84: 15.6288 | AH84: 0.01776 | AI84: 21.6672 | AJ84: 888 | AK84: 0 | AL84: 22.2 | AM84: 57.33837349 | AN84: 0.8282661216 | AP84: 667.5460613

Sheet 0_Tabla Minerales-aa (hidden)
A1: INGREDIENTES | B1: MS | C1: UFL | D1: UFV | E1: MNT_PB | F1: PDIA | G1: PDI | H1: BPR | I1: UEL | J1: UEB | K1: UEM | L1: NI ref | M1: dMO | N1: MOD_TDN | O1: EE | P1: FB | Q1: NDF | R1: ADF | S1: Lignina | T1: Cenizas | U1: Ca | V1: P | W1: Mg | X1: Cl | Y1: K | Z1: Na | AA1: S | AB1: Co | AC1: Cu | AD1: Mo | AE1: Yodo | AF1: Fe | AG1: Mn | AH1: Se | AI1: Zn | AJ1: Vit A | AK1: Vit D | AL1: Vit E | AM1: AG | AN1: DT_N | AO1: dr | AP1: MOF
A3: Bicarbonato sódico | B3: 99.7 | Z3: 270
A4: Carbonato cálcico | B4: 98 | T4: 955 | U4: 145.54 | W4: 14 | X4: 0.2 | Y4: 0.7 | Z4: 0.7 | AA4: 0.7 | AC4: 12 | AF4: 620
A5: Carbonato de cobalto | B5: 100 | AB5: 49
A6: Carbonato de manganeso | B6: 100 | AG6: 47
A7: Carbonato de zinc | B7: 100 | AI7: 52
A8: Cloruro potásico | B8: 100 | Y8: 52
A9: Cloruro sódico | B9: 98 | X9: 570 | Z9: 360
A10: Fosfato bicálcico | B10: 98.8 | T10: 836 | U10: 244 | V10: 122.4 | W10: 5 | X10: 0.4 | Y10: 1.2 | Z10: 0.8 | AA10: 11 | AC10: 15 | AF10: 7800
A11: Fosfato monocálcico | B11: 98.8 | U11: 88.2 | V11: 155.04
A12: Fosfato sódico | B12: 100 | V12: 13.6 | Z12: 19
A13: Fosfórico | B13: 100 | V13: 21.488
A14: Harina de huesos | B14: 100 | U14: 11.8 | V14: 10.2
A15: Óxido de cobre | B15: 100 | AC15: 80
A16: Óxido de manganeso | B16: 100 | AG16: 77
A17: Óxido de zinc | B17: 100 | AI17: 80
A18: Óxido magnésico | B18: 100 | U18: 30 | W18: 510
A19: Sulfato de cobalto | B19: 100 | AB19: 22
A20: Sulfato de cobre | B20: 100 | AC20: 25
A21: Sulfato de zinc | B21: 100 | AI21: 23
A22: Sulfato magnésico | B22: 100 | W22: 10 | AA22: 13
A23: Sulfato sódico | B23: 100 | Z23: 32 | AA23: 22
A24: Yoduro potásico | B24: 100 | AE24: 76

Sheet III_Ració calculada (hidden)
A1: =I_Necessitats!A174 -> Necesidades un solo grupo de lactación (datos explotación) | B1: Kg leche estandar | C1: =TODAY() -> 2024-10-26 | D1: =I_Necessitats!A146 -> Días de racionamiento | F1: =I_Necessitats!D146 -> 0 | G1: Racionamiento alimentario de vacas lecheras Grup de remugants RAMON TRIAS TORRENT | L1: Valores de la formulación
A2: =I_Necessitats!A173 -> Libre | B2: ='II_Plantejar Ració'!J11 -> 32.71188996 | C2: Grup de Remugants | K2: Nutriente | L2: Mínimo | M2: Real | N2: Máximo | O2: V teòric | P2: /KgMS
A4: Ingredientes que entran en la ración | B4: Q mínima | C4: kg/vaca y día | D4: Q máxima | E4: kg MS | F4: Coste | G4: Ingredientes que NO entran | K4: ='II_Plantejar Ració'!$H$14 -> MSI (kg/día) | L4: 25.41124239 | M4: ='II_Plantejar Ració'!K14 -> 0.158 | N4: ='II_Plantejar Ració'!J14 -> 22.47297792 | O4: ='II_Plantejar Ració'!E21 -> 23.24527936
A5: =IF(C5="","",CàlculsVL!B3) -> VERDE raigrás italiano Espiga a 10 cm | B5: =IF('II_Plantejar Ració'!D4<=0,"",'II_Plantejar Ració'!B4) -> 55.49668278 | C5: =IF('II_Plantejar Ració'!D4<=0,"",'II_Plantejar Ració'!D4) -> 1 | D5: =IF('II_Plantejar Ració'!D4<=0,"",'II_Plantejar Ració'!C4) -> 110.6295942 | E5: =IF('II_Plantejar Ració'!D4<=0,"",'II_Plantejar Ració'!E4) -> 0.158 | F5: =IF('II_Plantejar Ració'!D4<=0,"",'II_Plantejar Ració'!G4*C5) -> 2 | G5: =IF(C5="",IF(CàlculsVL!C3>1,CàlculsVL!B3,""),"") ->  | I5: Nitrógeno urinario | K5: ='II_Plantejar Ració'!$H$15 -> %MS ración | L5: ='II_Plantejar Ració'!I15 -> 0 | M5: ='II_Plantejar Ració'!K15 -> 15.8 | N5: ='II_Plantejar Ració'!J15 -> 999 | Q5: ='II_Plantejar Ració'!M13 -> En algunos ingredientes no constan los nutrientes ...
A6: =IF(C6="","",CàlculsVL!B4) ->  | B6: =IF('II_Plantejar Ració'!D5<=0,"",'II_Plantejar Ració'!B5) ->  | C6: =IF('II_Plantejar Ració'!D5<=0,"",'II_Plantejar Ració'!D5) ->  | D6: =IF('II_Plantejar Ració'!D5<=0,"",'II_Plantejar Ració'!C5) ->  | E6: =IF('II_Plantejar Ració'!D5<=0,"",'II_Plantejar Ració'!E5) ->  | F6: =IF('II_Plantejar Ració'!D5<=0,"",'II_Plantejar Ració'!G5*C6) ->  | G6: =IF(C6="",IF(CàlculsVL!C4>1,CàlculsVL!B4,""),"") -> PAJA Cebada | I6: =IV_Respostes!B18 -> 196.3721112 | K6: =CàlculsVL!E1 -> UEL | L6: ='II_Plantejar Ració'!I16 -> 15.15225958 | M6: ='II_Plantejar Ració'!K16 -> 0.1565834729 | N6: ='II_Plantejar Ració'!J16 -> 17.54472162 | O6: ='II_Plantejar Ració'!G21 -> 17.32276607 | P6: ='II_Plantejar Ració'!L16 -> 0.9910346389
A7: =IF(C7="","",CàlculsVL!B5) ->  | B7: =IF('II_Plantejar Ració'!D6<=0,"",'II_Plantejar Ració'!B6) ->  | C7: =IF('II_Plantejar Ració'!D6<=0,"",'II_Plantejar Ració'!D6) ->  | D7: =IF('II_Plantejar Ració'!D6<=0,"",'II_Plantejar Ració'!C6) ->  | E7: =IF('II_Plantejar Ració'!D6<=0,"",'II_Plantejar Ració'!E6) ->  | F7: =IF('II_Plantejar Ració'!D6<=0,"",'II_Plantejar Ració'!G6*C7) ->  | G7: =IF(C7="",IF(CàlculsVL!C5>1,CàlculsVL!B5,""),"") ->  | I7: =IV_Respostes!C16 -> Dentro de normalidad | K7: =CàlculsVL!F1 -> UFL | L7: ='II_Plantejar Ració'!I17 -> 20.57906306 | M7: ='II_Plantejar Ració'!K17 -> 0.1696152783 | N7: ='II_Plantejar Ració'!J17 -> 20.57906306 | O7: ='II_Plantejar Ració'!G22 -> 23.4780873 | P7: ='II_Plantejar Ració'!L17 -> 1.073514419
A8: =IF(C8="","",CàlculsVL!B6) ->  | B8: =IF('II_Plantejar Ració'!D7<=0,"",'II_Plantejar Ració'!B7) ->  | C8: =IF('II_Plantejar Ració'!D7<=0,"",'II_Plantejar Ració'!D7) ->  | D8: =IF('II_Plantejar Ració'!D7<=0,"",'II_Plantejar Ració'!C7) ->  | E8: =IF('II_Plantejar Ració'!D7<=0,"",'II_Plantejar Ració'!E7) ->  | F8: =IF('II_Plantejar Ració'!D7<=0,"",'II_Plantejar Ració'!G7*C8) ->  | G8: =IF(C8="",IF(CàlculsVL!C6>1,CàlculsVL!B6,""),"") ->  | I8: Nitrógeno fecal | K8: =CàlculsVL!G1 -> PDI | L8: ='II_Plantejar Ració'!I18 -> 2530.446207 | M8: ='II_Plantejar Ració'!K18 -> 12.29970189 | N8: ='II_Plantejar Ració'!J18 -> 3253.430837 | O8: ='II_Plantejar Ració'!G23 -> 2281.317764 | P8: ='II_Plantejar Ració'!L18 -> 77.8462145
A9: =IF(C9="","",CàlculsVL!B7) ->  | B9: =IF('II_Plantejar Ració'!D8<=0,"",'II_Plantejar Ració'!B8) ->  | C9: =IF('II_Plantejar Ració'!D8<=0,"",'II_Plantejar Ració'!D8) ->  | D9: =IF('II_Plantejar Ració'!D8<=0,"",'II_Plantejar Ració'!C8) ->  | E9: =IF('II_Plantejar Ració'!D8<=0,"",'II_Plantejar Ració'!E8) ->  | F9: =IF('II_Plantejar Ració'!D8<=0,"",'II_Plantejar Ració'!G8*C9) ->  | G9: =IF(C9="",IF(CàlculsVL!C7>1,CàlculsVL!B7,""),"") -> Cebada grano | I9: =IV_Respostes!B27 -> 1.43294271 | K9: =CàlculsVL!H1 -> BPR | L9: ='II_Plantejar Ració'!I19 -> -9 | M9: ='II_Plantejar Ració'!L19 -> 31.10451486 | N9: ='II_Plantejar Ració'!J19 -> 0.5625 | P9: ='II_Plantejar Ració'!L19 -> 31.10451486
A10: =IF(C10="","",CàlculsVL!B8) ->  | B10: =IF('II_Plantejar Ració'!D9<=0,"",'II_Plantejar Ració'!B9) ->  | C10: =IF('II_Plantejar Ració'!D9<=0,"",'II_Plantejar Ració'!D9) ->  | D10: =IF('II_Plantejar Ració'!D9<=0,"",'II_Plantejar Ració'!C9) ->  | E10: =IF('II_Plantejar Ració'!D9<=0,"",'II_Plantejar Ració'!E9) ->  | F10: =IF('II_Plantejar Ració'!D9<=0,"",'II_Plantejar Ració'!G9*C10) ->  | G10: =IF(C10="",IF(CàlculsVL!C8>1,CàlculsVL!B8,""),"") -> Maíz grano | I10: =IV_Respostes!C22 -> Relación normal | K10: ='II_Plantejar Ració'!H20 -> NI | L10: ='II_Plantejar Ració'!I20 -> 2.752047879 | M10: ='II_Plantejar Ració'!K20 -> 0.02257142857 | N10: ='II_Plantejar Ració'!J20 -> 2.752047879 | P10: ='II_Plantejar Ració'!L20 -> 0.02257142857 | Q10: ='II_Plantejar Ració'!M20 -> 
A11: =IF(C11="","",CàlculsVL!B9) ->  | B11: =IF('II_Plantejar Ració'!D10<=0,"",'II_Plantejar Ració'!B10) ->  | C11: =IF('II_Plantejar Ració'!D10<=0,"",'II_Plantejar Ració'!D10) ->  | D11: =IF('II_Plantejar Ració'!D10<=0,"",'II_Plantejar Ració'!C10) ->  | E11: =IF('II_Plantejar Ració'!D10<=0,"",'II_Plantejar Ració'!E10) ->  | F11: =IF('II_Plantejar Ració'!D10<=0,"",'II_Plantejar Ració'!G10*C11) ->  | G11: =IF(C11="",IF(CàlculsVL!C9>1,CàlculsVL!B9,""),"") -> Soja torta 44 | I11: Emisiones de metano | K11: =CàlculsVL!J1 -> Ca | L11: ='II_Plantejar Ració'!I21 -> 42.31637121 | M11: ='II_Plantejar Ració'!K21 -> 0.2844 | N11: ='II_Plantejar Ració'!J21 -> 54.40676298 | O11: =I_Necessitats!D151 -> 63.66843331 | P11: ='II_Plantejar Ració'!L21 -> 1.8 | Q11: ='II_Plantejar Ració'!M21 -> 
A12: =IF(C12="","",CàlculsVL!B10) ->  | B12: =IF('II_Plantejar Ració'!D11<=0,"",'II_Plantejar Ració'!B11) ->  | C12: =IF('II_Plantejar Ració'!D11<=0,"",'II_Plantejar Ració'!D11) ->  | D12: =IF('II_Plantejar Ració'!D11<=0,"",'II_Plantejar Ració'!C11) ->  | E12: =IF('II_Plantejar Ració'!D11<=0,"",'II_Plantejar Ració'!E11) ->  | F12: =IF('II_Plantejar Ració'!D11<=0,"",'II_Plantejar Ració'!G11*C12) ->  | G12: =IF(C12="",IF(CàlculsVL!C10>1,CàlculsVL!B10,""),"") -> Grasa vegetal, manteca de cerdo (todos los tipos) | I12: =IV_Respostes!B35 -> 5.035289188 | K12: =CàlculsVL!K1 -> P | L12: ='II_Plantejar Ració'!I22 -> 28.69787899 | M12: ='II_Plantejar Ració'!K22 -> 0.3318 | N12: ='II_Plantejar Ració'!J22 -> 36.89727299 | O12: =I_Necessitats!D152 -> 51.96001786 | P12: ='II_Plantejar Ració'!L22 -> 2.1 | Q12: ='II_Plantejar Ració'!M22 -> 
A13: =IF(C13="","",CàlculsVL!B11) ->  | B13: =IF('II_Plantejar Ració'!D12<=0,"",'II_Plantejar Ració'!B12) ->  | C13: =IF('II_Plantejar Ració'!D12<=0,"",'II_Plantejar Ració'!D12) ->  | D13: =IF('II_Plantejar Ració'!D12<=0,"",'II_Plantejar Ració'!C12) ->  | E13: =IF('II_Plantejar Ració'!D12<=0,"",'II_Plantejar Ració'!E12) ->  | F13: =IF('II_Plantejar Ració'!D12<=0,"",'II_Plantejar Ració'!G12*C13) ->  | G13: =IF(C13="",IF(CàlculsVL!C11>1,CàlculsVL!B11,""),"") -> Cebada bagazo cervecería fresco | I13: =IV_Respostes!C34 -> Producción metano por kg MOD normal | K13: =CàlculsVL!L1 -> Mg | L13: ='II_Plantejar Ració'!I23 -> 11.03093556 | M13: ='II_Plantejar Ració'!K23 -> 0.2686 | N13: ='II_Plantejar Ració'!J23 -> 14.18263143 | O13: ='II_Plantejar Ració'!J23/(1+'II_Plantejar Ració'!E24/100) -> 12.60678349 | P13: ='II_Plantejar Ració'!L23 -> 1.7 | Q13: ='II_Plantejar Ració'!M23 -> 
A14: =IF(C14="","",CàlculsVL!B12) ->  | B14: =IF('II_Plantejar Ració'!D13<=0,"",'II_Plantejar Ració'!B13) ->  | C14: =IF('II_Plantejar Ració'!D13<=0,"",'II_Plantejar Ració'!D13) ->  | D14: =IF('II_Plantejar Ració'!D13<=0,"",'II_Plantejar Ració'!C13) ->  | E14: =IF('II_Plantejar Ració'!D13<=0,"",'II_Plantejar Ració'!E13) ->  | F14: =IF('II_Plantejar Ració'!D13<=0,"",'II_Plantejar Ració'!G13*C14) ->  | G14: =IF(C14="",IF(CàlculsVL!C12>1,CàlculsVL!B12,""),"") -> Maíz gluten meal | I14: pH ruminal | K14: =CàlculsVL!M1 -> K | L14: ='II_Plantejar Ració'!I24 -> 113.5262673 | M14: ='II_Plantejar Ració'!K24 -> 4.74 | N14: ='II_Plantejar Ració'!J24 -> 145.9623437 | O14: ='II_Plantejar Ració'!J24/(1+'II_Plantejar Ració'!E24/100) -> 129.7443055 | P14: ='II_Plantejar Ració'!L24 -> 30 | Q14: ='II_Plantejar Ració'!M24 -> 
A15: =IF(C15="","",CàlculsVL!B13) ->  | B15: =IF('II_Plantejar Ració'!D14<=0,"",'II_Plantejar Ració'!B14) ->  | C15: =IF('II_Plantejar Ració'!D14<=0,"",'II_Plantejar Ració'!D14) ->  | D15: =IF('II_Plantejar Ració'!D14<=0,"",'II_Plantejar Ració'!C14) ->  | E15: =IF('II_Plantejar Ració'!D14<=0,"",'II_Plantejar Ració'!E14) ->  | F15: =IF('II_Plantejar Ració'!D14<=0,"",'II_Plantejar Ració'!G14*C15) ->  | G15: =IF(C15="",IF(CàlculsVL!C13>1,CàlculsVL!B13,""),"") ->  | I15: =IV_Respostes!G4 -> 6.49 | K15: =CàlculsVL!N1 -> Na | L15: ='II_Plantejar Ració'!I25 -> 27.16854196 | M15: ='II_Plantejar Ració'!K25 -> 0.474 | N15: ='II_Plantejar Ració'!J25 -> 34.93098253 | O15: ='II_Plantejar Ració'!J25/(1+'II_Plantejar Ració'!$E$24/100) -> 31.04976224 | P15: ='II_Plantejar Ració'!L25 -> 3 | Q15: ='II_Plantejar Ració'!M25 -> 
A16: =IF(C16="","",CàlculsVL!B14) ->  | B16: =IF('II_Plantejar Ració'!D15<=0,"",'II_Plantejar Ració'!B15) ->  | C16: =IF('II_Plantejar Ració'!D15<=0,"",'II_Plantejar Ració'!D15) ->  | D16: =IF('II_Plantejar Ració'!D15<=0,"",'II_Plantejar Ració'!C15) ->  | E16: =IF('II_Plantejar Ració'!D15<=0,"",'II_Plantejar Ració'!E15) ->  | F16: =IF('II_Plantejar Ració'!D15<=0,"",'II_Plantejar Ració'!G15*C16) ->  | G16: =IF(C16="",IF(CàlculsVL!C14>1,CàlculsVL!B14,""),"") ->  | I16: =IV_Respostes!H3 -> Sin riesgo acidosis | K16: =CàlculsVL!O1 -> S | L16: ='II_Plantejar Ració'!I26 -> 42.97127665 | M16: ='II_Plantejar Ració'!K26 -> 0.158 | N16: ='II_Plantejar Ració'!J26 -> 55.24878427 | O16: ='II_Plantejar Ració'!J26/(1+'II_Plantejar Ració'!$E$24/100) -> 49.11003046 | P16: ='II_Plantejar Ració'!L26 -> 1 | Q16: ='II_Plantejar Ració'!M26 -> 
A17: =IF(C17="","",CàlculsVL!B15) ->  | B17: =IF('II_Plantejar Ració'!D16<=0,"",'II_Plantejar Ració'!B16) ->  | C17: =IF('II_Plantejar Ració'!D16<=0,"",'II_Plantejar Ració'!D16) ->  | D17: =IF('II_Plantejar Ració'!D16<=0,"",'II_Plantejar Ració'!C16) ->  | E17: =IF('II_Plantejar Ració'!D16<=0,"",'II_Plantejar Ració'!E16) ->  | F17: =IF('II_Plantejar Ració'!D16<=0,"",'II_Plantejar Ració'!G16*C17) ->  | G17: =IF(C17="",IF(CàlculsVL!C15>1,CàlculsVL!B15,""),"") -> Carbonato cálcico | K17: =CàlculsVL!P1 -> Cl | L17: ='II_Plantejar Ració'!I27 -> 23.37702776 | M17: ='II_Plantejar Ració'!K27 -> 0 | N17: ='II_Plantejar Ració'!J27 -> 30.05617855 | O17: ='II_Plantejar Ració'!J27/(1+'II_Plantejar Ració'!$E$24/100) -> 26.71660316 | P17: ='II_Plantejar Ració'!L27 -> 0 | Q17: ='II_Plantejar Ració'!M27 -> Cl
A18: =IF(C18="","",CàlculsVL!B16) ->  | B18: =IF('II_Plantejar Ració'!D17<=0,"",'II_Plantejar Ració'!B17) ->  | C18: =IF('II_Plantejar Ració'!D17<=0,"",'II_Plantejar Ració'!D17) ->  | D18: =IF('II_Plantejar Ració'!D17<=0,"",'II_Plantejar Ració'!C17) ->  | E18: =IF('II_Plantejar Ració'!D17<=0,"",'II_Plantejar Ració'!E17) ->  | F18: =IF('II_Plantejar Ració'!D17<=0,"",'II_Plantejar Ració'!G17*C18) ->  | G18: =IF(C18="",IF(CàlculsVL!C16>1,CàlculsVL!B16,""),"") -> Fosfato bicálcico | K18: =CàlculsVL!Q1 -> Co | L18: ='II_Plantejar Ració'!I28 -> 0.4333709659 | M18: ='II_Plantejar Ració'!K28 -> 0 | N18: ='II_Plantejar Ració'!J28 -> 0.5571912419 | O18: ='II_Plantejar Ració'!J28/(1+'II_Plantejar Ració'!$E$24/100) -> 0.4952811039 | P18: ='II_Plantejar Ració'!L28 -> 0 | Q18: ='II_Plantejar Ració'!M28 -> Co
A19: =IF(C19="","",CàlculsVL!B17) ->  | B19: =IF('II_Plantejar Ració'!D18<=0,"",'II_Plantejar Ració'!B18) ->  | C19: =IF('II_Plantejar Ració'!D18<=0,"",'II_Plantejar Ració'!D18) ->  | D19: =IF('II_Plantejar Ració'!D18<=0,"",'II_Plantejar Ració'!C18) ->  | E19: =IF('II_Plantejar Ració'!D18<=0,"",'II_Plantejar Ració'!E18) ->  | F19: =IF('II_Plantejar Ració'!D18<=0,"",'II_Plantejar Ració'!G18*C19) ->  | K19: =CàlculsVL!R1 -> Cu | L19: ='II_Plantejar Ració'!I29 -> 14.44569886 | M19: ='II_Plantejar Ració'!K29 -> 1.2798 | N19: ='II_Plantejar Ració'!J29 -> 18.5730414 | O19: ='II_Plantejar Ració'!J29/(1+'II_Plantejar Ració'!$E$24/100) -> 16.50937013 | P19: ='II_Plantejar Ració'!L29 -> 8.1 | Q19: ='II_Plantejar Ració'!M29 -> 
A20: Totales | C20: =SUM(C5:C19) -> 1 | E20: =SUM(E5:E19) -> 0.158 | F20: ='II_Plantejar Ració'!K11 -> 2 | K20: =CàlculsVL!S1 -> Mn | L20: ='II_Plantejar Ració'!I30 -> 72.22849432 | M20: ='II_Plantejar Ració'!K30 -> 13.4458 | N20: ='II_Plantejar Ració'!J30 -> 92.86520699 | O20: ='II_Plantejar Ració'!J30/(1+'II_Plantejar Ració'!$E$24/100) -> 82.54685065 | P20: ='II_Plantejar Ració'!L30 -> 85.1 | Q20: ='II_Plantejar Ració'!M30 -> 
A21: Tolerable en Repleción/encombrement (UE) | C21: Fa % | D21: ='II_Plantejar Ració'!J9 -> 100 | K21: =CàlculsVL!T1 -> Zn | L21: ='II_Plantejar Ració'!I31 -> 72.22849432 | M21: ='II_Plantejar Ració'!K31 -> 0 | N21: ='II_Plantejar Ració'!J31 -> 92.86520699 | O21: ='II_Plantejar Ració'!J31/(1+'II_Plantejar Ració'!$E$24/100) -> 82.54685065 | P21: ='II_Plantejar Ració'!L31 -> 0 | Q21: ='II_Plantejar Ració'!M31 -> Zn
A22: Tolerable en energía (UFL) | C22: Co % | D22: ='II_Plantejar Ració'!M8*100 -> 0 | K22: =CàlculsVL!U1 -> Almidón | L22: ='II_Plantejar Ració'!I32 -> 0 | M22: ='II_Plantejar Ració'!K32 -> 0 | N22: ='II_Plantejar Ració'!J32 -> 0 | O22: ='II_Plantejar Ració'!J32/(1+'II_Plantejar Ració'!$E$24/100) -> 0 | P22: ='II_Plantejar Ració'!L32 -> 0 | Q22: ='II_Plantejar Ració'!M32 -> Midó
A23: Tolerable en proteína (PDI) | B23: Solución factible | K23: =CàlculsVL!V1 -> Se | L23: ='II_Plantejar Ració'!I33 -> 0.13125 | M23: ='II_Plantejar Ració'!K33 -> 0 | N23: ='II_Plantejar Ració'!J33 -> 0.16875 | O23: ='II_Plantejar Ració'!J33/(1+'II_Plantejar Ració'!$E$24/100) -> 0.15 | P23: ='II_Plantejar Ració'!L33 -> 0 | Q23: ='II_Plantejar Ració'!M33 -> Se
A24: Tolerable en balance proteico ruminal (BPR) | K24: =CàlculsVL!W1 -> Vit A | L24: ='II_Plantejar Ració'!I34 -> 663.6 | M24: ='II_Plantejar Ració'!K34 -> 0 | N24: ='II_Plantejar Ració'!J34 -> 663.6 | O24: ='II_Plantejar Ració'!J34 -> 663.6 | P24: ='II_Plantejar Ració'!L34 -> 0 | Q24: ='II_Plantejar Ració'!M34 -> Vit A
A25: Tolerable en calcio (Ca) | K25: =CàlculsVL!X1 -> Vit D | L25: ='II_Plantejar Ració'!I35 -> 158 | M25: ='II_Plantejar Ració'!K35 -> 0 | N25: ='II_Plantejar Ració'!J35 -> 158 | O25: ='II_Plantejar Ració'!J35 -> 158 | P25: ='II_Plantejar Ració'!L35 -> 0 | Q25: ='II_Plantejar Ració'!M35 -> Vit D
A26: Tolerable en fósforo (P) | K26: =CàlculsVL!Y1 -> Vit E | L26: ='II_Plantejar Ració'!I36 -> 2.37 | M26: ='II_Plantejar Ració'!K36 -> 0 | N26: ='II_Plantejar Ració'!J36 -> 2.37 | O26: ='II_Plantejar Ració'!J36 -> 2.37 | P26: ='II_Plantejar Ració'!L36 -> 0 | Q26: ='II_Plantejar Ració'!M36 -> Vit E | S26: =IF(B23="No s'ha trobat una solució acceptable","Resultat no acceptable","") -> 
A27: MS según contenido y características MO de la ración | B27: ='II_Plantejar Ració'!I57 -> -28.62834657 | C27: =ABS(B27-E20) -> 28.78634657 | K27: =CàlculsVL!Z1 -> AG | M27: ='II_Plantejar Ració'!K37 -> 3.92946 | P27: ='II_Plantejar Ració'!L37 -> 24.87 | Q27: ='II_Plantejar Ració'!M37 -> 
A28: MS según previsiones NRC | B28: ='II_Plantejar Ració'!E21 -> 23.24527936 | C28: =ABS(B28-E20) -> 23.08727936 | K28: =CàlculsVL!AA1 -> MNT_PB | M28: ='II_Plantejar Ració'!K38 -> 26.544 | P28: ='II_Plantejar Ració'!L38 -> 168 | Q28: ='II_Plantejar Ració'!M38 -> 
K29: =CàlculsVL!AB1 -> PDIA | M29: ='II_Plantejar Ració'!K39 -> 4.18068 | P29: ='II_Plantejar Ració'!L39 -> 26.46 | Q29: ='II_Plantejar Ració'!M39 -> 
A30: Almidón/kgMS | B30: =P22 -> 0 | K30: =CàlculsVL!AC1 -> dMO | M30: ='II_Plantejar Ració'!K40 -> 0.79572 | N30: ='II_Plantejar Ració'!J40 -> 0.9078150726 | P30: ='II_Plantejar Ració'!L40 -> 0.9078150726 | Q30: ='II_Plantejar Ració'!M40 -> 
A31: dMO inicial | B31: ='II_Plantejar Ració'!B39 -> 0.79572 | K31: =CàlculsVL!AD1 -> MOD | M31: ='II_Plantejar Ració'!K41 -> 127.0832164 | P31: ='II_Plantejar Ració'!L41 -> 804.3241543 | Q31: ='II_Plantejar Ració'!M41 -> 
A32: dMO final | B32: ='II_Plantejar Ració'!B40 -> 0.9078150726 | K32: =CàlculsVL!AE1 -> EE | M32: ='II_Plantejar Ració'!K42 -> 6.162 | N32: ='II_Plantejar Ració'!J42 -> 4 | P32: ='II_Plantejar Ració'!L42 -> 3.9 | Q32: ='II_Plantejar Ració'!M42 -> 
A33: EfProteína inicial | B33: ='II_Plantejar Ració'!C71 -> 0.7823906834 | K33: =CàlculsVL!AF1 -> FB | M33: ='II_Plantejar Ració'!K43 -> 29.704 | P33: ='II_Plantejar Ració'!L43 -> 188 | Q33: ='II_Plantejar Ració'!M43 -> 
A34: EfProteína final | B34: ='II_Plantejar Ració'!B71 -> 0.4944602048 | K34: =CàlculsVL!AG1 -> NDF | M34: ='II_Plantejar Ració'!K44 -> 74.94256 | P34: ='II_Plantejar Ració'!L44 -> 474.32 | Q34: ='II_Plantejar Ració'!M44 -> 
K35: =CàlculsVL!AH1 -> ADF | M35: ='II_Plantejar Ració'!K45 -> 33.654 | P35: ='II_Plantejar Ració'!L45 -> 213 | Q35: ='II_Plantejar Ració'!M45 -> 
K36: =CàlculsVL!AI1 -> Lignina | M36: ='II_Plantejar Ració'!K46 -> 0 | P36: ='II_Plantejar Ració'!L46 -> 0 | Q36: ='II_Plantejar Ració'!M46 -> Lignina
K37: =CàlculsVL!AJ1 -> Cenizas | M37: ='II_Plantejar Ració'!K47 -> 18.012 | P37: ='II_Plantejar Ració'!L47 -> 114 | Q37: ='II_Plantejar Ració'!M47 -> 
A38: Racionamiento alimenticio de vacas de leche www.remugants.cat Grup de remugants «RAMON TRIAS TORRENT» | K38: =CàlculsVL!AK1 -> Mo | M38: ='II_Plantejar Ració'!K48 -> 0 | P38: ='II_Plantejar Ració'!L48 -> 0 | Q38: ='II_Plantejar Ració'!M48 -> Mo
K39: ='II_Plantejar Ració'!H49 -> DT_N | M39: ='II_Plantejar Ració'!K49 -> 0.79 | P39: ='II_Plantejar Ració'!L49 -> 0.79
K40: ='II_Plantejar Ració'!H50 -> MOF | M40: ='II_Plantejar Ració'!K50 -> 100.5255445 | P40: ='II_Plantejar Ració'!L50 -> 636.2376237
K41: ='II_Plantejar Ració'!H51 -> MO | M41: ='II_Plantejar Ració'!K51 -> 110.7335046 | P41: ='II_Plantejar Ració'!L51 -> 700.844966
E42: =(E20-B27)*0.25 -> 7.196586642 | G42: =(E20-B28)*0.25 -> -5.77181984 | K42: PDI/UFL | L42: ='II_Plantejar Ració'!I52 -> 85.02196189 | M42: ='II_Plantejar Ració'!K52 -> 72.51529471 | N42: ='II_Plantejar Ració'!J52 -> 109.313951
E43: =B27+E42 -> -21.43175993 | G43: =B28+G42 -> 17.47345952 | K43: NDF_Fa | M43: ='II_Plantejar Ració'!K53 -> 74.94256 | P43: ='II_Plantejar Ració'!L53 -> 47.432
K44: NDFD_Fa | M44: ='II_Plantejar Ració'!K54 -> -448.26434
K45: NDFD_Fa %NDF_Fa | M45: ='II_Plantejar Ració'!K55 -> -598.1438851
K46: ADF/NDF | M46: ='II_Plantejar Ració'!K56 -> 0.4490639231
K47: MOFconcentrados | P47: ='II_Plantejar Ració'!L58 -> 0
K48: pH | L48: ='II_Plantejar Ració'!I59 -> 6.16 | P48: ='II_Plantejar Ració'!L59 -> 6.49
K49: C/N | L49: ='II_Plantejar Ració'!I60 -> 15 | N49: ='II_Plantejar Ració'!J60 -> 26 | P49: ='II_Plantejar Ració'!L60 -> 19.21591298
A224: Tolerable en balanç proteic ruminal (BPR)

Sheet Ajuda Emultiple (hidden)

Sheet Paràmetres llet (hidden)
A1: COMPONENTES | B1: POSICIÓN | C1: PARÁMETROS DE CÁLCULO
A2: ='0_Tabla Forrajes'!B1 -> MS % | B2: 1 | C2: 2
A3: ='0_Tabla Forrajes'!C1 -> UFL | B3: =1+B2 -> 2 | C3: 1
A4: ='0_Tabla Forrajes'!$E1 -> MNT_PB | B4: 4 | C4: 1
A5: ='0_Tabla Forrajes'!F1 -> PDIA | B5: =1+B4 -> 5 | C5: 1
A6: ='0_Tabla Forrajes'!G1 -> PDI | B6: 6 | C6: 1
A7: ='0_Tabla Forrajes'!H1 -> BPR | B7: 7 | C7: 1
A8: ='0_Tabla Forrajes'!I1 -> UEL | B8: 8 | C8: 1
A9: ='0_Tabla Forrajes'!L1 -> NI ref | B9: 11 | C9: 1
A10: ='0_Tabla Forrajes'!M1 -> dMO | B10: 12 | C10: 1
A11: ='0_Tabla Forrajes'!N$1 -> MOD | B11: 13 | C11: 1
A12: ='0_Tabla Forrajes'!O1 -> EE | B12: 14 | C12: 1
A13: ='0_Tabla Forrajes'!P1 -> FB | B13: =1+B12 -> 15 | C13: 1
A14: ='0_Tabla Forrajes'!Q1 -> NDF | B14: 16 | C14: 1
A15: ='0_Tabla Forrajes'!R1 -> ADF | B15: 17 | C15: 1
A16: ='0_Tabla Forrajes'!S1 -> Lignina | B16: 18 | C16: 1
A17: ='0_Tabla Forrajes'!T1 -> Cenizas | B17: 19 | C17: 1
A18: ='0_Tabla Forrajes'!U1 -> Ca | B18: 20 | C18: 1
A19: ='0_Tabla Forrajes'!V1 -> P | B19: 21 | C19: 1
A20: ='0_Tabla Forrajes'!W1 -> Mg | B20: 22 | C20: 1
A21: ='0_Tabla Forrajes'!X1 -> Cl | B21: 23 | C21: 1
A22: ='0_Tabla Forrajes'!Y1 -> K | B22: 24 | C22: 1
A23: ='0_Tabla Forrajes'!Z1 -> Na | B23: 25 | C23: 1
A24: ='0_Tabla Forrajes'!AA1 -> S | B24: 26 | C24: 1
A25: ='0_Tabla Forrajes'!AB1 -> Co | B25: 27 | C25: 1
A26: ='0_Tabla Forrajes'!AC1 -> Cu | B26: 28 | C26: 1
A27: ='0_Tabla Forrajes'!AD1 -> Mo | B27: 29 | C27: 1
A28: ='0_Tabla Forrajes'!AE1 -> Almidón | B28: 30 | C28: 1
A29: ='0_Tabla Forrajes'!AF1 -> Fe | B29: 31 | C29: 1
A30: ='0_Tabla Forrajes'!AG1 -> Mn | B30: 32 | C30: 1
A31: ='0_Tabla Forrajes'!AH1 -> Se | B31: 33 | C31: 1
A32: ='0_Tabla Forrajes'!AI1 -> Zn | B32: 34 | C32: 1
A33: ='0_Tabla Forrajes'!AJ1 -> Vit A | B33: 35 | C33: 1
A34: ='0_Tabla Forrajes'!AK1 -> Vit D | B34: 36 | C34: 1
A35: ='0_Tabla Forrajes'!AL1 -> Vit E | B35: 37 | C35: 1

Sheet CàlculsVL (hidden)
D1: =OFFSET('0_Tabla Forrajes'!$A$1,0,D2,1,1) -> MS % | E1: =OFFSET('0_Tabla Forrajes'!$A$1,0,E2,1,1) -> UEL | F1: =OFFSET('0_Tabla Forrajes'!$A$1,0,F2,1,1) -> UFL | G1: =OFFSET('0_Tabla Forrajes'!$A$1,0,G2,1,1) -> PDI | H1: =OFFSET('0_Tabla Forrajes'!$A$1,0,H2,1,1) -> BPR | I1: =OFFSET('0_Tabla Forrajes'!$A$1,0,I2,1,1) -> NI ref | J1: =OFFSET('0_Tabla Forrajes'!$A$1,0,J2,1,1) -> Ca | K1: =OFFSET('0_Tabla Forrajes'!$A$1,0,K2,1,1) -> P | L1: =OFFSET('0_Tabla Forrajes'!$A$1,0,L2,1,1) -> Mg | M1: =OFFSET('0_Tabla Forrajes'!$A$1,0,M2,1,1) -> K | N1: =OFFSET('0_Tabla Forrajes'!$A$1,0,N2,1,1) -> Na | O1: =OFFSET('0_Tabla Forrajes'!$A$1,0,O2,1,1) -> S | P1: =OFFSET('0_Tabla Forrajes'!$A$1,0,P2,1,1) -> Cl | Q1: =OFFSET('0_Tabla Forrajes'!$A$1,0,Q2,1,1) -> Co | R1: =OFFSET('0_Tabla Forrajes'!$A$1,0,R2,1,1) -> Cu | S1: =OFFSET('0_Tabla Forrajes'!$A$1,0,S2,1,1) -> Mn | T1: =OFFSET('0_Tabla Forrajes'!$A$1,0,T2,1,1) -> Zn | U1: =OFFSET('0_Tabla Forrajes'!$A$1,0,U2,1,1) -> Almidón | V1: =OFFSET('0_Tabla Forrajes'!$A$1,0,V2,1,1) -> Se | W1: =OFFSET('0_Tabla Forrajes'!$A$1,0,W2,1,1) -> Vit A | X1: =OFFSET('0_Tabla Forrajes'!$A$1,0,X2,1,1) -> Vit D | Y1: =OFFSET('0_Tabla Forrajes'!$A$1,0,Y2,1,1) -> Vit E | Z1: =OFFSET('0_Tabla Forrajes'!$A$1,0,Z2,1,1) -> AG | AA1: =OFFSET('0_Tabla Forrajes'!$A$1,0,AA2,1,1) -> MNT_PB | AB1: =OFFSET('0_Tabla Forrajes'!$A$1,0,AB2,1,1) -> PDIA | AC1: =OFFSET('0_Tabla Forrajes'!$A$1,0,AC2,1,1) -> dMO | AD1: =OFFSET('0_Tabla Forrajes'!$A$1,0,AD2,1,1) -> MOD | AE1: =OFFSET('0_Tabla Forrajes'!$A$1,0,AE2,1,1) -> EE | AF1: =OFFSET('0_Tabla Forrajes'!$A$1,0,AF2,1,1) -> FB | AG1: =OFFSET('0_Tabla Forrajes'!$A$1,0,AG2,1,1) -> NDF | AH1: =OFFSET('0_Tabla Forrajes'!$A$1,0,AH2,1,1) -> ADF | AI1: =OFFSET('0_Tabla Forrajes'!$A$1,0,AI2,1,1) -> Lignina | AJ1: =OFFSET('0_Tabla Forrajes'!$A$1,0,AJ2,1,1) -> Cenizas | AK1: =OFFSET('0_Tabla Forrajes'!$A$1,0,AK2,1,1) -> Mo | AL1: =OFFSET('0_Tabla Forrajes'!$A$1,0,AL2,1,1) -> DT_N | AM1: =OFFSET('0_Tabla Forrajes'!$A$1,0,AM2,1,1) -> MOF | BI1: AG | BJ1: MNT_PB | BK1: PDIA | BL1: dMO | BM1: MOD | BN1: EE | BO1: FB | BP1: NDF | BQ1: ADF | BR1: Lignina | BS1: cendres | BT1: Mo
A2: TIPUS | B2: INGREDIENTS UTILITZATS | C2: Nº | D2: 1 | E2: 8 | F2: 2 | G2: 6 | H2: 7 | I2: 11 | J2: 20 | K2: 21 | L2: 22 | M2: 24 | N2: 25 | O2: 26 | P2: 23 | Q2: 27 | R2: 28 | S2: 32 | T2: 34 | U2: 30 | V2: 33 | W2: 35 | X2: 36 | Y2: 37 | Z2: 38 | AA2: 4 | AB2: 5 | AC2: 12 | AD2: 13 | AE2: 14 | AF2: 15 | AG2: 16 | AH2: 17 | AI2: 18 | AJ2: 19 | AK2: 29 | AL2: 39 | AM2: 41 | AN2: UEL | AO2: UFL | AP2: PDI | AQ2: BPR | AR2: NI ref | AS2: Ca | AT2: P | AU2: Mg | AV2: K | AW2: Na | AX2: S | AY2: Cl | AZ2: Co | BA2: Cu | BB2: Mn | BC2: Zn | BD2: Midó | BE2: Se | BF2: Vit A | BG2: Vit D | BH2: Vit E | BI2: AG | BJ2: MNT_PB | BK2: PDIA | BL2: dMO | BM2: MOD | BN2: EE | BO2: FB | BP2: NDF | BQ2: ADF | BR2: Lignina | BS2: cendres | BT2: Mo | BU2: DT_N | BV2: MOF
A3: FARRATGES | B3: =IF(OFFSET('0_Tabla Forrajes'!$A$1,C3,0,1,1)=0,"",OFFSET('0_Tabla Forrajes'!$A$1,C3,0,1,1)) -> VERDE raigrás italiano Espiga a 10 cm | C3: =Ingredients_Racio!B46-1 -> 74 | D3: =OFFSET('0_Tabla Forrajes'!$A$1,$C3,$D$2,1,1) -> 15.8 | E3: =OFFSET('0_Tabla Forrajes'!$A$1,$C3,$E$2,1,1) -> 0.9910346389 | F3: =OFFSET('0_Tabla Forrajes'!$A$1,$C3,$F$2,1,1) -> 1.073514419 | G3: =OFFSET('0_Tabla Forrajes'!$A$1,$C3,$G$2,1,1) -> 77.8462145 | H3: =OFFSET('0_Tabla Forrajes'!$A$1,$C3,$H$2,1,1) -> 31.10451486 | I3: =OFFSET('0_Tabla Forrajes'!$A$1,$C3,$I$2,1,1) -> 2.752047879 | J3: =OFFSET('0_Tabla Forrajes'!$A$1,$C3,$J$2,1,1) -> 1.8 | K3: =OFFSET('0_Tabla Forrajes'!$A$1,$C3,$K$2,1,1) -> 2.1 | L3: =OFFSET('0_Tabla Forrajes'!$A$1,$C3,$L$2,1,1) -> 1.7 | M3: =OFFSET('0_Tabla Forrajes'!$A$1,$C3,$M$2,1,1) -> 30 | N3: =OFFSET('0_Tabla Forrajes'!$A$1,$C3,$N$2,1,1) -> 3 | O3: =OFFSET('0_Tabla Forrajes'!$A$1,$C3,$O$2,1,1) -> 1 | P3: =OFFSET('0_Tabla Forrajes'!$A$1,$C3,$P$2,1,1) -> 0 | Q3: =OFFSET('0_Tabla Forrajes'!$A$1,$C3,$Q$2,1,1) -> 0 | R3: =OFFSET('0_Tabla Forrajes'!$A$1,$C3,$R$2,1,1) -> 8.1 | S3: =OFFSET('0_Tabla Forrajes'!$A$1,$C3,$S$2,1,1) -> 85.1 | T3: =OFFSET('0_Tabla Forrajes'!$A$1,$C3,$T$2,1,1) -> 0 | U3: =OFFSET('0_Tabla Forrajes'!$A$1,$C3,$U$2,1,1) -> 0 | V3: =OFFSET('0_Tabla Forrajes'!$A$1,$C3,$V$2,1,1) -> 0 | W3: =OFFSET('0_Tabla Forrajes'!$A$1,$C3,$W$2,1,1) -> 0 | X3: =OFFSET('0_Tabla Forrajes'!$A$1,$C3,$X$2,1,1) -> 0 | Y3: =OFFSET('0_Tabla Forrajes'!$A$1,$C3,$Y$2,1,1) -> 0 | Z3: =OFFSET('0_Tabla Forrajes'!$A$1,$C3,$Z$2,1,1) -> 24.87 | AA3: =OFFSET('0_Tabla Forrajes'!$A$1,$C3,$AA$2,1,1) -> 168 | AB3: =OFFSET('0_Tabla Forrajes'!$A$1,$C3,$AB$2,1,1) -> 26.46 | AC3: =OFFSET('0_Tabla Forrajes'!$A$1,$C3,$AC$2,1,1) -> 0.79572 | AD3: =OFFSET('0_Tabla Forrajes'!$A$1,$C3,$AD$2,1,1) -> 705.00792 | AE3: =OFFSET('0_Tabla Forrajes'!$A$1,$C3,$AE$2,1,1) -> 39 | AF3: =OFFSET('0_Tabla Forrajes'!$A$1,$C3,$AF$2,1,1) -> 188 | AG3: =OFFSET('0_Tabla Forrajes'!$A$1,$C3,$AG$2,1,1) -> 474.32 | AH3: =OFFSET('0_Tabla Forrajes'!$A$1,$C3,$AH$2,1,1) -> 213 | AI3: =OFFSET('0_Tabla Forrajes'!$A$1,$C3,$AI$2,1,1) -> 0 | AJ3: =OFFSET('0_Tabla Forrajes'!$A$1,$C3,$AJ$2,1,1) -> 114 | AK3: =OFFSET('0_Tabla Forrajes'!$A$1,$C3,$AK$2,1,1) -> 0 | AL3: =OFFSET('0_Tabla Forrajes'!$A$1,$C3,$AL$2,1,1) -> 0.79 | AM3: =OFFSET('0_Tabla Forrajes'!$A$1,$C3,$AM$2,1,1) -> 636.2376237 | AN3: =IF('II_Plantejar Ració'!$E4>0,IF(CàlculsVL!E3>=0,1,"No"),"") -> 1 | AO3: =IF('II_Plantejar Ració'!$E4>0,IF(CàlculsVL!F3>=0,1,"No"),"") -> 1 | AP3: =IF('II_Plantejar Ració'!$E4>0,IF(CàlculsVL!G3>0,1,"No"),"") -> 1 | AQ3: =IF('II_Plantejar Ració'!$E4>0,IF(CàlculsVL!H3=0,"No",1),"") -> 1 | AR3: =IF('II_Plantejar Ració'!$E4>0,IF(CàlculsVL!I3>0,1,"No"),"") -> 1 | AS3: =IF('II_Plantejar Ració'!$E4>0,IF(CàlculsVL!J3>0,1,"No"),"") -> 1 | AT3: =IF('II_Plantejar Ració'!$E4>0,IF(CàlculsVL!K3>0,1,"No"),"") -> 1 | AU3: =IF('II_Plantejar Ració'!$E4>0,IF(CàlculsVL!L3>0,1,"No"),"") -> 1 | AV3: =IF('II_Plantejar Ració'!$E4>0,IF(CàlculsVL!M3>0,1,"No"),"") -> 1 | AW3: =IF('II_Plantejar Ració'!$E4>0,IF(CàlculsVL!N3>0,1,"No"),"") -> 1 | AX3: =IF('II_Plantejar Ració'!$E4>0,IF(CàlculsVL!O3>0,1,"No"),"") -> 1 | AY3: =IF('II_Plantejar Ració'!$E4>0,IF(CàlculsVL!P3>0,1,"No"),"") -> No | AZ3: =IF('II_Plantejar Ració'!$E4>0,IF(CàlculsVL!Q3>0,1,"No"),"") -> No | BA3: =IF('II_Plantejar Ració'!$E4>0,IF(CàlculsVL!R3>0,1,"No"),"") -> 1 | BB3: =IF('II_Plantejar Ració'!$E4>0,IF(CàlculsVL!S3>0,1,"No"),"") -> 1 | BC3: =IF('II_Plantejar Ració'!$E4>0,IF(CàlculsVL!T3>0,1,"No"),"") -> No | BD3: =IF('II_Plantejar Ració'!$E4>0,IF(CàlculsVL!U3>0,1,"No"),"") -> No | BE3: =IF('II_Plantejar Ració'!$E4>0,IF(CàlculsVL!V3>0,1,"No"),"") -> No | BF3: =IF('II_Plantejar Ració'!$E4>0,IF(CàlculsVL!W3>0,1,"No"),"") -> No | BG3: =IF('II_Plantejar Ració'!$E4>0,IF(CàlculsVL!X3>0,1,"No"),"") -> No | BH3: =IF('II_Plantejar Ració'!$E4>0,IF(CàlculsVL!Y3>0,1,"No"),"") -> No | BI3: =IF('II_Plantejar Ració'!$E4>0,IF(CàlculsVL!Z3>0,1,"No"),"") -> 1 | BJ3: =IF('II_Plantejar Ració'!$E4>0,IF(CàlculsVL!AA3>0,1,"No"),"") -> 1 | BK3: =IF('II_Plantejar Ració'!$E4>0,IF(CàlculsVL!AB3>0,1,"No"),"") -> 1 | BL3: =IF('II_Plantejar Ració'!$E4>0,IF(CàlculsVL!AC3>0,1,"No"),"") -> 1 | BM3: =IF('II_Plantejar Ració'!$E4>0,IF(CàlculsVL!AD3>0,1,"No"),"") -> 1 | BN3: =IF('II_Plantejar Ració'!$E4>0,IF(CàlculsVL!AE3>0,1,"No"),"") -> 1 | BO3: =IF('II_Plantejar Ració'!$E4>0,IF(CàlculsVL!AF3>0,1,"No"),"") -> 1 | BP3: =IF('II_Plantejar Ració'!$E4>0,IF(CàlculsVL!AG3>0,1,"No"),"") -> 1 | BQ3: =IF('II_Plantejar Ració'!$E4>0,IF(CàlculsVL!AH3>0,1,"No"),"") -> 1 | BR3: =IF('II_Plantejar Ració'!$E4>0,IF(CàlculsVL!AI3>0,1,"No"),"") -> No | BS3: =IF('II_Plantejar Ració'!$E4>0,IF(CàlculsVL!AJ3>0,1,"No"),"") -> 1 | BT3: =IF('II_Plantejar Ració'!$E4>0,IF(CàlculsVL!AK3>0,1,"No"),"") -> No | BU3: =IF('II_Plantejar Ració'!$E4>0,IF(CàlculsVL!AL3>0,1,"No"),"") -> 1 | BV3: =IF('II_Plantejar Ració'!$E4>0,IF(CàlculsVL!AM3>0,1,"No"),"") -> 1 | BW3: =IF(AN3="",0,1) -> 1 | BX3: =IF(AO3="",0,1) -> 1 | BY3: =IF(AP3="",0,1) -> 1 | BZ3: =IF(AQ3="",0,1) -> 1 | CA3: =IF(AR3="",0,1) -> 1 | CB3: =IF(AS3="",0,1) -> 1 | CC3: =IF(AT3="",0,1) -> 1 | CD3: =IF(AU3="",0,1) -> 1 | CE3: =IF(AV3="",0,1) -> 1 | CF3: =IF(AW3="",0,1) -> 1 | CG3: =IF(AX3="",0,1) -> 1 | CH3: =IF(AY3="",0,1) -> 1 | CI3: =IF(AZ3="",0,1) -> 1 | CJ3: =IF(BA3="",0,1) -> 1 | CK3: =IF(BB3="",0,1) -> 1 | CL3: =IF(BC3="",0,1) -> 1 | CM3: =IF(BD3="",0,1) -> 1 | CN3: =IF(BE3="",0,1) -> 1 | CO3: =IF(BF3="",0,1) -> 1 | CP3: =IF(BG3="",0,1) -> 1 | CQ3: =IF(BH3="",0,1) -> 1 | CR3: =IF(BI3="",0,1) -> 1 | CS3: =IF(BJ3="",0,1) -> 1 | CT3: =IF(BK3="",0,1) -> 1 | CU3: =IF(BL3="",0,1) -> 1 | CV3: =IF(BM3="",0,1) -> 1 | CW3: =IF(BN3="",0,1) -> 1 | CX3: =IF(BO3="",0,1) -> 1 | CY3: =IF(BP3="",0,1) -> 1 | CZ3: =IF(BQ3="",0,1) -> 1 | DA3: =IF(BR3="",0,1) -> 1 | DB3: =IF(BS3="",0,1) -> 1 | DC3: =IF(BT3="",0,1) -> 1 | DD3: =IF(BU3="",0,1) -> 1 | DE3: =IF(BV3="",0,1) -> 1
B4: =IF(OFFSET('0_Tabla Forrajes'!$A$1,C4,0,1,1)=0,"",OFFSET('0_Tabla Forrajes'!$A$1,C4,0,1,1)) -> PAJA Cebada | C4: =Ingredients_Racio!C46-1 -> 60 | D4: =OFFSET('0_Tabla Forrajes'!$A$1,$C4,$D$2,1,1) -> 88 | E4: =OFFSET('0_Tabla Forrajes'!$A$1,$C4,$E$2,1,1) -> 1.212233533 | F4: =OFFSET('0_Tabla Forrajes'!$A$1,$C4,$F$2,1,1) -> 0.54583885 | G4: =OFFSET('0_Tabla Forrajes'!$A$1,$C4,$G$2,1,1) -> 36.3914354 | H4: =OFFSET('0_Tabla Forrajes'!$A$1,$C4,$H$2,1,1) -> -57.86991626 | I4: =OFFSET('0_Tabla Forrajes'!$A$1,$C4,$I$2,1,1) -> 1.399650714 | J4: =OFFSET('0_Tabla Forrajes'!$A$1,$C4,$J$2,1,1) -> 1.4 | K4: =OFFSET('0_Tabla Forrajes'!$A$1,$C4,$K$2,1,1) -> 0.66 | L4: =OFFSET('0_Tabla Forrajes'!$A$1,$C4,$L$2,1,1) -> 1.4 | M4: =OFFSET('0_Tabla Forrajes'!$A$1,$C4,$M$2,1,1) -> 16.5 | N4: =OFFSET('0_Tabla Forrajes'!$A$1,$C4,$N$2,1,1) -> 2.1 | O4: =OFFSET('0_Tabla Forrajes'!$A$1,$C4,$O$2,1,1) -> 0 | P4: =OFFSET('0_Tabla Forrajes'!$A$1,$C4,$P$2,1,1) -> 0 | Q4: =OFFSET('0_Tabla Forrajes'!$A$1,$C4,$Q$2,1,1) -> 0 | R4: =OFFSET('0_Tabla Forrajes'!$A$1,$C4,$R$2,1,1) -> 3.1 | S4: =OFFSET('0_Tabla Forrajes'!$A$1,$C4,$S$2,1,1) -> 17.6 | T4: =OFFSET('0_Tabla Forrajes'!$A$1,$C4,$T$2,1,1) -> 7.3 | U4: =OFFSET('0_Tabla Forrajes'!$A$1,$C4,$U$2,1,1) -> 0 | V4: =OFFSET('0_Tabla Forrajes'!$A$1,$C4,$V$2,1,1) -> 0 | W4: =OFFSET('0_Tabla Forrajes'!$A$1,$C4,$W$2,1,1) -> 50000 | X4: =OFFSET('0_Tabla Forrajes'!$A$1,$C4,$X$2,1,1) -> 50 | Y4: =OFFSET('0_Tabla Forrajes'!$A$1,$C4,$Y$2,1,1) -> 5 | Z4: =OFFSET('0_Tabla Forrajes'!$A$1,$C4,$Z$2,1,1) -> 10.784 | AA4: =OFFSET('0_Tabla Forrajes'!$A$1,$C4,$AA$2,1,1) -> 38 | AB4: =OFFSET('0_Tabla Forrajes'!$A$1,$C4,$AB$2,1,1) -> 8.512 | AC4: =OFFSET('0_Tabla Forrajes'!$A$1,$C4,$AC$2,1,1) -> 0.492002 | AD4: =OFFSET('0_Tabla Forrajes'!$A$1,$C4,$AD$2,1,1) -> 452.64184 | AE4: =OFFSET('0_Tabla Forrajes'!$A$1,$C4,$AE$2,1,1) -> 12.5 | AF4: =OFFSET('0_Tabla Forrajes'!$A$1,$C4,$AF$2,1,1) -> 420 | AG4: =OFFSET('0_Tabla Forrajes'!$A$1,$C4,$AG$2,1,1) -> 738.8 | AH4: =OFFSET('0_Tabla Forrajes'!$A$1,$C4,$AH$2,1,1) -> 439 | AI4: =OFFSET('0_Tabla Forrajes'!$A$1,$C4,$AI$2,1,1) -> 0 | AJ4: =OFFSET('0_Tabla Forrajes'!$A$1,$C4,$AJ$2,1,1) -> 80 | AK4: =OFFSET('0_Tabla Forrajes'!$A$1,$C4,$AK$2,1,1) -> 0 | AL4: =OFFSET('0_Tabla Forrajes'!$A$1,$C4,$AL$2,1,1) -> 0.68 | AM4: =OFFSET('0_Tabla Forrajes'!$A$1,$C4,$AM$2,1,1) -> 387.2032859 | AN4: =IF('II_Plantejar Ració'!$E5>0,IF(CàlculsVL!E4>=0,1,"No"),"") ->  | AO4: =IF('II_Plantejar Ració'!$E5>0,IF(CàlculsVL!F4>=0,1,"No"),"") ->  | AP4: =IF('II_Plantejar Ració'!$E5>0,IF(CàlculsVL!G4>0,1,"No"),"") ->  | AQ4: =IF('II_Plantejar Ració'!$E5>0,IF(CàlculsVL!H4=0,"No",1),"") ->  | AR4: =IF('II_Plantejar Ració'!$E5>0,IF(CàlculsVL!I4>0,1,"No"),"") ->  | AS4: =IF('II_Plantejar Ració'!$E5>0,IF(CàlculsVL!J4>0,1,"No"),"") ->  | AT4: =IF('II_Plantejar Ració'!$E5>0,IF(CàlculsVL!K4>0,1,"No"),"") ->  | AU4: =IF('II_Plantejar Ració'!$E5>0,IF(CàlculsVL!L4>0,1,"No"),"") ->  | AV4: =IF('II_Plantejar Ració'!$E5>0,IF(CàlculsVL!M4>0,1,"No"),"") ->  | AW4: =IF('II_Plantejar Ració'!$E5>0,IF(CàlculsVL!N4>0,1,"No"),"") ->  | AX4: =IF('II_Plantejar Ració'!$E5>0,IF(CàlculsVL!O4>0,1,"No"),"") ->  | AY4: =IF('II_Plantejar Ració'!$E5>0,IF(CàlculsVL!P4>0,1,"No"),"") ->  | AZ4: =IF('II_Plantejar Ració'!$E5>0,IF(CàlculsVL!Q4>0,1,"No"),"") ->  | BA4: =IF('II_Plantejar Ració'!$E5>0,IF(CàlculsVL!R4>0,1,"No"),"") ->  | BB4: =IF('II_Plantejar Ració'!$E5>0,IF(CàlculsVL!S4>0,1,"No"),"") ->  | BC4: =IF('II_Plantejar Ració'!$E5>0,IF(CàlculsVL!T4>0,1,"No"),"") ->  | BD4: =IF('II_Plantejar Ració'!$E5>0,IF(CàlculsVL!U4>0,1,"No"),"") ->  | BE4: =IF('II_Plantejar Ració'!$E5>0,IF(CàlculsVL!V4>0,1,"No"),"") ->  | BF4: =IF('II_Plantejar Ració'!$E5>0,IF(CàlculsVL!W4>0,1,"No"),"") ->  | BG4: =IF('II_Plantejar Ració'!$E5>0,IF(CàlculsVL!X4>0,1,"No"),"") ->  | BH4: =IF('II_Plantejar Ració'!$E5>0,IF(CàlculsVL!Y4>0,1,"No"),"") ->  | BI4: =IF('II_Plantejar Ració'!$E5>0,IF(CàlculsVL!Z4>0,1,"No"),"") ->  | BJ4: =IF('II_Plantejar Ració'!$E5>0,IF(CàlculsVL!AA4>0,1,"No"),"") ->  | BK4: =IF('II_Plantejar Ració'!$E5>0,IF(CàlculsVL!AB4>0,1,"No"),"") ->  | BL4: =IF('II_Plantejar Ració'!$E5>0,IF(CàlculsVL!AC4>0,1,"No"),"") ->  | BM4: =IF('II_Plantejar Ració'!$E5>0,IF(CàlculsVL!AD4>0,1,"No"),"") ->  | BN4: =IF('II_Plantejar Ració'!$E5>0,IF(CàlculsVL!AE4>0,1,"No"),"") ->  | BO4: =IF('II_Plantejar Ració'!$E5>0,IF(CàlculsVL!AF4>0,1,"No"),"") ->  | BP4: =IF('II_Plantejar Ració'!$E5>0,IF(CàlculsVL!AG4>0,1,"No"),"") ->  | BQ4: =IF('II_Plantejar Ració'!$E5>0,IF(CàlculsVL!AH4>0,1,"No"),"") ->  | BR4: =IF('II_Plantejar Ració'!$E5>0,IF(CàlculsVL!AI4>0,1,"No"),"") ->  | BS4: =IF('II_Plantejar Ració'!$E5>0,IF(CàlculsVL!AJ4>0,1,"No"),"") ->  | BT4: =IF('II_Plantejar Ració'!$E5>0,IF(CàlculsVL!AK4>0,1,"No"),"") ->  | BU4: =IF('II_Plantejar Ració'!$E5>0,IF(CàlculsVL!AL4>0,1,"No"),"") ->  | BV4: =IF('II_Plantejar Ració'!$E5>0,IF(CàlculsVL!AM4>0,1,"No"),"") ->  | BW4: 0 | BX4: 0 | BY4: 0 | BZ4: 0 | CA4: 0 | CB4: 0 | CC4: 0 | CD4: 0 | CE4: 0 | CF4: 0 | CG4: 0 | CH4: 0 | CI4: 0 | CJ4: 0 | CK4: 0 | CL4: 0 | CM4: 0 | CN4: 0 | CO4: 0 | CP4: 0 | CQ4: 0 | CR4: 0 | CS4: 0 | CT4: 0 | CU4: 0 | CV4: 0 | CW4: 0 | CX4: 0 | CY4: 0 | CZ4: 0 | DA4: 0 | DB4: 0 | DC4: =IF(BT4="",0,1) -> 0 | DD4: =IF(BU4="",0,1) -> 0 | DE4: =IF(BV4="",0,1) -> 0
B5: =IF(OFFSET('0_Tabla Forrajes'!$A$1,C5,0,1,1)=0,"",OFFSET('0_Tabla Forrajes'!$A$1,C5,0,1,1)) ->  | C5: =Ingredients_Racio!D46-1 -> 1 | D5: =OFFSET('0_Tabla Forrajes'!$A$1,$C5,$D$2,1,1) -> 0 | E5: =OFFSET('0_Tabla Forrajes'!$A$1,$C5,$E$2,1,1) -> 0 | F5: =OFFSET('0_Tabla Forrajes'!$A$1,$C5,$F$2,1,1) -> 0 | G5: =OFFSET('0_Tabla Forrajes'!$A$1,$C5,$G$2,1,1) -> 0 | H5: =OFFSET('0_Tabla Forrajes'!$A$1,$C5,$H$2,1,1) -> 0 | I5: =OFFSET('0_Tabla Forrajes'!$A$1,$C5,$I$2,1,1) -> 0 | J5: =OFFSET('0_Tabla Forrajes'!$A$1,$C5,$J$2,1,1) -> 0 | K5: =OFFSET('0_Tabla Forrajes'!$A$1,$C5,$K$2,1,1) -> 0 | L5: =OFFSET('0_Tabla Forrajes'!$A$1,$C5,$L$2,1,1) -> 0 | M5: =OFFSET('0_Tabla Forrajes'!$A$1,$C5,$M$2,1,1) -> 0 | N5: =OFFSET('0_Tabla Forrajes'!$A$1,$C5,$N$2,1,1) -> 0 | O5: =OFFSET('0_Tabla Forrajes'!$A$1,$C5,$O$2,1,1) -> 0 | P5: =OFFSET('0_Tabla Forrajes'!$A$1,$C5,$P$2,1,1) -> 0 | Q5: =OFFSET('0_Tabla Forrajes'!$A$1,$C5,$Q$2,1,1) -> 0 | R5: =OFFSET('0_Tabla Forrajes'!$A$1,$C5,$R$2,1,1) -> 0 | S5: =OFFSET('0_Tabla Forrajes'!$A$1,$C5,$S$2,1,1) -> 0 | T5: =OFFSET('0_Tabla Forrajes'!$A$1,$C5,$T$2,1,1) -> 0 | U5: =OFFSET('0_Tabla Forrajes'!$A$1,$C5,$U$2,1,1) -> 0 | V5: =OFFSET('0_Tabla Forrajes'!$A$1,$C5,$V$2,1,1) -> 0 | W5: =OFFSET('0_Tabla Forrajes'!$A$1,$C5,$W$2,1,1) -> 0 | X5: =OFFSET('0_Tabla Forrajes'!$A$1,$C5,$X$2,1,1) -> 0 | Y5: =OFFSET('0_Tabla Forrajes'!$A$1,$C5,$Y$2,1,1) -> 0 | Z5: =OFFSET('0_Tabla Forrajes'!$A$1,$C5,$Z$2,1,1) -> 0 | AA5: =OFFSET('0_Tabla Forrajes'!$A$1,$C5,$AA$2,1,1) -> 0 | AB5: =OFFSET('0_Tabla Forrajes'!$A$1,$C5,$AB$2,1,1) -> 0 | AC5: =OFFSET('0_Tabla Forrajes'!$A$1,$C5,$AC$2,1,1) -> 0 | AD5: =OFFSET('0_Tabla Forrajes'!$A$1,$C5,$AD$2,1,1) -> 0 | AE5: =OFFSET('0_Tabla Forrajes'!$A$1,$C5,$AE$2,1,1) -> 0 | AF5: =OFFSET('0_Tabla Forrajes'!$A$1,$C5,$AF$2,1,1) -> 0 | AG5: =OFFSET('0_Tabla Forrajes'!$A$1,$C5,$AG$2,1,1) -> 0 | AH5: =OFFSET('0_Tabla Forrajes'!$A$1,$C5,$AH$2,1,1) -> 0 | AI5: =OFFSET('0_Tabla Forrajes'!$A$1,$C5,$AI$2,1,1) -> 0 | AJ5: =OFFSET('0_Tabla Forrajes'!$A$1,$C5,$AJ$2,1,1) -> 0 | AK5: =OFFSET('0_Tabla Forrajes'!$A$1,$C5,$AK$2,1,1) -> 0 | AL5: =OFFSET('0_Tabla Forrajes'!$A$1,$C5,$AL$2,1,1) -> 0 | AM5: =OFFSET('0_Tabla Forrajes'!$A$1,$C5,$AM$2,1,1) -> 0 | AN5: =IF('II_Plantejar Ració'!$E6>0,IF(CàlculsVL!E5>=0,1,"No"),"") ->  | AO5: =IF('II_Plantejar Ració'!$E6>0,IF(CàlculsVL!F5>=0,1,"No"),"") ->  | AP5: =IF('II_Plantejar Ració'!$E6>0,IF(CàlculsVL!G5>0,1,"No"),"") ->  | AQ5: =IF('II_Plantejar Ració'!$E6>0,IF(CàlculsVL!H5=0,"No",1),"") ->  | AR5: =IF('II_Plantejar Ració'!$E6>0,IF(CàlculsVL!I5>0,1,"No"),"") ->  | AS5: =IF('II_Plantejar Ració'!$E6>0,IF(CàlculsVL!J5>0,1,"No"),"") ->  | AT5: =IF('II_Plantejar Ració'!$E6>0,IF(CàlculsVL!K5>0,1,"No"),"") ->  | AU5: =IF('II_Plantejar Ració'!$E6>0,IF(CàlculsVL!L5>0,1,"No"),"") ->  | AV5: =IF('II_Plantejar Ració'!$E6>0,IF(CàlculsVL!M5>0,1,"No"),"") ->  | AW5: =IF('II_Plantejar Ració'!$E6>0,IF(CàlculsVL!N5>0,1,"No"),"") ->  | AX5: =IF('II_Plantejar Ració'!$E6>0,IF(CàlculsVL!O5>0,1,"No"),"") ->  | AY5: =IF('II_Plantejar Ració'!$E6>0,IF(CàlculsVL!P5>0,1,"No"),"") ->  | AZ5: =IF('II_Plantejar Ració'!$E6>0,IF(CàlculsVL!Q5>0,1,"No"),"") ->  | BA5: =IF('II_Plantejar Ració'!$E6>0,IF(CàlculsVL!R5>0,1,"No"),"") ->  | BB5: =IF('II_Plantejar Ració'!$E6>0,IF(CàlculsVL!S5>0,1,"No"),"") ->  | BC5: =IF('II_Plantejar Ració'!$E6>0,IF(CàlculsVL!T5>0,1,"No"),"") ->  | BD5: =IF('II_Plantejar Ració'!$E6>0,IF(CàlculsVL!U5>0,1,"No"),"") ->  | BE5: =IF('II_Plantejar Ració'!$E6>0,IF(CàlculsVL!V5>0,1,"No"),"") ->  | BF5: =IF('II_Plantejar Ració'!$E6>0,IF(CàlculsVL!W5>0,1,"No"),"") ->  | BG5: =IF('II_Plantejar Ració'!$E6>0,IF(CàlculsVL!X5>0,1,"No"),"") ->  | BH5: =IF('II_Plantejar Ració'!$E6>0,IF(CàlculsVL!Y5>0,1,"No"),"") ->  | BI5: =IF('II_Plantejar Ració'!$E6>0,IF(CàlculsVL!Z5>0,1,"No"),"") ->  | BJ5: =IF('II_Plantejar Ració'!$E6>0,IF(CàlculsVL!AA5>0,1,"No"),"") ->  | BK5: =IF('II_Plantejar Ració'!$E6>0,IF(CàlculsVL!AB5>0,1,"No"),"") ->  | BL5: =IF('II_Plantejar Ració'!$E6>0,IF(CàlculsVL!AC5>0,1,"No"),"") ->  | BM5: =IF('II_Plantejar Ració'!$E6>0,IF(CàlculsVL!AD5>0,1,"No"),"") ->  | BN5: =IF('II_Plantejar Ració'!$E6>0,IF(CàlculsVL!AE5>0,1,"No"),"") ->  | BO5: =IF('II_Plantejar Ració'!$E6>0,IF(CàlculsVL!AF5>0,1,"No"),"") ->  | BP5: =IF('II_Plantejar Ració'!$E6>0,IF(CàlculsVL!AG5>0,1,"No"),"") ->  | BQ5: =IF('II_Plantejar Ració'!$E6>0,IF(CàlculsVL!AH5>0,1,"No"),"") ->  | BR5: =IF('II_Plantejar Ració'!$E6>0,IF(CàlculsVL!AI5>0,1,"No"),"") ->  | BS5: =IF('II_Plantejar Ració'!$E6>0,IF(CàlculsVL!AJ5>0,1,"No"),"") ->  | BT5: =IF('II_Plantejar Ració'!$E6>0,IF(CàlculsVL!AK5>0,1,"No"),"") ->  | BU5: =IF('II_Plantejar Ració'!$E6>0,IF(CàlculsVL!AL5>0,1,"No"),"") ->  | BV5: =IF('II_Plantejar Ració'!$E6>0,IF(CàlculsVL!AM5>0,1,"No"),"") ->  | BW5: 0 | BX5: 0 | BY5: 0 | BZ5: 0 | CA5: 0 | CB5: 0 | CC5: 0 | CD5: 0 | CE5: 0 | CF5: 0 | CG5: 0 | CH5: 0 | CI5: 0 | CJ5: 0 | CK5: 0 | CL5: 0 | CM5: 0 | CN5: 0 | CO5: 0 | CP5: 0 | CQ5: 0 | CR5: 0 | CS5: 0 | CT5: 0 | CU5: 0 | CV5: 0 | CW5: 0 | CX5: 0 | CY5: 0 | CZ5: 0 | DA5: 0 | DB5: 0 | DC5: 0 | DD5: 0 | DE5: 0
B6: =IF(OFFSET('0_Tabla Forrajes'!$A$1,C6,0,1,1)=0,"",OFFSET('0_Tabla Forrajes'!$A$1,C6,0,1,1)) ->  | C6: =Ingredients_Racio!E46-1 -> 1 | D6: =OFFSET('0_Tabla Forrajes'!$A$1,$C6,$D$2,1,1) -> 0 | E6: =OFFSET('0_Tabla Forrajes'!$A$1,$C6,$E$2,1,1) -> 0 | F6: =OFFSET('0_Tabla Forrajes'!$A$1,$C6,$F$2,1,1) -> 0 | G6: =OFFSET('0_Tabla Forrajes'!$A$1,$C6,$G$2,1,1) -> 0 | H6: =OFFSET('0_Tabla Forrajes'!$A$1,$C6,$H$2,1,1) -> 0 | I6: =OFFSET('0_Tabla Forrajes'!$A$1,$C6,$I$2,1,1) -> 0 | J6: =OFFSET('0_Tabla Forrajes'!$A$1,$C6,$J$2,1,1) -> 0 | K6: =OFFSET('0_Tabla Forrajes'!$A$1,$C6,$K$2,1,1) -> 0 | L6: =OFFSET('0_Tabla Forrajes'!$A$1,$C6,$L$2,1,1) -> 0 | M6: =OFFSET('0_Tabla Forrajes'!$A$1,$C6,$M$2,1,1) -> 0 | N6: =OFFSET('0_Tabla Forrajes'!$A$1,$C6,$N$2,1,1) -> 0 | O6: =OFFSET('0_Tabla Forrajes'!$A$1,$C6,$O$2,1,1) -> 0 | P6: =OFFSET('0_Tabla Forrajes'!$A$1,$C6,$P$2,1,1) -> 0 | Q6: =OFFSET('0_Tabla Forrajes'!$A$1,$C6,$Q$2,1,1) -> 0 | R6: =OFFSET('0_Tabla Forrajes'!$A$1,$C6,$R$2,1,1) -> 0 | S6: =OFFSET('0_Tabla Forrajes'!$A$1,$C6,$S$2,1,1) -> 0 | T6: =OFFSET('0_Tabla Forrajes'!$A$1,$C6,$T$2,1,1) -> 0 | U6: =OFFSET('0_Tabla Forrajes'!$A$1,$C6,$U$2,1,1) -> 0 | V6: =OFFSET('0_Tabla Forrajes'!$A$1,$C6,$V$2,1,1) -> 0 | W6: =OFFSET('0_Tabla Forrajes'!$A$1,$C6,$W$2,1,1) -> 0 | X6: =OFFSET('0_Tabla Forrajes'!$A$1,$C6,$X$2,1,1) -> 0 | Y6: =OFFSET('0_Tabla Forrajes'!$A$1,$C6,$Y$2,1,1) -> 0 | Z6: =OFFSET('0_Tabla Forrajes'!$A$1,$C6,$Z$2,1,1) -> 0 | AA6: =OFFSET('0_Tabla Forrajes'!$A$1,$C6,$AA$2,1,1) -> 0 | AB6: =OFFSET('0_Tabla Forrajes'!$A$1,$C6,$AB$2,1,1) -> 0 | AC6: =OFFSET('0_Tabla Forrajes'!$A$1,$C6,$AC$2,1,1) -> 0 | AD6: =OFFSET('0_Tabla Forrajes'!$A$1,$C6,$AD$2,1,1) -> 0 | AE6: =OFFSET('0_Tabla Forrajes'!$A$1,$C6,$AE$2,1,1) -> 0 | AF6: =OFFSET('0_Tabla Forrajes'!$A$1,$C6,$AF$2,1,1) -> 0 | AG6: =OFFSET('0_Tabla Forrajes'!$A$1,$C6,$AG$2,1,1) -> 0 | AH6: =OFFSET('0_Tabla Forrajes'!$A$1,$C6,$AH$2,1,1) -> 0 | AI6: =OFFSET('0_Tabla Forrajes'!$A$1,$C6,$AI$2,1,1) -> 0 | AJ6: =OFFSET('0_Tabla Forrajes'!$A$1,$C6,$AJ$2,1,1) -> 0 | AK6: =OFFSET('0_Tabla Forrajes'!$A$1,$C6,$AK$2,1,1) -> 0 | AL6: =OFFSET('0_Tabla Forrajes'!$A$1,$C6,$AL$2,1,1) -> 0 | AM6: =OFFSET('0_Tabla Forrajes'!$A$1,$C6,$AM$2,1,1) -> 0 | AN6: =IF('II_Plantejar Ració'!$E7>0,IF(CàlculsVL!E6>=0,1,"No"),"") ->  | AO6: =IF('II_Plantejar Ració'!$E7>0,IF(CàlculsVL!F6>=0,1,"No"),"") ->  | AP6: =IF('II_Plantejar Ració'!$E7>0,IF(CàlculsVL!G6>0,1,"No"),"") ->  | AQ6: =IF('II_Plantejar Ració'!$E7>0,IF(CàlculsVL!H6=0,"No",1),"") ->  | AR6: =IF('II_Plantejar Ració'!$E7>0,IF(CàlculsVL!I6>0,1,"No"),"") ->  | AS6: =IF('II_Plantejar Ració'!$E7>0,IF(CàlculsVL!J6>0,1,"No"),"") ->  | AT6: =IF('II_Plantejar Ració'!$E7>0,IF(CàlculsVL!K6>0,1,"No"),"") ->  | AU6: =IF('II_Plantejar Ració'!$E7>0,IF(CàlculsVL!L6>0,1,"No"),"") ->  | AV6: =IF('II_Plantejar Ració'!$E7>0,IF(CàlculsVL!M6>0,1,"No"),"") ->  | AW6: =IF('II_Plantejar Ració'!$E7>0,IF(CàlculsVL!N6>0,1,"No"),"") ->  | AX6: =IF('II_Plantejar Ració'!$E7>0,IF(CàlculsVL!O6>0,1,"No"),"") ->  | AY6: =IF('II_Plantejar Ració'!$E7>0,IF(CàlculsVL!P6>0,1,"No"),"") ->  | AZ6: =IF('II_Plantejar Ració'!$E7>0,IF(CàlculsVL!Q6>0,1,"No"),"") ->  | BA6: =IF('II_Plantejar Ració'!$E7>0,IF(CàlculsVL!R6>0,1,"No"),"") ->  | BB6: =IF('II_Plantejar Ració'!$E7>0,IF(CàlculsVL!S6>0,1,"No"),"") ->  | BC6: =IF('II_Plantejar Ració'!$E7>0,IF(CàlculsVL!T6>0,1,"No"),"") ->  | BD6: =IF('II_Plantejar Ració'!$E7>0,IF(CàlculsVL!U6>0,1,"No"),"") ->  | BE6: =IF('II_Plantejar Ració'!$E7>0,IF(CàlculsVL!V6>0,1,"No"),"") ->  | BF6: =IF('II_Plantejar Ració'!$E7>0,IF(CàlculsVL!W6>0,1,"No"),"") ->  | BG6: =IF('II_Plantejar Ració'!$E7>0,IF(CàlculsVL!X6>0,1,"No"),"") ->  | BH6: =IF('II_Plantejar Ració'!$E7>0,IF(CàlculsVL!Y6>0,1,"No"),"") ->  | BI6: =IF('II_Plantejar Ració'!$E7>0,IF(CàlculsVL!Z6>0,1,"No"),"") ->  | BJ6: =IF('II_Plantejar Ració'!$E7>0,IF(CàlculsVL!AA6>0,1,"No"),"") ->  | BK6: =IF('II_Plantejar Ració'!$E7>0,IF(CàlculsVL!AB6>0,1,"No"),"") ->  | BL6: =IF('II_Plantejar Ració'!$E7>0,IF(CàlculsVL!AC6>0,1,"No"),"") ->  | BM6: =IF('II_Plantejar Ració'!$E7>0,IF(CàlculsVL!AD6>0,1,"No"),"") ->  | BN6: =IF('II_Plantejar Ració'!$E7>0,IF(CàlculsVL!AE6>0,1,"No"),"") ->  | BO6: =IF('II_Plantejar Ració'!$E7>0,IF(CàlculsVL!AF6>0,1,"No"),"") ->  | BP6: =IF('II_Plantejar Ració'!$E7>0,IF(CàlculsVL!AG6>0,1,"No"),"") ->  | BQ6: =IF('II_Plantejar Ració'!$E7>0,IF(CàlculsVL!AH6>0,1,"No"),"") ->  | BR6: =IF('II_Plantejar Ració'!$E7>0,IF(CàlculsVL!AI6>0,1,"No"),"") ->  | BS6: =IF('II_Plantejar Ració'!$E7>0,IF(CàlculsVL!AJ6>0,1,"No"),"") ->  | BT6: =IF('II_Plantejar Ració'!$E7>0,IF(CàlculsVL!AK6>0,1,"No"),"") ->  | BU6: =IF('II_Plantejar Ració'!$E7>0,IF(CàlculsVL!AL6>0,1,"No"),"") ->  | BV6: =IF('II_Plantejar Ració'!$E7>0,IF(CàlculsVL!AM6>0,1,"No"),"") ->  | BW6: 0 | BX6: 0 | BY6: 0 | BZ6: 0 | CA6: 0 | CB6: 0 | CC6: 0 | CD6: 0 | CE6: 0 | CF6: 0 | CG6: 0 | CH6: 0 | CI6: 0 | CJ6: 0 | CK6: 0 | CL6: 0 | CM6: 0 | CN6: 0 | CO6: 0 | CP6: 0 | CQ6: 0 | CR6: 0 | CS6: 0 | CT6: 0 | CU6: 0 | CV6: 0 | CW6: 0 | CX6: 0 | CY6: 0 | CZ6: 0 | DA6: 0 | DB6: 0 | DC6: 0 | DD6: 0 | DE6: 0
A7: CONCENTRATS | B7: =IF(OFFSET('0_Tabla Concentrados'!$A$1,C7,0,1,1)=0,"",OFFSET('0_Tabla Concentrados'!$A$1,C7,0,1,1)) -> Cebada grano | C7: =Ingredients_Racio!F46-1 -> 17 | D7: =OFFSET('0_Tabla Concentrados'!$A$1,$C7,$D$2,1,1) -> 88.8 | E7: =OFFSET('0_Tabla Concentrados'!$A$1,$C7,$E$2,1,1) -> 0.2046 | F7: =OFFSET('0_Tabla Concentrados'!$A$1,$C7,$F$2,1,1) -> 1.078969989 | G7: =OFFSET('0_Tabla Concentrados'!$A$1,$C7,$G$2,1,1) -> 89.46220189 | H7: =OFFSET('0_Tabla Concentrados'!$A$1,$C7,$H$2,1,1) -> -31.34737412 | I7: =OFFSET('0_Tabla Concentrados'!$A$1,$C7,$I$2,1,1) -> 2 | J7: =OFFSET('0_Tabla Concentrados'!$A$1,$C7,$J$2,1,1) -> 0.44 | K7: =OFFSET('0_Tabla Concentrados'!$A$1,$C7,$K$2,1,1) -> 2.964 | L7: =OFFSET('0_Tabla Concentrados'!$A$1,$C7,$L$2,1,1) -> 1.3 | M7: =OFFSET('0_Tabla Concentrados'!$A$1,$C7,$M$2,1,1) -> 5.55 | N7: =OFFSET('0_Tabla Concentrados'!$A$1,$C7,$N$2,1,1) -> 0.35 | O7: =OFFSET('0_Tabla Concentrados'!$A$1,$C7,$O$2,1,1) -> 0 | P7: =OFFSET('0_Tabla Concentrados'!$A$1,$C7,$P$2,1,1) -> 0 | Q7: =OFFSET('0_Tabla Concentrados'!$A$1,$C7,$Q$2,1,1) -> 0.01 | R7: =OFFSET('0_Tabla Concentrados'!$A$1,$C7,$R$2,1,1) -> 4.1 | S7: =OFFSET('0_Tabla Concentrados'!$A$1,$C7,$S$2,1,1) -> 17.6 | T7: =OFFSET('0_Tabla Concentrados'!$A$1,$C7,$T$2,1,1) -> 24.4 | U7: =OFFSET('0_Tabla Concentrados'!$A$1,$C7,$U$2,1,1) -> 0 | V7: =OFFSET('0_Tabla Concentrados'!$A$1,$C7,$V$2,1,1) -> 0.02 | W7: =OFFSET('0_Tabla Concentrados'!$A$1,$C7,$W$2,1,1) -> 1000 | X7: =OFFSET('0_Tabla Concentrados'!$A$1,$C7,$X$2,1,1) -> 0 | Y7: =OFFSET('0_Tabla Concentrados'!$A$1,$C7,$Y$2,1,1) -> 25 | Z7: =OFFSET('0_Tabla Concentrados'!$A$1,$C7,$Z$2,1,1) -> 14.25 | AA7: =OFFSET('0_Tabla Concentrados'!$A$1,$C7,$AA$2,1,1) -> 112 | AB7: =OFFSET('0_Tabla Concentrados'!$A$1,$C7,$AB$2,1,1) -> 27.59508246 | AC7: =OFFSET('0_Tabla Concentrados'!$A$1,$C7,$AC$2,1,1) -> 0.837328 | AD7: =OFFSET('0_Tabla Concentrados'!$A$1,$C7,$AD$2,1,1) -> 816.3948 | AE7: =OFFSET('0_Tabla Concentrados'!$A$1,$C7,$AE$2,1,1) -> 19 | AF7: =OFFSET('0_Tabla Concentrados'!$A$1,$C7,$AF$2,1,1) -> 54 | AG7: =OFFSET('0_Tabla Concentrados'!$A$1,$C7,$AG$2,1,1) -> 215 | AH7: =OFFSET('0_Tabla Concentrados'!$A$1,$C7,$AH$2,1,1) -> 65 | AI7: =OFFSET('0_Tabla Concentrados'!$A$1,$C7,$AI$2,1,1) -> 12 | AJ7: =OFFSET('0_Tabla Concentrados'!$A$1,$C7,$AJ$2,1,1) -> 25 | AK7: =OFFSET('0_Tabla Concentrados'!$A$1,$C7,$AK$2,1,1) -> 0.3 | AL7: =OFFSET('0_Tabla Concentrados'!$A$1,$C7,$AL$2,1,1) -> 0.7349259949 | AM7: =OFFSET('0_Tabla Concentrados'!$A$1,$C7,$AM$2,1,1) -> 596.0833771 | AN7: =IF('II_Plantejar Ració'!$E8>0,IF(CàlculsVL!E7>=0,1,"No"),"") ->  | AO7: =IF('II_Plantejar Ració'!$E8>0,IF(CàlculsVL!F7>=0,1,"No"),"") ->  | AP7: =IF('II_Plantejar Ració'!$E8>0,IF(CàlculsVL!G7>0,1,"No"),"") ->  | AQ7: =IF('II_Plantejar Ració'!$E8>0,IF(CàlculsVL!H7=0,"No",1),"") ->  | AR7: =IF('II_Plantejar Ració'!$E8>0,IF(CàlculsVL!I7>0,1,"No"),"") ->  | AS7: =IF('II_Plantejar Ració'!$E8>0,IF(CàlculsVL!J7>0,1,"No"),"") ->  | AT7: =IF('II_Plantejar Ració'!$E8>0,IF(CàlculsVL!K7>0,1,"No"),"") ->  | AU7: =IF('II_Plantejar Ració'!$E8>0,IF(CàlculsVL!L7>0,1,"No"),"") ->  | AV7: =IF('II_Plantejar Ració'!$E8>0,IF(CàlculsVL!M7>0,1,"No"),"") ->  | AW7: =IF('II_Plantejar Ració'!$E8>0,IF(CàlculsVL!N7>0,1,"No"),"") ->  | AX7: =IF('II_Plantejar Ració'!$E8>0,IF(CàlculsVL!O7>0,1,"No"),"") ->  | AY7: =IF('II_Plantejar Ració'!$E8>0,IF(CàlculsVL!P7>0,1,"No"),"") ->  | AZ7: =IF('II_Plantejar Ració'!$E8>0,IF(CàlculsVL!Q7>0,1,"No"),"") ->  | BA7: =IF('II_Plantejar Ració'!$E8>0,IF(CàlculsVL!R7>0,1,"No"),"") ->  | BB7: =IF('II_Plantejar Ració'!$E8>0,IF(CàlculsVL!S7>0,1,"No"),"") ->  | BC7: =IF('II_Plantejar Ració'!$E8>0,IF(CàlculsVL!T7>0,1,"No"),"") ->  | BD7: =IF('II_Plantejar Ració'!$E8>0,IF(CàlculsVL!U7>0,1,"No"),"") ->  | BE7: =IF('II_Plantejar Ració'!$E8>0,IF(CàlculsVL!V7>0,1,"No"),"") ->  | BF7: =IF('II_Plantejar Ració'!$E8>0,IF(CàlculsVL!W7>0,1,"No"),"") ->  | BG7: =IF('II_Plantejar Ració'!$E8>0,IF(CàlculsVL!X7>0,1,"No"),"") ->  | BH7: =IF('II_Plantejar Ració'!$E8>0,IF(CàlculsVL!Y7>0,1,"No"),"") ->  | BI7: =IF('II_Plantejar Ració'!$E8>0,IF(CàlculsVL!Z7>0,1,"No"),"") ->  | BJ7: =IF('II_Plantejar Ració'!$E8>0,IF(CàlculsVL!AA7>0,1,"No"),"") ->  | BK7: =IF('II_Plantejar Ració'!$E8>0,IF(CàlculsVL!AB7>0,1,"No"),"") ->  | BL7: =IF('II_Plantejar Ració'!$E8>0,IF(CàlculsVL!AC7>0,1,"No"),"") ->  | BM7: =IF('II_Plantejar Ració'!$E8>0,IF(CàlculsVL!AD7>0,1,"No"),"") ->  | BN7: =IF('II_Plantejar Ració'!$E8>0,IF(CàlculsVL!AE7>0,1,"No"),"") ->  | BO7: =IF('II_Plantejar Ració'!$E8>0,IF(CàlculsVL!AF7>0,1,"No"),"") ->  | BP7: =IF('II_Plantejar Ració'!$E8>0,IF(CàlculsVL!AG7>0,1,"No"),"") ->  | BQ7: =IF('II_Plantejar Ració'!$E8>0,IF(CàlculsVL!AH7>0,1,"No"),"") ->  | BR7: =IF('II_Plantejar Ració'!$E8>0,IF(CàlculsVL!AI7>0,1,"No"),"") ->  | BS7: =IF('II_Plantejar Ració'!$E8>0,IF(CàlculsVL!AJ7>0,1,"No"),"") ->  | BT7: =IF('II_Plantejar Ració'!$E8>0,IF(CàlculsVL!AK7>0,1,"No"),"") ->  | BU7: =IF('II_Plantejar Ració'!$E8>0,IF(CàlculsVL!AL7>0,1,"No"),"") ->  | BV7: =IF('II_Plantejar Ració'!$E8>0,IF(CàlculsVL!AM7>0,1,"No"),"") ->  | BW7: 0 | BX7: 0 | BY7: 0 | BZ7: 0 | CA7: 0 | CB7: 0 | CC7: 0 | CD7: 0 | CE7: 0 | CF7: 0 | CG7: 0 | CH7: 0 | CI7: 0 | CJ7: 0 | CK7: 0 | CL7: 0 | CM7: 0 | CN7: 0 | CO7: 0 | CP7: 0 | CQ7: 0 | CR7: 0 | CS7: 0 | CT7: 0 | CU7: 0 | CV7: 0 | CW7: 0 | CX7: 0 | CY7: 0 | CZ7: 0 | DA7: 0 | DB7: 0 | DC7: 0 | DD7: 0 | DE7: 0
B8: =IF(OFFSET('0_Tabla Concentrados'!$A$1,C8,0,1,1)=0,"",OFFSET('0_Tabla Concentrados'!$A$1,C8,0,1,1)) -> Maíz grano | C8: =Ingredients_Racio!G46-1 -> 43 | D8: =OFFSET('0_Tabla Concentrados'!$A$1,$C8,$D$2,1,1) -> 86 | E8: =OFFSET('0_Tabla Concentrados'!$A$1,$C8,$E$2,1,1) -> 0.3291 | F8: =OFFSET('0_Tabla Concentrados'!$A$1,$C8,$F$2,1,1) -> 1.24475541 | G8: =OFFSET('0_Tabla Concentrados'!$A$1,$C8,$G$2,1,1) -> 94 | H8: =OFFSET('0_Tabla Concentrados'!$A$1,$C8,$H$2,1,1) -> -53 | I8: =OFFSET('0_Tabla Concentrados'!$A$1,$C8,$I$2,1,1) -> 2 | J8: =OFFSET('0_Tabla Concentrados'!$A$1,$C8,$J$2,1,1) -> 0.275 | K8: =OFFSET('0_Tabla Concentrados'!$A$1,$C8,$K$2,1,1) -> 2.175 | L8: =OFFSET('0_Tabla Concentrados'!$A$1,$C8,$L$2,1,1) -> 1.4 | M8: =OFFSET('0_Tabla Concentrados'!$A$1,$C8,$M$2,1,1) -> 3.6 | N8: =OFFSET('0_Tabla Concentrados'!$A$1,$C8,$N$2,1,1) -> 0.33 | O8: =OFFSET('0_Tabla Concentrados'!$A$1,$C8,$O$2,1,1) -> 0 | P8: =OFFSET('0_Tabla Concentrados'!$A$1,$C8,$P$2,1,1) -> 0 | Q8: =OFFSET('0_Tabla Concentrados'!$A$1,$C8,$Q$2,1,1) -> 0.02 | R8: =OFFSET('0_Tabla Concentrados'!$A$1,$C8,$R$2,1,1) -> 2.3 | S8: =OFFSET('0_Tabla Concentrados'!$A$1,$C8,$S$2,1,1) -> 10.8 | T8: =OFFSET('0_Tabla Concentrados'!$A$1,$C8,$T$2,1,1) -> 21.4 | U8: =OFFSET('0_Tabla Concentrados'!$A$1,$C8,$U$2,1,1) -> 0 | V8: =OFFSET('0_Tabla Concentrados'!$A$1,$C8,$V$2,1,1) -> 0.02 | W8: =OFFSET('0_Tabla Concentrados'!$A$1,$C8,$W$2,1,1) -> 0 | X8: =OFFSET('0_Tabla Concentrados'!$A$1,$C8,$X$2,1,1) -> 0 | Y8: =OFFSET('0_Tabla Concentrados'!$A$1,$C8,$Y$2,1,1) -> 0 | Z8: =OFFSET('0_Tabla Concentrados'!$A$1,$C8,$Z$2,1,1) -> 36.55 | AA8: =OFFSET('0_Tabla Concentrados'!$A$1,$C8,$AA$2,1,1) -> 89 | AB8: =OFFSET('0_Tabla Concentrados'!$A$1,$C8,$AB$2,1,1) -> 43 | AC8: =OFFSET('0_Tabla Concentrados'!$A$1,$C8,$AC$2,1,1) -> 0.882846 | AD8: =OFFSET('0_Tabla Concentrados'!$A$1,$C8,$AD$2,1,1) -> 870.486156 | AE8: =OFFSET('0_Tabla Concentrados'!$A$1,$C8,$AE$2,1,1) -> 43 | AF8: =OFFSET('0_Tabla Concentrados'!$A$1,$C8,$AF$2,1,1) -> 26 | AG8: =OFFSET('0_Tabla Concentrados'!$A$1,$C8,$AG$2,1,1) -> 125 | AH8: =OFFSET('0_Tabla Concentrados'!$A$1,$C8,$AH$2,1,1) -> 31 | AI8: =OFFSET('0_Tabla Concentrados'!$A$1,$C8,$AI$2,1,1) -> 60 | AJ8: =OFFSET('0_Tabla Concentrados'!$A$1,$C8,$AJ$2,1,1) -> 14 | AK8: =OFFSET('0_Tabla Concentrados'!$A$1,$C8,$AK$2,1,1) -> 0.3 | AL8: =OFFSET('0_Tabla Concentrados'!$A$1,$C8,$AL$2,1,1) -> 0.4465708975 | AM8: =OFFSET('0_Tabla Concentrados'!$A$1,$C8,$AM$2,1,1) -> 780.9036423 | AN8: =IF('II_Plantejar Ració'!$E9>0,IF(CàlculsVL!E8>=0,1,"No"),"") ->  | AO8: =IF('II_Plantejar Ració'!$E9>0,IF(CàlculsVL!F8>=0,1,"No"),"") ->  | AP8: =IF('II_Plantejar Ració'!$E9>0,IF(CàlculsVL!G8>0,1,"No"),"") ->  | AQ8: =IF('II_Plantejar Ració'!$E9>0,IF(CàlculsVL!H8=0,"No",1),"") ->  | AR8: =IF('II_Plantejar Ració'!$E9>0,IF(CàlculsVL!I8>0,1,"No"),"") ->  | AS8: =IF('II_Plantejar Ració'!$E9>0,IF(CàlculsVL!J8>0,1,"No"),"") ->  | AT8: =IF('II_Plantejar Ració'!$E9>0,IF(CàlculsVL!K8>0,1,"No"),"") ->  | AU8: =IF('II_Plantejar Ració'!$E9>0,IF(CàlculsVL!L8>0,1,"No"),"") ->  | AV8: =IF('II_Plantejar Ració'!$E9>0,IF(CàlculsVL!M8>0,1,"No"),"") ->  | AW8: =IF('II_Plantejar Ració'!$E9>0,IF(CàlculsVL!N8>0,1,"No"),"") ->  | AX8: =IF('II_Plantejar Ració'!$E9>0,IF(CàlculsVL!O8>0,1,"No"),"") ->  | AY8: =IF('II_Plantejar Ració'!$E9>0,IF(CàlculsVL!P8>0,1,"No"),"") ->  | AZ8: =IF('II_Plantejar Ració'!$E9>0,IF(CàlculsVL!Q8>0,1,"No"),"") ->  | BA8: =IF('II_Plantejar Ració'!$E9>0,IF(CàlculsVL!R8>0,1,"No"),"") ->  | BB8: =IF('II_Plantejar Ració'!$E9>0,IF(CàlculsVL!S8>0,1,"No"),"") ->  | BC8: =IF('II_Plantejar Ració'!$E9>0,IF(CàlculsVL!T8>0,1,"No"),"") ->  | BD8: =IF('II_Plantejar Ració'!$E9>0,IF(CàlculsVL!U8>0,1,"No"),"") ->  | BE8: =IF('II_Plantejar Ració'!$E9>0,IF(CàlculsVL!V8>0,1,"No"),"") ->  | BF8: =IF('II_Plantejar Ració'!$E9>0,IF(CàlculsVL!W8>0,1,"No"),"") ->  | BG8: =IF('II_Plantejar Ració'!$E9>0,IF(CàlculsVL!X8>0,1,"No"),"") ->  | BH8: =IF('II_Plantejar Ració'!$E9>0,IF(CàlculsVL!Y8>0,1,"No"),"") ->  | BI8: =IF('II_Plantejar Ració'!$E9>0,IF(CàlculsVL!Z8>0,1,"No"),"") ->  | BJ8: =IF('II_Plantejar Ració'!$E9>0,IF(CàlculsVL!AA8>0,1,"No"),"") ->  | BK8: =IF('II_Plantejar Ració'!$E9>0,IF(CàlculsVL!AB8>0,1,"No"),"") ->  | BL8: =IF('II_Plantejar Ració'!$E9>0,IF(CàlculsVL!AC8>0,1,"No"),"") ->  | BM8: =IF('II_Plantejar Ració'!$E9>0,IF(CàlculsVL!AD8>0,1,"No"),"") ->  | BN8: =IF('II_Plantejar Ració'!$E9>0,IF(CàlculsVL!AE8>0,1,"No"),"") ->  | BO8: =IF('II_Plantejar Ració'!$E9>0,IF(CàlculsVL!AF8>0,1,"No"),"") ->  | BP8: =IF('II_Plantejar Ració'!$E9>0,IF(CàlculsVL!AG8>0,1,"No"),"") ->  | BQ8: =IF('II_Plantejar Ració'!$E9>0,IF(CàlculsVL!AH8>0,1,"No"),"") ->  | BR8: =IF('II_Plantejar Ració'!$E9>0,IF(CàlculsVL!AI8>0,1,"No"),"") ->  | BS8: =IF('II_Plantejar Ració'!$E9>0,IF(CàlculsVL!AJ8>0,1,"No"),"") ->  | BT8: =IF('II_Plantejar Ració'!$E9>0,IF(CàlculsVL!AK8>0,1,"No"),"") ->  | BU8: =IF('II_Plantejar Ració'!$E9>0,IF(CàlculsVL!AL8>0,1,"No"),"") ->  | BV8: =IF('II_Plantejar Ració'!$E9>0,IF(CàlculsVL!AM8>0,1,"No"),"") ->  | BW8: 0 | BX8: 0 | BY8: 0 | BZ8: 0 | CA8: 0 | CB8: 0 | CC8: 0 | CD8: 0 | CE8: 0 | CF8: 0 | CG8: 0 | CH8: 0 | CI8: 0 | CJ8: 0 | CK8: 0 | CL8: 0 | CM8: 0 | CN8: 0 | CO8: 0 | CP8: 0 | CQ8: 0 | CR8: 0 | CS8: 0 | CT8: 0 | CU8: 0 | CV8: 0 | CW8: 0 | CX8: 0 | CY8: 0 | CZ8: 0 | DA8: 0 | DB8: 0 | DC8: 0 | DD8: 0 | DE8: 0
B9: =IF(OFFSET('0_Tabla Concentrados'!$A$1,C9,0,1,1)=0,"",OFFSET('0_Tabla Concentrados'!$A$1,C9,0,1,1)) -> Soja torta 44 | C9: =Ingredients_Racio!H46-1 -> 67 | D9: =OFFSET('0_Tabla Concentrados'!$A$1,$C9,$D$2,1,1) -> 87.2 | E9: =OFFSET('0_Tabla Concentrados'!$A$1,$C9,$E$2,1,1) -> 0.2781056 | F9: =OFFSET('0_Tabla Concentrados'!$A$1,$C9,$F$2,1,1) -> 1.165625863 | G9: =OFFSET('0_Tabla Concentrados'!$A$1,$C9,$G$2,1,1) -> 207.0695265 | H9: =OFFSET('0_Tabla Concentrados'!$A$1,$C9,$H$2,1,1) -> 219.1726116 | I9: =OFFSET('0_Tabla Concentrados'!$A$1,$C9,$I$2,1,1) -> 2 | J9: =OFFSET('0_Tabla Concentrados'!$A$1,$C9,$J$2,1,1) -> 1.87 | K9: =OFFSET('0_Tabla Concentrados'!$A$1,$C9,$K$2,1,1) -> 4.9 | L9: =OFFSET('0_Tabla Concentrados'!$A$1,$C9,$L$2,1,1) -> 2.7 | M9: =OFFSET('0_Tabla Concentrados'!$A$1,$C9,$M$2,1,1) -> 20 | N9: =OFFSET('0_Tabla Concentrados'!$A$1,$C9,$N$2,1,1) -> 1.95 | O9: =OFFSET('0_Tabla Concentrados'!$A$1,$C9,$O$2,1,1) -> 0 | P9: =OFFSET('0_Tabla Concentrados'!$A$1,$C9,$P$2,1,1) -> 0 | Q9: =OFFSET('0_Tabla Concentrados'!$A$1,$C9,$Q$2,1,1) -> 0.3 | R9: =OFFSET('0_Tabla Concentrados'!$A$1,$C9,$R$2,1,1) -> 17.1 | S9: =OFFSET('0_Tabla Concentrados'!$A$1,$C9,$S$2,1,1) -> 43.7 | T9: =OFFSET('0_Tabla Concentrados'!$A$1,$C9,$T$2,1,1) -> 54.6 | U9: =OFFSET('0_Tabla Concentrados'!$A$1,$C9,$U$2,1,1) -> 0 | V9: =OFFSET('0_Tabla Concentrados'!$A$1,$C9,$V$2,1,1) -> 0.2 | W9: =OFFSET('0_Tabla Concentrados'!$A$1,$C9,$W$2,1,1) -> 0 | X9: =OFFSET('0_Tabla Concentrados'!$A$1,$C9,$X$2,1,1) -> 0 | Y9: =OFFSET('0_Tabla Concentrados'!$A$1,$C9,$Y$2,1,1) -> 7 | Z9: =OFFSET('0_Tabla Concentrados'!$A$1,$C9,$Z$2,1,1) -> 16.5 | AA9: =OFFSET('0_Tabla Concentrados'!$A$1,$C9,$AA$2,1,1) -> 488 | AB9: =OFFSET('0_Tabla Concentrados'!$A$1,$C9,$AB$2,1,1) -> 153.419998 | AC9: =OFFSET('0_Tabla Concentrados'!$A$1,$C9,$AC$2,1,1) -> 0.849655 | AD9: =OFFSET('0_Tabla Concentrados'!$A$1,$C9,$AD$2,1,1) -> 779.133635 | AE9: =OFFSET('0_Tabla Concentrados'!$A$1,$C9,$AE$2,1,1) -> 22 | AF9: =OFFSET('0_Tabla Concentrados'!$A$1,$C9,$AF$2,1,1) -> 84 | AG9: =OFFSET('0_Tabla Concentrados'!$A$1,$C9,$AG$2,1,1) -> 163 | AH9: =OFFSET('0_Tabla Concentrados'!$A$1,$C9,$AH$2,1,1) -> 104 | AI9: =OFFSET('0_Tabla Concentrados'!$A$1,$C9,$AI$2,1,1) -> 8 | AJ9: =OFFSET('0_Tabla Concentrados'!$A$1,$C9,$AJ$2,1,1) -> 83 | AK9: =OFFSET('0_Tabla Concentrados'!$A$1,$C9,$AK$2,1,1) -> 2.3 | AL9: =OFFSET('0_Tabla Concentrados'!$A$1,$C9,$AL$2,1,1) -> 0.6819996035 | AM9: =OFFSET('0_Tabla Concentrados'!$A$1,$C9,$AM$2,1,1) -> 737.9075552 | AN9: =IF('II_Plantejar Ració'!$E10>0,IF(CàlculsVL!E9>=0,1,"No"),"") ->  | AO9: =IF('II_Plantejar Ració'!$E10>0,IF(CàlculsVL!F9>=0,1,"No"),"") ->  | AP9: =IF('II_Plantejar Ració'!$E10>0,IF(CàlculsVL!G9>0,1,"No"),"") ->  | AQ9: =IF('II_Plantejar Ració'!$E10>0,IF(CàlculsVL!H9=0,"No",1),"") ->  | AR9: =IF('II_Plantejar Ració'!$E10>0,IF(CàlculsVL!I9>0,1,"No"),"") ->  | AS9: =IF('II_Plantejar Ració'!$E10>0,IF(CàlculsVL!J9>0,1,"No"),"") ->  | AT9: =IF('II_Plantejar Ració'!$E10>0,IF(CàlculsVL!K9>0,1,"No"),"") ->  | AU9: =IF('II_Plantejar Ració'!$E10>0,IF(CàlculsVL!L9>0,1,"No"),"") ->  | AV9: =IF('II_Plantejar Ració'!$E10>0,IF(CàlculsVL!M9>0,1,"No"),"") ->  | AW9: =IF('II_Plantejar Ració'!$E10>0,IF(CàlculsVL!N9>0,1,"No"),"") ->  | AX9: =IF('II_Plantejar Ració'!$E10>0,IF(CàlculsVL!O9>0,1,"No"),"") ->  | AY9: =IF('II_Plantejar Ració'!$E10>0,IF(CàlculsVL!P9>0,1,"No"),"") ->  | AZ9: =IF('II_Plantejar Ració'!$E10>0,IF(CàlculsVL!Q9>0,1,"No"),"") ->  | BA9: =IF('II_Plantejar Ració'!$E10>0,IF(CàlculsVL!R9>0,1,"No"),"") ->  | BB9: =IF('II_Plantejar Ració'!$E10>0,IF(CàlculsVL!S9>0,1,"No"),"") ->  | BC9: =IF('II_Plantejar Ració'!$E10>0,IF(CàlculsVL!T9>0,1,"No"),"") ->  | BD9: =IF('II_Plantejar Ració'!$E10>0,IF(CàlculsVL!U9>0,1,"No"),"") ->  | BE9: =IF('II_Plantejar Ració'!$E10>0,IF(CàlculsVL!V9>0,1,"No"),"") ->  | BF9: =IF('II_Plantejar Ració'!$E10>0,IF(CàlculsVL!W9>0,1,"No"),"") ->  | BG9: =IF('II_Plantejar Ració'!$E10>0,IF(CàlculsVL!X9>0,1,"No"),"") ->  | BH9: =IF('II_Plantejar Ració'!$E10>0,IF(CàlculsVL!Y9>0,1,"No"),"") ->  | BI9: =IF('II_Plantejar Ració'!$E10>0,IF(CàlculsVL!Z9>0,1,"No"),"") ->  | BJ9: =IF('II_Plantejar Ració'!$E10>0,IF(CàlculsVL!AA9>0,1,"No"),"") ->  | BK9: =IF('II_Plantejar Ració'!$E10>0,IF(CàlculsVL!AB9>0,1,"No"),"") ->  | BL9: =IF('II_Plantejar Ració'!$E10>0,IF(CàlculsVL!AC9>0,1,"No"),"") ->  | BM9: =IF('II_Plantejar Ració'!$E10>0,IF(CàlculsVL!AD9>0,1,"No"),"") ->  | BN9: =IF('II_Plantejar Ració'!$E10>0,IF(CàlculsVL!AE9>0,1,"No"),"") ->  | BO9: =IF('II_Plantejar Ració'!$E10>0,IF(CàlculsVL!AF9>0,1,"No"),"") ->  | BP9: =IF('II_Plantejar Ració'!$E10>0,IF(CàlculsVL!AG9>0,1,"No"),"") ->  | BQ9: =IF('II_Plantejar Ració'!$E10>0,IF(CàlculsVL!AH9>0,1,"No"),"") ->  | BR9: =IF('II_Plantejar Ració'!$E10>0,IF(CàlculsVL!AI9>0,1,"No"),"") ->  | BS9: =IF('II_Plantejar Ració'!$E10>0,IF(CàlculsVL!AJ9>0,1,"No"),"") ->  | BT9: =IF('II_Plantejar Ració'!$E10>0,IF(CàlculsVL!AK9>0,1,"No"),"") ->  | BU9: =IF('II_Plantejar Ració'!$E10>0,IF(CàlculsVL!AL9>0,1,"No"),"") ->  | BV9: =IF('II_Plantejar Ració'!$E10>0,IF(CàlculsVL!AM9>0,1,"No"),"") ->  | BW9: 0 | BX9: 0 | BY9: 0 | BZ9: 0 | CA9: 0 | CB9: 0 | CC9: 0 | CD9: 0 | CE9: 0 | CF9: 0 | CG9: 0 | CH9: 0 | CI9: 0 | CJ9: 0 | CK9: 0 | CL9: 0 | CM9: 0 | CN9: 0 | CO9: 0 | CP9: 0 | CQ9: 0 | CR9: 0 | CS9: 0 | CT9: 0 | CU9: 0 | CV9: 0 | CW9: 0 | CX9: 0 | CY9: 0 | CZ9: 0 | DA9: 0 | DB9: 0 | DC9: 0 | DD9: 0 | DE9: 0
B10: =IF(OFFSET('0_Tabla Concentrados'!$A$1,C10,0,1,1)=0,"",OFFSET('0_Tabla Concentrados'!$A$1,C10,0,1,1)) -> Grasa vegetal, manteca de cerdo (todos los tipos) | C10: =Ingredients_Racio!I46-1 -> 29 | D10: =OFFSET('0_Tabla Concentrados'!$A$1,$C10,$D$2,1,1) -> 99.9 | E10: =OFFSET('0_Tabla Concentrados'!$A$1,$C10,$E$2,1,1) -> 0.25 | F10: =OFFSET('0_Tabla Concentrados'!$A$1,$C10,$F$2,1,1) -> 3.61 | G10: =OFFSET('0_Tabla Concentrados'!$A$1,$C10,$G$2,1,1) -> 1e-07 | H10: =OFFSET('0_Tabla Concentrados'!$A$1,$C10,$H$2,1,1) -> -14 | I10: =OFFSET('0_Tabla Concentrados'!$A$1,$C10,$I$2,1,1) -> 2 | J10: =OFFSET('0_Tabla Concentrados'!$A$1,$C10,$J$2,1,1) -> 5.5e-08 | K10: =OFFSET('0_Tabla Concentrados'!$A$1,$C10,$K$2,1,1) -> 6.8e-08 | L10: =OFFSET('0_Tabla Concentrados'!$A$1,$C10,$L$2,1,1) -> 1e-07 | M10: =OFFSET('0_Tabla Concentrados'!$A$1,$C10,$M$2,1,1) -> 1e-07 | N10: =OFFSET('0_Tabla Concentrados'!$A$1,$C10,$N$2,1,1) -> 1e-07 | O10: =OFFSET('0_Tabla Concentrados'!$A$1,$C10,$O$2,1,1) -> 1e-07 | P10: =OFFSET('0_Tabla Concentrados'!$A$1,$C10,$P$2,1,1) -> 1e-07 | Q10: =OFFSET('0_Tabla Concentrados'!$A$1,$C10,$Q$2,1,1) -> 1e-07 | R10: =OFFSET('0_Tabla Concentrados'!$A$1,$C10,$R$2,1,1) -> 1e-07 | S10: =OFFSET('0_Tabla Concentrados'!$A$1,$C10,$S$2,1,1) -> 1e-07 | T10: =OFFSET('0_Tabla Concentrados'!$A$1,$C10,$T$2,1,1) -> 1e-07 | U10: =OFFSET('0_Tabla Concentrados'!$A$1,$C10,$U$2,1,1) -> 0 | V10: =OFFSET('0_Tabla Concentrados'!$A$1,$C10,$V$2,1,1) -> 1e-07 | W10: =OFFSET('0_Tabla Concentrados'!$A$1,$C10,$W$2,1,1) -> 1300 | X10: =OFFSET('0_Tabla Concentrados'!$A$1,$C10,$X$2,1,1) -> 1e-07 | Y10: =OFFSET('0_Tabla Concentrados'!$A$1,$C10,$Y$2,1,1) -> 95 | Z10: =OFFSET('0_Tabla Concentrados'!$A$1,$C10,$Z$2,1,1) -> 999 | AA10: =OFFSET('0_Tabla Concentrados'!$A$1,$C10,$AA$2,1,1) -> 1e-07 | AB10: =OFFSET('0_Tabla Concentrados'!$A$1,$C10,$AB$2,1,1) -> 1e-07 | AC10: =OFFSET('0_Tabla Concentrados'!$A$1,$C10,$AC$2,1,1) -> 0.9 | AD10: =OFFSET('0_Tabla Concentrados'!$A$1,$C10,$AD$2,1,1) -> 1e-07 | AE10: =OFFSET('0_Tabla Concentrados'!$A$1,$C10,$AE$2,1,1) -> 999 | AF10: =OFFSET('0_Tabla Concentrados'!$A$1,$C10,$AF$2,1,1) -> 1e-07 | AG10: =OFFSET('0_Tabla Concentrados'!$A$1,$C10,$AG$2,1,1) -> 1e-07 | AH10: =OFFSET('0_Tabla Concentrados'!$A$1,$C10,$AH$2,1,1) -> 1e-07 | AI10: =OFFSET('0_Tabla Concentrados'!$A$1,$C10,$AI$2,1,1) -> 1e-07 | AJ10: =OFFSET('0_Tabla Concentrados'!$A$1,$C10,$AJ$2,1,1) -> 1e-07 | AK10: =OFFSET('0_Tabla Concentrados'!$A$1,$C10,$AK$2,1,1) -> 1e-07 | AL10: =OFFSET('0_Tabla Concentrados'!$A$1,$C10,$AL$2,1,1) -> 0 | AM10: =OFFSET('0_Tabla Concentrados'!$A$1,$C10,$AM$2,1,1) -> 0 | AN10: =IF('II_Plantejar Ració'!$E11>0,IF(CàlculsVL!E10>=0,1,"No"),"") ->  | AO10: =IF('II_Plantejar Ració'!$E11>0,IF(CàlculsVL!F10>=0,1,"No"),"") ->  | AP10: =IF('II_Plantejar Ració'!$E11>0,IF(CàlculsVL!G10>0,1,"No"),"") ->  | AQ10: =IF('II_Plantejar Ració'!$E11>0,IF(CàlculsVL!H10=0,"No",1),"") ->  | AR10: =IF('II_Plantejar Ració'!$E11>0,IF(CàlculsVL!I10>0,1,"No"),"") ->  | AS10: =IF('II_Plantejar Ració'!$E11>0,IF(CàlculsVL!J10>0,1,"No"),"") ->  | AT10: =IF('II_Plantejar Ració'!$E11>0,IF(CàlculsVL!K10>0,1,"No"),"") ->  | AU10: =IF('II_Plantejar Ració'!$E11>0,IF(CàlculsVL!L10>0,1,"No"),"") ->  | AV10: =IF('II_Plantejar Ració'!$E11>0,IF(CàlculsVL!M10>0,1,"No"),"") ->  | AW10: =IF('II_Plantejar Ració'!$E11>0,IF(CàlculsVL!N10>0,1,"No"),"") ->  | AX10: =IF('II_Plantejar Ració'!$E11>0,IF(CàlculsVL!O10>0,1,"No"),"") ->  | AY10: =IF('II_Plantejar Ració'!$E11>0,IF(CàlculsVL!P10>0,1,"No"),"") ->  | AZ10: =IF('II_Plantejar Ració'!$E11>0,IF(CàlculsVL!Q10>0,1,"No"),"") ->  | BA10: =IF('II_Plantejar Ració'!$E11>0,IF(CàlculsVL!R10>0,1,"No"),"") ->  | BB10: =IF('II_Plantejar Ració'!$E11>0,IF(CàlculsVL!S10>0,1,"No"),"") ->  | BC10: =IF('II_Plantejar Ració'!$E11>0,IF(CàlculsVL!T10>0,1,"No"),"") ->  | BD10: =IF('II_Plantejar Ració'!$E11>0,IF(CàlculsVL!U10>0,1,"No"),"") ->  | BE10: =IF('II_Plantejar Ració'!$E11>0,IF(CàlculsVL!V10>0,1,"No"),"") ->  | BF10: =IF('II_Plantejar Ració'!$E11>0,IF(CàlculsVL!W10>0,1,"No"),"") ->  | BG10: =IF('II_Plantejar Ració'!$E11>0,IF(CàlculsVL!X10>0,1,"No"),"") ->  | BH10: =IF('II_Plantejar Ració'!$E11>0,IF(CàlculsVL!Y10>0,1,"No"),"") ->  | BI10: =IF('II_Plantejar Ració'!$E11>0,IF(CàlculsVL!Z10>0,1,"No"),"") ->  | BJ10: =IF('II_Plantejar Ració'!$E11>0,IF(CàlculsVL!AA10>0,1,"No"),"") ->  | BK10: =IF('II_Plantejar Ració'!$E11>0,IF(CàlculsVL!AB10>0,1,"No"),"") ->  | BL10: =IF('II_Plantejar Ració'!$E11>0,IF(CàlculsVL!AC10>0,1,"No"),"") ->  | BM10: =IF('II_Plantejar Ració'!$E11>0,IF(CàlculsVL!AD10>0,1,"No"),"") ->  | BN10: =IF('II_Plantejar Ració'!$E11>0,IF(CàlculsVL!AE10>0,1,"No"),"") ->  | BO10: =IF('II_Plantejar Ració'!$E11>0,IF(CàlculsVL!AF10>0,1,"No"),"") ->  | BP10: =IF('II_Plantejar Ració'!$E11>0,IF(CàlculsVL!AG10>0,1,"No"),"") ->  | BQ10: =IF('II_Plantejar Ració'!$E11>0,IF(CàlculsVL!AH10>0,1,"No"),"") ->  | BR10: =IF('II_Plantejar Ració'!$E11>0,IF(CàlculsVL!AI10>0,1,"No"),"") ->  | BS10: =IF('II_Plantejar Ració'!$E11>0,IF(CàlculsVL!AJ10>0,1,"No"),"") ->  | BT10: =IF('II_Plantejar Ració'!$E11>0,IF(CàlculsVL!AK10>0,1,"No"),"") ->  | BU10: =IF('II_Plantejar Ració'!$E11>0,IF(CàlculsVL!AL10>0,1,"No"),"") ->  | BV10: =IF('II_Plantejar Ració'!$E11>0,IF(CàlculsVL!AM10>0,1,"No"),"") ->  | BW10: 0 | BX10: 0 | BY10: 0 | BZ10: 0 | CA10: 0 | CB10: 0 | CC10: 0 | CD10: 0 | CE10: 0 | CF10: 0 | CG10: 0 | CH10: 0 | CI10: 0 | CJ10: 0 | CK10: 0 | CL10: 0 | CM10: 0 | CN10: 0 | CO10: 0 | CP10: 0 | CQ10: 0 | CR10: 0 | CS10: 0 | CT10: 0 | CU10: 0 | CV10: 0 | CW10: 0 | CX10: 0 | CY10: 0 | CZ10: 0 | DA10: 0 | DB10: 0 | DC10: 0 | DD10: 0 | DE10: 0
B11: =IF(OFFSET('0_Tabla Concentrados'!$A$1,C11,0,1,1)=0,"",OFFSET('0_Tabla Concentrados'!$A$1,C11,0,1,1)) -> Cebada bagazo cervecería fresco | C11: =Ingredients_Racio!J46-1 -> 15 | D11: =OFFSET('0_Tabla Concentrados'!$A$1,$C11,$D$2,1,1) -> 20.5 | E11: =OFFSET('0_Tabla Concentrados'!$A$1,$C11,$E$2,1,1) -> 0.4951 | F11: =OFFSET('0_Tabla Concentrados'!$A$1,$C11,$F$2,1,1) -> 0.8640921799 | G11: =OFFSET('0_Tabla Concentrados'!$A$1,$C11,$G$2,1,1) -> 172.9796551 | H11: =OFFSET('0_Tabla Concentrados'!$A$1,$C11,$H$2,1,1) -> 53.5641575 | I11: =OFFSET('0_Tabla Concentrados'!$A$1,$C11,$I$2,1,1) -> 2 | J11: =OFFSET('0_Tabla Concentrados'!$A$1,$C11,$J$2,1,1) -> 1.815 | K11: =OFFSET('0_Tabla Concentrados'!$A$1,$C11,$K$2,1,1) -> 4.446 | L11: =OFFSET('0_Tabla Concentrados'!$A$1,$C11,$L$2,1,1) -> 1.6 | M11: =OFFSET('0_Tabla Concentrados'!$A$1,$C11,$M$2,1,1) -> 0.7 | N11: =OFFSET('0_Tabla Concentrados'!$A$1,$C11,$N$2,1,1) -> 1.6 | O11: =OFFSET('0_Tabla Concentrados'!$A$1,$C11,$O$2,1,1) -> 0 | P11: =OFFSET('0_Tabla Concentrados'!$A$1,$C11,$P$2,1,1) -> 0 | Q11: =OFFSET('0_Tabla Concentrados'!$A$1,$C11,$Q$2,1,1) -> 0.08 | R11: =OFFSET('0_Tabla Concentrados'!$A$1,$C11,$R$2,1,1) -> 22.2 | S11: =OFFSET('0_Tabla Concentrados'!$A$1,$C11,$S$2,1,1) -> 38.5 | T11: =OFFSET('0_Tabla Concentrados'!$A$1,$C11,$T$2,1,1) -> 85 | U11: =OFFSET('0_Tabla Concentrados'!$A$1,$C11,$U$2,1,1) -> 0 | V11: =OFFSET('0_Tabla Concentrados'!$A$1,$C11,$V$2,1,1) -> 0.06 | W11: =OFFSET('0_Tabla Concentrados'!$A$1,$C11,$W$2,1,1) -> 0 | X11: =OFFSET('0_Tabla Concentrados'!$A$1,$C11,$X$2,1,1) -> 0 | Y11: =OFFSET('0_Tabla Concentrados'!$A$1,$C11,$Y$2,1,1) -> 29 | Z11: =OFFSET('0_Tabla Concentrados'!$A$1,$C11,$Z$2,1,1) -> 38.7 | AA11: =OFFSET('0_Tabla Concentrados'!$A$1,$C11,$AA$2,1,1) -> 300 | AB11: =OFFSET('0_Tabla Concentrados'!$A$1,$C11,$AB$2,1,1) -> 129.9487159 | AC11: =OFFSET('0_Tabla Concentrados'!$A$1,$C11,$AC$2,1,1) -> 0.6385 | AD11: =OFFSET('0_Tabla Concentrados'!$A$1,$C11,$AD$2,1,1) -> 606.575 | AE11: =OFFSET('0_Tabla Concentrados'!$A$1,$C11,$AE$2,1,1) -> 86 | AF11: =OFFSET('0_Tabla Concentrados'!$A$1,$C11,$AF$2,1,1) -> 150 | AG11: =OFFSET('0_Tabla Concentrados'!$A$1,$C11,$AG$2,1,1) -> 525 | AH11: =OFFSET('0_Tabla Concentrados'!$A$1,$C11,$AH$2,1,1) -> 206 | AI11: =OFFSET('0_Tabla Concentrados'!$A$1,$C11,$AI$2,1,1) -> 47 | AJ11: =OFFSET('0_Tabla Concentrados'!$A$1,$C11,$AJ$2,1,1) -> 50 | AK11: =OFFSET('0_Tabla Concentrados'!$A$1,$C11,$AK$2,1,1) -> 0.5 | AL11: =OFFSET('0_Tabla Concentrados'!$A$1,$C11,$AL$2,1,1) -> 0.5325076887 | AM11: =OFFSET('0_Tabla Concentrados'!$A$1,$C11,$AM$2,1,1) -> 565.2052521 | AN11: =IF('II_Plantejar Ració'!$E12>0,IF(CàlculsVL!E11>=0,1,"No"),"") ->  | AO11: =IF('II_Plantejar Ració'!$E12>0,IF(CàlculsVL!F11>=0,1,"No"),"") ->  | AP11: =IF('II_Plantejar Ració'!$E12>0,IF(CàlculsVL!G11>0,1,"No"),"") ->  | AQ11: =IF('II_Plantejar Ració'!$E12>0,IF(CàlculsVL!H11=0,"No",1),"") ->  | AR11: =IF('II_Plantejar Ració'!$E12>0,IF(CàlculsVL!I11>0,1,"No"),"") ->  | AS11: =IF('II_Plantejar Ració'!$E12>0,IF(CàlculsVL!J11>0,1,"No"),"") ->  | AT11: =IF('II_Plantejar Ració'!$E12>0,IF(CàlculsVL!K11>0,1,"No"),"") ->  | AU11: =IF('II_Plantejar Ració'!$E12>0,IF(CàlculsVL!L11>0,1,"No"),"") ->  | AV11: =IF('II_Plantejar Ració'!$E12>0,IF(CàlculsVL!M11>0,1,"No"),"") ->  | AW11: =IF('II_Plantejar Ració'!$E12>0,IF(CàlculsVL!N11>0,1,"No"),"") ->  | AX11: =IF('II_Plantejar Ració'!$E12>0,IF(CàlculsVL!O11>0,1,"No"),"") ->  | AY11: =IF('II_Plantejar Ració'!$E12>0,IF(CàlculsVL!P11>0,1,"No"),"") ->  | AZ11: =IF('II_Plantejar Ració'!$E12>0,IF(CàlculsVL!Q11>0,1,"No"),"") ->  | BA11: =IF('II_Plantejar Ració'!$E12>0,IF(CàlculsVL!R11>0,1,"No"),"") ->  | BB11: =IF('II_Plantejar Ració'!$E12>0,IF(CàlculsVL!S11>0,1,"No"),"") ->  | BC11: =IF('II_Plantejar Ració'!$E12>0,IF(CàlculsVL!T11>0,1,"No"),"") ->  | BD11: =IF('II_Plantejar Ració'!$E12>0,IF(CàlculsVL!U11>0,1,"No"),"") ->  | BE11: =IF('II_Plantejar Ració'!$E12>0,IF(CàlculsVL!V11>0,1,"No"),"") ->  | BF11: =IF('II_Plantejar Ració'!$E12>0,IF(CàlculsVL!W11>0,1,"No"),"") ->  | BG11: =IF('II_Plantejar Ració'!$E12>0,IF(CàlculsVL!X11>0,1,"No"),"") ->  | BH11: =IF('II_Plantejar Ració'!$E12>0,IF(CàlculsVL!Y11>0,1,"No"),"") ->  | BI11: =IF('II_Plantejar Ració'!$E12>0,IF(CàlculsVL!Z11>0,1,"No"),"") ->  | BJ11: =IF('II_Plantejar Ració'!$E12>0,IF(CàlculsVL!AA11>0,1,"No"),"") ->  | BK11: =IF('II_Plantejar Ració'!$E12>0,IF(CàlculsVL!AB11>0,1,"No"),"") ->  | BL11: =IF('II_Plantejar Ració'!$E12>0,IF(CàlculsVL!AC11>0,1,"No"),"") ->  | BM11: =IF('II_Plantejar Ració'!$E12>0,IF(CàlculsVL!AD11>0,1,"No"),"") ->  | BN11: =IF('II_Plantejar Ració'!$E12>0,IF(CàlculsVL!AE11>0,1,"No"),"") ->  | BO11: =IF('II_Plantejar Ració'!$E12>0,IF(CàlculsVL!AF11>0,1,"No"),"") ->  | BP11: =IF('II_Plantejar Ració'!$E12>0,IF(CàlculsVL!AG11>0,1,"No"),"") ->  | BQ11: =IF('II_Plantejar Ració'!$E12>0,IF(CàlculsVL!AH11>0,1,"No"),"") ->  | BR11: =IF('II_Plantejar Ració'!$E12>0,IF(CàlculsVL!AI11>0,1,"No"),"") ->  | BS11: =IF('II_Plantejar Ració'!$E12>0,IF(CàlculsVL!AJ11>0,1,"No"),"") ->  | BT11: =IF('II_Plantejar Ració'!$E12>0,IF(CàlculsVL!AK11>0,1,"No"),"") ->  | BU11: =IF('II_Plantejar Ració'!$E12>0,IF(CàlculsVL!AL11>0,1,"No"),"") ->  | BV11: =IF('II_Plantejar Ració'!$E12>0,IF(CàlculsVL!AM11>0,1,"No"),"") ->  | BW11: 0 | BX11: 0 | BY11: 0 | BZ11: 0 | CA11: 0 | CB11: 0 | CC11: 0 | CD11: 0 | CE11: 0 | CF11: 0 | CG11: 0 | CH11: 0 | CI11: 0 | CJ11: 0 | CK11: 0 | CL11: 0 | CM11: 0 | CN11: 0 | CO11: 0 | CP11: 0 | CQ11: 0 | CR11: 0 | CS11: 0 | CT11: 0 | CU11: 0 | CV11: 0 | CW11: 0 | CX11: 0 | CY11: 0 | CZ11: 0 | DA11: 0 | DB11: 0 | DC11: 0 | DD11: 0 | DE11: 0
B12: =IF(OFFSET('0_Tabla Concentrados'!$A$1,C12,0,1,1)=0,"",OFFSET('0_Tabla Concentrados'!$A$1,C12,0,1,1)) -> Maíz gluten meal | C12: =Ingredients_Racio!K46-1 -> 42 | D12: =OFFSET('0_Tabla Concentrados'!$A$1,$C12,$D$2,1,1) -> 89.3 | E12: =OFFSET('0_Tabla Concentrados'!$A$1,$C12,$E$2,1,1) -> 0.4868 | F12: =OFFSET('0_Tabla Concentrados'!$A$1,$C12,$F$2,1,1) -> 1.647747782 | G12: =OFFSET('0_Tabla Concentrados'!$A$1,$C12,$G$2,1,1) -> 474.6927582 | H12: =OFFSET('0_Tabla Concentrados'!$A$1,$C12,$H$2,1,1) -> 117.5185209 | I12: =OFFSET('0_Tabla Concentrados'!$A$1,$C12,$I$2,1,1) -> 2 | J12: =OFFSET('0_Tabla Concentrados'!$A$1,$C12,$J$2,1,1) -> 0.11 | K12: =OFFSET('0_Tabla Concentrados'!$A$1,$C12,$K$2,1,1) -> 2.72 | L12: =OFFSET('0_Tabla Concentrados'!$A$1,$C12,$L$2,1,1) -> 0 | M12: =OFFSET('0_Tabla Concentrados'!$A$1,$C12,$M$2,1,1) -> 0 | N12: =OFFSET('0_Tabla Concentrados'!$A$1,$C12,$N$2,1,1) -> 0 | O12: =OFFSET('0_Tabla Concentrados'!$A$1,$C12,$O$2,1,1) -> 0 | P12: =OFFSET('0_Tabla Concentrados'!$A$1,$C12,$P$2,1,1) -> 0 | Q12: =OFFSET('0_Tabla Concentrados'!$A$1,$C12,$Q$2,1,1) -> 0 | R12: =OFFSET('0_Tabla Concentrados'!$A$1,$C12,$R$2,1,1) -> 0 | S12: =OFFSET('0_Tabla Concentrados'!$A$1,$C12,$S$2,1,1) -> 0 | T12: =OFFSET('0_Tabla Concentrados'!$A$1,$C12,$T$2,1,1) -> 0 | U12: =OFFSET('0_Tabla Concentrados'!$A$1,$C12,$U$2,1,1) -> 0 | V12: =OFFSET('0_Tabla Concentrados'!$A$1,$C12,$V$2,1,1) -> 0 | W12: =OFFSET('0_Tabla Concentrados'!$A$1,$C12,$W$2,1,1) -> 14000 | X12: =OFFSET('0_Tabla Concentrados'!$A$1,$C12,$X$2,1,1) -> 0 | Y12: =OFFSET('0_Tabla Concentrados'!$A$1,$C12,$Y$2,1,1) -> 26 | Z12: =OFFSET('0_Tabla Concentrados'!$A$1,$C12,$Z$2,1,1) -> 28 | AA12: =OFFSET('0_Tabla Concentrados'!$A$1,$C12,$AA$2,1,1) -> 661 | AB12: =OFFSET('0_Tabla Concentrados'!$A$1,$C12,$AB$2,1,1) -> 427.8502116 | AC12: =OFFSET('0_Tabla Concentrados'!$A$1,$C12,$AC$2,1,1) -> 0.943652 | AD12: =OFFSET('0_Tabla Concentrados'!$A$1,$C12,$AD$2,1,1) -> 929.49722 | AE12: =OFFSET('0_Tabla Concentrados'!$A$1,$C12,$AE$2,1,1) -> 35 | AF12: =OFFSET('0_Tabla Concentrados'!$A$1,$C12,$AF$2,1,1) -> 21 | AG12: =OFFSET('0_Tabla Concentrados'!$A$1,$C12,$AG$2,1,1) -> 107 | AH12: =OFFSET('0_Tabla Concentrados'!$A$1,$C12,$AH$2,1,1) -> 28 | AI12: =OFFSET('0_Tabla Concentrados'!$A$1,$C12,$AI$2,1,1) -> 6 | AJ12: =OFFSET('0_Tabla Concentrados'!$A$1,$C12,$AJ$2,1,1) -> 15 | AK12: =OFFSET('0_Tabla Concentrados'!$A$1,$C12,$AK$2,1,1) -> 0 | AL12: =OFFSET('0_Tabla Concentrados'!$A$1,$C12,$AL$2,1,1) -> 0.3436078323 | AM12: =OFFSET('0_Tabla Concentrados'!$A$1,$C12,$AM$2,1,1) -> 749.4135605 | AN12: =IF('II_Plantejar Ració'!$E13>0,IF(CàlculsVL!E12>=0,1,"No"),"") ->  | AO12: =IF('II_Plantejar Ració'!$E13>0,IF(CàlculsVL!F12>=0,1,"No"),"") ->  | AP12: =IF('II_Plantejar Ració'!$E13>0,IF(CàlculsVL!G12>0,1,"No"),"") ->  | AQ12: =IF('II_Plantejar Ració'!$E13>0,IF(CàlculsVL!H12=0,"No",1),"") ->  | AR12: =IF('II_Plantejar Ració'!$E13>0,IF(CàlculsVL!I12>0,1,"No"),"") ->  | AS12: =IF('II_Plantejar Ració'!$E13>0,IF(CàlculsVL!J12>0,1,"No"),"") ->  | AT12: =IF('II_Plantejar Ració'!$E13>0,IF(CàlculsVL!K12>0,1,"No"),"") ->  | AU12: =IF('II_Plantejar Ració'!$E13>0,IF(CàlculsVL!L12>0,1,"No"),"") ->  | AV12: =IF('II_Plantejar Ració'!$E13>0,IF(CàlculsVL!M12>0,1,"No"),"") ->  | AW12: =IF('II_Plantejar Ració'!$E13>0,IF(CàlculsVL!N12>0,1,"No"),"") ->  | AX12: =IF('II_Plantejar Ració'!$E13>0,IF(CàlculsVL!O12>0,1,"No"),"") ->  | AY12: =IF('II_Plantejar Ració'!$E13>0,IF(CàlculsVL!P12>0,1,"No"),"") ->  | AZ12: =IF('II_Plantejar Ració'!$E13>0,IF(CàlculsVL!Q12>0,1,"No"),"") ->  | BA12: =IF('II_Plantejar Ració'!$E13>0,IF(CàlculsVL!R12>0,1,"No"),"") ->  | BB12: =IF('II_Plantejar Ració'!$E13>0,IF(CàlculsVL!S12>0,1,"No"),"") ->  | BC12: =IF('II_Plantejar Ració'!$E13>0,IF(CàlculsVL!T12>0,1,"No"),"") ->  | BD12: =IF('II_Plantejar Ració'!$E13>0,IF(CàlculsVL!U12>0,1,"No"),"") ->  | BE12: =IF('II_Plantejar Ració'!$E13>0,IF(CàlculsVL!V12>0,1,"No"),"") ->  | BF12: =IF('II_Plantejar Ració'!$E13>0,IF(CàlculsVL!W12>0,1,"No"),"") ->  | BG12: =IF('II_Plantejar Ració'!$E13>0,IF(CàlculsVL!X12>0,1,"No"),"") ->  | BH12: =IF('II_Plantejar Ració'!$E13>0,IF(CàlculsVL!Y12>0,1,"No"),"") ->  | BI12: =IF('II_Plantejar Ració'!$E13>0,IF(CàlculsVL!Z12>0,1,"No"),"") ->  | BJ12: =IF('II_Plantejar Ració'!$E13>0,IF(CàlculsVL!AA12>0,1,"No"),"") ->  | BK12: =IF('II_Plantejar Ració'!$E13>0,IF(CàlculsVL!AB12>0,1,"No"),"") ->  | BL12: =IF('II_Plantejar Ració'!$E13>0,IF(CàlculsVL!AC12>0,1,"No"),"") ->  | BM12: =IF('II_Plantejar Ració'!$E13>0,IF(CàlculsVL!AD12>0,1,"No"),"") ->  | BN12: =IF('II_Plantejar Ració'!$E13>0,IF(CàlculsVL!AE12>0,1,"No"),"") ->  | BO12: =IF('II_Plantejar Ració'!$E13>0,IF(CàlculsVL!AF12>0,1,"No"),"") ->  | BP12: =IF('II_Plantejar Ració'!$E13>0,IF(CàlculsVL!AG12>0,1,"No"),"") ->  | BQ12: =IF('II_Plantejar Ració'!$E13>0,IF(CàlculsVL!AH12>0,1,"No"),"") ->  | BR12: =IF('II_Plantejar Ració'!$E13>0,IF(CàlculsVL!AI12>0,1,"No"),"") ->  | BS12: =IF('II_Plantejar Ració'!$E13>0,IF(CàlculsVL!AJ12>0,1,"No"),"") ->  | BT12: =IF('II_Plantejar Ració'!$E13>0,IF(CàlculsVL!AK12>0,1,"No"),"") ->  | BU12: =IF('II_Plantejar Ració'!$E13>0,IF(CàlculsVL!AL12>0,1,"No"),"") ->  | BV12: =IF('II_Plantejar Ració'!$E13>0,IF(CàlculsVL!AM12>0,1,"No"),"") ->  | BW12: 0 | BX12: 0 | BY12: 0 | BZ12: 0 | CA12: 0 | CB12: 0 | CC12: 0 | CD12: 0 | CE12: 0 | CF12: 0 | CG12: 0 | CH12: 0 | CI12: 0 | CJ12: 0 | CK12: 0 | CL12: 0 | CM12: 0 | CN12: 0 | CO12: 0 | CP12: 0 | CQ12: 0 | CR12: 0 | CS12: 0 | CT12: 0 | CU12: 0 | CV12: 0 | CW12: 0 | CX12: 0 | CY12: 0 | CZ12: 0 | DA12: 0 | DB12: 0 | DC12: 0 | DD12: 0 | DE12: 0
B13: =IF(OFFSET('0_Tabla Concentrados'!$A$1,C13,0,1,1)=0,"",OFFSET('0_Tabla Concentrados'!$A$1,C13,0,1,1)) ->  | C13: =Ingredients_Racio!L46-1 -> 1 | D13: =OFFSET('0_Tabla Concentrados'!$A$1,$C13,$D$2,1,1) -> 0 | E13: =OFFSET('0_Tabla Concentrados'!$A$1,$C13,$E$2,1,1) -> 0 | F13: =OFFSET('0_Tabla Concentrados'!$A$1,$C13,$F$2,1,1) -> 0 | G13: =OFFSET('0_Tabla Concentrados'!$A$1,$C13,$G$2,1,1) -> 0 | H13: =OFFSET('0_Tabla Concentrados'!$A$1,$C13,$H$2,1,1) -> 0 | I13: =OFFSET('0_Tabla Concentrados'!$A$1,$C13,$I$2,1,1) -> 0 | J13: =OFFSET('0_Tabla Concentrados'!$A$1,$C13,$J$2,1,1) -> 0 | K13: =OFFSET('0_Tabla Concentrados'!$A$1,$C13,$K$2,1,1) -> 0 | L13: =OFFSET('0_Tabla Concentrados'!$A$1,$C13,$L$2,1,1) -> 0 | M13: =OFFSET('0_Tabla Concentrados'!$A$1,$C13,$M$2,1,1) -> 0 | N13: =OFFSET('0_Tabla Concentrados'!$A$1,$C13,$N$2,1,1) -> 0 | O13: =OFFSET('0_Tabla Concentrados'!$A$1,$C13,$O$2,1,1) -> 0 | P13: =OFFSET('0_Tabla Concentrados'!$A$1,$C13,$P$2,1,1) -> 0 | Q13: =OFFSET('0_Tabla Concentrados'!$A$1,$C13,$Q$2,1,1) -> 0 | R13: =OFFSET('0_Tabla Concentrados'!$A$1,$C13,$R$2,1,1) -> 0 | S13: =OFFSET('0_Tabla Concentrados'!$A$1,$C13,$S$2,1,1) -> 0 | T13: =OFFSET('0_Tabla Concentrados'!$A$1,$C13,$T$2,1,1) -> 0 | U13: =OFFSET('0_Tabla Concentrados'!$A$1,$C13,$U$2,1,1) -> 0 | V13: =OFFSET('0_Tabla Concentrados'!$A$1,$C13,$V$2,1,1) -> 0 | W13: =OFFSET('0_Tabla Concentrados'!$A$1,$C13,$W$2,1,1) -> 0 | X13: =OFFSET('0_Tabla Concentrados'!$A$1,$C13,$X$2,1,1) -> 0 | Y13: =OFFSET('0_Tabla Concentrados'!$A$1,$C13,$Y$2,1,1) -> 0 | Z13: =OFFSET('0_Tabla Concentrados'!$A$1,$C13,$Z$2,1,1) -> 0 | AA13: =OFFSET('0_Tabla Concentrados'!$A$1,$C13,$AA$2,1,1) -> 0 | AB13: =OFFSET('0_Tabla Concentrados'!$A$1,$C13,$AB$2,1,1) -> 0 | AC13: =OFFSET('0_Tabla Concentrados'!$A$1,$C13,$AC$2,1,1) -> 0 | AD13: =OFFSET('0_Tabla Concentrados'!$A$1,$C13,$AD$2,1,1) -> 0 | AE13: =OFFSET('0_Tabla Concentrados'!$A$1,$C13,$AE$2,1,1) -> 0 | AF13: =OFFSET('0_Tabla Concentrados'!$A$1,$C13,$AF$2,1,1) -> 0 | AG13: =OFFSET('0_Tabla Concentrados'!$A$1,$C13,$AG$2,1,1) -> 0 | AH13: =OFFSET('0_Tabla Concentrados'!$A$1,$C13,$AH$2,1,1) -> 0 | AI13: =OFFSET('0_Tabla Concentrados'!$A$1,$C13,$AI$2,1,1) -> 0 | AJ13: =OFFSET('0_Tabla Concentrados'!$A$1,$C13,$AJ$2,1,1) -> 0 | AK13: =OFFSET('0_Tabla Concentrados'!$A$1,$C13,$AK$2,1,1) -> 0 | AL13: =OFFSET('0_Tabla Concentrados'!$A$1,$C13,$AL$2,1,1) -> 0 | AM13: =OFFSET('0_Tabla Concentrados'!$A$1,$C13,$AM$2,1,1) -> 0 | AN13: =IF('II_Plantejar Ració'!$E14>0,IF(CàlculsVL!E13>=0,1,"No"),"") ->  | AO13: =IF('II_Plantejar Ració'!$E14>0,IF(CàlculsVL!F13>=0,1,"No"),"") ->  | AP13: =IF('II_Plantejar Ració'!$E14>0,IF(CàlculsVL!G13>0,1,"No"),"") ->  | AQ13: =IF('II_Plantejar Ració'!$E14>0,IF(CàlculsVL!H13=0,"No",1),"") ->  | AR13: =IF('II_Plantejar Ració'!$E14>0,IF(CàlculsVL!I13>0,1,"No"),"") ->  | AS13: =IF('II_Plantejar Ració'!$E14>0,IF(CàlculsVL!J13>0,1,"No"),"") ->  | AT13: =IF('II_Plantejar Ració'!$E14>0,IF(CàlculsVL!K13>0,1,"No"),"") ->  | AU13: =IF('II_Plantejar Ració'!$E14>0,IF(CàlculsVL!L13>0,1,"No"),"") ->  | AV13: =IF('II_Plantejar Ració'!$E14>0,IF(CàlculsVL!M13>0,1,"No"),"") ->  | AW13: =IF('II_Plantejar Ració'!$E14>0,IF(CàlculsVL!N13>0,1,"No"),"") ->  | AX13: =IF('II_Plantejar Ració'!$E14>0,IF(CàlculsVL!O13>0,1,"No"),"") ->  | AY13: =IF('II_Plantejar Ració'!$E14>0,IF(CàlculsVL!P13>0,1,"No"),"") ->  | AZ13: =IF('II_Plantejar Ració'!$E14>0,IF(CàlculsVL!Q13>0,1,"No"),"") ->  | BA13: =IF('II_Plantejar Ració'!$E14>0,IF(CàlculsVL!R13>0,1,"No"),"") ->  | BB13: =IF('II_Plantejar Ració'!$E14>0,IF(CàlculsVL!S13>0,1,"No"),"") ->  | BC13: =IF('II_Plantejar Ració'!$E14>0,IF(CàlculsVL!T13>0,1,"No"),"") ->  | BD13: =IF('II_Plantejar Ració'!$E14>0,IF(CàlculsVL!U13>0,1,"No"),"") ->  | BE13: =IF('II_Plantejar Ració'!$E14>0,IF(CàlculsVL!V13>0,1,"No"),"") ->  | BF13: =IF('II_Plantejar Ració'!$E14>0,IF(CàlculsVL!W13>0,1,"No"),"") ->  | BG13: =IF('II_Plantejar Ració'!$E14>0,IF(CàlculsVL!X13>0,1,"No"),"") ->  | BH13: =IF('II_Plantejar Ració'!$E14>0,IF(CàlculsVL!Y13>0,1,"No"),"") ->  | BI13: =IF('II_Plantejar Ració'!$E14>0,IF(CàlculsVL!Z13>0,1,"No"),"") ->  | BJ13: =IF('II_Plantejar Ració'!$E14>0,IF(CàlculsVL!AA13>0,1,"No"),"") ->  | BK13: =IF('II_Plantejar Ració'!$E14>0,IF(CàlculsVL!AB13>0,1,"No"),"") ->  | BL13: =IF('II_Plantejar Ració'!$E14>0,IF(CàlculsVL!AC13>0,1,"No"),"") ->  | BM13: =IF('II_Plantejar Ració'!$E14>0,IF(CàlculsVL!AD13>0,1,"No"),"") ->  | BN13: =IF('II_Plantejar Ració'!$E14>0,IF(CàlculsVL!AE13>0,1,"No"),"") ->  | BO13: =IF('II_Plantejar Ració'!$E14>0,IF(CàlculsVL!AF13>0,1,"No"),"") ->  | BP13: =IF('II_Plantejar Ració'!$E14>0,IF(CàlculsVL!AG13>0,1,"No"),"") ->  | BQ13: =IF('II_Plantejar Ració'!$E14>0,IF(CàlculsVL!AH13>0,1,"No"),"") ->  | BR13: =IF('II_Plantejar Ració'!$E14>0,IF(CàlculsVL!AI13>0,1,"No"),"") ->  | BS13: =IF('II_Plantejar Ració'!$E14>0,IF(CàlculsVL!AJ13>0,1,"No"),"") ->  | BT13: =IF('II_Plantejar Ració'!$E14>0,IF(CàlculsVL!AK13>0,1,"No"),"") ->  | BU13: =IF('II_Plantejar Ració'!$E14>0,IF(CàlculsVL!AL13>0,1,"No"),"") ->  | BV13: =IF('II_Plantejar Ració'!$E14>0,IF(CàlculsVL!AM13>0,1,"No"),"") ->  | BW13: =IF(AN13="",0,1) -> 0 | BX13: 0 | BY13: 0 | BZ13: 0 | CA13: 0 | CB13: 0 | CC13: 0 | CD13: 0 | CE13: 0 | CF13: 0 | CG13: =IF(AX13="",0,1) -> 0 | CH13: 0 | CI13: 0 | CJ13: 0 | CK13: 0 | CL13: 0 | CM13: 0 | CN13: 0 | CO13: 0 | CP13: 0 | CQ13: =IF(BH13="",0,1) -> 0 | CR13: 0 | CS13: 0 | CT13: 0 | CU13: 0 | CV13: 0 | CW13: 0 | CX13: 0 | CY13: 0 | CZ13: 0 | DA13: =IF(BR13="",0,1) -> 0 | DB13: 0 | DC13: 0 | DD13: 0 | DE13: 0
B14: =IF(OFFSET('0_Tabla Concentrados'!$A$1,C14,0,1,1)=0,"",OFFSET('0_Tabla Concentrados'!$A$1,C14,0,1,1)) ->  | C14: =Ingredients_Racio!M46-1 -> 1 | D14: =OFFSET('0_Tabla Concentrados'!$A$1,$C14,$D$2,1,1) -> 0 | E14: =OFFSET('0_Tabla Concentrados'!$A$1,$C14,$E$2,1,1) -> 0 | F14: =OFFSET('0_Tabla Concentrados'!$A$1,$C14,$F$2,1,1) -> 0 | G14: =OFFSET('0_Tabla Concentrados'!$A$1,$C14,$G$2,1,1) -> 0 | H14: =OFFSET('0_Tabla Concentrados'!$A$1,$C14,$H$2,1,1) -> 0 | I14: =OFFSET('0_Tabla Concentrados'!$A$1,$C14,$I$2,1,1) -> 0 | J14: =OFFSET('0_Tabla Concentrados'!$A$1,$C14,$J$2,1,1) -> 0 | K14: =OFFSET('0_Tabla Concentrados'!$A$1,$C14,$K$2,1,1) -> 0 | L14: =OFFSET('0_Tabla Concentrados'!$A$1,$C14,$L$2,1,1) -> 0 | M14: =OFFSET('0_Tabla Concentrados'!$A$1,$C14,$M$2,1,1) -> 0 | N14: =OFFSET('0_Tabla Concentrados'!$A$1,$C14,$N$2,1,1) -> 0 | O14: =OFFSET('0_Tabla Concentrados'!$A$1,$C14,$O$2,1,1) -> 0 | P14: =OFFSET('0_Tabla Concentrados'!$A$1,$C14,$P$2,1,1) -> 0 | Q14: =OFFSET('0_Tabla Concentrados'!$A$1,$C14,$Q$2,1,1) -> 0 | R14: =OFFSET('0_Tabla Concentrados'!$A$1,$C14,$R$2,1,1) -> 0 | S14: =OFFSET('0_Tabla Concentrados'!$A$1,$C14,$S$2,1,1) -> 0 | T14: =OFFSET('0_Tabla Concentrados'!$A$1,$C14,$T$2,1,1) -> 0 | U14: =OFFSET('0_Tabla Concentrados'!$A$1,$C14,$U$2,1,1) -> 0 | V14: =OFFSET('0_Tabla Concentrados'!$A$1,$C14,$V$2,1,1) -> 0 | W14: =OFFSET('0_Tabla Concentrados'!$A$1,$C14,$W$2,1,1) -> 0 | X14: =OFFSET('0_Tabla Concentrados'!$A$1,$C14,$X$2,1,1) -> 0 | Y14: =OFFSET('0_Tabla Concentrados'!$A$1,$C14,$Y$2,1,1) -> 0 | Z14: =OFFSET('0_Tabla Concentrados'!$A$1,$C14,$Z$2,1,1) -> 0 | AA14: =OFFSET('0_Tabla Concentrados'!$A$1,$C14,$AA$2,1,1) -> 0 | AB14: =OFFSET('0_Tabla Concentrados'!$A$1,$C14,$AB$2,1,1) -> 0 | AC14: =OFFSET('0_Tabla Concentrados'!$A$1,$C14,$AC$2,1,1) -> 0 | AD14: =OFFSET('0_Tabla Concentrados'!$A$1,$C14,$AD$2,1,1) -> 0 | AE14: =OFFSET('0_Tabla Concentrados'!$A$1,$C14,$AE$2,1,1) -> 0 | AF14: =OFFSET('0_Tabla Concentrados'!$A$1,$C14,$AF$2,1,1) -> 0 | AG14: =OFFSET('0_Tabla Concentrados'!$A$1,$C14,$AG$2,1,1) -> 0 | AH14: =OFFSET('0_Tabla Concentrados'!$A$1,$C14,$AH$2,1,1) -> 0 | AI14: =OFFSET('0_Tabla Concentrados'!$A$1,$C14,$AI$2,1,1) -> 0 | AJ14: =OFFSET('0_Tabla Concentrados'!$A$1,$C14,$AJ$2,1,1) -> 0 | AK14: =OFFSET('0_Tabla Concentrados'!$A$1,$C14,$AK$2,1,1) -> 0 | AL14: =OFFSET('0_Tabla Concentrados'!$A$1,$C14,$AL$2,1,1) -> 0 | AM14: =OFFSET('0_Tabla Concentrados'!$A$1,$C14,$AM$2,1,1) -> 0 | AN14: =IF('II_Plantejar Ració'!$E15>0,IF(CàlculsVL!E14>=0,1,"No"),"") ->  | AO14: =IF('II_Plantejar Ració'!$E15>0,IF(CàlculsVL!F14>=0,1,"No"),"") ->  | AP14: =IF('II_Plantejar Ració'!$E15>0,IF(CàlculsVL!G14>0,1,"No"),"") ->  | AQ14: =IF('II_Plantejar Ració'!$E15>0,IF(CàlculsVL!H14=0,"No",1),"") ->  | AR14: =IF('II_Plantejar Ració'!$E15>0,IF(CàlculsVL!I14>0,1,"No"),"") ->  | AS14: =IF('II_Plantejar Ració'!$E15>0,IF(CàlculsVL!J14>0,1,"No"),"") ->  | AT14: =IF('II_Plantejar Ració'!$E15>0,IF(CàlculsVL!K14>0,1,"No"),"") ->  | AU14: =IF('II_Plantejar Ració'!$E15>0,IF(CàlculsVL!L14>0,1,"No"),"") ->  | AV14: =IF('II_Plantejar Ració'!$E15>0,IF(CàlculsVL!M14>0,1,"No"),"") ->  | AW14: =IF('II_Plantejar Ració'!$E15>0,IF(CàlculsVL!N14>0,1,"No"),"") ->  | AX14: =IF('II_Plantejar Ració'!$E15>0,IF(CàlculsVL!O14>0,1,"No"),"") ->  | AY14: =IF('II_Plantejar Ració'!$E15>0,IF(CàlculsVL!P14>0,1,"No"),"") ->  | AZ14: =IF('II_Plantejar Ració'!$E15>0,IF(CàlculsVL!Q14>0,1,"No"),"") ->  | BA14: =IF('II_Plantejar Ració'!$E15>0,IF(CàlculsVL!R14>0,1,"No"),"") ->  | BB14: =IF('II_Plantejar Ració'!$E15>0,IF(CàlculsVL!S14>0,1,"No"),"") ->  | BC14: =IF('II_Plantejar Ració'!$E15>0,IF(CàlculsVL!T14>0,1,"No"),"") ->  | BD14: =IF('II_Plantejar Ració'!$E15>0,IF(CàlculsVL!U14>0,1,"No"),"") ->  | BE14: =IF('II_Plantejar Ració'!$E15>0,IF(CàlculsVL!V14>0,1,"No"),"") ->  | BF14: =IF('II_Plantejar Ració'!$E15>0,IF(CàlculsVL!W14>0,1,"No"),"") ->  | BG14: =IF('II_Plantejar Ració'!$E15>0,IF(CàlculsVL!X14>0,1,"No"),"") ->  | BH14: =IF('II_Plantejar Ració'!$E15>0,IF(CàlculsVL!Y14>0,1,"No"),"") ->  | BI14: =IF('II_Plantejar Ració'!$E15>0,IF(CàlculsVL!Z14>0,1,"No"),"") ->  | BJ14: =IF('II_Plantejar Ració'!$E15>0,IF(CàlculsVL!AA14>0,1,"No"),"") ->  | BK14: =IF('II_Plantejar Ració'!$E15>0,IF(CàlculsVL!AB14>0,1,"No"),"") ->  | BL14: =IF('II_Plantejar Ració'!$E15>0,IF(CàlculsVL!AC14>0,1,"No"),"") ->  | BM14: =IF('II_Plantejar Ració'!$E15>0,IF(CàlculsVL!AD14>0,1,"No"),"") ->  | BN14: =IF('II_Plantejar Ració'!$E15>0,IF(CàlculsVL!AE14>0,1,"No"),"") ->  | BO14: =IF('II_Plantejar Ració'!$E15>0,IF(CàlculsVL!AF14>0,1,"No"),"") ->  | BP14: =IF('II_Plantejar Ració'!$E15>0,IF(CàlculsVL!AG14>0,1,"No"),"") ->  | BQ14: =IF('II_Plantejar Ració'!$E15>0,IF(CàlculsVL!AH14>0,1,"No"),"") ->  | BR14: =IF('II_Plantejar Ració'!$E15>0,IF(CàlculsVL!AI14>0,1,"No"),"") ->  | BS14: =IF('II_Plantejar Ració'!$E15>0,IF(CàlculsVL!AJ14>0,1,"No"),"") ->  | BT14: =IF('II_Plantejar Ració'!$E15>0,IF(CàlculsVL!AK14>0,1,"No"),"") ->  | BU14: =IF('II_Plantejar Ració'!$E15>0,IF(CàlculsVL!AL14>0,1,"No"),"") ->  | BV14: =IF('II_Plantejar Ració'!$E15>0,IF(CàlculsVL!AM14>0,1,"No"),"") ->  | BW14: 0 | BX14: 0 | BY14: 0 | BZ14: 0 | CA14: 0 | CB14: 0 | CC14: 0 | CD14: 0 | CE14: 0 | CF14: 0 | CG14: 0 | CH14: 0 | CI14: 0 | CJ14: 0 | CK14: 0 | CL14: 0 | CM14: 0 | CN14: 0 | CO14: 0 | CP14: 0 | CQ14: 0 | CR14: 0 | CS14: 0 | CT14: 0 | CU14: 0 | CV14: 0 | CW14: 0 | CX14: 0 | CY14: 0 | CZ14: 0 | DA14: 0 | DB14: 0 | DC14: 0 | DD14: 0 | DE14: 0
A15: MINERALS | B15: =IF(OFFSET('0_Tabla Minerales-aa'!$A$1,C15,0,1,1)=0,"",OFFSET('0_Tabla Minerales-aa'!$A$1,C15,0,1,1)) -> Carbonato cálcico | C15: =Ingredients_Racio!N46-1 -> 3 | D15: =OFFSET('0_Tabla Minerales-aa'!$A$1,$C15,D2,1,1) -> 98 | E15: =OFFSET('0_Tabla Minerales-aa'!$A$1,$C15,E2,1,1) -> 0 | F15: =OFFSET('0_Tabla Minerales-aa'!$A$1,$C15,F2,1,1) -> 0 | G15: =OFFSET('0_Tabla Minerales-aa'!$A$1,$C15,G2,1,1) -> 0 | H15: =OFFSET('0_Tabla Minerales-aa'!$A$1,$C15,H2,1,1) -> 0 | I15: =OFFSET('0_Tabla Minerales-aa'!$A$1,$C15,I2,1,1) -> 0 | J15: =OFFSET('0_Tabla Minerales-aa'!$A$1,$C15,J2,1,1) -> 145.54 | K15: =OFFSET('0_Tabla Minerales-aa'!$A$1,$C15,K2,1,1) -> 0 | L15: =OFFSET('0_Tabla Minerales-aa'!$A$1,$C15,L$2,1,1) -> 14 | M15: =OFFSET('0_Tabla Minerales-aa'!$A$1,$C15,M$2,1,1) -> 0.7 | N15: =OFFSET('0_Tabla Minerales-aa'!$A$1,$C15,N$2,1,1) -> 0.7 | O15: =OFFSET('0_Tabla Minerales-aa'!$A$1,$C15,O$2,1,1) -> 0.7 | P15: =OFFSET('0_Tabla Minerales-aa'!$A$1,$C15,P$2,1,1) -> 0.2 | Q15: =OFFSET('0_Tabla Minerales-aa'!$A$1,$C15,Q$2,1,1) -> 0 | R15: =OFFSET('0_Tabla Minerales-aa'!$A$1,$C15,R$2,1,1) -> 12 | S15: =OFFSET('0_Tabla Minerales-aa'!$A$1,$C15,S$2,1,1) -> 0 | T15: =OFFSET('0_Tabla Minerales-aa'!$A$1,$C15,T$2,1,1) -> 0 | U15: =OFFSET('0_Tabla Minerales-aa'!$A$1,$C15,U$2,1,1) -> 0 | V15: =OFFSET('0_Tabla Minerales-aa'!$A$1,$C15,V$2,1,1) -> 0 | W15: =OFFSET('0_Tabla Minerales-aa'!$A$1,$C15,W$2,1,1) -> 0 | X15: =OFFSET('0_Tabla Minerales-aa'!$A$1,$C15,X$2,1,1) -> 0 | Y15: =OFFSET('0_Tabla Minerales-aa'!$A$1,$C15,Y$2,1,1) -> 0 | Z15: =OFFSET('0_Tabla Minerales-aa'!$A$1,$C15,Z$2,1,1) -> 0 | AA15: =OFFSET('0_Tabla Minerales-aa'!$A$1,$C15,AA$2,1,1) -> 0 | AB15: =OFFSET('0_Tabla Minerales-aa'!$A$1,$C15,AB$2,1,1) -> 0 | AC15: =OFFSET('0_Tabla Minerales-aa'!$A$1,$C15,AC$2,1,1) -> 0 | AD15: =OFFSET('0_Tabla Minerales-aa'!$A$1,$C15,AD$2,1,1) -> 0 | AE15: =OFFSET('0_Tabla Minerales-aa'!$A$1,$C15,AE$2,1,1) -> 0 | AF15: =OFFSET('0_Tabla Minerales-aa'!$A$1,$C15,AF$2,1,1) -> 0 | AG15: =OFFSET('0_Tabla Minerales-aa'!$A$1,$C15,AG$2,1,1) -> 0 | AH15: =OFFSET('0_Tabla Minerales-aa'!$A$1,$C15,AH$2,1,1) -> 0 | AI15: =OFFSET('0_Tabla Minerales-aa'!$A$1,$C15,AI$2,1,1) -> 0 | AJ15: =OFFSET('0_Tabla Minerales-aa'!$A$1,$C15,AJ$2,1,1) -> 955 | AK15: =OFFSET('0_Tabla Minerales-aa'!$A$1,$C15,AK$2,1,1) -> 0 | AL15: =OFFSET('0_Tabla Minerales-aa'!$A$1,$C15,AL$2,1,1) -> 0 | AM15: =OFFSET('0_Tabla Minerales-aa'!$A$1,$C15,AM$2,1,1) -> 0 | AN15: =SUM(AN3:AN14) -> 1 | AO15: =SUM(AO3:AO14) -> 1 | AP15: =SUM(AP3:AP14) -> 1 | AQ15: 1 | AR15: 1 | AS15: 1 | AT15: 1 | AU15: 1 | AV15: 1 | AW15: 1 | AX15: 1 | AY15: 0 | AZ15: 0 | BA15: 1 | BB15: 1 | BC15: 0 | BD15: 0 | BE15: 0 | BF15: 0 | BG15: 0 | BH15: 0 | BI15: 1 | BJ15: 1 | BK15: 1 | BL15: 1 | BM15: 1 | BN15: 1 | BO15: 1 | BP15: 1 | BQ15: 1 | BR15: 0 | BS15: 1 | BT15: 0 | BU15: 1 | BV15: 1 | BW15: 1 | BX15: 1 | BY15: 1 | BZ15: 1 | CA15: 1 | CB15: 1 | CC15: 1 | CD15: 1 | CE15: 1 | CF15: 1 | CG15: 1 | CH15: 1 | CI15: 1 | CJ15: 1 | CK15: 1 | CL15: 1 | CM15: 1 | CN15: 1 | CO15: 1 | CP15: 1 | CQ15: 1 | CR15: 1 | CS15: 1 | CT15: 1 | CU15: 1 | CV15: 1 | CW15: 1 | CX15: =SUM(CX3:CX12) -> 1 | CY15: 1 | CZ15: 1 | DA15: 1 | DB15: 1 | DC15: 1 | DD15: 1 | DE15: 1
B16: =IF(OFFSET('0_Tabla Minerales-aa'!$A$1,C16,0,1,1)=0,"",OFFSET('0_Tabla Minerales-aa'!$A$1,C16,0,1,1)) -> Fosfato bicálcico | C16: =Ingredients_Racio!O46-1 -> 9 | D16: =OFFSET('0_Tabla Minerales-aa'!$A$1,$C16,D2,1,1) -> 98.8 | E16: =OFFSET('0_Tabla Minerales-aa'!$A$1,$C16,E2,1,1) -> 0 | F16: =OFFSET('0_Tabla Minerales-aa'!$A$1,$C16,F2,1,1) -> 0 | G16: =OFFSET('0_Tabla Minerales-aa'!$A$1,$C16,G2,1,1) -> 0 | H16: =OFFSET('0_Tabla Minerales-aa'!$A$1,$C16,H2,1,1) -> 0 | I16: =OFFSET('0_Tabla Minerales-aa'!$A$1,$C16,I2,1,1) -> 0 | J16: =OFFSET('0_Tabla Minerales-aa'!$A$1,$C16,J2,1,1) -> 244 | K16: =OFFSET('0_Tabla Minerales-aa'!$A$1,$C16,K2,1,1) -> 122.4 | L16: =OFFSET('0_Tabla Minerales-aa'!$A$1,$C16,L$2,1,1) -> 5 | M16: =OFFSET('0_Tabla Minerales-aa'!$A$1,$C16,M$2,1,1) -> 1.2 | N16: =OFFSET('0_Tabla Minerales-aa'!$A$1,$C16,N$2,1,1) -> 0.8 | O16: =OFFSET('0_Tabla Minerales-aa'!$A$1,$C16,O$2,1,1) -> 11 | P16: =OFFSET('0_Tabla Minerales-aa'!$A$1,$C16,P$2,1,1) -> 0.4 | Q16: =OFFSET('0_Tabla Minerales-aa'!$A$1,$C16,Q$2,1,1) -> 0 | R16: =OFFSET('0_Tabla Minerales-aa'!$A$1,$C16,R$2,1,1) -> 15 | S16: =OFFSET('0_Tabla Minerales-aa'!$A$1,$C16,S$2,1,1) -> 0 | T16: =OFFSET('0_Tabla Minerales-aa'!$A$1,$C16,T$2,1,1) -> 0 | U16: =OFFSET('0_Tabla Minerales-aa'!$A$1,$C16,U$2,1,1) -> 0 | V16: =OFFSET('0_Tabla Minerales-aa'!$A$1,$C16,V$2,1,1) -> 0 | W16: =OFFSET('0_Tabla Minerales-aa'!$A$1,$C16,W$2,1,1) -> 0 | X16: =OFFSET('0_Tabla Minerales-aa'!$A$1,$C16,X$2,1,1) -> 0 | Y16: =OFFSET('0_Tabla Minerales-aa'!$A$1,$C16,Y$2,1,1) -> 0 | Z16: =OFFSET('0_Tabla Minerales-aa'!$A$1,$C16,Z$2,1,1) -> 0 | AA16: =OFFSET('0_Tabla Minerales-aa'!$A$1,$C16,AA$2,1,1) -> 0 | AB16: =OFFSET('0_Tabla Minerales-aa'!$A$1,$C16,AB$2,1,1) -> 0 | AC16: =OFFSET('0_Tabla Minerales-aa'!$A$1,$C16,AC$2,1,1) -> 0 | AD16: =OFFSET('0_Tabla Minerales-aa'!$A$1,$C16,AD$2,1,1) -> 0 | AE16: =OFFSET('0_Tabla Minerales-aa'!$A$1,$C16,AE$2,1,1) -> 0 | AF16: =OFFSET('0_Tabla Minerales-aa'!$A$1,$C16,AF$2,1,1) -> 0 | AG16: =OFFSET('0_Tabla Minerales-aa'!$A$1,$C16,AG$2,1,1) -> 0 | AH16: =OFFSET('0_Tabla Minerales-aa'!$A$1,$C16,AH$2,1,1) -> 0 | AI16: =OFFSET('0_Tabla Minerales-aa'!$A$1,$C16,AI$2,1,1) -> 0 | AJ16: =OFFSET('0_Tabla Minerales-aa'!$A$1,$C16,AJ$2,1,1) -> 836 | AK16: =OFFSET('0_Tabla Minerales-aa'!$A$1,$C16,AK$2,1,1) -> 0 | AL16: =OFFSET('0_Tabla Minerales-aa'!$A$1,$C16,AL$2,1,1) -> 0 | AM16: =OFFSET('0_Tabla Minerales-aa'!$A$1,$C16,AM$2,1,1) -> 0 | AN16: =IF(AN15/BW15=1,"",AN2) ->  | AU16: =IF(AU15/CD15=1,"", AU2) ->  | AY16: Cl | AZ16: Co | BC16: Zn | BD16: Midó | BE16: Se | BF16: Vit A | BG16: Vit D | BH16: Vit E | BR16: Lignina | BT16: Mo
B17: =IF(OFFSET('0_Tabla Minerales-aa'!$A$1,C17,0,1,1)=0,"",OFFSET('0_Tabla Minerales-aa'!$A$1,C17,0,1,1)) ->  | C17: =Ingredients_Racio!P46-1 -> 1 | D17: =OFFSET('0_Tabla Minerales-aa'!$A$1,$C17,D2,1,1) -> 0 | E17: =OFFSET('0_Tabla Minerales-aa'!$A$1,$C17,E2,1,1) -> 0 | F17: =OFFSET('0_Tabla Minerales-aa'!$A$1,$C17,F2,1,1) -> 0 | G17: =OFFSET('0_Tabla Minerales-aa'!$A$1,$C17,G2,1,1) -> 0 | H17: =OFFSET('0_Tabla Minerales-aa'!$A$1,$C17,H2,1,1) -> 0 | I17: =OFFSET('0_Tabla Minerales-aa'!$A$1,$C17,I2,1,1) -> 0 | J17: =OFFSET('0_Tabla Minerales-aa'!$A$1,$C17,J2,1,1) -> 0 | K17: =OFFSET('0_Tabla Minerales-aa'!$A$1,$C17,K2,1,1) -> 0 | L17: =OFFSET('0_Tabla Minerales-aa'!$A$1,$C17,L$2,1,1) -> 0 | M17: =OFFSET('0_Tabla Minerales-aa'!$A$1,$C17,M$2,1,1) -> 0 | N17: =OFFSET('0_Tabla Minerales-aa'!$A$1,$C17,N$2,1,1) -> 0 | O17: =OFFSET('0_Tabla Minerales-aa'!$A$1,$C17,O$2,1,1) -> 0 | P17: =OFFSET('0_Tabla Minerales-aa'!$A$1,$C17,P$2,1,1) -> 0 | Q17: =OFFSET('0_Tabla Minerales-aa'!$A$1,$C17,Q$2,1,1) -> 0 | R17: =OFFSET('0_Tabla Minerales-aa'!$A$1,$C17,R$2,1,1) -> 0 | S17: =OFFSET('0_Tabla Minerales-aa'!$A$1,$C17,S$2,1,1) -> 0 | T17: =OFFSET('0_Tabla Minerales-aa'!$A$1,$C17,T$2,1,1) -> 0 | U17: =OFFSET('0_Tabla Minerales-aa'!$A$1,$C17,U$2,1,1) -> 0 | V17: =OFFSET('0_Tabla Minerales-aa'!$A$1,$C17,V$2,1,1) -> 0 | W17: =OFFSET('0_Tabla Minerales-aa'!$A$1,$C17,W$2,1,1) -> 0 | X17: =OFFSET('0_Tabla Minerales-aa'!$A$1,$C17,X$2,1,1) -> 0 | Y17: =OFFSET('0_Tabla Minerales-aa'!$A$1,$C17,Y$2,1,1) -> 0 | Z17: =OFFSET('0_Tabla Minerales-aa'!$A$1,$C17,Z$2,1,1) -> 0 | AA17: =OFFSET('0_Tabla Minerales-aa'!$A$1,$C17,AA$2,1,1) -> 0 | AB17: =OFFSET('0_Tabla Minerales-aa'!$A$1,$C17,AB$2,1,1) -> 0 | AC17: =OFFSET('0_Tabla Minerales-aa'!$A$1,$C17,AC$2,1,1) -> 0 | AD17: =OFFSET('0_Tabla Minerales-aa'!$A$1,$C17,AD$2,1,1) -> 0 | AE17: =OFFSET('0_Tabla Minerales-aa'!$A$1,$C17,AE$2,1,1) -> 0 | AF17: =OFFSET('0_Tabla Minerales-aa'!$A$1,$C17,AF$2,1,1) -> 0 | AG17: =OFFSET('0_Tabla Minerales-aa'!$A$1,$C17,AG$2,1,1) -> 0 | AH17: =OFFSET('0_Tabla Minerales-aa'!$A$1,$C17,AH$2,1,1) -> 0 | AI17: =OFFSET('0_Tabla Minerales-aa'!$A$1,$C17,AI$2,1,1) -> 0 | AJ17: =OFFSET('0_Tabla Minerales-aa'!$A$1,$C17,AJ$2,1,1) -> 0 | AK17: =OFFSET('0_Tabla Minerales-aa'!$A$1,$C17,AK$2,1,1) -> 0 | AL17: =OFFSET('0_Tabla Minerales-aa'!$A$1,$C17,AL$2,1,1) -> 0 | AM17: =OFFSET('0_Tabla Minerales-aa'!$A$1,$C17,AM$2,1,1) -> 0
E18: =SUMPRODUCT(E3:E17,'II_Plantejar Ració'!$E$4:$E$18) -> 0.1565834729 | F18: =SUMPRODUCT(F3:F17,'II_Plantejar Ració'!$E$4:$E$18) -> 0.1696152783 | G18: =SUMPRODUCT(G3:G17,'II_Plantejar Ració'!$E$4:$E$18) -> 12.29970189 | H18: =SUMPRODUCT(H3:H17,'II_Plantejar Ració'!$E$4:$E$18) -> 4.914513347 | I18: =SUMPRODUCT(I3:I17,'II_Plantejar Ració'!$E$4:$E$18)/SUM('II_Plantejar Ració'!$E$4:$E$18) -> 2.752047879 | J18: =SUMPRODUCT(J3:J17,'II_Plantejar Ració'!$E$4:$E$18) -> 0.2844 | K18: =SUMPRODUCT(K3:K17,'II_Plantejar Ració'!$E$4:$E$18) -> 0.3318 | L18: =SUMPRODUCT(L3:L17,'II_Plantejar Ració'!$E$4:$E$18) -> 0.2686 | M18: =SUMPRODUCT(M3:M17,'II_Plantejar Ració'!$E$4:$E$18) -> 4.74 | N18: =SUMPRODUCT(N3:N17,'II_Plantejar Ració'!$E$4:$E$18) -> 0.474 | O18: =SUMPRODUCT(O3:O17,'II_Plantejar Ració'!$E$4:$E$18) -> 0.158 | P18: =SUMPRODUCT(P3:P17,'II_Plantejar Ració'!$E$4:$E$18) -> 0 | Q18: =SUMPRODUCT(Q3:Q17,'II_Plantejar Ració'!$E$4:$E$18) -> 0 | R18: =SUMPRODUCT(R3:R17,'II_Plantejar Ració'!$E$4:$E$18) -> 1.2798 | S18: =SUMPRODUCT(S3:S17,'II_Plantejar Ració'!$E$4:$E$18) -> 13.4458 | T18: =SUMPRODUCT(T3:T17,'II_Plantejar Ració'!$E$4:$E$18) -> 0 | U18: =SUMPRODUCT(U3:U17,'II_Plantejar Ració'!$E$4:$E$18) -> 0 | V18: =SUMPRODUCT(V3:V17,'II_Plantejar Ració'!$E$4:$E$18) -> 0 | W18: =SUMPRODUCT(W3:W17,'II_Plantejar Ració'!$E$4:$E$18) -> 0 | X18: =SUMPRODUCT(X3:X17,'II_Plantejar Ració'!$E$4:$E$18) -> 0 | Y18: =SUMPRODUCT(Y3:Y17,'II_Plantejar Ració'!$E$4:$E$18) -> 0 | Z18: =SUMPRODUCT(Z3:Z17,'II_Plantejar Ració'!$E$4:$E$18) -> 3.92946 | AA18: =SUMPRODUCT(AA3:AA17,'II_Plantejar Ració'!$E$4:$E$18) -> 26.544 | AB18: =SUMPRODUCT(AB3:AB17,'II_Plantejar Ració'!$E$4:$E$18) -> 4.18068 | AC18: =SUMPRODUCT(AC3:AC17,'II_Plantejar Ració'!$E$4:$E$18)/SUM('II_Plantejar Ració'!$E$4:$E$18) -> 0.79572 | AD18: =SUMPRODUCT(AD3:AD17,'II_Plantejar Ració'!$E$4:$E$18) -> 111.3912514 | AE18: =SUMPRODUCT(AE3:AE17,'II_Plantejar Ració'!$E$4:$E$18) -> 6.162 | AF18: =SUMPRODUCT(AF3:AF17,'II_Plantejar Ració'!$E$4:$E$18) -> 29.704 | AG18: =SUMPRODUCT(AG3:AG17,'II_Plantejar Ració'!$E$4:$E$18) -> 74.94256 | AH18: =SUMPRODUCT(AH3:AH17,'II_Plantejar Ració'!$E$4:$E$18) -> 33.654 | AI18: =SUMPRODUCT(AI3:AI17,'II_Plantejar Ració'!$E$4:$E$18) -> 0 | AJ18: =SUMPRODUCT(AJ3:AJ17,'II_Plantejar Ració'!$E$4:$E$18) -> 18.012 | AK18: =SUMPRODUCT(AK3:AK17,'II_Plantejar Ració'!$E$4:$E$18) -> 0 | AL18: =SUMPRODUCT(AL3:AL17,'II_Plantejar Ració'!$E$4:$E$18)/SUM('II_Plantejar Ració'!$E$4:$E$18) -> 0.79 | AM18: =SUMPRODUCT(AM3:AM17,'II_Plantejar Ració'!$E$4:$E$18) -> 100.5255445
E19: =SUMPRODUCT(E7:E12,'II_Plantejar Ració'!$E$8:$E$13) -> 0 | F19: =SUMPRODUCT(F7:F12,'II_Plantejar Ració'!$E$8:$E$13) -> 0 | AG19: =SUMPRODUCT(AG7:AG12,'II_Plantejar Ració'!$E$8:$E$13) -> 0 | AM19: =SUMPRODUCT(AM7:AM12,'II_Plantejar Ració'!$E$8:$E$13) -> 0
E20: =E18-E19 -> 0.1565834729 | F20: =F18-F19 -> 0.1696152783 | AG20: =AG18-AG19 -> 74.94256
F21: Ració possible 1 | AG21: NDFND_Fa
F22: =IF('III_1_Redistribució Ració'!B7="","",F3*'III_1_Redistribució Ració'!B7) -> -23.00730331 | G22: =IF('III_1_Redistribució Ració'!B7="","",'III_1_Redistribució Ració'!B7*CàlculsVL!G3) -> -1668.38138 | AG22: =IF(AC3>0,785-8.62*AC3*100,0) -> 99.08936
F23: =IF('III_1_Redistribució Ració'!B8="","",F4*'III_1_Redistribució Ració'!B8) ->  | G23: =IF('III_1_Redistribució Ració'!B8="","",'III_1_Redistribució Ració'!B8*CàlculsVL!G4) ->  | AG23: =IF(AC4>0,785-8.62*AC4*100,0) -> 360.894276
F24: =IF('III_1_Redistribució Ració'!B9="","",F5*'III_1_Redistribució Ració'!B9) ->  | G24: =IF('III_1_Redistribució Ració'!B9="","",'III_1_Redistribució Ració'!B9*CàlculsVL!G5) ->  | AG24: =IF(AC5>0,785-8.62*AC5*100,0) -> 0
F25: =IF('III_1_Redistribució Ració'!B10="","",F6*'III_1_Redistribució Ració'!B10) ->  | G25: =IF('III_1_Redistribució Ració'!B10="","",'III_1_Redistribució Ració'!B10*CàlculsVL!G6) ->  | AG25: =IF(AC6>0,785-8.62*AC6*100,0) -> 0
F26: =IF('III_1_Redistribució Ració'!B11="","",F7*'III_1_Redistribució Ració'!B11) ->  | G26: =IF('III_1_Redistribució Ració'!B11="","",'III_1_Redistribució Ració'!B11*CàlculsVL!G7) ->  | AG26: =IF(AC7>0,785-8.62*AC7*100,0) -> 63.223264
F27: =IF('III_1_Redistribució Ració'!B12="","",F8*'III_1_Redistribució Ració'!B12) ->  | G27: =IF('III_1_Redistribució Ració'!B12="","",'III_1_Redistribució Ració'!B12*CàlculsVL!G7) ->  | AG27: =SUM(AG22:AG26) -> 523.2069
F28: =IF('III_1_Redistribució Ració'!B13="","",F9*'III_1_Redistribució Ració'!B13) ->  | G28: =IF('III_1_Redistribució Ració'!B13="","",'III_1_Redistribució Ració'!B13*CàlculsVL!G8) ->  | AG28: NDFD_Fa
B29: =CàlculsVL!B3 -> VERDE raigrás italiano Espiga a 10 cm | F29: =IF('III_1_Redistribució Ració'!B14="","",F10*'III_1_Redistribució Ració'!B14) ->  | G29: =IF('III_1_Redistribució Ració'!B14="","",'III_1_Redistribució Ració'!B14*CàlculsVL!G9) ->  | AG29: =AG20-AG27 -> -448.26434
B30: =CàlculsVL!B4 -> PAJA Cebada | F30: =IF('III_1_Redistribució Ració'!B15="","",F11*'III_1_Redistribució Ració'!B15) ->  | G30: =IF('III_1_Redistribució Ració'!B15="","",'III_1_Redistribució Ració'!B15*CàlculsVL!G10) ->  | AG30: =100*AG29/AG20 -> -598.1438851
B31: =CàlculsVL!B5 ->  | F31: =IF('III_1_Redistribució Ració'!B16="","",F12*'III_1_Redistribució Ració'!B16) ->  | G31: =IF('III_1_Redistribució Ració'!B16="","",'III_1_Redistribució Ració'!B16*CàlculsVL!G11) -> 
B32: =CàlculsVL!B6 ->  | F32: =IF('III_1_Redistribució Ració'!B17="","",F13*'III_1_Redistribució Ració'!B17) ->  | G32: =IF('III_1_Redistribució Ració'!B17="","",'III_1_Redistribució Ració'!B17*CàlculsVL!G12) -> 
F33: =IF('III_1_Redistribució Ració'!B18="","",F14*'III_1_Redistribució Ració'!B18) ->  | G33: =IF('III_1_Redistribució Ració'!B18="","",'III_1_Redistribució Ració'!B18*CàlculsVL!G13) -> 
B34: =CàlculsVL!B7 -> Cebada grano | F34: =IF('III_1_Redistribució Ració'!B19="","",F15*'III_1_Redistribució Ració'!B19) ->  | G34: =IF('III_1_Redistribució Ració'!B19="","",'III_1_Redistribució Ració'!B19*CàlculsVL!G14) -> 
B35: =CàlculsVL!B8 -> Maíz grano | F35: =IF('III_1_Redistribució Ració'!B20="","",F16*'III_1_Redistribució Ració'!B20) ->  | G35: =IF('III_1_Redistribució Ració'!B20="","",'III_1_Redistribució Ració'!B20*CàlculsVL!G15) -> 
B36: =CàlculsVL!B9 -> Soja torta 44 | F36: =IF('III_1_Redistribució Ració'!B21="","",F17*'III_1_Redistribució Ració'!B21) ->  | G36: =IF('III_1_Redistribució Ració'!B21="","",'III_1_Redistribució Ració'!B21*CàlculsVL!G16) -> 
B37: =CàlculsVL!B10 -> Grasa vegetal, manteca de cerdo (todos los tipos) | F37: =SUM(F22:F36) -> -23.00730331 | G37: =SUM(G22:G36) -> -1668.38138
B38: =CàlculsVL!B11 -> Cebada bagazo cervecería fresco
B39: =CàlculsVL!B12 -> Maíz gluten meal
B40: =CàlculsVL!B13 -> 
F46: Ració possible NRC
F47: =IF('III_1_Redistribució Ració'!G7="","",F3*'III_1_Redistribució Ració'!G7) -> 18.75801075 | G47: =IF('III_1_Redistribució Ració'!G7="","",'III_1_Redistribució Ració'!G7*CàlculsVL!G3) -> 1360.242678
F48: =IF('III_1_Redistribució Ració'!G8="","",F4*'III_1_Redistribució Ració'!G8) ->  | G48: =IF('III_1_Redistribució Ració'!G8="","",'III_1_Redistribució Ració'!G8*CàlculsVL!G4) -> 
F49: =IF('III_1_Redistribució Ració'!G9="","",F5*'III_1_Redistribució Ració'!G9) ->  | G49: =IF('III_1_Redistribució Ració'!G9="","",'III_1_Redistribució Ració'!G9*CàlculsVL!G5) -> 
F50: =IF('III_1_Redistribució Ració'!G10="","",F6*'III_1_Redistribució Ració'!G10) ->  | G50: =IF('III_1_Redistribució Ració'!G10="","",'III_1_Redistribució Ració'!G10*CàlculsVL!G6) -> 
F51: =IF('III_1_Redistribució Ració'!G11="","",F7*'III_1_Redistribució Ració'!G11) ->  | G51: =IF('III_1_Redistribució Ració'!G11="","",'III_1_Redistribució Ració'!G11*CàlculsVL!G7) -> 
F52: =IF('III_1_Redistribució Ració'!G12="","",F8*'III_1_Redistribució Ració'!G12) ->  | G52: =IF('III_1_Redistribució Ració'!G12="","",'III_1_Redistribució Ració'!G12*CàlculsVL!G8) -> 
F53: =IF('III_1_Redistribució Ració'!G13="","",F9*'III_1_Redistribució Ració'!G13) ->  | G53: =IF('III_1_Redistribució Ració'!G13="","",'III_1_Redistribució Ració'!G13*CàlculsVL!G9) -> 
F54: =IF('III_1_Redistribució Ració'!G14="","",F10*'III_1_Redistribució Ració'!G14) ->  | G54: =IF('III_1_Redistribució Ració'!G14="","",'III_1_Redistribució Ració'!G14*CàlculsVL!G10) -> 
F55: =IF('III_1_Redistribució Ració'!G15="","",F11*'III_1_Redistribució Ració'!G15) ->  | G55: =IF('III_1_Redistribució Ració'!G15="","",'III_1_Redistribució Ració'!G15*CàlculsVL!G11) -> 
F56: =IF('III_1_Redistribució Ració'!G16="","",F12*'III_1_Redistribució Ració'!G16) ->  | G56: =IF('III_1_Redistribució Ració'!G16="","",'III_1_Redistribució Ració'!G16*CàlculsVL!G12) -> 
F57: =IF('III_1_Redistribució Ració'!G17="","",F13*'III_1_Redistribució Ració'!G17) ->  | G57: =IF('III_1_Redistribució Ració'!G17="","",'III_1_Redistribució Ració'!G17*CàlculsVL!G13) -> 
F58: =IF('III_1_Redistribució Ració'!G18="","",F14*'III_1_Redistribució Ració'!G18) ->  | G58: =IF('III_1_Redistribució Ració'!G18="","",'III_1_Redistribució Ració'!G18*CàlculsVL!G14) -> 
F59: =IF('III_1_Redistribució Ració'!G19="","",F15*'III_1_Redistribució Ració'!G19) ->  | G59: =IF('III_1_Redistribució Ració'!G19="","",'III_1_Redistribució Ració'!G19*CàlculsVL!G15) -> 
F60: =IF('III_1_Redistribució Ració'!G20="","",F16*'III_1_Redistribució Ració'!G20) ->  | G60: =IF('III_1_Redistribució Ració'!G20="","",'III_1_Redistribució Ració'!G20*CàlculsVL!G16) -> 
F61: =IF('III_1_Redistribució Ració'!G21="","",F17*'III_1_Redistribució Ració'!G21) ->  | G61: =IF('III_1_Redistribució Ració'!G21="","",'III_1_Redistribució Ració'!G21*CàlculsVL!G17) -> 
F62: =SUM(F47:F61) -> 18.75801075 | G62: =SUM(G47:G61) -> 1360.242678

Sheet Criteris (hidden)
A1: Paridad
A2: Primípar
A3: Multípar
A4: Estado lactación
A5: 3 primeras semanas
A6: 4 a 6 primeras semanas
A7: 7 a 12 primeras semanas
A8: Pico (90 a 150 días en lactación)
A9: Resto lactación
A10: Secado
A11: Media producción explotación
A12: < 5.000
A13: 5.000 a 6.000
A14: 6.000 a 8.000
A15: 8.000 a 10.000
A16: >10.000
A17: Edad primera parto
A18: < 28 meses
A19: > 28 meses
A20: Gestación
A21: No
A22: 7º mes
A23: 8º mes
A24: 9º mes

Sheet I_Necessitats1 (hidden)
A1: Entorno o modalidad explotación ----------------------> | E1: 2 | K1: ICI | L1: =0.6+(1-0.6)*(1-EXP(-0.25*I12)) -> 0.9458658867 | M1: =(14.25+(0.015*(I7-600))+(0.11*I18)+((2.5-I16))) -> 19.70832114 | O1: CI MS aprox INRA | Q1: ???
A2: Datos explotación para la formulación | F2: Dades per a una vaca en lactació | K2: ICG | L2: =0.8+0.2*(1-EXP(-0.25*(40-I14))) -> 0.99999092 | N2: =(14.24+0.015*(I7-600)+0.11*I18+(2.5-I16))*AV5*AW5*AY5 -> 18.45157236 | O2: =M5/0.85 -> 21.82419578 | P2: =N5/0.85 -> 22.1364582 | AU2: 0.6 | AV2: 0.7 | BR2: Autor: Antoni Seguí Parpal
A3: Producción media explotación, vaca presente y año | D3: 11414 | I3: 2 | K3: ICmadu | L3: =-0.1+1.1*(1-EXP(-0.08*I8)) -> 0.9763570385 | M3: CI UE | O3: CI MS | Q3: Energia | S3: Proteïna | U3: Fòsfor | W3: Calci | Y3: Mg | AA3: K | AC3: Na | AE3: S | AG3: Cl | AI3: Co mg/dia | AK3: Cu mg/dia | AM3: Mn mg/dia | AO3: Zn mg/dia | AQ3: I mg/dia | AS3: Se mg/dia | AU3: IL | AW3: IG | AX3: IM prim | AY3: IM multi | AZ3: I_CI PDI prim | BA3: I_CI PDI multi
A4: Tasa de grasa (%) | D4: 3.84 | F4: Producció a 305 dies | I4: 9084 | K4: ICIPDI | L4: =0.91+(0.115/(1+EXP(0.13*(90-(S5/Q5))))) -> 1.019232501 | M4: prim | N4: multi | O4: prim | P4: multi | Q4: prim | R4: multi | S4: prim | T4: multi | U4: prim | V4: multi | W4: prim | X4: multi | Y4: prim | Z4: multi | AA4: prim | AB4: multi | AC4: prim | AD4: multi | AE4: prim | AF4: multi | AG4: prim | AH4: multi | AI4: prim | AJ4: multi | AK4: prim | AL4: multi | AM4: prim | AN4: multi | AO4: prim | AP4: multi | AQ4: prim | AR4: multi | AS4: prim | AT4: multi | AU4: prim | AV4: multi
A5: Tasa de proteína (%) | D5: 3.41 | F5: Taxa de greix (%) | I5: 4 | L5: =M1*L1*L2*L3*L4 -> 18.55056641 | M5: =(14.25+(0.015*(I7-600))+(0.11*I18)+((2.5-I16)))*AU5*AW5*AX5*AZ5 -> 18.55056641 | N5: =(14.25+(0.015*(I7-600))+(0.11*I18)+((2.5-I16)))*AV5*AW5*AY5*BA5 -> 18.81598947 | O5: =0.372*I18+0.0968*I7^0.75*(1-EXP(-0.192*(I12+3.67))) -> 25.93162661 | P5: =0.372*I18+0.0968*I7^0.75*(1-EXP(-0.192*(I12+3.67))) -> 25.93162661 | Q5: =(0.0536*I7^0.75)*K6+I18*0.42+(3.14-0.077*I8)+IF(I23="",0,(0.000695*I10*EXP(0.116*I23)))-I20 -> 22.06908564 | R5: =(0.0536*I7^0.75)*K6+I18*0.42+(3.14-0.077*I8)+ IF(I23="",0,(0.000695*I10*EXP(0.116*I23)))-I20 -> 22.06908564 | S5: =0.312*I7+(0.2*I7^0.6)/I19+19.8*O5+IF(I8<40,((270-6.66*I8)/I19),0)+(I18*31/I19)+IF(I23>24,(0.0448*I10*EXP(0.111*I23)/I19),0)-I21 -> 2485.529078 | T5: =0.312*I7+(0.2*I7^0.6)/I19+19.8*O5+IF(I8<40,((270-6.66*I8)/I19),0)+I18*31/I19+IF(I23>24,(0.0448*I10*EXP(0.111*I23)/I19),0)-I21 -> 2485.529078 | U5: =(0.83*O5+0.002*I7+0.9*I18+IF(I23>0,(7.38/(1+EXP(19.1-5.46*LN(I23)))),0)) -> 57.18064318 | V5: =(0.83*P5+0.002*I7+0.9*I18+IF(I23>0,(7.38/(1+EXP(19.1-(5.46*LN(I23))))),0)) -> 57.18064318 | W5: =(0.663*O5+0.008*I7+1.25*I18+IF(I23>0,(23.5/(1+EXP(18.8-(5.03*LN(I23))))),0)) -> 70.37238108 | X5: =(0.663*P5+0.008*I7+1.25*I18+IF(I23>0,(23.5/(1+EXP(18.8-(5.03*LN(I23))))),0)) -> 70.37238108 | Y5: =(0.011*I7+0.15*I18+IF(I23>36,0.33,0)) -> 13.40956552 | Z5: =(0.011*I7+0.15*I18+IF(I23>36,0.33,0)) -> 13.40956552 | AA5: =IF(I18>0,0.115*I7,0.07*I7)+IF(I23>24,1,0)+1.5*I18 -> 137.5956552 | AB5: =IF(I18>0,0.115*I7,0.07*I7)+IF(I23>24,1,0)+1.5*I18 -> 137.5956552 | AC5: =IF(I18>0,0.023*I7,0.015*I7)+IF(I23>24,1.3,0)+0.45*I18 -> 33.22869655 | AD5: =IF(I18>0,0.023*I7,0.015*I7)+IF(I23>24,1.3,0)+0.45*I18 -> 33.22869655 | AE5: =2*O5 -> 51.86325322 | AF5: =2*P5 -> 51.86325322 | AG5: =IF(I18>0,0.035*I7,0.023*I7)+IF(I23>24,1,0)+0.15*I18 -> 30.20956552 | AH5: =IF(I18>0,0.035*I7,0.023*I7)+IF(I23>24,1,0)+0.15*I18 -> 30.20956552 | AI5: =0.3*O5 -> 7.779487983 | AJ5: =0.3*P5 -> 7.779487983 | AK5: =10*O5 -> 259.3162661 | AL5: =10*P5 -> 259.3162661 | AM5: =50*O5 -> 1296.581331 | AN5: =50*P5 -> 1296.581331 | AO5: =50*O5 -> 1296.581331 | AP5: =50*P5 -> 1296.581331 | AQ5: =IF(I18>0,0.65*O5,0.45*O5) -> 16.8555573 | AR5: =IF(I18>0,0.65*O5,0.45*O5) -> 16.8555573 | AS5: =IF(I18>0,0.15,0) -> 0.15 | AT5: =IF(I18>0,0.15,0) -> 0.15 | AU5: =$AU$2+(1-$AU$2)*(1-EXP(-0.25*I22)) -> 0.9458658867 | AV5: =$AV$2+(1-$AV$2)*(1-EXP(-0.25*I22)) -> 0.959399415 | AW5: =0.8+0.2*(1-EXP(-0.25*(40-I23))) -> 0.99999092 | AX5: =-0.1+1.1*(1-EXP(-0.08*I8)) -> 0.9763570385 | AY5: =-0.1+1.1*(1-EXP(-0.08*I8)) -> 0.9763570385 | AZ5: =0.91+(0.115/(1+EXP(0.13*(90-(S5/Q5))))) -> 1.019232501 | BA5: =0.91+(0.115/(1+EXP(0.13*(90-(T5/R5))))) -> 1.019232501
A6: Intervalo entre partos (días) IP | D6: 417 | F6: Taxa de proteïna (%) | I6: 3.1 | K6: =IF(E1=1,0.95,IF(E1=2,1,IF(E1=3,1.1,IF(E1=4,1.2,1.3)))) -> 1 | M6: període lactació explotació | P6: UFL_VPR>
A7: Tiemp secado (días) TE | D7: 60 | F7: Pes vaca adulta (kg) | I7: 700 | N7: =(D6-D7)/7 -> 51 | O7: setmanes lact | Q7: =INT((9*30.5+10)/7) -> 40 | R7: Setmanes gestació
A8: Vacas presentes | D8: 222 | F8: Edat mesos | H8: =IF(I3=1,IF(I8>36,"edat en mesos?",""),IF(I8<36,"edat en mesos?","")) ->  | I8: 48 | L8: 394 | N8: =D10*0.9 -> 630 | O8: pes prim | Q8: =Q7-(61/7) -> 31.28571429 | T8: A | U8: =-9.5+0.4*N19+1.89*D11 -> 14.88607364 | V8: =-13.2+0.4*O19+1.89*D11 -> 13.50403976 | AQ8: 100 | AR8: =AQ8/7 -> 14.28571429 | BC8: =16*I7*0.9 -> 10080
A9: Vacas primera lactación (%) | D9: 0.354 | F9: Condició corporal vaca eixuta al part | I9: 3.5 | L9: 900 | N9: =1.5*(3-D11) -> -0.75 | O9: =D11-1.5 -> 2 | T9: B | U9: =1/D11 -> 0.2857142857 | AQ9: 225 | AR9: =AQ9/7 -> 32.14285714 | BC9: =30*I7*0.9 -> 18900
A10: Peso vaca adulta (kg) | D10: 700 | F10: Pes vedell al naixement | I10: 45 | T10: K | U10: =U8/(52*U9) -> 1.001947264 | V10: =V8/(52*U9) -> 0.9089257533
A11: Condición corporal vacas secas | D11: 3.5 | F11: Interval entre parts (dies) | I11: 365 | K11: =INT(L11-8) -> 44 | L11: =INT(I11/7) -> 52 | R11: =5*(0.57+0.0074*280)/0.67 -> 19.71641791 | CJ11: =DATE(2022,4,1) -> 2022-04-01
A12: Peso ternero al nacer | D12: 40 | F12: Setmana lactació-----> | G12: Valor entre 1 i | H12: =K11 -> 44 | I12: 8 | J12: =L11-40 -> 12 | CJ12: =TODAY() -> 2024-10-26
A13: Número medio de lactación (años) | D13: 2.35 | F13: Setmana fecundació | J13: =K13-8 -> 44 | K13: =L11-I13 -> 52 | CJ13: =CJ11+365*2 -> 2024-03-31
A14: MS forrajera, % mínimo a la ración | D14: 50 | F14: Setmana gestació calculada en lactació | I14: =IF(I13="",0,IF((I12+1)-I13>0,I12-I13,"")) -> 0 | K14: màx gest
A15: Límites de tolerancia (%) en el cumplimiento necesidades proteicas | D15: 12.5 | F15: Setmana en gestació període sec | I15: =IF(I12<=K11,"",I12-J12) ->  | AA15: =(14.25+(0.015*($D$10-600))+(0.11*N20)+((2.5-U20))) -> 18.92606274 | AB15: =(14.25+(0.015*($D$10-600))+0.11*O20+((2.5-V20))) -> 20.18012379 | BH15: =EXP(-0.25*0) -> 1 | BM15: =0.8+0.2*(1-EXP(-0.25*(40-0))) -> 0.99999092
A16: EfPDI teórica | D16: 0.67 | F16: Condició corporal calculada | I16: =IF(I18=0,I9,IF(I13>I12,"Revisar setmana fecundació",I9-(7/206)*((L148/L149)-L150*I12+(L148/(1-L149))*(EXP(-I12)-(EXP(-L149*I12)/L149))))) -> 2.728693574 | N16: =D13*D26+D7*D13 -> 979.95 | O16: =N16/365 -> 2.684794521 | P16: =D26/7 -> 51 | BP16: =0.6+(1-0.6)*(1-EXP(-0.16*0)) -> 0.6 | BQ16: =0.8+0.2*(1-EXP(-0.25*(40-34))) -> 0.955373968
F17: Producció màxima potencial diària 4% (pic) | I17: =IF(I3=1,I4*(1+(0.0055*(I5*10-40)+0.0033*(I6*10-31)))/260,I4*(1+(0.0055*(I5*10-40)+0.0033*(I6*10-31)))/230) -> 39.49565217 | K17: data part | L17: =I13+9*4.5 -> 40.5 | M17: =IF(I14="","",L17-I14) -> 40.5 | N17: Producció | R17: setmana IA | T17: Setmana part des d'inici lact | AW17: mg/vaca i dia | BK17: 0.6 | BL17: 0.7
F18: Producció diària a la setmana de lactació 4% | I18: =IF(I15="",IF(I13>I12,"Revisar setmana fecundació",IF(I12>1,IF(I3=1,I17*(-0.55+1.66*EXP(-0.0065*I12)-0.72*EXP(-0.44*I12)-0.69*EXP(-0.16*(45-I14))),I17*(-0.83+1.92*EXP(-0.0083*I12)-0.74*EXP(-0.88*I12)-0.5*EXP(-0.12*(45-I14)))),0)),0) -> 38.06377011 | N18: Pic prim | O18: Pic multi | R18: =D25 -> 19 | T18: =R18+Q7 -> 59 | W18: UFL_VPR pot | Y18: PDI_VPR pot | AA18: CI | AC18: CI MS | AE18: Energia | AG18: Proteïna | AI18: Fòsfor | AK18: Calci | AM18: Mg | AO18: K | AQ18: Na | AS18: S | AU18: Cl | AW18: Fe | AX18: No 2018 | AY18: Co | BA18: Cu | BC18: Mn | BE18: Zn | BG18: I | BI18: Se | BK18: IL | BM18: IG | BN18: IM prim | BO18: IM multi | BP18: I_CI PDI | BQ18: I_CI PDI
F19: EfPDI teòrica | I19: =D16 -> 0.67 | L19: setmL teòrica | N19: =D29/260 -> 44.42768409 | O19: =D29/230 -> 50.22259941 | P19: període | Q19: setmL | R19: setmG | S19: setmG | T19: edat mesos prim | U19: CC prim | V19: CC mult | W19: prim | X19: multi | Y19: prim | Z19: multi | AA19: prim | AB19: multi | AC19: prim | AD19: multi | AE19: prim | AF19: multi | AG19: prim | AH19: multi | AI19: prim | AJ19: multi | AK19: prim | AL19: multi | AM19: prim | AN19: multi | AO19: prim | AP19: multi | AQ19: prim | AR19: multi | AS19: prim | AT19: multi | AU19: prim | AV19: multi | AW19: prim | AX19: multi | AY19: prim | AZ19: multi | BA19: prim | BB19: multi | BC19: prim | BD19: multi | BE19: prim | BF19: multi | BG19: prim | BH19: multi | BI19: prim | BJ19: multi | BK19: prim | BL19: multi | BP19: PRIM
F20: UFL_VPR pot | H20: Variació reserves corporals UFL | I20: =-L150+L152*(EXP(-L149*I22)-EXP(-I22)) -> 0.687351727 | K20: =IF(L20<$N$7,L20,$N$7) -> 2 | L20: 2 | M20: =IF(Q20<$R$18,0,Q20-$R$18) -> 0 | N20: =IF(Q20=0,0,IF(R20="",N$19*(-0.55+1.66*EXP(-0.0065*Q20)-0.72*EXP(-0.44*Q20)),N$19*(-0.55+1.66*EXP(-0.0065*Q20)-0.72*EXP(-0.44*Q20)-(0.69*EXP(-0.16*(45-R20)))))) -> 35.09413707 | O20: =IF(Q20=0,0,IF(R20="",O$19*(-0.83+1.92*EXP(-0.0083*Q20)-0.74*EXP(-0.88*Q20)),O$19*(-0.83+1.92*EXP(-0.0083*Q20)-0.74*EXP(-0.88*Q20)-(0.5*EXP(-0.12*(45-R20)))))) -> 46.76115142 | P20: tres 1es | Q20: =IF(K20=K19,0,K20) -> 2 | R20: =IF(Q20=0,R18+4,IF((Q20-$D$25)<0,"",Q20-$D$25)) ->  | S20: =IF(R20>40,0,R20) -> 0 | T20: =IF(Q20=0,"",24+(Q20/4)) -> 24.5 | U20: =$D$11-(7/260)*(($U$8/$U$9)-$U$10*Q20+($U$8/(1-$U$9))*(EXP(-Q20)-EXP(-$U$9*Q20)/$U$9)) -> 3.184292343 | V20: =$D$11-(7/260)*(($V$8/$U$9)-$V$10*Q20+($V$8/(1-$U$9))*(EXP(-Q20)-EXP(-$U$9*Q20)/$U$9)) -> 3.213602871 | W20: =-$U$10+($U$8/(1-$U$9))*(EXP(-$U$9*Q20)-EXP(-Q20)) -> 7.946607115 | X20: =-$V$10+($V$8/(1-$U$9))*(EXP(-$U$9*Q20)-EXP(-Q20)) -> 7.208838347 | Y20: =50+33*W20 -> 312.2380348 | Z20: =50+33*X20 -> 287.8916654 | AA20: =(14.25+(0.015*($D$10-600))+(0.11*N20)+((2.5-U20)))*BK20*BM20*BN20*BP20 -> 12.41372963 | AB20: =(14.25+(0.015*($D$10-600))+0.11*O20+((2.5-V20)))*BL20*BM20*BO20*BQ20 -> 16.85898562 | AC20: =0.372*N20+0.0968*$D$10^0.75*(1-EXP(-0.192*(Q20+3.67))) -> 21.79329723 | AD20: =0.372*O20+0.0968*$D$10^0.75*(1-EXP(-0.192*(Q20+3.67))) -> 26.13342656 | AE20: =(0.0536*$D$10^0.75)*$K$6+N20*0.42+(3.14-0.077*T20)+IF(S20="",0,(0.000695*$D$12*EXP(0.116*S20)))-W20 -> 15.36860937 | AF20: =(0.0536*$D$10^0.75)*$K$6+O20*0.42+(3.14-0.077*U20)+IF(S20="",0,(0.000695*$D$12*EXP(0.116*S20)))-X20 -> 22.64783366 | AG20: =IF(S20="",19.8*AC20+0.312*$D$10+0.2*$D$10^0.6/$D$16+((270-6.66*T20)/$D$16)+(N20*31/$D$16)-Y20,19.8*AC20+0.312*$D$10+0.2*$D$10^0.6/$D$16+((270-6.66*T20)/$D$16)+(N20*31/$D$16)+0.0448*$D$12*EXP(0.111*S20)/$D$16-Y20) -> 2138.756185 | AH20: =IF(S20="",19.8*AD20+0.312*$D$10+0.2*$D$10^0.6/$D$16+(O20*31/$D$16)-Z20,19.8*AD20+0.312*$D$10+0.2*$D$10^0.6/$D$16+(O20*31/$D$16)+0.0448*$D$12*EXP(0.111*S20)/$D$16)-Z20 -> 2629.406436 | AI20: =(0.83*AC20+0.002*$D$10+0.9*N20+IF($S20=0,0,(7.38/(1+EXP(19.1-5.46*LN(S20)))))) -> 51.07316007 | AJ20: =(0.83*AD20+0.002*$D$10+0.9*O20+IF($S20=0,0,(7.38/(1+EXP(19.1-5.46*LN(S20)))))) -> 65.17578032 | AK20: =(0.663*AC20+0.008*$D$10+1.25*N20+IF(S20=0,0,(23.5/(1+EXP(18.8-(5.03*LN(S20))))))) -> 63.9166274 | AL20: =(0.663*AD20+0.008*$D$10+1.25*O20+IF(S20=0,0,(23.5/(1+EXP(18.8-(5.03*LN(S20))))))) -> 81.37790109 | AM20: =(0.011*$D$10+0.15*N20+IF(S20>36,0.33,0)) -> 12.96412056 | AN20: =(0.011*$D$10+0.15*O20+IF(S20>36,0.33,0)) -> 14.71417271 | AO20: =IF(N20>0,0.115*$D$10,0.07*$D$10)+IF(S20>24,1,0)+1.5*N20 -> 133.1412056 | AP20: =IF(O20>0,0.115*$D$10,0.07*$D$10)+IF(S20>24,1,0)+1.5*O20 -> 150.6417271 | AQ20: =IF(N20>0,0.023*$D$10,0.015*$D$10)+IF($S20>24,1.3,0)+0.45*N20 -> 31.89236168 | AR20: =IF(O20>0,0.023*$D$10,0.015*$D$10)+IF($S20>24,1.3,0)+0.45*O20 -> 37.14251814 | AS20: =2*AC20 -> 43.58659445 | AT20: =2*AD20 -> 52.26685313 | AU20: =IF(N20>0,0.035*$D$10,0.023*$D$10)+IF($S20>24,1,0)+0.15*N20 -> 29.76412056 | AV20: =IF(O20>0,0.035*$D$10,0.023*$D$10)+IF($S20>24,1,0)+0.15*O20 -> 31.51417271 | AW20: =IF(S20="",0,IF(S20<27,N20/0.1,(N20+18)/0.1)) -> 350.9413707 | AX20: =IF(S20="",0,IF(S20<27,O20/0.1,(O20+18)/0.1)) -> 467.6115142 | AY20: =0.3*AC20 -> 6.537989168 | AZ20: =0.3*AD20 -> 7.840027969 | BA20: =10*AC20 -> 217.9329723 | BB20: =10*AD20 -> 261.3342656 | BC20: =50*AC20 -> 1089.664861 | BD20: =50*AD20 -> 1306.671328 | BE20: =50*AC20 -> 1089.664861 | BF20: =50*AD20 -> 1306.671328 | BG20: =IF(N20>0,0.65*AC20,0.45*AC20) -> 14.1656432 | BH20: =IF(O20>0,0.65*AD20,0.45*AD20) -> 16.98672727 | BI20: =IF(N20>0,0.15,0) -> 0.15 | BJ20: =IF(O20>0,0.15,0) -> 0.15 | BK20: =$BK$17+(1-$BK$17)*(1-EXP(-0.25*Q20)) -> 0.7573877361 | BL20: =$BL$17+(1-$BL$17)*(1-EXP(-0.25*Q20)) -> 0.8180408021 | BM20: =0.8+0.2*(1-EXP(-0.25*(40-S20))) -> 0.99999092 | BN20: =-0.1+1.1*(1-EXP(-0.08*T20)) -> 0.845055737 | BO20: 1 | BP20: =0.91+0.115/(1+EXP(0.13*(90-(AG20/AE20)))) -> 1.024807576 | BQ20: =0.91+0.115/(1+EXP(0.13*(90-AH20/AF20))) -> 1.021260634
F21: PDI_VPR pot | H21: Variació reserves corporals PDI | I21: =IF(I22=1,100+33*I20,IF(I22=2,50+33*I20,33*I20)) -> 22.68260699
F22: Setmana lactació | I22: =IF(I15="",I12,0) -> 8 | K22: ici
F23: Setmana gestació | I23: =IF(I15="",I14,I15) -> 0 | BR23: Exemples segons valor interval entre parts
A24: Interval part fecundació (dies) | D24: =D6-284 -> 133 | J24: =IF(K24=K20,0,K24) -> 5 | K24: =IF(L24<$N$7,L24,$N$7) -> 5 | L24: 5 | M24: 0 | N24: =IF(Q24=0,0,IF(R24="",N$19*(-0.55+1.66*EXP(-0.0065*Q24)-0.72*EXP(-0.44*Q24)),N$19*(-0.55+1.66*EXP(-0.0065*Q24)-0.72*EXP(-0.44*Q24)-(0.69*EXP(-0.16*(45-R24)))))) -> 43.41202248 | O24: =IF(Q24=0,0,IF(R24="",O$19*(-0.83+1.92*EXP(-0.0083*Q24)-0.74*EXP(-0.88*Q24)),O$19*(-0.83+1.92*EXP(-0.0083*Q24)-0.74*EXP(-0.88*Q24)-(0.5*EXP(-0.12*(45-R24)))))) -> 50.36651188 | P24: 4 a 6 | Q24: =IF(K24=K20,0,K24) -> 5 | R24: =IF(Q24=0,R20+4,IF((Q24-$D$25)<0,"",Q24-$D$25)) ->  | S24: =IF(R24>40,0,R24) -> 0 | T24: =IF(Q24=0,T20+1,24+(Q24/4)) -> 25.25 | U24: 2.699001441 | V24: 2.773366729 | W24: 3.852078697 | X24: 3.494448917 | Y24: =33*W24 -> 127.118597 | Z24: =33*X24 -> 115.3168142 | AA24: =(14.25+(0.015*($D$10-600))+(0.11*N24)+((2.5-U24)))*BK24*BM24*BN24*BP24 -> 15.72881433 | AB24: =(14.25+(0.015*($D$10-600))+0.11*O24+((2.5-V24)))*BL24*BM24*BO24*BQ24 -> 19.5116774 | AC24: =IF(Q24>0,0.372*N24+0.0968*$D$10^0.75*(1-EXP(-0.192*(Q24+3.67))),0.372*N24+0.0968*$D$10^0.75*(1-EXP(-0.192*($N$7+1+3.67)))) -> 26.82951556 | AD24: =IF(Q24>0,0.372*O24+0.0968*$D$10^0.75*(1-EXP(-0.192*(Q24+3.67))),0.372*O24+0.0968*$D$10^0.75*(1-EXP(-0.192*($N$7+1+3.67)))) -> 29.41658562 | AE24: =(0.0536*$D$10^0.75)*$K$6+N24*0.42+(3.14-0.077*T24)+IF(S24="",0,(0.000695*$D$12*EXP(0.116*S24)))-W24 -> 22.89889966 | AF24: =(0.0536*$D$10^0.75)*$K$6+O24*0.42+(3.14-0.077*U24)+IF(S24="",0,(0.000695*$D$12*EXP(0.116*S24)))-X24 -> 27.91384188 | AG24: =IF(S24="",19.8*AC24+0.312*$D$10+0.2*$D$10^0.6/$D$16+((270-6.66*T24)/$D$16)+(N24*31/$D$16)-Y24,19.8*AC24+0.312*$D$10+0.2*$D$10^0.6/$D$16+((270-6.66*T24)/$D$16)+(N24*31/$D$16)+0.0448*$D$12*EXP(0.111*S24)/$D$16-Y24) -> 2800.994907 | AH24: =IF(S24="",19.8*AD24+0.312*$D$10+0.2*$D$10^0.6/$D$16+(O24*31/$D$16)-Z24,19.8*AD24+0.312*$D$10+0.2*$D$10^0.6/$D$16+(O24*31/$D$16)+0.0448*$D$12*EXP(0.111*S24)/$D$16)-Z24 -> 3033.803022 | AI24: =(0.83*AC24+0.002*$D$10+0.9*N24+IF($S24=0,0,(7.38/(1+EXP(19.1-5.46*LN(S24)))))) -> 62.73931815 | AJ24: =(0.83*AD24+0.002*$D$10+0.9*O24+IF($S24=0,0,(7.38/(1+EXP(19.1-5.46*LN(S24)))))) -> 71.14562676 | AK24: =(0.663*AC24+0.008*$D$10+1.25*N24+IF(S24=0,0,(23.5/(1+EXP(18.8-(5.03*LN(S24))))))) -> 77.65299692 | AL24: =(0.663*AD24+0.008*$D$10+1.25*O24+IF(S24=0,0,(23.5/(1+EXP(18.8-(5.03*LN(S24))))))) -> 88.06133612 | AM24: =(0.011*$D$10+0.15*N24+IF(S24>36,0.33,0)) -> 14.21180337 | AN24: =(0.011*$D$10+0.15*O24+IF(S24>36,0.33,0)) -> 15.25497678 | AO24: =IF(N24>0,0.115*$D$10,0.07*$D$10)+IF(S24>24,1,0)+1.5*N24 -> 145.6180337 | AP24: =IF(O24>0,0.115*$D$10,0.07*$D$10)+IF(S24>24,1,0)+1.5*O24 -> 156.0497678 | AQ24: =IF(N24>0,0.023*$D$10,0.015*$D$10)+IF($S24>24,1.3,0)+0.45*N24 -> 35.63541012 | AR24: =IF(O24>0,0.023*$D$10,0.015*$D$10)+IF($S24>24,1.3,0)+0.45*O24 -> 38.76493035 | AS24: =2*AC24 -> 53.65903112 | AT24: 58.83317124 | AU24: =IF(N24>0,0.035*$D$10,0.023*$D$10)+IF($S24>24,1,0)+0.15*N24 -> 31.01180337 | AV24: =IF(O24>0,0.035*$D$10,0.023*$D$10)+IF($S24>24,1,0)+0.15*O24 -> 32.05497678 | AW24: =IF(S24="",0,IF(S24<27,N24/0.1,(N24+18)/0.1)) -> 434.1202248 | AX24: =IF(S24="",0,IF(S24<27,O24/0.1,(O24+18)/0.1)) -> 503.6651188 | AY24: =0.3*AC24 -> 8.048854669 | AZ24: =0.3*AD24 -> 8.824975686 | BA24: =10*AC24 -> 268.2951556 | BB24: =10*AD24 -> 294.1658562 | BC24: =50*AC24 -> 1341.475778 | BD24: =50*AD24 -> 1470.829281 | BE24: =50*AC24 -> 1341.475778 | BF24: =50*AD24 -> 1470.829281 | BG24: =IF(N24>0,0.65*AC24,0.45*AC24) -> 17.43918512 | BH24: =IF(O24>0,0.65*AD24,0.45*AD24) -> 19.12078065 | BI24: =IF(N24>0,0.15,0) -> 0.15 | BJ24: 0.15 | BK24: =$BK$17+(1-$BK$17)*(1-EXP(-0.25*Q24)) -> 0.8853980813 | BL24: =$BL$17+(1-$BL$17)*(1-EXP(-0.25*Q24)) -> 0.9140485609 | BM24: =0.8+0.2*(1-EXP(-0.25*(40-S24))) -> 0.99999092 | BN24: 0.8540789884 | BO24: 1 | BP24: =0.91+0.115/(1+EXP(0.13*(90-AG24/AE24))) -> 1.023303677 | BQ24: =0.91+0.115/(1+EXP(0.13*(90-AH24/AF24))) -> 1.01568631 | BR24: 365 | BS24: =BR24+10 -> 375 | BT24: =BS24+10 -> 385 | BU24: 395 | BV24: 405 | BW24: 415 | BX24: 425 | BY24: 435 | BZ24: 445 | CA24: 455 | CB24: 465
A25: Setmana inseminació fecundant | D25: =D24/7 -> 19 | J25: =IF(K25=K24,0,K25) -> 9.5 | K25: 9.5 | L25: 9.5 | M25: 0 | N25: =IF(Q25=0,0,IF(R25="",N$19*(-0.55+1.66*EXP(-0.0065*Q25)-0.72*EXP(-0.44*Q25)),N$19*(-0.55+1.66*EXP(-0.0065*Q25)-0.72*EXP(-0.44*Q25)-(0.69*EXP(-0.16*(45-R25)))))) -> 44.40905853 | O25: =IF(Q25=0,0,IF(R25="",O$19*(-0.83+1.92*EXP(-0.0083*Q25)-0.74*EXP(-0.88*Q25)),O$19*(-0.83+1.92*EXP(-0.0083*Q25)-0.74*EXP(-0.88*Q25)-(0.5*EXP(-0.12*(45-R25)))))) -> 47.42266968 | P25: 7 a 12 | Q25: =IF(K25=K24,0,K25) -> 9.5 | R25: =IF(Q25=0,R24+4,IF((Q25-$D$25)<0,"",Q25-$D$25)) ->  | S25: 0 | T25: =IF(Q25=0,T24+1,24+(Q25/4)) -> 26.375 | U25: 2.483606401 | V25: 2.57796912 | W25: 0.3772231979 | X25: 0.3422015226 | Y25: =33*W25 -> 12.44836553 | Z25: 11.29265025 | AA25: =(14.25+(0.015*($D$10-600))+(0.11*N25)+((2.5-U25)))*BK25*BM25*BN25*BP25 -> 17.55242271 | AB25: =(14.25+(0.015*($D$10-600))+0.11*O25+((2.5-V25)))*BL25*BM25*BO25*BQ25 -> 20.35263821 | AC25: =IF(Q25>0,0.372*N25+0.0968*$D$10^0.75*(1-EXP(-0.192*(Q25+3.67))),0.372*N25+0.0968*$D$10^0.75*(1-EXP(-0.192*($N$7+1+3.67)))) -> 28.64278965 | AD25: =IF(Q25>0,0.372*O25+0.0968*$D$10^0.75*(1-EXP(-0.192*(Q25+3.67))),0.372*O25+0.0968*$D$10^0.75*(1-EXP(-0.192*($N$7+1+3.67)))) -> 29.763853 | AE25: =(0.0536*$D$10^0.75)*$K$6+N25*0.42+(3.14-0.077*T25)+IF(S25="",0,(0.000695*$D$12*EXP(0.116*S25)))-W25 -> 26.7058853 | AF25: =(0.0536*$D$10^0.75)*$K$6+O25*0.42+(3.14-0.077*U25)+IF(S25="",0,(0.000695*$D$12*EXP(0.116*S25)))-X25 -> 29.84626097 | AG25: =IF(S25="",19.8*AC25+0.312*$D$10+0.2*$D$10^0.6/$D$16+((270-6.66*T25)/$D$16)+(N25*31/$D$16)-Y25,19.8*AC25+0.312*$D$10+0.2*$D$10^0.6/$D$16+((270-6.66*T25)/$D$16)+(N25*31/$D$16)+0.0448*$D$12*EXP(0.111*S25)/$D$16-Y25) -> 2986.516648 | AH25: =IF(S25="",19.8*AD25+0.312*$D$10+0.2*$D$10^0.6/$D$16+(O25*31/$D$16)-Z25,19.8*AD25+0.312*$D$10+0.2*$D$10^0.6/$D$16+(O25*31/$D$16)+0.0448*$D$12*EXP(0.111*S25)/$D$16)-Z25 -> 3008.495456 | AI25: 65.14166809 | AJ25: 68.78440071 | AK25: 80.10149271 | AL25: 84.61177164 | AM25: 14.36135878 | AN25: 14.81340045 | AO25: =IF(N25>0,0.115*$D$10,0.07*$D$10)+IF(S25>24,1,0)+1.5*N25 -> 147.1135878 | AP25: =IF(O25>0,0.115*$D$10,0.07*$D$10)+IF(S25>24,1,0)+1.5*O25 -> 151.6340045 | AQ25: =IF(N25>0,0.023*$D$10,0.015*$D$10)+IF($S25>24,1.3,0)+0.45*N25 -> 36.08407634 | AR25: 37.44020136 | AS25: 57.28557931 | AT25: 59.527706 | AU25: =IF(N25>0,0.035*$D$10,0.023*$D$10)+IF($S25>24,1,0)+0.15*N25 -> 31.16135878 | AV25: 31.61340045 | AW25: 444.0905853 | AX25: 474.2266968 | AY25: =0.3*AC25 -> 8.592836896 | AZ25: 8.9291559 | BA25: =10*AC25 -> 286.4278965 | BB25: 297.63853 | BC25: =50*AC25 -> 1432.139483 | BD25: 1488.19265 | BE25: =50*AC25 -> 1432.139483 | BF25: 1488.19265 | BG25: =IF(N25>0,0.65*AC25,0.45*AC25) -> 18.61781327 | BH25: 19.34650445 | BI25: 0.15 | BJ25: 0.15 | BK25: =$BK$17+(1-$BK$17)*(1-EXP(-0.25*Q25)) -> 0.9627942043 | BL25: =$BL$17+(1-$BL$17)*(1-EXP(-0.25*Q25)) -> 0.9720956532 | BM25: 0.99999092 | BN25: 0.8666382369 | BO25: 1 | BP25: =0.91+0.115/(1+EXP(0.13*(90-AG25/AE25))) -> 1.018639258 | BQ25: 1.002323447
A26: Període lactació (dies): IP - TE | D26: =D6-D7 -> 357 | F26: =D3*(1+(0.0055*(D4*10-40)+0.0033*(D5*10-31))) -> 11430.32202 | J26: 16 | K26: 16 | L26: 16 | M26: 0 | N26: 42.00207394 | O26: 42.75091404 | P26: 13 a 16 | Q26: 16 | S26: 0 | T26: 28 | U26: 2.549193915 | V26: 2.637467442 | W26: -0.7863926763 | X26: -0.7133834099 | Y26: -25.95095832 | Z26: -23.54165253 | AA26: 18.08076828 | AB26: 20.04359215 | AC26: 28.49653705 | AD26: 28.77510557 | AE26: 26.73344265 | AF26: 28.93465829 | AG26: 2894.499242 | AH26: 2807.596702 | AI26: 62.8539923 | AJ26: 63.75916026 | AK26: 76.99579649 | AL26: 78.11653755 | AM26: 14.00031109 | AN26: 14.11263711 | AO26: 143.5031109 | AP26: 144.6263711 | AQ26: 35.00093327 | AR26: 35.33791132 | AS26: 56.99307411 | AT26: 57.55021114 | AU26: 30.80031109 | AV26: 30.91263711 | AW26: 420.0207394 | AX26: 427.5091404 | AY26: 8.548961116 | AZ26: 8.632531672 | BA26: 284.9653705 | BB26: 287.7510557 | BC26: 1424.826853 | BD26: 1438.755279 | BE26: 1424.826853 | BF26: 1438.755279 | BG26: 18.52274909 | BH26: 18.70381862 | BI26: 0.15 | BJ26: 0.15 | BK26: 0.9926737444 | BL26: 0.9945053083 | BM26: 0.99999092 | BN26: 0.8828956452 | BO26: 1 | BP26: 1.015217526 | BQ26: 0.9920937707
A27: % dies productius (IP - TE)/IP | D27: =D26/D6 -> 0.8561151079 | J27: 20 | K27: 20 | L27: =L26+4 -> 20 | M27: 1 | N27: 40.2925934 | O27: 39.8658224 | P27: 17 a 20 | Q27: 20 | R27: 1 | S27: 1 | T27: 29 | U27: 2.643261555 | V27: 2.722801774 | W27: -0.9332047876 | X27: -0.8465653783 | Y27: -30.79575799 | Z27: -27.93665748 | AA27: 18.07598642 | AB27: 19.62011188 | AC27: 28.02232085 | AD27: 27.86356203 | AE27: 26.08869222 | AF27: 27.85227785 | AG27: 2801.232881 | AH27: 2660.767817 | AI27: 60.9218604 | AJ27: 60.40599668 | AK27: 74.54454063 | AL27: 73.90581978 | AM27: 13.74388901 | AN27: 13.67987336 | AO27: 140.9388901 | AP27: 140.2987336 | AQ27: 34.23166703 | AR27: 34.03962008 | AS27: 56.04464169 | AT27: 55.72712407 | AU27: 30.54388901 | AV27: 30.47987336 | AW27: 402.925934 | AX27: 398.658224 | AY27: 8.406696254 | AZ27: 8.35906861 | BA27: 280.2232085 | BB27: 278.6356203 | BC27: 1401.116042 | BD27: 1393.178102 | BE27: 1401.116042 | BF27: 1393.178102 | BG27: 18.21450855 | BH27: 18.11131532 | BI27: 0.15 | BJ27: 0.15 | BK27: 0.9973048212 | BL27: 0.9979786159 | BM27: 0.9999883411 | BN27: 0.8918990558 | BO27: 1 | BP27: 1.014119317 | BQ27: 0.9873266413
A28: Producció mitjana explotació, vaca munyida i any, estàndard, Pl vp 4% | D28: =(D3*(1+(0.0055*(D4*10-40)+0.0033*(D5*10-31))))/D27 -> 13351.38454 | J28: 24 | K28: 24 | L28: =L27+4 -> 24 | M28: 5 | N28: 38.6104613 | O28: 37.11983689 | P28: 21 a 24 | Q28: 24 | R28: 5 | S28: 5 | T28: 30 | U28: 2.746751677 | V28: 2.816683798 | W28: -0.9800248246 | X28: -0.8890386091 | Y28: -32.34081921 | Z28: -29.3382741 | AA28: 17.99501794 | AB28: 19.16128583 | AC28: 27.4715917 | AD28: 26.91707942 | AE28: 25.37044936 | AF28: 26.75190101 | AG28: 2705.773642 | AH28: 2518.046445 | AI28: 58.95108141 | AJ28: 57.14927425 | AK28: 72.07726933 | AL28: 69.84634717 | AM28: 13.4915692 | AN28: 13.26797553 | AO28: 138.415692 | AP28: 136.1797553 | AQ28: 33.47470759 | AR28: 32.8039266 | AS28: 54.94318341 | AT28: 53.83415884 | AU28: 30.2915692 | AV28: 30.06797553 | AW28: 386.104613 | AX28: 371.1983689 | AY28: 8.241477511 | AZ28: 8.075123826 | BA28: 274.715917 | BB28: 269.1707942 | BC28: 1373.579585 | BD28: 1345.853971 | BE28: 1373.579585 | BF28: 1345.853971 | BG28: 17.85653461 | BH28: 17.49610162 | BI28: 0.15 | BJ28: 0.15 | BK28: 0.9990084991 | BL28: 0.9992563743 | BM28: 0.9999683077 | BN28: 0.9002102514 | BO28: 1 | BP28: 1.013157668 | BQ28: 0.982561151
A29: Producció mitjana explotació, vaca 305 lactació Pl vl 4% | D29: =D28*385/(365+80) -> 11551.19786 | E29: =D28*385/(D6+80) -> 10342.62183 | F29: =D28*D27 -> 11430.32202 | J29: 28 | K29: 28 | L29: 28 | M29: 9 | N29: 36.94609522 | O29: 34.41241232 | P29: 25 a 28 | Q29: 28 | R29: 9 | S29: 9 | T29: 31 | U29: 2.853246709 | V29: 2.913291753 | W29: -0.9949560541 | X29: -0.9025836124 | Y29: -32.83354979 | Z29: -29.78525921 | AA29: 17.87470517 | AB29: 18.68184467 | AC29: 26.88725416 | AD29: 25.94472412 | AE29: 24.63866244 | AF29: 25.64944318 | AG29: 2610.352289 | AH29: 2376.575978 | AI29: 56.97397176 | AJ29: 53.91135722 | AK29: 69.61900727 | AL29: 65.82700623 | AM29: 13.24191428 | AN29: 12.86186185 | AO29: 135.9191428 | AP29: 132.1186185 | AQ29: 32.72574285 | AR29: 31.58558554 | AS29: 53.77450831 | AT29: 51.88944823 | AU29: 30.04191428 | AV29: 29.66186185 | AW29: 369.4609522 | AX29: 344.1241232 | AY29: 8.066176247 | AZ29: 7.783417235 | BA29: 268.8725416 | BB29: 259.4472412 | BC29: 1344.362708 | BD29: 1297.236206 | BE29: 1344.362708 | BF29: 1297.236206 | BG29: 17.4767152 | BH29: 16.86407068 | BI29: 0.15 | BJ29: 0.15 | BK29: 0.9996352472 | BL29: 0.9997264354 | BM29: 0.9999138515 | BN29: 0.9078824518 | BO29: 1 | BP29: 1.012147717 | BQ29: 0.977329506
A30: Vaques primera lactació | D30: =D8*D9 -> 78.588 | J30: 32 | K30: 32 | L30: 32 | M30: 13 | N30: 35.28178649 | O30: 31.71080375 | P30: 29 a 32 | Q30: 32 | R30: 13 | S30: 13 | T30: 32 | U30: 2.960700026 | V30: 3.010769027 | W30: -0.9997177214 | X30: -0.906903203 | Y30: -32.9906848 | Z30: -29.9278057 | AA30: 17.72645773 | AB30: 18.18676026 | AC30: 26.2842795 | AD30: 24.95587392 | AE30: 23.91403865 | AF30: 24.55743748 | AG30: 2515.684479 | AH30: 2236.199072 | AI30: 55.01448715 | AJ30: 50.69802605 | AK30: 67.19302014 | AL30: 61.84855881 | AM30: 12.99226797 | AN30: 12.45662056 | AO30: 133.4226797 | AP30: 128.0662056 | AQ30: 31.97680392 | AR30: 30.36986169 | AS30: 52.568559 | AT30: 49.91174784 | AU30: 29.79226797 | AV30: 29.25662056 | AW30: 352.8178649 | AX30: 317.1080375 | AY30: 7.88528385 | AZ30: 7.486762176 | BA30: 262.842795 | BB30: 249.5587392 | BC30: 1314.213975 | BD30: 1247.793696 | BE30: 1314.213975 | BF30: 1247.793696 | BG30: 17.08478168 | BH30: 16.22131805 | BI30: 0.15 | BJ30: 0.15 | BK30: 0.9998658149 | BL30: 0.9998993612 | BM30: 0.9997658241 | BN30: 0.9149647855 | BO30: 1 | BP30: 1.010994384 | BQ30: 0.9714553134
A31: Vaques adultes | D31: =D8*(1-D9) -> 143.412 | F31: =D28/D27 -> 15595.31472 | J31: 36 | K31: 36 | L31: 36 | M31: 17 | N31: 33.58024137 | O31: 28.96393677 | P31: 33 a 36 | Q31: 36 | R31: 17 | S31: 17 | T31: 33 | U31: 3.068458947 | V31: 3.108523532 | W31: -1.001236248 | X31: -0.9082807488 | Y31: -33.04079619 | Z31: -29.97326471 | AA31: 17.54871512 | AB31: 17.67039749 | AC31: 25.65879651 | AD31: 23.9415312 | AE31: 23.19806044 | AF31: 23.47098567 | AG31: 2421.010125 | AH31: 2095.395304 | AI31: 53.10953124 | AJ31: 47.5295269 | AK31: 64.83307504 | AL31: 57.92414739 | AM31: 12.73703621 | AN31: 12.04459052 | AO31: 130.8703621 | AP31: 123.9459052 | AQ31: 31.21110862 | AR31: 29.13377155 | AS31: 51.31759301 | AT31: 47.88306239 | AU31: 29.53703621 | AV31: 28.84459052 | AW31: 335.8024137 | AX31: 289.6393677 | AY31: 7.697638952 | AZ31: 7.182459359 | BA31: 256.5879651 | BB31: 239.415312 | BC31: 1282.939825 | BD31: 1197.07656 | BE31: 1282.939825 | BF31: 1197.07656 | BG31: 16.67821773 | BH31: 15.56199528 | BI31: 0.15 | BJ31: 0.15 | BK31: 0.9999506361 | BL31: 0.9999629771 | BM31: 0.9993634438 | BN31: 0.9215026035 | BO31: 1 | BP31: 1.009604596 | BQ31: 0.9647959803
A32: Vaques adultes en lactació | D32: =D31*D27 -> 122.7771799 | G32: =11000*385/480 -> 8822.916667 | J32: 40 | K32: 40 | L32: 40 | M32: 21 | N32: 31.77090469 | O32: 26.09105616 | P32: 37 a 40 | Q32: 40 | R32: 21 | S32: 21 | T32: 34 | U32: 3.176315327 | V32: 3.206366447 | W32: -1.001720516 | X32: -0.9087200572 | Y32: -33.05677704 | Z32: -29.98776189 | AA32: 17.32736926 | AB32: 17.11673279 | AC32: 24.989199 | AD32: 22.87629535 | AE32: 22.47955669 | AF32: 22.37444356 | AG32: 2323.978054 | AH32: 1951.259659 | AI32: 51.30674767 | AJ32: 44.44117395 | AK32: 62.57969489 | AL32: 54.0790291 | AM32: 12.4656357 | AN32: 11.61365842 | AO32: 128.156357 | AP32: 119.6365842 | AQ32: 30.39690711 | AR32: 27.84097527 | AS32: 49.97839801 | AT32: 45.7525907 | AU32: 29.2656357 | AV32: 28.41365842 | AW32: 317.7090469 | AX32: 260.9105616 | AY32: 7.496759701 | AZ32: 6.862888605 | BA32: 249.89199 | BB32: 228.7629535 | BC32: 1249.45995 | BD32: 1143.814767 | BE32: 1249.45995 | BF32: 1143.814767 | BG32: 16.24297935 | BH32: 14.86959198 | BI32: 0.15 | BJ32: 0.15 | BK32: 0.99998184 | BL32: 0.99998638 | BM32: 0.998269661 | BN32: 0.9275377701 | BO32: 1 | BP32: 1.007823752 | BQ32: 0.9571826887
A33: Vaques adultes eixutes | D33: =D31*(1-D27) -> 20.63482014 | J33: 44 | K33: 44 | L33: 44 | M33: 25 | N33: 29.72078867 | O33: 22.96338199 | P33: 41 a 44 | Q33: 44 | R33: 25 | S33: 25 | T33: 35 | U33: 3.284202788 | V33: 3.304237558 | W33: -1.001874953 | X33: -0.9088601555 | Y33: -33.06187344 | Z33: -29.99238513 | AA33: 17.02554931 | AB33: 16.49252847 | AC33: 24.22816838 | AD33: 21.7144131 | AE33: 21.72922635 | AF33: 21.24021714 | AG33: 2219.498511 | AH33: 1798.925912 | AI33: 49.57715773 | AJ33: 41.40907484 | AK33: 60.4253733 | AL33: 50.3119952 | AM33: 12.1581183 | AN33: 11.1445073 | AO33: 126.081183 | AP33: 115.945073 | AQ33: 30.7743549 | AR33: 27.7335219 | AS33: 48.45633676 | AT33: 43.42882619 | AU33: 29.9581183 | AV33: 28.9445073 | AW33: 297.2078867 | AX33: 229.6338199 | AY33: 7.268450514 | AZ33: 6.514323929 | BA33: 242.2816838 | BB33: 217.144131 | BC33: 1211.408419 | BD33: 1085.720655 | BE33: 1211.408419 | BF33: 1085.720655 | BG33: 15.74830945 | BH33: 14.11436851 | BI33: 0.15 | BJ33: 0.15 | BK33: 0.9999933193 | BL33: 0.9999949895 | BM33: 0.9952964508 | BN33: 0.9331089311 | BO33: 1 | BP33: 1.005336534 | BQ33: 0.9484205218
A34: Vaques primípares en lactació | D34: =D30*D27 -> 67.2803741 | J34: 48 | K34: 48 | L34: 48 | M34: 29 | N34: 27.17859422 | O34: 19.37446653 | P34: 45 a 48 | Q34: 48 | R34: 29 | S34: 29 | T34: 36 | U34: 3.39210016 | V34: 3.402117659 | W34: -1.001924204 | X34: -0.9089048337 | Y34: -33.06349872 | Z34: -29.99385951 | AA34: 16.5549609 | AB34: 15.72962604 | AC34: 23.28322017 | AD34: 20.38008466 | AE34: 20.88285997 | AF34: 20.02291526 | AG34: 2097.202574 | AH34: 1630.430018 | AI34: 47.61080896 | AJ34: 38.17749157 | AK34: 58.16869253 | AL34: 46.48875408 | AM34: 11.77678913 | AN34: 10.60616998 | AO34: 122.2678913 | AP34: 110.5616998 | AQ34: 29.6303674 | AR34: 26.11850994 | AS34: 46.56644033 | AT34: 40.76016933 | AU34: 29.57678913 | AV34: 28.40616998 | AW34: 451.7859422 | AX34: 373.7446653 | AY34: 6.98496605 | AZ34: 6.114025399 | BA34: 232.8322017 | BB34: 203.8008466 | BC34: 1164.161008 | BD34: 1019.004233 | BE34: 1164.161008 | BF34: 1019.004233 | BG34: 15.13409311 | BH34: 13.24705503 | BI34: 0.15 | BJ34: 0.15 | BK34: 0.9999975423 | BL34: 0.9999981567 | BM34: 0.9872144278 | BN34: 0.9382517609 | BO34: 1 | BP34: 1.001428286 | BQ34: 0.9384123444
A35: Vaques primípares eixutes | D35: =D30*(1-D27) -> 11.3076259 | J35: 51 | K35: 51 | L35: 52 | M35: 32 | N35: 24.67614749 | O35: 16.18702862 | P35: 49 a 52 | Q35: 51 | R35: 32 | S35: 32 | T35: 36.75 | U35: 3.473025419 | V35: 3.475529759 | W35: -1.001937478 | X35: -0.9089168756 | Y35: -33.06393677 | Z35: -29.9942569 | AA35: 15.97317993 | AB35: 14.98432398 | AC35: 22.35259348 | AD35: 19.19464126 | AE35: 20.10855791 | AF35: 19.01243442 | AG35: 1981.961601 | AH35: 1485.905236 | AI35: 45.52532019 | AJ35: 35.26401286 | AK35: 56.03659567 | AL35: 43.33147476 | AM35: 11.40142212 | AN35: 10.12805429 | AO35: 118.5142212 | AP35: 105.7805429 | AQ35: 28.50426637 | AR35: 24.68416288 | AS35: 44.70518696 | AT35: 38.38928252 | AU35: 29.20142212 | AV35: 27.92805429 | AW35: 426.7614749 | AX35: 341.8702862 | AY35: 6.705778044 | AZ35: 5.758392378 | BA35: 223.5259348 | BB35: 191.9464126 | BC35: 1117.629674 | BD35: 959.7320629 | BE35: 1117.629674 | BF35: 959.7320629 | BG35: 14.52918576 | BH35: 12.47651682 | BI35: 0.15 | BJ35: 0.15 | BK35: 0.9999988391 | BL35: 0.9999991293 | BM35: 0.9729329434 | BN35: 0.9418476984 | BO35: 1 | BP35: 0.9965634352 | BQ35: 0.930302741
A36: Vaques adultes en lactació (%) | D36: =D32/D8 -> 0.5530503597 | J36: 0 | K36: 51 | L36: 56 | M36: 0 | N36: 0 | O36: 0 | P36: 53 a 56 | Q36: 0 | R36: 36 | S36: 36 | T36: 37.75 | U36: 3.5 | V36: 3.5 | W36: -1.001947264 | X36: -0.9089257533 | Y36: -33.06425971 | Z36: -29.99454986 | AA36: 7.107410897 | AB36: 8.712257464 | AC36: 13.1731302 | AD36: 13.1731302 | AE36: 10.33949274 | AF36: 12.88372123 | AG36: 700.6837365 | AH36: 669.8752207 | AI36: 16.86826342 | AJ36: 16.86826342 | AK36: 21.74615881 | AL36: 21.74615881 | AM36: 7.7 | AN36: 7.7 | AO36: 50 | AP36: 50 | AQ36: 11.8 | AR36: 11.8 | AS36: 26.34626039 | AT36: 26.34626039 | AU36: 17.1 | AV36: 17.1 | AW36: 180 | AX36: 180 | AY36: 3.951939059 | AZ36: 3.951939059 | BA36: 131.731302 | BB36: 131.731302 | BC36: 658.6565098 | BD36: 658.6565098 | BE36: 658.6565098 | BF36: 658.6565098 | BG36: 5.927908589 | BH36: 5.927908589 | BI36: 0 | BJ36: 0 | BK36: 0.6 | BL36: 0.7 | BM36: 0.9264241118 | BN36: 0.9463186598 | BO36: 1 | BP36: 0.9160536291 | BQ36: 0.9108162935
A37: Vaques adultes eixutes (%) | D37: =D33/D8 -> 0.09294964029 | J37: 0 | K37: 51 | L37: 60 | M37: 0 | N37: 0 | O37: 0 | P37: 57 a 60 | Q37: 0 | R37: 40 | S37: 40 | T37: 38.75 | U37: 3.5 | V37: 3.5 | W37: -1.001947264 | X37: -0.9089257533 | Y37: -33.06425971 | Z37: -29.99454986 | AA37: 6.166147765 | AB37: 7.52515305 | AC37: 13.1731302 | AD37: 13.1731302 | AE37: 11.33110905 | AF37: 13.95233753 | AG37: 772.0380477 | AH37: 751.1698304 | AI37: 17.78823583 | AJ37: 17.78823583 | AK37: 24.65193565 | AL37: 24.65193565 | AM37: 8.03 | AN37: 8.03 | AO37: 50 | AP37: 50 | AQ37: 11.8 | AR37: 11.8 | AS37: 26.34626039 | AT37: 26.34626039 | AU37: 17.1 | AV37: 17.1 | AW37: 180 | AX37: 180 | AY37: 3.951939059 | AZ37: 3.951939059 | BA37: 131.731302 | BB37: 131.731302 | BC37: 658.6565098 | BD37: 658.6565098 | BE37: 658.6565098 | BF37: 658.6565098 | BG37: 5.927908589 | BH37: 5.927908589 | BI37: 0 | BJ37: 0 | BK37: 0.6 | BL37: 0.7 | BM37: 0.8 | BN37: 0.9504458774 | BO37: 1 | BP37: 0.9163328984 | BQ37: 0.9110354782
A38: Vaques primípares en lactació (%) | D38: =D34/D8 -> 0.3030647482 | J38: 0 | K38: 51 | L38: 64 | M38: 0 | N38: 0 | O38: 0 | P38: 61 a 64 | Q38: 0 | R38: 44 | S38: 0 | T38: 39.75 | U38: 3.5 | V38: 3.5 | W38: -1.001947264 | X38: -0.9089257533 | Y38: -33.06425971 | Z38: -29.99454986 | AA38: 7.717109759 | AB38: 9.400366325 | AC38: 13.1731302 | AD38: 13.1731302 | AE38: 8.403376183 | AF38: 11.10160467 | AG38: 538.0310395 | AH38: 527.1031207 | AI38: 12.33369806 | AJ38: 12.33369806 | AK38: 14.33378532 | AL38: 14.33378532 | AM38: 7.7 | AN38: 7.7 | AO38: 49 | AP38: 49 | AQ38: 10.5 | AR38: 10.5 | AS38: 26.34626039 | AT38: 26.34626039 | AU38: 16.1 | AV38: 16.1 | AW38: 0 | AX38: 0 | AY38: 3.951939059 | AZ38: 3.951939059 | BA38: 131.731302 | BB38: 131.731302 | BC38: 658.6565098 | BD38: 658.6565098 | BE38: 658.6565098 | BF38: 658.6565098 | BG38: 5.927908589 | BH38: 5.927908589 | BI38: 0 | BJ38: 0 | BK38: 0.6 | BL38: 0.7 | BM38: 0.99999092 | BN38: 0.9542557794 | BO38: 1 | BP38: 0.9137987318 | BQ38: 0.9104553686
A39: Vaques primípares eixutes (%) | D39: =D35/D8 -> 0.0509352518 | J39: 0 | K39: 51 | L39: 68 | M39: 0 | N39: 0 | O39: 0 | P39: 65 a 68 | Q39: 0 | R39: 48 | S39: 0 | T39: 40.75 | U39: 3.5 | V39: 3.5 | W39: -1.001947264 | X39: -0.9089257533 | Y39: -33.06425971 | Z39: -29.99454986 | AA39: 7.743203149 | AB39: 9.400366325 | AC39: 13.1731302 | AD39: 13.1731302 | AE39: 8.326376183 | AF39: 11.10160467 | AG39: 528.090741 | AH39: 527.1031207 | AI39: 12.33369806 | AJ39: 12.33369806 | AK39: 14.33378532 | AL39: 14.33378532 | AM39: 7.7 | AN39: 7.7 | AO39: 49 | AP39: 49 | AQ39: 10.5 | AR39: 10.5 | AS39: 26.34626039 | AT39: 26.34626039 | AU39: 16.1 | AV39: 16.1 | AW39: 0 | AX39: 0 | AY39: 3.951939059 | AZ39: 3.951939059 | BA39: 131.731302 | BB39: 131.731302 | BC39: 658.6565098 | BD39: 658.6565098 | BE39: 658.6565098 | BF39: 658.6565098 | BG39: 5.927908589 | BH39: 5.927908589 | BI39: 0 | BJ39: 0 | BK39: 0.6 | BL39: 0.7 | BM39: 0.99999092 | BN39: 0.9577727622 | BO39: 1 | BP39: 0.9135216494 | BQ39: 0.9104553686
J40: 0 | K40: 51 | L40: 72 | M40: 0 | N40: 0 | O40: 0 | P40: 69 a 71 | Q40: 0 | R40: 52 | S40: 0 | T40: 41.75 | U40: 3.5 | V40: 3.5 | W40: -1.001947264 | X40: -0.9089257533 | Y40: -33.06425971 | Z40: -29.99454986 | AA40: 7.767221373 | AB40: 9.400366325 | AC40: 13.1731302 | AD40: 13.1731302 | AE40: 8.249376183 | AF40: 11.10160467 | AG40: 518.1504425 | AH40: 527.1031207 | AI40: 12.33369806 | AJ40: 12.33369806 | AK40: 14.33378532 | AL40: 14.33378532 | AM40: 7.7 | AN40: 7.7 | AO40: 49 | AP40: 49 | AQ40: 10.5 | AR40: 10.5 | AS40: 26.34626039 | AT40: 26.34626039 | AU40: 16.1 | AV40: 16.1 | AW40: 0 | AX40: 0 | AY40: 3.951939059 | AZ40: 3.951939059 | BA40: 131.731302 | BB40: 131.731302 | BC40: 658.6565098 | BD40: 658.6565098 | BE40: 658.6565098 | BF40: 658.6565098 | BG40: 5.927908589 | BH40: 5.927908589 | BI40: 0 | BJ40: 0 | BK40: 0.6 | BL40: 0.7 | BM40: 0.99999092 | BN40: 0.9610193465 | BO40: 1 | BP40: 0.913259556 | BQ40: 0.9104553686
J41: 0 | K41: 51 | L41: 76 | M41: 0 | N41: 0 | O41: 0 | P41: 72 a 75 | Q41: 0 | R41: 56 | S41: 0 | T41: 42.75 | U41: 3.5 | V41: 3.5 | W41: -1.001947264 | X41: -0.9089257533 | Y41: -33.06425971 | Z41: -29.99454986 | AA41: 7.789332013 | AB41: 9.400366325 | AC41: 13.1731302 | AD41: 13.1731302 | AE41: 8.172376183 | AF41: 11.10160467 | AG41: 508.210144 | AH41: 527.1031207 | AI41: 12.33369806 | AJ41: 12.33369806 | AK41: 14.33378532 | AL41: 14.33378532 | AM41: 7.7 | AN41: 7.7 | AO41: 49 | AP41: 49 | AQ41: 10.5 | AR41: 10.5 | AS41: 26.34626039 | AT41: 26.34626039 | AU41: 16.1 | AV41: 16.1 | AW41: 0 | AX41: 0 | AY41: 3.951939059 | AZ41: 3.951939059 | BA41: 131.731302 | BB41: 131.731302 | BC41: 658.6565098 | BD41: 658.6565098 | BE41: 658.6565098 | BF41: 658.6565098 | BG41: 5.927908589 | BH41: 5.927908589 | BI41: 0 | BJ41: 0 | BK41: 0.6 | BL41: 0.7 | BM41: 0.99999092 | BN41: 0.9640163216 | BO41: 1 | BP41: 0.9130120331 | BQ41: 0.9104553686
J42: 0 | K42: 51 | L42: 80 | M42: 0 | N42: 0 | O42: 0 | P42: 76 a 79 | Q42: 0 | R42: 60 | S42: 0 | T42: 43.75 | U42: 3.5 | V42: 3.5 | W42: -1.001947264 | X42: -0.9089257533 | Y42: -33.06425971 | Z42: -29.99454986 | AA42: 7.809689185 | AB42: 9.400366325 | AC42: 13.1731302 | AD42: 13.1731302 | AE42: 8.095376183 | AF42: 11.10160467 | AG42: 498.2698455 | AH42: 527.1031207 | AI42: 12.33369806 | AJ42: 12.33369806 | AK42: 14.33378532 | AL42: 14.33378532 | AM42: 7.7 | AN42: 7.7 | AO42: 49 | AP42: 49 | AQ42: 10.5 | AR42: 10.5 | AS42: 26.34626039 | AT42: 26.34626039 | AU42: 16.1 | AV42: 16.1 | AW42: 0 | AX42: 0 | AY42: 3.951939059 | AZ42: 3.951939059 | BA42: 131.731302 | BB42: 131.731302 | BC42: 658.6565098 | BD42: 658.6565098 | BE42: 658.6565098 | BF42: 658.6565098 | BG42: 5.927908589 | BH42: 5.927908589 | BI42: 0 | BJ42: 0 | BK42: 0.6 | BL42: 0.7 | BM42: 0.99999092 | BN42: 0.9667828782 | BO42: 1 | BP42: 0.9127786475 | BQ42: 0.9104553686
J43: 0 | K43: 51 | L43: 84 | M43: 0 | N43: 0 | O43: 0 | P43: 80 a 83 | Q43: 0 | R43: 64 | S43: 0 | T43: 44.75 | U43: 3.5 | V43: 3.5 | W43: -1.001947264 | X43: -0.9089257533 | Y43: -33.06425971 | Z43: -29.99454986 | AA43: 7.828434601 | AB43: 9.400366325 | AC43: 13.1731302 | AD43: 13.1731302 | AE43: 8.018376183 | AF43: 11.10160467 | AG43: 488.329547 | AH43: 527.1031207 | AI43: 12.33369806 | AJ43: 12.33369806 | AK43: 14.33378532 | AL43: 14.33378532 | AM43: 7.7 | AN43: 7.7 | AO43: 49 | AP43: 49 | AQ43: 10.5 | AR43: 10.5 | AS43: 26.34626039 | AT43: 26.34626039 | AU43: 16.1 | AV43: 16.1 | AW43: 0 | AX43: 0 | AY43: 3.951939059 | AZ43: 3.951939059 | BA43: 131.731302 | BB43: 131.731302 | BC43: 658.6565098 | BD43: 658.6565098 | BE43: 658.6565098 | BF43: 658.6565098 | BG43: 5.927908589 | BH43: 5.927908589 | BI43: 0 | BJ43: 0 | BK43: 0.6 | BL43: 0.7 | BM43: 0.99999092 | BN43: 0.9693367319 | BO43: 1 | BP43: 0.9125589532 | BQ43: 0.9104553686
J44: 0 | K44: 51 | L44: 88 | M44: 0 | N44: 0 | O44: 0 | P44: 84 a 87 | Q44: 0 | R44: 68 | S44: 0 | T44: 45.75 | U44: 3.5 | V44: 3.5 | W44: -1.001947264 | X44: -0.9089257533 | Y44: -33.06425971 | Z44: -29.99454986 | AA44: 7.845698543 | AB44: 9.400366325 | AC44: 13.1731302 | AD44: 13.1731302 | AE44: 7.941376183 | AF44: 11.10160467 | AG44: 478.3892485 | AH44: 527.1031207 | AI44: 12.33369806 | AJ44: 12.33369806 | AK44: 14.33378532 | AL44: 14.33378532 | AM44: 7.7 | AN44: 7.7 | AO44: 49 | AP44: 49 | AQ44: 10.5 | AR44: 10.5 | AS44: 26.34626039 | AT44: 26.34626039 | AU44: 16.1 | AV44: 16.1 | AW44: 0 | AX44: 0 | AY44: 3.951939059 | AZ44: 3.951939059 | BA44: 131.731302 | BB44: 131.731302 | BC44: 658.6565098 | BD44: 658.6565098 | BE44: 658.6565098 | BF44: 658.6565098 | BG44: 5.927908589 | BH44: 5.927908589 | BI44: 0 | BJ44: 0 | BK44: 0.6 | BL44: 0.7 | BM44: 0.99999092 | BN44: 0.971694236 | BO44: 1 | BP44: 0.9123524933 | BQ44: 0.9104553686
J45: 0 | K45: 51 | L45: 92 | M45: 0 | N45: =IF(Q45=0,0,IF(R45="",N$19*(-0.55+1.66*EXP(-0.0065*Q45)-0.72*EXP(-0.44*Q45))/$D$27,N$19*(-0.55+1.66*EXP(-0.0065*Q45)-0.72*EXP(-0.44*Q45)-(0.69*EXP(-0.16*(45-R45)))))/$D$27) -> 0 | O45: =IF(Q45=0,0,IF(R45="",O$19*(-0.83+1.92*EXP(-0.0083*Q45)-0.74*EXP(-0.88*Q45))/$D$27,O$19*(-0.83+1.92*EXP(-0.0083*Q45)-0.74*EXP(-0.88*Q45)-(0.5*EXP(-0.12*(45-R45)))))/$D$27) -> 0 | P45: 88 a 91 | Q45: 0 | R45: 72 | S45: 0 | T45: 46.75 | U45: 3.5 | V45: 3.5 | W45: -1.001947264 | X45: -0.9089257533 | Y45: -33.06425971 | Z45: -29.99454986 | AA45: 7.861600764 | AB45: 9.400366325 | AC45: 13.1731302 | AD45: 13.1731302 | AE45: 7.864376183 | AF45: 11.10160467 | AG45: 468.4489499 | AH45: 527.1031207 | AI45: 12.33369806 | AJ45: 12.33369806 | AK45: 14.33378532 | AL45: 14.33378532 | AM45: 7.7 | AN45: 7.7 | AO45: 49 | AP45: 49 | AQ45: 10.5 | AR45: 10.5 | AS45: 26.34626039 | AT45: 26.34626039 | AU45: 16.1 | AV45: 16.1 | AW45: 0 | AX45: 0 | AY45: 3.951939059 | AZ45: 3.951939059 | BA45: 131.731302 | BB45: 131.731302 | BC45: 658.6565098 | BD45: 658.6565098 | BE45: 658.6565098 | BF45: 658.6565098 | BG45: 5.927908589 | BH45: 5.927908589 | BI45: 0 | BJ45: 0 | BK45: 0.6 | BL45: 0.7 | BM45: 0.99999092 | BN45: 0.9738704866 | BO45: 1 | BP45: 0.9121588022 | BQ45: 0.9104553686
BB46: =IF(AB46="","",15.7*AD46) ->  | BG46: =IF(AA46="","",IF(Q46=0,0.33*AC46,0.45*AC46)) ->  | BH46: =IF(AB46="","",IF(Q46=0,0.33*AD46,0.45*AD46)) -> 
F47: durada | AW47: =IF(S47="","",IF(S47<27,N47,N47+18)) ->  | BG47: =IF(AA47="","",IF(Q47=0,0.33*AC47,0.45*AC47)) ->  | BH47: =IF(AB47="","",IF(Q47=0,0.33*AD47,0.45*AD47)) -> 
A48: Necessitats tres primeres setmanes des del part | D48: =IF(Q20>0,"Lactació",IF(S20=0,"","Eixugat")) -> Lactació
A49: Necessitats 4a a 6a setmanes des del part | D49: =IF(Q24>0,"Lactació",IF(S24=0,"","Eixugat")) -> Lactació
A50: Necessitats 7 a 12 setmanes des del part | D50: =IF(Q25>0,"Lactació",IF(S25=0,"","Eixugat")) -> Lactació | L50: Un grup | M50: Durada, dies | O50: Total vaques | P50: prim | Q50: multi | R50: Producció llet | T50: CI | U50: CI MS | V50: UFL | W50: PDI | X50: P | Y50: UFL_VPR | Z50: PDI_VPR | AA50: Ca | AB50: Mg | AC50: K | AD50: Na | AE50: S | AF50: Cl | AG50: Fe | AH50: Co | AI50: Cu | AJ50: Mn | AK50: Zn | AL50: I | AM50: Se
A51: Necessitats 13 a 16 setmanes des del part | D51: =IF(Q26>0,"Lactació",IF(S26=0,"","Eixugat")) -> Lactació | M51: =IF(D48="","",IF(Q20=0,IF(S20="","",30),3*7)) -> 21 | N51: =IF(D48="","",IF(M51="","",M51/$M$86)) -> 0.05035971223 | O51: =IF(M51="","",IF(N51="","",N51*$D$8)) -> 11.17985612 | P51: =IF(D48="","",IF(O51="","",O51*$D$9)) -> 3.957669065 | Q51: =IF($D48="","",IF(O51="","",O51*(1-$D$9))) -> 7.22218705 | R51: =IF($D48="","",IF(N20="","",N20*$D$9+O20*(1-$D$9))) -> 42.63102834 | T51: =IF(AA20="","",IF($D48="","",AA20*$D$9+AB20*(1-$D$9))) -> 15.285365 | U51: =IF(AA20="","",IF($D48="","",AC20*$D$9+AD20*(1-$D$9))) -> 24.59702078 | V51: =IF(AA20="","",IF($D48="","",AE20*$D$9+AF20*(1-$D$9))) -> 20.07098826 | W51: =IF(AB20="","",IF($D48="","",AG20*$D$9+AH20*(1-$D$9))) -> 2455.716247 | X51: =IF(AB20="","",IF($D48="","",AI20*$D$9+AJ20*(1-$D$9))) -> 60.18345275 | Y51: =IF(AA20="","",IF($D48="","",W20*$D$9+X20*(1-$D$9))) -> 7.470008491 | Z51: =IF(AB20="","",IF($D48="","",Y20*$D$9+Z20*(1-$D$9))) -> 296.5102802 | AA51: =IF(AB20="","",IF($D48="","",AK20*$D$9+AL20*(1-$D$9))) -> 75.1966102 | AB51: =IF(AB20="","",IF($D48="","",AM20*$D$9+AN20*(1-$D$9))) -> 14.09465425 | AC51: =IF(AB20="","",IF($D48="","",AO20*$D$9+AP20*(1-$D$9))) -> 144.4465425 | AD51: =IF(AB20="","",IF($D48="","",AQ20*$D$9+AR20*(1-$D$9))) -> 35.28396275 | AE51: =IF(AB20="","",IF($D48="","",AS20*$D$9+AT20*(1-$D$9))) -> 49.19404156 | AF51: =IF(AB20="","",IF($D48="","",AU20*$D$9+AV20*(1-$D$9))) -> 30.89465425 | AG51: =IF(AB20="","",IF($D48="","",AW20*$D$9+AX20*(1-$D$9))) -> 426.3102834 | AH51: =IF(AB20="","",IF($D48="","",AY20*$D$9+AZ20*(1-$D$9))) -> 7.379106234 | AI51: =IF(AB20="","",IF($D48="","",BA20*$D$9+BB20*(1-$D$9))) -> 245.9702078 | AJ51: =IF(AB20="","",IF($D48="","",BC20*$D$9+BD20*(1-$D$9))) -> 1229.851039 | AK51: =IF(AB20="","",IF($D48="","",BE20*$D$9+BF20*(1-$D$9))) -> 1229.851039 | AL51: =IF(AB20="","",IF($D48="","",BG20*$D$9+BH20*(1-$D$9))) -> 15.98806351 | AM51: =IF(AB20="","",IF($D48="","",BI20*$D$9+BJ20*(1-$D$9))) -> 0.15
A52: Necessitats 17 a 20 setmanes des del part | D52: Lactació | M52: =IF(D49="","",IF(Q24=0,IF(S24="","",30),3*7)) -> 21 | N52: =IF(D49="","",IF(M52="","",M52/$M$86)) -> 0.05035971223 | O52: 11.17985612 | P52: 3.957669065 | Q52: 7.22218705 | R52: =IF($D49="","",IF(N24="","",N24*$D$9+O24*(1-$D$9))) -> 47.90462264 | T52: =IF(AA24="","",IF($D49="","",AA24*$D$9+AB24*(1-$D$9))) -> 18.17254388 | U52: =IF(AA24="","",IF($D49="","",AC24*$D$9+AD24*(1-$D$9))) -> 28.50076282 | V52: =IF(AA24="","",IF($D49="","",AE24*$D$9+AF24*(1-$D$9))) -> 26.13855234 | W52: =IF(AB24="","",IF($D49="","",AG24*$D$9+AH24*(1-$D$9))) -> 2951.388949 | X52: =IF(AB24="","",IF($D49="","",AI24*$D$9+AJ24*(1-$D$9))) -> 68.16979351 | Y52: =IF(AA24="","",IF($D49="","",W24*$D$9+X24*(1-$D$9))) -> 3.621049859 | Z52: =IF(AB24="","",IF($D49="","",Y24*$D$9+Z24*(1-$D$9))) -> 119.4946453 | AA52: =IF(AB24="","",IF($D49="","",AK24*$D$9+AL24*(1-$D$9))) -> 84.37678404 | AB52: =IF(AB24="","",IF($D49="","",AM24*$D$9+AN24*(1-$D$9))) -> 14.8856934 | AC52: =IF(AB24="","",IF($D49="","",AO24*$D$9+AP24*(1-$D$9))) -> 152.356934 | AD52: =IF(AB24="","",IF($D49="","",AQ24*$D$9+AR24*(1-$D$9))) -> 37.65708019 | AE52: =IF(AB24="","",IF($D49="","",AS24*$D$9+AT24*(1-$D$9))) -> 57.00152564 | AF52: =IF(AB24="","",IF($D49="","",AU24*$D$9+AV24*(1-$D$9))) -> 31.6856934 | AG52: =IF(AB24="","",IF($D49="","",AW24*$D$9+AX24*(1-$D$9))) -> 479.0462264 | AH52: =IF(AB24="","",IF($D49="","",AY24*$D$9+AZ24*(1-$D$9))) -> 8.550228846 | AI52: =IF(AB24="","",IF($D49="","",BA24*$D$9+BB24*(1-$D$9))) -> 285.0076282 | AJ52: =IF(AB24="","",IF($D49="","",BC24*$D$9+BD24*(1-$D$9))) -> 1425.038141 | AK52: =IF(AB24="","",IF($D49="","",BE24*$D$9+BF24*(1-$D$9))) -> 1425.038141 | AL52: =IF(AB24="","",IF($D49="","",BG24*$D$9+BH24*(1-$D$9))) -> 18.52549583 | AM52: =IF(AB24="","",IF($D49="","",BI24*$D$9+BJ24*(1-$D$9))) -> 0.15
A53: Necessitats 21 a 24 setmanes des del part | D53: Lactació | M53: =IF(D50="","",IF(Q25=0,IF(S25="","",30),6*7)) -> 42 | N53: 0.1007194245 | O53: 22.35971223 | P53: 7.915338129 | Q53: 14.4443741 | R53: 46.35585134 | T53: 19.36136192 | U53: 29.36699658 | V53: 28.73456798 | W53: 3000.714958 | X53: 67.49487336 | Y53: 0.3545991956 | Z53: 11.70177346 | AA53: 83.0151329 | AB53: 14.6533777 | AC53: 150.033777 | AD53: 36.9601331 | AE53: 58.73399315 | AF53: 31.4533777 | AG53: 463.5585134 | AH53: 8.810098973 | AI53: 293.6699658 | AJ53: 1468.349829 | AK53: 1468.349829 | AL53: 19.08854777 | AM53: 0.15
A54: Necessitats 25 a 28 setmanes des del part | D54: Lactació | M54: =IF(D51="","",IF(Q26=0,IF(S26="","",30),4*7)) -> 28 | N54: 0.06714628297 | O54: 14.90647482 | P54: 5.276892086 | Q54: 9.629582734 | R54: 42.48582464 | T54: 19.3487525 | U54: 28.67649232 | V54: 28.15542796 | W54: 2838.360201 | X54: 63.4387308 | Y54: -0.7392286902 | Z54: -24.39454678 | AA54: 77.71979521 | AB54: 14.0728737 | AC54: 144.228737 | AD54: 35.21862109 | AE54: 57.35298463 | AF54: 30.8728737 | AG54: 424.8582464 | AH54: 8.602947695 | AI54: 286.7649232 | AJ54: 1433.824616 | AK54: 1433.824616 | AL54: 18.63972001 | AM54: 0.15
A55: Necessitats 29 a 32 setmanes des del part | D55: Lactació | M55: =IF(D52="","",IF(Q27=0,IF(S27="","",30),(Q27-Q26)*7)) -> 28 | N55: 0.06714628297 | O55: 14.90647482 | P55: 5.276892086 | Q55: 9.629582734 | R55: 40.01689933 | T55: 19.07349147 | U55: 27.91976265 | V55: 27.22796854 | W55: 2710.49245 | X55: 60.58861244 | Y55: -0.8772357292 | Z55: -28.94877906 | AA55: 74.13192696 | AB55: 13.7025349 | AC55: 140.525349 | AD55: 34.1076047 | AE55: 55.83952531 | AF55: 30.5025349 | AG55: 400.1689933 | AH55: 8.375928796 | AI55: 279.1976265 | AJ55: 1395.988133 | AK55: 1395.988133 | AL55: 18.14784572 | AM55: 0.15
A56: Necessitats 33 a 36 setmanes des del part | D56: Lactació | M56: =IF(D53="","",IF(Q28=0,IF(S28="","",30),(Q28-Q27)*7)) -> 28 | N56: 0.06714628297 | O56: 14.90647482 | P56: 5.276892086 | Q56: 9.629582734 | R56: 37.64751793 | T56: 18.748427 | U56: 27.11337677 | V56: 26.26286713 | W56: 2584.501873 | X56: 57.78711398 | Y56: -0.9212477294 | Z56: -30.40117507 | AA56: 70.63609361 | AB56: 13.34712769 | AC56: 136.9712769 | AD56: 33.04138307 | AE56: 54.22675354 | AF56: 30.14712769 | AG56: 376.4751793 | AH56: 8.134013031 | AI56: 271.1337677 | AJ56: 1355.668838 | AK56: 1355.668838 | AL56: 17.6236949 | AM56: 0.15
A57: Necessitats 37 a 40 setmanes des del part | D57: Lactació | M57: 28 | N57: 0.06714628297 | O57: 14.90647482 | P57: 5.276892086 | Q57: 9.629582734 | R57: 35.30933607 | T57: 18.39611728 | U57: 26.27837975 | V57: 25.2916268 | W57: 2459.332792 | X57: 54.99552277 | Y57: -0.9352834568 | Z57: -30.86435407 | AA57: 67.1693746 | AB57: 12.99640041 | AC57: 133.4640041 | AD57: 31.98920123 | AE57: 52.5567595 | AF57: 29.79640041 | AG57: 353.0933607 | AH57: 7.883513925 | AI57: 262.7837975 | AJ57: 1313.918988 | AK57: 1313.918988 | AL57: 17.08094684 | AM57: 0.15
A58: Necessitats 41 a 44 setmanes des del part | D58: Lactació | M58: 28 | N58: 0.06714628297 | O58: 14.90647482 | P58: 5.276892086 | Q58: 9.629582734 | R58: 32.97493164 | T58: 18.02381316 | U58: 25.4261295 | V58: 24.32967429 | W58: 2335.136906 | X58: 52.22605328 | Y58: -0.9397595425 | Z58: -31.0120649 | AA58: 63.74049812 | AB58: 12.64623975 | AC58: 129.9623975 | AD58: 30.93871924 | AE58: 50.85225899 | AF58: 29.44623975 | AG58: 329.7493164 | AH58: 7.627838849 | AI58: 254.261295 | AJ58: 1271.306475 | AK58: 1271.306475 | AL58: 16.52698417 | AM58: 0.15
A59: Necessitats 45 a 48 setmanes des del part | D59: Lactació | M59: 28 | N59: 0.06714628297 | O59: 14.90647482 | P59: 5.276892086 | Q59: 9.629582734 | R59: 30.5981086 | T59: 17.62732193 | U59: 24.54944312 | V59: 23.37437014 | W59: 2210.662951 | X59: 49.50484844 | Y59: -0.9411869956 | Z59: -31.05917085 | AA59: 60.36990778 | AB59: 12.28971629 | AC59: 126.3971629 | AD59: 29.86914887 | AE59: 49.09888623 | AF59: 29.08971629 | AG59: 305.981086 | AH59: 7.364832935 | AI59: 245.4944312 | AJ59: 1227.472156 | AK59: 1227.472156 | AL59: 15.95713803 | AM59: 0.15
A60: Necessitats 49 a 52 setmanes des del part | D60: Lactació | M60: 28 | N60: 0.06714628297 | O60: 14.90647482 | P60: 5.276892086 | Q60: 9.629582734 | R60: 28.10172254 | T60: 17.1912981 | U60: 23.62426324 | V60: 22.41165361 | W60: 2083.20197 | X60: 46.87158705 | Y60: -0.9416422197 | Z60: -31.07419325 | AA60: 57.08826479 | AB60: 11.91525838 | AC60: 122.6525838 | AD60: 28.74577514 | AE60: 47.24852649 | AF60: 28.71525838 | AG60: 281.0172254 | AH60: 7.087278973 | AI60: 236.2426324 | AJ60: 1181.213162 | AK60: 1181.213162 | AL60: 15.35577111 | AM60: 0.15
A61: Necessitats 53 a 56 setmanes des del part | D61: Eixugat | M61: 28 | N61: 0.06714628297 | O61: 14.90647482 | P61: 5.276892086 | Q61: 9.629582734 | R61: 25.35550396 | T61: 16.68121785 | U61: 22.60428247 | V61: 21.4133264 | W61: 1947.808612 | X61: 44.30057618 | Y61: -0.9417873937 | Z61: -31.07898399 | AA61: 53.89213105 | AB61: 11.50332559 | AC61: 119.5332559 | AD61: 28.80997678 | AE61: 45.20856493 | AF61: 29.30332559 | AG61: 253.5550396 | AH61: 6.78128474 | AI61: 226.0428247 | AJ61: 1130.214123 | AK61: 1130.214123 | AL61: 14.6927836 | AM61: 0.15
A62: Necessitats 57 a 60 setmanes des del part | D62: Eixugat | M62: 28 | N62: 0.06714628297 | O62: 14.90647482 | P62: 5.276892086 | Q62: 9.629582734 | R62: 22.13712773 | T62: 16.02179458 | U62: 21.40779463 | V62: 20.32733569 | W62: 1795.667503 | X62: 41.51688593 | Y62: -0.9418336906 | Z62: -31.08051179 | AA62: 50.62345229 | AB62: 11.02056916 | AC62: 114.7056916 | AD62: 27.36170748 | AE62: 42.81558926 | AF62: 28.82056916 | AG62: 401.3712773 | AH62: 6.422338389 | AI62: 214.0779463 | AJ62: 1070.389732 | AK62: 1070.389732 | AL62: 13.91506651 | AM62: 0.15
A63: Necessitats 61 a 64 setmanes des del part | M63: 21 | N63: 0.05035971223 | O63: 11.17985612 | P63: 3.957669065 | Q63: 7.22218705 | R63: 19.1921767 | T63: 15.33437899 | U63: 20.31255634 | V63: 19.40046214 | W63: 1661.509189 | X63: 38.89651565 | Y63: -0.9418461688 | Z63: -31.08092357 | AA63: 47.82908756 | AB63: 10.5788265 | AC63: 110.288265 | AD63: 26.03647951 | AE63: 40.62511269 | AF63: 28.3788265 | AG63: 371.921767 | AH63: 6.093766903 | AI63: 203.1255634 | AJ63: 1015.627817 | AK63: 1015.627817 | AL63: 13.20316162 | AM63: 0.15
A64: Necessitats 65 a 68 setmanes des del part | M64: 30 | N64: 0.07194244604 | O64: 15.97122302 | P64: 5.65381295 | Q64: 10.31741007 | R64: 0 | T64: 8.144141779 | U64: 13.1731302 | V64: 11.98306434 | W64: 680.7814353 | X64: 16.86826342 | Y64: -0.9418553681 | Z64: -31.08122715 | AA64: 21.74615881 | AB64: 7.7 | AC64: 50 | AD64: 11.8 | AE64: 26.34626039 | AF64: 17.1 | AG64: 180 | AH64: 3.951939059 | AI64: 131.731302 | AJ64: 658.6565098 | AK64: 658.6565098 | AL64: 5.927908589 | AM64: 0
M65: 30 | N65: 0.07194244604 | O65: 15.97122302 | P65: 5.65381295 | Q65: 10.31741007 | R65: 0 | T65: 7.044065179 | U65: 13.1731302 | V65: 13.02442265 | W65: 758.5571793 | X65: 17.78823583 | Y65: -0.9418553681 | Z65: -31.08122715 | AA65: 24.65193565 | AB65: 8.03 | AC65: 50 | AD65: 11.8 | AE65: 26.34626039 | AF65: 17.1 | AG65: 180 | AH65: 3.951939059 | AI65: 131.731302 | AJ65: 658.6565098 | AK65: 658.6565098 | AL65: 5.927908589 | AM65: 0
A83: Totals
D85: =IF($D54="Lactació",D54,"") -> Lactació
D86: =IF($D55="Lactació",D55,"") -> Lactació | L86: Un grup >>> | M86: =SUM(M51:M85) -> 417 | N86: =SUM(N51:N85) -> 1 | O86: =SUM(O51:O85) -> 222 | P86: =SUM(P51:P85) -> 78.588 | Q86: =SUM(Q51:Q85) -> 143.412 | AA86: =IF($D83="","",AI50*$D$9+AJ50*(1-$D$9)) ->  | AE86: =IF($D83="","",AQ50*$D$9+AR50*(1-$D$9)) ->  | AF86: =IF($D83="","",AS50*$D$9+AT50*(1-$D$9)) ->  | AG86: =IF($D83="","",AU50*$D$9+AV50*(1-$D$9)) ->  | AH86: =IF($D83="","",AW50*$D$9+AX50*(1-$D$9)) ->  | AI86: =IF($D83="","",AY50*$D$9+AZ50*(1-$D$9)) ->  | AJ86: =IF($D83="","",BA50*$D$9+BB50*(1-$D$9)) ->  | AK86: =IF($D83="","",BC50*$D$9+BD50*(1-$D$9)) ->  | AL86: =IF($D83="","",BE50*$D$9+BF50*(1-$D$9)) ->  | AM86: =IF($D83="","",BG50*$D$9+BH50*(1-$D$9)) ->  | AQ86: =IF($D83="","",#REF!*$D$9+#REF!*(1-$D$9)) -> 
D87: =IF($D56="Lactació",D56,"") -> Lactació | L87: I | M87: Durada, dies | O87: Total vaques | P87: prim | Q87: multi | R87: Producció llet | T87: CI | U87: CI MS | V87: UFL | W87: PDI | X87: P | Y87: UFL_VPR | Z87: PDI_VPR | AA87: Ca | AB87: Mg | AC87: K | AD87: Na | AE87: S | AF87: Cl | AG87: Fe | AH87: Co | AI87: Cu | AJ87: Mn | AK87: Zn | AL87: I | AM87: Se
D88: Lactació | M88: =IF($D53="Lactació",M56,"") -> 28 | N88: 0.06714628297 | O88: 14.90647482 | P88: 5.276892086 | Q88: 9.629582734 | R88: 37.64751793 | T88: =IF($D53="Lactació",T56,"") -> 18.748427 | U88: 27.11337677 | V88: 26.26286713 | W88: 2584.501873 | X88: 57.78711398 | Y88: -0.9212477294 | Z88: -30.40117507 | AA88: 70.63609361 | AB88: 13.34712769 | AC88: 136.9712769 | AD88: 33.04138307 | AE88: 54.22675354 | AF88: 30.14712769 | AG88: 376.4751793 | AH88: 8.134013031 | AI88: 271.1337677 | AJ88: 1355.668838 | AK88: 1355.668838 | AL88: 17.6236949 | AM88: 0.15
D89: Lactació | M89: 28 | N89: 0.06714628297 | O89: 14.90647482 | P89: 5.276892086 | Q89: 9.629582734 | R89: 35.30933607 | T89: 18.39611728 | U89: 26.27837975 | V89: 25.2916268 | W89: 2459.332792 | X89: 54.99552277 | Y89: -0.9352834568 | Z89: -30.86435407 | AA89: 67.1693746 | AB89: 12.99640041 | AC89: 133.4640041 | AD89: 31.98920123 | AE89: 52.5567595 | AF89: 29.79640041 | AG89: 353.0933607 | AH89: 7.883513925 | AI89: 262.7837975 | AJ89: 1313.918988 | AK89: 1313.918988 | AL89: 17.08094684 | AM89: 0.15
D90: Lactació | M90: 28 | N90: 0.06714628297 | O90: 14.90647482 | P90: 5.276892086 | Q90: 9.629582734 | R90: 32.97493164 | T90: 18.02381316 | U90: 25.4261295 | V90: 24.32967429 | W90: 2335.136906 | X90: 52.22605328 | Y90: -0.9397595425 | Z90: -31.0120649 | AA90: 63.74049812 | AB90: 12.64623975 | AC90: 129.9623975 | AD90: 30.93871924 | AE90: 50.85225899 | AF90: 29.44623975 | AG90: 329.7493164 | AH90: 7.627838849 | AI90: 254.261295 | AJ90: 1271.306475 | AK90: 1271.306475 | AL90: 16.52698417 | AM90: 0.15
D91: Lactació | M91: 28 | N91: 0.06714628297 | O91: 14.90647482 | P91: 5.276892086 | Q91: 9.629582734 | R91: 30.5981086 | T91: 17.62732193 | U91: 24.54944312 | V91: 23.37437014 | W91: 2210.662951 | X91: 49.50484844 | Y91: -0.9411869956 | Z91: -31.05917085 | AA91: 60.36990778 | AB91: 12.28971629 | AC91: 126.3971629 | AD91: 29.86914887 | AE91: 49.09888623 | AF91: 29.08971629 | AG91: 305.981086 | AH91: 7.364832935 | AI91: 245.4944312 | AJ91: 1227.472156 | AK91: 1227.472156 | AL91: 15.95713803 | AM91: 0.15
M92: 28 | N92: 0.06714628297 | O92: 14.90647482 | P92: 5.276892086 | Q92: 9.629582734 | R92: 28.10172254 | T92: 17.1912981 | U92: 23.62426324 | V92: 22.41165361 | W92: 2083.20197 | X92: 46.87158705 | Y92: -0.9416422197 | Z92: -31.07419325 | AA92: 57.08826479 | AB92: 11.91525838 | AC92: 122.6525838 | AD92: 28.74577514 | AE92: 47.24852649 | AF92: 28.71525838 | AG92: 281.0172254 | AH92: 7.087278973 | AI92: 236.2426324 | AJ92: 1181.213162 | AK92: 1181.213162 | AL92: 15.35577111 | AM92: 0.15
M93: 28 | N93: 0.06714628297 | O93: 14.90647482 | P93: 5.276892086 | Q93: 9.629582734 | R93: 25.35550396 | T93: 16.68121785 | U93: 22.60428247 | V93: 21.4133264 | W93: 1947.808612 | X93: 44.30057618 | Y93: -0.9417873937 | Z93: -31.07898399 | AA93: 53.89213105 | AB93: 11.50332559 | AC93: 119.5332559 | AD93: 28.80997678 | AE93: 45.20856493 | AF93: 29.30332559 | AG93: 253.5550396 | AH93: 6.78128474 | AI93: 226.0428247 | AJ93: 1130.214123 | AK93: 1130.214123 | AL93: 14.6927836 | AM93: 0.15
M94: 28 | N94: 0.06714628297 | O94: 14.90647482 | P94: 5.276892086 | Q94: 9.629582734 | R94: 22.13712773 | T94: 16.02179458 | U94: 21.40779463 | V94: 20.32733569 | W94: 1795.667503 | X94: 41.51688593 | Y94: -0.9418336906 | Z94: -31.08051179 | AA94: 50.62345229 | AB94: 11.02056916 | AC94: 114.7056916 | AD94: 27.36170748 | AE94: 42.81558926 | AF94: 28.82056916 | AG94: 401.3712773 | AH94: 6.422338389 | AI94: 214.0779463 | AJ94: 1070.389732 | AK94: 1070.389732 | AL94: 13.91506651 | AM94: 0.15
M95: 21 | N95: 0.05035971223 | O95: 11.17985612 | P95: 3.957669065 | Q95: 7.22218705 | R95: 19.1921767 | T95: 15.33437899 | U95: 20.31255634 | V95: 19.40046214 | W95: 1661.509189 | X95: 38.89651565 | Y95: -0.9418461688 | Z95: -31.08092357 | AA95: 47.82908756 | AB95: 10.5788265 | AC95: 110.288265 | AD95: 26.03647951 | AE95: 40.62511269 | AF95: 28.3788265 | AG95: 371.921767 | AH95: 6.093766903 | AI95: 203.1255634 | AJ95: 1015.627817 | AK95: 1015.627817 | AL95: 13.20316162 | AM95: 0.15
AI100: =IF($D65="Lactació",AI68,"") -> 
D101: =IF($D82="Lactació",D82,"") -> 
D102: =IF($D83="Lactació",D83,"") -> 
A103: Resta lactació
D104: =IF($D54="Eixugat",D54,"") ->  | L104: =SUM(O88:O104) -> 115.5251799 | M104: =IF($D69="Lactació",M72,"") ->  | X104: =IF($D82="Lactació",X85,"") ->  | AD104: =IF($D82="Lactació",AD85,"") ->  | AK104: =IF($D82="Lactació",AK85,"") -> 
D105: =IF($D55="Eixugat",D55,"") ->  | M105: Dies | N105: Pl | O105: CI | P105: UFL | Q105: PDI | R105: P | T105: Ca | V105: Mg | W105: K | X105: Na | Y105: UFL_VPR | Z105: PDI_VPR | AA105: S | AB105: Cl | AC105: Fe | AD105: Co | AE105: Cu | AF105: Mn | AG105: Zn | AH105: I | AI105: Se | AJ105: CI kg MS
D106: =IF($D56="Eixugat",D56,"") ->  | M106: =SUM(M88:M104) -> 217 | N106: =SUMPRODUCT($N$88:$N$104,R88:R104)/SUM($N$88:$N$104) -> 29.22817819 | O106: =SUMPRODUCT($N$88:$N$104,T88:T104)/SUM($N$88:$N$104) -> 17.3149386 | P106: =SUMPRODUCT($N$88:$N$104,V88:V104)/SUM($N$88:$N$104) -> 22.96273557 | Q106: =SUMPRODUCT($N$88:$N$104,W88:W104)/SUM($N$88:$N$104) -> 2149.992839 | R106: =SUMPRODUCT($N$88:$N$104,X88:X104)/SUM($N$88:$N$104) -> 48.56451282 | T106: =SUMPRODUCT($N$88:$N$104,AA88:AA104)/SUM($N$88:$N$104) -> 59.27632747 | V106: =SUMPRODUCT($N$88:$N$104,AB88:AB104)/SUM($N$88:$N$104) -> 12.08422673 | W106: =SUMPRODUCT($N$88:$N$104,AC88:AC104)/SUM($N$88:$N$104) -> 124.697106 | X106: =SUMPRODUCT($N$88:$N$104,AD88:AD104)/SUM($N$88:$N$104) -> 29.71397051 | Y106: =SUMPRODUCT($N$88:$N$104,Y88:Y104)/SUM($N$88:$N$104) -> -0.9379516974 | Z106: =SUMPRODUCT($N$88:$N$104,Z88:Z104)/SUM($N$88:$N$104) -> -30.95240601 | AA106: =SUMPRODUCT($N$88:$N$104,AE88:AE104)/SUM($N$88:$N$104) -> 48.06144174 | AB106: 29.23906544 | AC106: 332.9269432 | AD106: 7.20921626 | AE106: 240.3072087 | AF106: 1201.536043 | AG106: 1201.536043 | AH106: 15.61996856 | AI106: 0.15 | AJ106: =SUMPRODUCT($N$88:$N$104,U88:U104)/SUM($N$88:$N$104) -> 24.03072087
D107: =IF($D57="Eixugat",D57,"") ->  | M107: =IF($D54="Eixugat",M57,"") ->  | Y107: =IF($D54="Eixugat",Y57,"") ->  | Z107: =IF($D54="Eixugat",Z57,"") ->  | AN107: =IF($D54="Eixugat",U57,"") -> 
D108: =IF($D58="Eixugat",D58,"") ->  | N108: =IF($D55="Eixugat",N58,"") ->  | O108: =IF($D55="Eixugat",O58,"") ->  | P108: =IF($D55="Eixugat",P58,"") ->  | Q108: =IF($D55="Eixugat",Q58,"") ->  | R108: =IF($D55="Eixugat",R58,"") ->  | AN108: =IF($D55="Eixugat",U58,"") -> 
M114: 30 | N114: 0.07194244604 | O114: 15.97122302 | P114: 5.65381295 | Q114: 10.31741007 | R114: 0 | T114: 8.144141779 | U114: 13.1731302 | V114: 11.98306434 | W114: 680.7814353 | X114: 16.86826342 | Y114: -0.9418553681 | Z114: -31.08122715 | AA114: 21.74615881 | AB114: 7.7 | AC114: 50 | AD114: 11.8 | AE114: 26.34626039 | AF114: 17.1 | AG114: 180 | AH114: 3.951939059 | AI114: 131.731302 | AJ114: 658.6565098 | AK114: 658.6565098 | AL114: 5.927908589 | AM114: 0 | AN114: 13.1731302
M115: 30 | N115: 0.07194244604 | O115: 15.97122302 | P115: 5.65381295 | Q115: 10.31741007 | R115: 0 | T115: 7.044065179 | U115: 13.1731302 | V115: 13.02442265 | W115: 758.5571793 | X115: 17.78823583 | Y115: -0.9418553681 | Z115: -31.08122715 | AA115: 24.65193565 | AB115: 8.03 | AC115: 50 | AD115: 11.8 | AE115: 26.34626039 | AF115: 17.1 | AG115: 180 | AH115: 3.951939059 | AI115: 131.731302 | AJ115: 658.6565098 | AK115: 658.6565098 | AL115: 5.927908589 | AM115: 0 | AN115: 13.1731302
O117: =IF($D64="Eixugat",O67,"") ->  | T117: =IF($D64="Eixugat",T67,"") -> 
D118: =IF($D59="Eixugat",D59,"") -> 
D120: Eixugat
D121: Eixugat
A125: Eixugat
AI129: =IF($D76="Eixugat",AI79,"") ->  | AJ129: =IF($D76="Eixugat",AJ79,"") ->  | AK129: =IF($D76="Eixugat",AK79,"") ->  | AL129: =IF($D76="Eixugat",AL79,"") ->  | AM129: =IF($D76="Eixugat",AM79,"") -> 
D130: =IF($D67="Eixugat",D67,"") ->  | T130: =IF($D77="Eixugat",T80,"") -> 
D131: =IF($D68="Eixugat",D68,"") ->  | L131: III) | M131: Dies | N131: CI | O131: UFL | P131: PDI | Q131: P | R131: Ca | T131: Mg | V131: K | W131: Na | X131: S | Y131: UFL_VPR | Z131: PDI_VPR | AA131: Cl | AB131: Fe | AC131: Co | AD131: Cu | AE131: Mn | AF131: Zn | AG131: I | AH131: Se | AI131: CI kg MS
D132: =IF($D69="Eixugat",D69,"") ->  | K132: =SUM(O107:O130) -> 31.94244604 | M132: =SUM(M107:M130) -> 60 | N132: =SUMPRODUCT($N$107:$N$130,T107:T130)/SUM($N$107:$N$130) -> 7.594103479 | O132: =SUMPRODUCT($N$107:$N$130,V107:V130)/SUM($N$107:$N$130) -> 12.5037435 | P132: =SUMPRODUCT($N$107:$N$130,W107:W130)/SUM($N$107:$N$130) -> 719.6693073 | Q132: =SUMPRODUCT($N$107:$N$130,X107:X130)/SUM($N$107:$N$130) -> 17.32824962 | R132: =SUMPRODUCT($N$107:$N$130,AA107:AA130)/SUM($N$107:$N$130) -> 23.19904723 | T132: =SUMPRODUCT($N$107:$N$130,AB107:AB130)/SUM($N$107:$N$130) -> 7.865 | V132: =SUMPRODUCT($N$107:$N$130,AC107:AC130)/SUM($N$107:$N$130) -> 50 | W132: =SUMPRODUCT($N$107:$N$130,AD107:AD130)/SUM($N$107:$N$130) -> 11.8 | X132: =SUMPRODUCT($N$107:$N$130,AE107:AE130)/SUM($N$107:$N$130) -> 26.34626039 | Y132: =SUMPRODUCT($N$107:$N$130,Y107:Y130)/SUM($N$107:$N$130) -> -0.9418553681 | Z132: =SUMPRODUCT($N$107:$N$130,Z107:Z130)/SUM($N$107:$N$130) -> -31.08122715 | AA132: =SUMPRODUCT($N$107:$N$130,AF107:AF130)/SUM($N$107:$N$130) -> 17.1 | AB132: 180 | AC132: 3.951939059 | AD132: 131.731302 | AE132: 658.6565098 | AF132: 658.6565098 | AG132: 5.927908589 | AH132: 0 | AI132: 13.1731302
D133: =IF($D82="Eixugat",D82,"") -> 
D134: =IF($D83="Eixugat",D83,"") -> 
D135: =IF($D84="Eixugat",D84,"") -> 
A136: Necesidades grupo postparto (datos explotación)
A137: Necesidades grupo alrededor del pico (datos explotación)
A138: Necesidades grupo resto de lactación, del pico al final (datos explotación) | L138: N vaques | M138: Dies | N138: Pl | O138: CI | P138: UFL | Q138: PDI | R138: P | T138: Ca | V138: Mg | W138: K | X138: Na | Y138: UFL_VPR | Z138: PDI_VPR | AA138: S | AB138: Cl | AC138: Fe | AD138: Co | AE138: Cu | AF138: Mn | AG138: Zn | AH138: I | AI138: Se | AJ138: CI kg MS
A139: Necesidades un solo grupo de lactación (datos explotación) | L139: =IF(D48="","",IF(D48="Lactació",SUM(O51:O53))) -> 44.71942446 | M139: =IF(D48="","",IF(D48="Lactació",SUM(M51:M52))) -> 42 | N139: =SUMPRODUCT($N$51:$N$52,R51:R52)/SUM($N$51:$N$52) -> 45.26782549 | O139: =SUMPRODUCT($N$51:$N$52,T51:T52)/SUM($N$51:$N$52) -> 16.72895444 | P139: =SUMPRODUCT($N$51:$N$52,V51:V52)/SUM($N$51:$N$52) -> 23.1047703 | Q139: =SUMPRODUCT($N$51:$N$52,W51:W52)/SUM($N$51:$N$52) -> 2703.552598 | R139: =SUMPRODUCT($N$51:$N$52,X51:X52)/SUM($N$51:$N$52) -> 64.17662313 | T139: =SUMPRODUCT($N$51:$N$52,AA51:AA52)/SUM($N$51:$N$52) -> 79.78669712 | V139: =SUMPRODUCT($N$51:$N$52,AB51:AB52)/SUM($N$51:$N$52) -> 14.49017382 | W139: 148.4017382 | X139: 36.47052147 | Y139: 53.0977836 | Z139: 31.29017382 | AA139: 452.6782549 | AB139: 7.96466754 | AD139: =SUMPRODUCT($N$51:$N$52,AH51:AH52)/SUM($N$51:$N$52) -> 7.96466754 | AE139: 265.488918 | AF139: 1327.44459 | AG139: 1327.44459 | AH139: 17.25677967 | AI139: 0.15 | AJ139: =SUMPRODUCT($N$51:$N$52,U51:U52)/SUM($N$51:$N$52) -> 26.5488918
A140: Necesidades grupo secado (datos explotación) | L140: =SUM(O54:O56) -> 44.71942446 | M140: =SUM(M53:M55) -> 98 | N140: =SUMPRODUCT($N$53:$N$55,R53:R55)/SUM($N$53:$N$55) -> 43.43900028 | O140: =SUMPRODUCT($N$53:$N$55,T53:T55)/SUM($N$53:$N$55) -> 19.27551053 | P140: =SUMPRODUCT($N$53:$N$55,V53:V55)/SUM($N$53:$N$55) -> 28.13864242 | Q140: =SUMPRODUCT($N$53:$N$55,W53:W55)/SUM($N$53:$N$55) -> 2871.407168 | R140: =SUMPRODUCT($N$53:$N$55,X53:X55)/SUM($N$53:$N$55) -> 64.36275808 | T140: =SUMPRODUCT($N$53:$N$55,AA53:AA55)/SUM($N$53:$N$55) -> 78.96412044 | V140: =SUMPRODUCT($N$53:$N$55,AB53:AB55)/SUM($N$53:$N$55) -> 14.21585004 | W140: =SUMPRODUCT($N$53:$N$55,AC53:AC55)/SUM($N$53:$N$55) -> 145.6585004 | X140: =SUMPRODUCT($N$53:$N$55,AD53:AD55)/SUM($N$53:$N$55) -> 35.64755013 | Y140: =SUMPRODUCT($N$53:$N$55,Y53:Y55)/SUM($N$53:$N$55) -> -0.3098758931 | Z140: =SUMPRODUCT($N$53:$N$55,Z53:Z55)/SUM($N$53:$N$55) -> -10.22590447 | AA140: =SUMPRODUCT($N$53:$N$55,AE53:AE55)/SUM($N$53:$N$55) -> 57.51242848 | AB140: =SUMPRODUCT($N$53:$N$55,AF53:AF55)/SUM($N$53:$N$55) -> 31.01585004 | AD140: =SUMPRODUCT($N$53:$N$55,AH53:AH55)/SUM($N$53:$N$55) -> 8.626864271 | AE140: 287.5621424 | AF140: 1437.810712 | AG140: 1437.810712 | AH140: 18.69153925 | AI140: 0.15 | AJ140: =SUMPRODUCT($N$53:$N$55,U53:U55)/SUM($N$53:$N$55) -> 28.75621424
A141: Necesidades para una vaca (según datos individuales) | L141: =L104 -> 115.5251799 | M141: =M106 -> 217 | N141: 29.22817819 | O141: 17.3149386 | P141: 22.96273557 | Q141: 2149.992839 | R141: 48.56451282 | T141: 59.27632747 | V141: 12.08422673 | W141: 124.697106 | X141: 29.71397051 | Y141: =Y106 -> -0.9379516974 | Z141: =Z106 -> -30.95240601 | AA141: 48.06144174 | AB141: 29.23906544 | AD141: 7.20921626 | AE141: 240.3072087 | AF141: 1201.536043 | AG141: 1201.536043 | AH141: 15.61996856 | AI141: 0.15 | AJ141: 24.03072087
D142: 4 | L142: =SUM(L139:L141)-L143 -> 173.0215827 | N142: =SUMPRODUCT($M$139:$M$141,N139:N141)/SUM($M$139:$M$141) -> 35.01620551 | O142: 17.7841955 | P142: 24.40028271 | Q142: 2413.152822 | R142: 54.73800489 | T142: 67.09380432 | V142: 12.95243083 | W142: 133.2399945 | X142: 32.13768463 | Y142: =SUMPRODUCT($M$139:$M$141,Y139:Y141)/SUM($M$139:$M$141) -> 5.591606597 | Z142: =SUMPRODUCT($M$139:$M$141,Z139:Z141)/SUM($M$139:$M$141) -> -17.94012169 | AA142: 98.25780827 | AB142: 27.22393989 | AD142: 7.687251159 | AE142: 256.2417053 | AF142: 1281.208527 | AG142: 1281.208527 | AH142: 16.65571084 | AI142: 0.15 | AJ142: =AJ106 -> 24.03072087 | BR142: Exemples segons valor interval entre parts
E143: <------- Elegir tipus de racionament | L143: =K132 -> 31.94244604 | M143: =M132 -> 60 | N143: 0 | O143: =N132 -> 7.594103479 | P143: 12.5037435 | Q143: 719.6693073 | R143: 17.32824962 | T143: =R132 -> 23.19904723 | V143: =T132 -> 7.865 | W143: 50 | X143: 11.8 | Y143: =Y132 -> -0.9418553681 | Z143: =Z132 -> -31.08122715 | AA143: =X132 -> 26.34626039 | AB143: =AA132 -> 17.1 | AD143: 3.951939059 | AE143: 131.731302 | AF143: 658.6565098 | AG143: 658.6565098 | AH143: 5.927908589 | AI143: 0 | AJ143: =AI132 -> 13.1731302 | BR143: IP = 365 dies | BT143: IP = 375 dies | BV143: IP = 385 dies | BX143: IP = 395 dies | BZ143: IP = 410 dies | CB143: IP = 425 dies | CD143: IP = 435 dies
K144: =IF(K20=K19,0,K20) -> 2 | N144: =I18 -> 38.06377011 | O144: =IF(I3=1,M5,N5) -> 18.81598947 | P144: =IF($I$3=1,Q5,R5) -> 22.06908564 | Q144: =IF($I$3=1,S5,T5) -> 2485.529078 | R144: =IF($I$3=1,U5,V5) -> 57.18064318 | T144: =IF($I$3=1,W5,X5) -> 70.37238108 | V144: =IF($I$3=1,Y5,Z5) -> 13.40956552 | W144: =IF($I$3=1,AA5,AB5) -> 137.5956552 | X144: =IF($I$3=1,AC5,AD5) -> 33.22869655 | Y144: =I20 -> 0.687351727 | Z144: =I21 -> 22.68260699 | AA144: =IF($I$3=1,AE5,AF5) -> 51.86325322 | AB144: =IF($I$3=1,AG5,AH5) -> 30.20956552 | AD144: =IF($I$3=1,AI5,AJ5) -> 7.779487983 | AE144: =IF($I$3=1,AK5,AL5) -> 259.3162661 | AF144: =IF($I$3=1,AM5,AN5) -> 1296.581331 | AG144: =IF($I$3=1,AO5,AP5) -> 1296.581331 | AH144: =IF($I$3=1,AQ5,AR5) -> 16.8555573 | AI144: =IF($I$3=1,AS5,AT5) -> 0.15 | AJ144: =IF($I$3=1,O5,P5) -> 25.93162661 | BR144: setmL | BS144: setmG | BT144: setmL | BU144: setmG | BV144: setmL | BW144: setmG | BX144: setmL | BY144: setmG | BZ144: setmL | CA144: setmG | CB144: setmL | CC144: setmG | CD144: setmL | CE144: setmG
A145: Necesidades | BR145: 2 | BS145: 0 | BT145: 2 | BU145: 0 | BV145: 2 | BW145: 0 | BX145: 2 | BY145: 0 | BZ145: 2 | CA145: 0 | CB145: 2 | CC145: 0 | CD145: 2 | CE145: 0
A146: Días de racionamiento | D146: =M148 -> 0 | BR146: 5 | BS146: 0 | BT146: 5 | BU146: 0 | BV146: 5 | BW146: 0 | BX146: 5 | BY146: 0 | BZ146: 5 | CA146: 0 | CB146: 5 | CC146: 0 | CD146: 5 | CE146: 0
A147: Producción de leche estanadar kg/vaca y día | D147: =N148 -> 35.01620551 | M147: Dies | N147: Pl | O147: CI | P147: UFL | Q147: PDI | R147: P | T147: Ca | V147: Mg | W147: K | X147: Na | Y147: UFL_VPR | Z147: PDI_VPR | AA147: S | AB147: Cl | AC147: Fe | AD147: Co | AE147: Cu | AF147: Mn | AG147: Zn | AH147: I | AI147: Se | AJ147: CI kg MS | BR147: 9.5 | BS147: 0 | BT147: 9.5 | BU147: 0 | BV147: 9.5 | BW147: 0 | BX147: 9.5 | BY147: 0 | BZ147: 9.5 | CA147: 0 | CB147: 9.5 | CC147: 0 | CD147: 9.5 | CE147: 0
A148: Capacidad ingestión (UE) | D148: =O148 -> 17.7841955 | K148: A | L148: =IF(I3=1,-9.5+0.4*I17+1.89*I9,-13.2+0.4*I17+1.89*I9) -> 9.21326087 | M148: =IF($D$142=6,M144,IF($D$142<5,IF($D$142<4,IF($D$142<3,IF($D$142<2,M139,M140),M141),M142),M143)) -> 0 | N148: =IF($D$142=6,N144,IF($D$142<5,IF($D$142<4,IF($D$142<3,IF($D$142<2,N139,N140),N141),N142),N143)) -> 35.01620551 | O148: =IF($D$142=6,O144,IF($D$142<5,IF($D$142<4,IF($D$142<3,IF($D$142<2,O139,O140),O141),O142),O143)) -> 17.7841955 | P148: 24.40028271 | Q148: 2413.152822 | R148: 54.73800489 | S148: 0 | T148: 67.09380432 | U148: 0 | V148: 12.95243083 | W148: 133.2399945 | X148: 32.13768463 | Y148: 5.591606597 | Z148: -17.94012169 | AA148: 98.25780827 | AB148: 27.22393989 | AC148: 0 | AD148: 7.687251159 | AE148: 256.2417053 | AF148: 1281.208527 | AG148: 1281.208527 | AH148: 16.65571084 | AI148: 0.15 | AJ148: 24.03072087 | BR148: 16 | BS148: 4.428571429 | BT148: 16 | BU148: 3 | BV148: 16 | BW148: 1.571428571 | BX148: 16 | BY148: 0.1428571429 | BZ148: 16 | CA148: 0 | CB148: 16 | CC148: 0 | CD148: 16 | CE148: 0
A149: Energía (UFL) | D149: =P148 -> 24.40028271 | K149: B | L149: =1/I9 -> 0.2857142857 | M149: N vaques | BR149: 20 | BS149: 8.428571429 | BT149: 20 | BU149: 7 | BV149: 20 | BW149: 5.571428571 | BX149: 20 | BY149: 4.142857143 | BZ149: 20 | CA149: 2 | CB149: 20 | CC149: 0 | CD149: 20 | CE149: 0
A150: Proteína (g PDI) | D150: =Q148 -> 2413.152822 | K150: K | L150: =L148/(52*L149) -> 0.6201233278 | M150: =IF($D$142=6,1,IF($D$142<5,IF($D$142<4,IF($D$142<3,IF($D$142<2,L139,L140),L141),L142),L143)) -> 173.0215827 | BR150: 24 | BS150: 12.42857143 | BT150: 24 | BU150: 11 | BV150: 24 | BW150: 9.571428571 | BX150: 24 | BY150: 8.142857143 | BZ150: 24 | CA150: 6 | CB150: 24 | CC150: 3.857142857 | CD150: 24 | CE150: 2.428571429
A151: Ca (g) | D151: =T148 -> 67.09380432 | K151: A/B | L151: =L148/L149 -> 32.24641304 | BR151: 28 | BS151: 16.42857143 | BT151: 28 | BU151: 15 | BV151: 28 | BW151: 13.57142857 | BX151: 28 | BY151: 12.14285714 | BZ151: 28 | CA151: 10 | CB151: 28 | CC151: 7.857142857 | CD151: 28 | CE151: 6.428571429
A152: P (g) | D152: =R148 -> 54.73800489 | K152: A/1-B | L152: =L148/(1-L149) -> 12.89856522 | BR152: 32 | BS152: 20.42857143 | BT152: 32 | BU152: 19 | BV152: 32 | BW152: 17.57142857 | BX152: 32 | BY152: 16.14285714 | BZ152: 32 | CA152: 14 | CB152: 32 | CC152: 11.85714286 | CD152: 32 | CE152: 10.42857143
A153: Mg (g) | D153: =V148 -> 12.95243083 | K153: exp(-sl) | L153: =EXP(-I12) -> 0.0003354626279 | BR153: 36 | BS153: 24.42857143 | BT153: 36 | BU153: 23 | BV153: 36 | BW153: 21.57142857 | BX153: 36 | BY153: 20.14285714 | BZ153: 36 | CA153: 18 | CB153: 36 | CC153: 15.85714286 | CD153: 36 | CE153: 14.42857143
A154: K (g) | D154: =W148 -> 133.2399945 | K154: exp(-b*sl)/B | L154: =EXP(-L149*I12)/L149 -> 0.3559548731 | P154: Trabada | BR154: 40 | BS154: 28.42857143 | BT154: 40 | BU154: 27 | BV154: 40 | BW154: 25.57142857 | BX154: 40 | BY154: 24.14285714 | BZ154: 40 | CA154: 22 | CB154: 40 | CC154: 19.85714286 | CD154: 40 | CE154: 18.42857143
A155: Na (g) | D155: =X148 -> 32.13768463 | P155: Libre | BR155: 43.57142857 | BS155: 32 | BT155: 44 | BU155: 31 | BV155: 44 | BW155: 29.57142857 | BX155: 44 | BY155: 28.14285714 | BZ155: 44 | CA155: 26 | CB155: 44 | CC155: 23.85714286 | CD155: 44 | CE155: 22.42857143
A156: S (g) | D156: =AA148 -> 98.25780827 | M156: =I18*224 -> 8526.284504 | P156: Pastoreo llano | BR156: 0 | BS156: 36 | BT156: 45 | BU156: 32 | BV156: 46.42857143 | BW156: 32 | BX156: 47.85714286 | BY156: 32 | BZ156: 48 | CA156: 30 | CB156: 48 | CC156: 27.85714286 | CD156: 48 | CE156: 26.42857143
A157: Cl (g) | D157: =AB148 -> 27.22393989 | P157: Pastoreo larga distancia o dificultosa | BR157: 0 | BS157: 40 | BT157: 0 | BU157: 36 | BV157: 0 | BW157: 36 | BX157: 0 | BY157: 36 | BZ157: 50 | CA157: 32 | CB157: 52 | CC157: 31.85714286 | CD157: 52 | CE157: 30.42857143
A158: Co (mg) | D158: =AD148 -> 7.687251159 | K158: -0.83 | M158: =12000/224 -> 53.57142857 | P158: Pastoreo montaña | BT158: 0 | BU158: 40 | BV158: 0 | BW158: 40 | BX158: 0 | BY158: 40 | BZ158: 0 | CA158: 36 | CB158: 52.14285714 | CC158: 32 | CD158: 53.57142857 | CE158: 32
A159: Cu (mg) | D159: =AE148 -> 256.2417053 | K159: =1.92*EXP(-0.0083*I12) -> 1.796652455 | BZ159: 0 | CA159: 40 | CB159: 0 | CC159: 36 | CD159: 0 | CE159: 36
A160: Mn (mg) | D160: =AF148 -> 1281.208527 | K160: =0.74*EXP(-0.88*I12) -> 0.0006483336561 | CB160: 0 | CC160: 40 | CD160: 0 | CE160: 40
A161: Zn (mg) | D161: =AG148 -> 1281.208527 | K161: =0.5*EXP(-0.12*(45-I14)) -> 0.002258290471 | M161: =I17/(-0.55+1.66*EXP(-0.0065*I12)-0.72*EXP(-0.44*I12)-N161) -> 39.33598029 | N161: =0.69*EXP(-0.16*(45-I14)) -> 0.0005151442078
A162: I (mg) | D162: =AH148 -> 16.65571084 | K162: =K158+K159-K160-K161 -> 0.9637458306 | L162: =I17/K162 -> 40.98139875
A163: Se (mg) | D163: =AI148 -> 0.15
A164: Peso vaca adulta | D164: =IF(D142=6,I7,D10) -> 700
A165: EN mant | D165: =0.0536*D164^0.75*K6 -> 7.294378918
A166: EN leche | D166: =D147*0.42 -> 14.70680631
A167: CI kg MSI | D167: =AJ148 -> 24.03072087
A168: MP | D168: =D147*31 -> 1085.502371
A169: UFL_VPR | D169: =Y148 -> 5.591606597
A170: PDI_VPR | D170: =Z148 -> -17.94012169
A171: PDI/UFL | D171: =D150/D149 -> 98.89855994
A172: Número de vacas | D172: =INT(M150) -> 173
A173: =IF(D173=1,P154,IF(D173=2,P155,IF(D173=3,P156,IF(D173=4,P157,P158)))) -> Libre | D173: =E1 -> 2
A174: =IF(D174=1,A136,IF(D174=2,A137,IF(D174=3,A138,IF(D174=4,A139,A140)))) -> Necesidades un solo grupo de lactación (datos explotación) | D174: =D142 -> 4
H175: =394+144 -> 538

Sheet I_Necessitats (hidden)
A1: Entorn o modalitat explotació ----------------------> | E1: 2 | K1: ICI | L1: =0.6+(1-0.6)*(1-EXP(-0.25*I12)) -> 0.8110533789 | M1: =(14.25+(0.015*(I7-600))+(0.11*I18)+((2.5-I16))) -> 19.44450341 | O1: CI MS aprox INRA | Q1: ???
A2: Dades explotació per a la formulació | F2: Dades per a una vaca en lactació | K2: ICG | L2: =0.8+0.2*(1-EXP(-0.25*(40-I14))) -> 0.99999092 | N2: =(14.24+0.015*(I7-600)+0.11*I18+(2.5-I16))*AV5*AW5*AY5 -> 16.2859177 | O2: =M5/0.85 -> 18.54690121 | P2: =N5/0.85 -> 19.62709346 | AU2: 0.6 | AV2: 0.7 | BR2: Autor: Antoni Seguí Parpal
A3: Producció mitjana explotació, vaca present i any | D3: 10500 | I3: 2 | K3: ICmadu | L3: =-0.1+1.1*(1-EXP(-0.08*I8)) -> 0.9763570385 | M3: CI UE | O3: CI MS | Q3: Energia | S3: Proteïna | U3: Fòsfor | W3: Calci | Y3: Mg | AA3: K | AC3: Na | AE3: S | AG3: Cl | AI3: Co mg/dia | AK3: Cu mg/dia | AM3: Mn mg/dia | AO3: Zn mg/dia | AQ3: I mg/dia | AS3: Se mg/dia | AU3: IL | AW3: IG | AX3: IM prim | AY3: IM multi | AZ3: I_CI PDI prim | BA3: I_CI PDI multi
A4: Taxa de greix (%) | D4: 3.8 | F4: Producció a 305 dies | I4: 9084 | K4: ICIPDI | L4: =0.91+(0.115/(1+EXP(0.13*(90-(S5/Q5))))) -> 1.023856926 | M4: prim | N4: multi | O4: prim | P4: multi | Q4: prim | R4: multi | S4: prim | T4: multi | U4: prim | V4: multi | W4: prim | X4: multi | Y4: prim | Z4: multi | AA4: prim | AB4: multi | AC4: prim | AD4: multi | AE4: prim | AF4: multi | AG4: prim | AH4: multi | AI4: prim | AJ4: multi | AK4: prim | AL4: multi | AM4: prim | AN4: multi | AO4: prim | AP4: multi | AQ4: prim | AR4: multi | AS4: prim | AT4: multi | AU4: prim | AV4: multi
A5: Taxa de proteïna (%) | D5: 3.3 | F5: Taxa de greix (%) | I5: 4 | L5: =M1*L1*L2*L3*L4 -> 15.76486603 | M5: =(14.25+(0.015*(I7-600))+(0.11*I18)+((2.5-I16)))*AU5*AW5*AX5*AZ5 -> 15.76486603 | N5: =(14.25+(0.015*(I7-600))+(0.11*I18)+((2.5-I16)))*AV5*AW5*AY5*BA5 -> 16.68302945 | O5: =0.372*I18+0.0968*I7^0.75*(1-EXP(-0.192*(I12+3.67))) -> 24.02498011 | P5: =0.372*I18+0.0968*I7^0.75*(1-EXP(-0.192*(I12+3.67))) -> 24.02498011 | Q5: =(0.0536*I7^0.75)*K6+I18*0.42+(3.14-0.077*I8)+IF(I23="",0,(0.000695*I10*EXP(0.116*I23)))-I20 -> 18.94257407 | R5: =(0.0536*I7^0.75)*K6+I18*0.42+(3.14-0.077*I8)+ IF(I23="",0,(0.000695*I10*EXP(0.116*I23)))-I20 -> 18.94257407 | S5: =0.312*I7+(0.2*I7^0.6)/I19+19.8*O5+IF(I8<40,((270-6.66*I8)/I19),0)+(I18*31/I19)+IF(I23>24,(0.0448*I10*EXP(0.111*I23)/I19),0)-I21 -> 2375.285295 | T5: =0.312*I7+(0.2*I7^0.6)/I19+19.8*O5+IF(I8<40,((270-6.66*I8)/I19),0)+I18*31/I19+IF(I23>24,(0.0448*I10*EXP(0.111*I23)/I19),0)-I21 -> 2375.285295 | U5: =(0.83*O5+0.002*I7+0.9*I18+IF(I23>0,(7.38/(1+EXP(19.1-5.46*LN(I23)))),0)) -> 56.45019613 | V5: =(0.83*P5+0.002*I7+0.9*I18+IF(I23>0,(7.38/(1+EXP(19.1-(5.46*LN(I23))))),0)) -> 56.45019613 | W5: =(0.663*O5+0.008*I7+1.25*I18+IF(I23>0,(23.5/(1+EXP(18.8-(5.03*LN(I23))))),0)) -> 70.29170437 | X5: =(0.663*P5+0.008*I7+1.25*I18+IF(I23>0,(23.5/(1+EXP(18.8-(5.03*LN(I23))))),0)) -> 70.29170437 | Y5: =(0.011*I7+0.15*I18+IF(I23>36,0.33,0)) -> 13.55157711 | Z5: =(0.011*I7+0.15*I18+IF(I23>36,0.33,0)) -> 13.55157711 | AA5: =IF(I18>0,0.115*I7,0.07*I7)+IF(I23>24,1,0)+1.5*I18 -> 139.0157711 | AB5: =IF(I18>0,0.115*I7,0.07*I7)+IF(I23>24,1,0)+1.5*I18 -> 139.0157711 | AC5: =IF(I18>0,0.023*I7,0.015*I7)+IF(I23>24,1.3,0)+0.45*I18 -> 33.65473132 | AD5: =IF(I18>0,0.023*I7,0.015*I7)+IF(I23>24,1.3,0)+0.45*I18 -> 33.65473132 | AE5: =2*O5 -> 48.04996023 | AF5: =2*P5 -> 48.04996023 | AG5: =IF(I18>0,0.035*I7,0.023*I7)+IF(I23>24,1,0)+0.15*I18 -> 30.35157711 | AH5: =IF(I18>0,0.035*I7,0.023*I7)+IF(I23>24,1,0)+0.15*I18 -> 30.35157711 | AI5: =0.3*O5 -> 7.207494034 | AJ5: =0.3*P5 -> 7.207494034 | AK5: =10*O5 -> 240.2498011 | AL5: =10*P5 -> 240.2498011 | AM5: =50*O5 -> 1201.249006 | AN5: =50*P5 -> 1201.249006 | AO5: =50*O5 -> 1201.249006 | AP5: =50*P5 -> 1201.249006 | AQ5: =IF(I18>0,0.65*O5,0.45*O5) -> 15.61623707 | AR5: =IF(I18>0,0.65*O5,0.45*O5) -> 15.61623707 | AS5: =IF(I18>0,0.15,0) -> 0.15 | AT5: =IF(I18>0,0.15,0) -> 0.15 | AU5: =$AU$2+(1-$AU$2)*(1-EXP(-0.25*I22)) -> 0.8110533789 | AV5: =$AV$2+(1-$AV$2)*(1-EXP(-0.25*I22)) -> 0.8582900342 | AW5: =0.8+0.2*(1-EXP(-0.25*(40-I23))) -> 0.99999092 | AX5: =-0.1+1.1*(1-EXP(-0.08*I8)) -> 0.9763570385 | AY5: =-0.1+1.1*(1-EXP(-0.08*I8)) -> 0.9763570385 | AZ5: =0.91+(0.115/(1+EXP(0.13*(90-(S5/Q5))))) -> 1.023856926 | BA5: =0.91+(0.115/(1+EXP(0.13*(90-(T5/R5))))) -> 1.023856926
A6: Interval entre parts (dies) IP | D6: 400 | F6: Taxa de proteïna (%) | I6: 3.1 | K6: =IF(E1=1,0.95,IF(E1=2,1,IF(E1=3,1.1,IF(E1=4,1.2,1.3)))) -> 1 | M6: període lactació explotació | P6: UFL_VPR>
A7: Temps eixugament (dies) TE | D7: 60 | F7: Pes vaca adulta (kg) | I7: 700 | N7: =(D6-D7)/7 -> 48.57142857 | O7: setmanes lact | Q7: =INT((9*30.5+10)/7) -> 40 | R7: Setmanes gestació
A8: Vaques presents | D8: 235 | F8: Edat mesos | H8: =IF(I3=1,IF(I8>36,"edat en mesos?",""),IF(I8<36,"edat en mesos?","")) ->  | I8: 48 | L8: 394 | N8: =D10*0.9 -> 630 | O8: pes prim | Q8: =Q7-(61/7) -> 31.28571429 | T8: A | U8: =-9.5+0.4*N19+1.89*D11 -> 13.95727172 | V8: =-13.2+0.4*O19+1.89*D11 -> 12.39245934 | AQ8: 100 | AR8: =AQ8/7 -> 14.28571429 | BC8: =16*I7*0.9 -> 10080
A9: Vaques primera lactació (%) | D9: 0.3 | F9: Condició corporal vaca eixuta al part | I9: 3.5 | L9: 900 | N9: =1.5*(3-D11) -> -1.125 | O9: =D11-1.5 -> 2.25 | T9: B | U9: =1/D11 -> 0.2666666667 | AQ9: 225 | AR9: =AQ9/7 -> 32.14285714 | BC9: =30*I7*0.9 -> 18900
A10: Pes vaca adulta (kg) | D10: 700 | F10: Pes vedell al naixement | I10: 45 | T10: K | U10: =U8/(52*U9) -> 1.006534018 | V10: =V8/(52*U9) -> 0.8936869715
A11: Condició corporal vaques eixutes | D11: 3.75 | F11: Interval entre parts (dies) | I11: 365 | K11: =INT(L11-8) -> 44 | L11: =INT(I11/7) -> 52 | R11: =5*(0.57+0.0074*280)/0.67 -> 19.71641791
A12: Pes vedell al naixement | D12: 35 | F12: Setmana lactació-----> | G12: Valor entre 1 i | H12: =K11 -> 44 | I12: 3 | J12: =L11-40 -> 12
A13: Nombre mitjà de lactació (anys) | D13: 2.5 | F13: Setmana fecundació | J13: =K13-8 -> 44 | K13: =L11-I13 -> 52
A14: MS farratgera, % mínim a la ració | D14: 50 | F14: Setmana gestació calculada en lactació | I14: =IF(I13="",0,IF((I12+1)-I13>0,I12-I13,"")) -> 0 | K14: màx gest
A15: Límits de tolerància (%) en el compliment necessitats proteiques | D15: 12.5 | F15: Setmana en gestació període sec | I15: =IF(I12<=K11,"",I12-J12) ->  | AA15: =(14.25+(0.015*($D$10-600))+(0.11*N20)+((2.5-U20))) -> 18.35297359 | AB15: =(14.25+(0.015*($D$10-600))+0.11*O20+((2.5-V20))) -> 19.50184738 | BH15: =EXP(-0.25*0) -> 1 | BM15: =0.8+0.2*(1-EXP(-0.25*(40-0))) -> 0.99999092
A16: EfPDI teòrica | D16: 0.67 | F16: Condició corporal calculada | I16: =IF(I18=0,I9,IF(I13>I12,"Revisar setmana fecundació",I9-(7/206)*((L148/L149)-L150*I12+(L148/(1-L149))*(EXP(-I12)-(EXP(-L149*I12)/L149))))) -> 3.096653139 | N16: =D13*D26+D7*D13 -> 1000 | O16: =N16/365 -> 2.739726027 | P16: =D26/7 -> 48.57142857 | BP16: =0.6+(1-0.6)*(1-EXP(-0.16*0)) -> 0.6 | BQ16: =0.8+0.2*(1-EXP(-0.25*(40-34))) -> 0.955373968
F17: Producció màxima potencial diària 4% (pic) | I17: =IF(I3=1,I4*(1+(0.0055*(I5*10-40)+0.0033*(I6*10-31)))/260,I4*(1+(0.0055*(I5*10-40)+0.0033*(I6*10-31)))/230) -> 39.49565217 | K17: data part | L17: =I13+9*4.5 -> 40.5 | M17: =IF(I14="","",L17-I14) -> 40.5 | N17: Producció | R17: setmana IA | T17: Setmana part des d'inici lact | AW17: mg/vaca i dia | BK17: 0.6 | BL17: 0.7
F18: Producció diària a la setmana de lactació 4% | I18: =IF(I15="",IF(I13>I12,"Revisar setmana fecundació",IF(I12>1,IF(I3=1,I17*(-0.55+1.66*EXP(-0.0065*I12)-0.72*EXP(-0.44*I12)-0.69*EXP(-0.16*(45-I14))),I17*(-0.83+1.92*EXP(-0.0083*I12)-0.74*EXP(-0.88*I12)-0.5*EXP(-0.12*(45-I14)))),0)),0) -> 39.01051405 | N18: Pic prim | O18: Pic multi | R18: =D25 -> 16.57142857 | T18: =R18+Q7 -> 56.57142857 | W18: UFL_VPR pot | Y18: PDI_VPR pot | AA18: CI | AC18: CI MS | AE18: Energia | AG18: Proteïna | AI18: Fòsfor | AK18: Calci | AM18: Mg | AO18: K | AQ18: Na | AS18: S | AU18: Cl | AW18: Fe | AX18: No 2018 | AY18: Co | BA18: Cu | BC18: Mn | BE18: Zn | BG18: I | BI18: Se | BK18: IL | BM18: IG | BN18: IM prim | BO18: IM multi | BP18: I_CI PDI | BQ18: I_CI PDI
F19: EfPDI teòrica | I19: =D16 -> 0.67 | L19: setmL teòrica | N19: =D29/260 -> 40.9244293 | O19: =D29/230 -> 46.26239834 | P19: període | Q19: setmL | R19: setmG | S19: setmG | T19: edat mesos prim | U19: CC prim | V19: CC mult | W19: prim | X19: multi | Y19: prim | Z19: multi | AA19: prim | AB19: multi | AC19: prim | AD19: multi | AE19: prim | AF19: multi | AG19: prim | AH19: multi | AI19: prim | AJ19: multi | AK19: prim | AL19: multi | AM19: prim | AN19: multi | AO19: prim | AP19: multi | AQ19: prim | AR19: multi | AS19: prim | AT19: multi | AU19: prim | AV19: multi | AW19: prim | AX19: multi | AY19: prim | AZ19: multi | BA19: prim | BB19: multi | BC19: prim | BD19: multi | BE19: prim | BF19: multi | BG19: prim | BH19: multi | BI19: prim | BJ19: multi | BK19: prim | BL19: multi | BP19: PRIM
F20: UFL_VPR pot | H20: Variació reserves corporals UFL | I20: =-L150+L152*(EXP(-L149*I22)-EXP(-I22)) -> 4.21149575 | K20: =IF(L20<$N$7,L20,$N$7) -> 2 | L20: 2 | M20: =IF(Q20<$R$18,0,Q20-$R$18) -> 0 | N20: =IF(Q20=0,0,IF(R20="",N$19*(-0.55+1.66*EXP(-0.0065*Q20)-0.72*EXP(-0.44*Q20)),N$19*(-0.55+1.66*EXP(-0.0065*Q20)-0.72*EXP(-0.44*Q20)-(0.69*EXP(-0.16*(45-R20)))))) -> 32.32686018 | O20: =IF(Q20=0,0,IF(R20="",O$19*(-0.83+1.92*EXP(-0.0083*Q20)-0.74*EXP(-0.88*Q20)),O$19*(-0.83+1.92*EXP(-0.0083*Q20)-0.74*EXP(-0.88*Q20)-(0.5*EXP(-0.12*(45-R20)))))) -> 43.0738958 | P20: tres 1es | Q20: =IF(K20=K19,0,K20) -> 2 | R20: =IF(Q20=0,R18+4,IF((Q20-$D$25)<0,"",Q20-$D$25)) ->  | S20: =IF(R20>40,0,R20) -> 0 | T20: =IF(Q20=0,"",24+(Q20/4)) -> 24.5 | U20: =$D$11-(7/260)*(($U$8/$U$9)-$U$10*Q20+($U$8/(1-$U$9))*(EXP(-Q20)-EXP(-$U$9*Q20)/$U$9)) -> 3.452981027 | V20: =$D$11-(7/260)*(($V$8/$U$9)-$V$10*Q20+($V$8/(1-$U$9))*(EXP(-Q20)-EXP(-$U$9*Q20)/$U$9)) -> 3.486281157 | W20: =-$U$10+($U$8/(1-$U$9))*(EXP(-$U$9*Q20)-EXP(-Q20)) -> 7.58310603 | X20: =-$V$10+($V$8/(1-$U$9))*(EXP(-$U$9*Q20)-EXP(-Q20)) -> 6.732929974 | Y20: =50+33*W20 -> 300.242499 | Z20: =50+33*X20 -> 272.1866891 | AA20: =(14.25+(0.015*($D$10-600))+(0.11*N20)+((2.5-U20)))*BK20*BM20*BN20*BP20 -> 12.03726989 | AB20: =(14.25+(0.015*($D$10-600))+0.11*O20+((2.5-V20)))*BL20*BM20*BO20*BQ20 -> 16.26989599 | AC20: =0.372*N20+0.0968*$D$10^0.75*(1-EXP(-0.192*(Q20+3.67))) -> 20.76387022 | AD20: =0.372*O20+0.0968*$D$10^0.75*(1-EXP(-0.192*(Q20+3.67))) -> 24.76176747 | AE20: =(0.0536*$D$10^0.75)*$K$6+N20*0.42+(3.14-0.077*T20)+IF(S20="",0,(0.000695*$D$12*EXP(0.116*S20)))-W20 -> 14.56637916 | AF20: =(0.0536*$D$10^0.75)*$K$6+O20*0.42+(3.14-0.077*U20)+IF(S20="",0,(0.000695*$D$12*EXP(0.116*S20)))-X20 -> 21.55093064 | AG20: =IF(S20="",19.8*AC20+0.312*$D$10+0.2*$D$10^0.6/$D$16+((270-6.66*T20)/$D$16)+(N20*31/$D$16)-Y20,19.8*AC20+0.312*$D$10+0.2*$D$10^0.6/$D$16+((270-6.66*T20)/$D$16)+(N20*31/$D$16)+0.0448*$D$12*EXP(0.111*S20)/$D$16-Y20) -> 2001.996553 | AH20: =IF(S20="",19.8*AD20+0.312*$D$10+0.2*$D$10^0.6/$D$16+(O20*31/$D$16)-Z20,19.8*AD20+0.312*$D$10+0.2*$D$10^0.6/$D$16+(O20*31/$D$16)+0.0448*$D$12*EXP(0.111*S20)/$D$16)-Z20 -> 2447.01387 | AI20: =(0.83*AC20+0.002*$D$10+0.9*N20+IF($S20=0,0,(7.38/(1+EXP(19.1-5.46*LN(S20)))))) -> 47.72818644 | AJ20: =(0.83*AD20+0.002*$D$10+0.9*O20+IF($S20=0,0,(7.38/(1+EXP(19.1-5.46*LN(S20)))))) -> 60.71877323 | AK20: =(0.663*AC20+0.008*$D$10+1.25*N20+IF(S20=0,0,(23.5/(1+EXP(18.8-(5.03*LN(S20))))))) -> 59.77502118 | AL20: =(0.663*AD20+0.008*$D$10+1.25*O20+IF(S20=0,0,(23.5/(1+EXP(18.8-(5.03*LN(S20))))))) -> 75.85942159 | AM20: =(0.011*$D$10+0.15*N20+IF(S20>36,0.33,0)) -> 12.54902903 | AN20: =(0.011*$D$10+0.15*O20+IF(S20>36,0.33,0)) -> 14.16108437 | AO20: =IF(N20>0,0.115*$D$10,0.07*$D$10)+IF(S20>24,1,0)+1.5*N20 -> 128.9902903 | AP20: =IF(O20>0,0.115*$D$10,0.07*$D$10)+IF(S20>24,1,0)+1.5*O20 -> 145.1108437 | AQ20: =IF(N20>0,0.023*$D$10,0.015*$D$10)+IF($S20>24,1.3,0)+0.45*N20 -> 30.64708708 | AR20: =IF(O20>0,0.023*$D$10,0.015*$D$10)+IF($S20>24,1.3,0)+0.45*O20 -> 35.48325311 | AS20: =2*AC20 -> 41.52774044 | AT20: =2*AD20 -> 49.52353495 | AU20: =IF(N20>0,0.035*$D$10,0.023*$D$10)+IF($S20>24,1,0)+0.15*N20 -> 29.34902903 | AV20: =IF(O20>0,0.035*$D$10,0.023*$D$10)+IF($S20>24,1,0)+0.15*O20 -> 30.96108437 | AW20: =IF(S20="",0,IF(S20<27,N20/0.1,(N20+18)/0.1)) -> 323.2686018 | AX20: =IF(S20="",0,IF(S20<27,O20/0.1,(O20+18)/0.1)) -> 430.738958 | AY20: =0.3*AC20 -> 6.229161067 | AZ20: =0.3*AD20 -> 7.428530242 | BA20: =10*AC20 -> 207.6387022 | BB20: =10*AD20 -> 247.6176747 | BC20: =50*AC20 -> 1038.193511 | BD20: =50*AD20 -> 1238.088374 | BE20: =50*AC20 -> 1038.193511 | BF20: =50*AD20 -> 1238.088374 | BG20: =IF(N20>0,0.65*AC20,0.45*AC20) -> 13.49651564 | BH20: =IF(O20>0,0.65*AD20,0.45*AD20) -> 16.09514886 | BI20: =IF(N20>0,0.15,0) -> 0.15 | BJ20: =IF(O20>0,0.15,0) -> 0.15 | BK20: =$BK$17+(1-$BK$17)*(1-EXP(-0.25*Q20)) -> 0.7573877361 | BL20: =$BL$17+(1-$BL$17)*(1-EXP(-0.25*Q20)) -> 0.8180408021 | BM20: =0.8+0.2*(1-EXP(-0.25*(40-S20))) -> 0.99999092 | BN20: =-0.1+1.1*(1-EXP(-0.08*T20)) -> 0.845055737 | BO20: 1 | BP20: =0.91+0.115/(1+EXP(0.13*(90-(AG20/AE20)))) -> 1.024759324 | BQ20: =0.91+0.115/(1+EXP(0.13*(90-AH20/AF20))) -> 1.019853993
F21: PDI_VPR pot | H21: Variació reserves corporals PDI | I21: =IF(I22=1,100+33*I20,IF(I22=2,50+33*I20,33*I20)) -> 138.9793598
F22: Setmana lactació | I22: =IF(I15="",I12,0) -> 3 | K22: ici
F23: Setmana gestació | I23: =IF(I15="",I14,I15) -> 0 | BR23: Exemples segons valor interval entre parts
A24: Interval part fecundació (dies) | D24: =D6-284 -> 116 | J24: =IF(K24=K20,0,K24) -> 5 | K24: =IF(L24<$N$7,L24,$N$7) -> 5 | L24: 5 | M24: 0 | N24: =IF(Q24=0,0,IF(R24="",N$19*(-0.55+1.66*EXP(-0.0065*Q24)-0.72*EXP(-0.44*Q24)),N$19*(-0.55+1.66*EXP(-0.0065*Q24)-0.72*EXP(-0.44*Q24)-(0.69*EXP(-0.16*(45-R24)))))) -> 39.98885563 | O24: =IF(Q24=0,0,IF(R24="",O$19*(-0.83+1.92*EXP(-0.0083*Q24)-0.74*EXP(-0.88*Q24)),O$19*(-0.83+1.92*EXP(-0.0083*Q24)-0.74*EXP(-0.88*Q24)-(0.5*EXP(-0.12*(45-R24)))))) -> 46.39496289 | P24: 4 a 6 | Q24: =IF(K24=K20,0,K24) -> 5 | R24: =IF(Q24=0,R20+4,IF((Q24-$D$25)<0,"",Q24-$D$25)) ->  | S24: =IF(R24>40,0,R24) -> 0 | T24: =IF(Q24=0,T20+1,24+(Q24/4)) -> 25.25 | U24: 2.979413718 | V24: 3.065807605 | W24: 3.882175333 | X24: 3.446927231 | Y24: =33*W24 -> 128.111786 | Z24: =33*X24 -> 113.7485986 | AA24: =(14.25+(0.015*($D$10-600))+(0.11*N24)+((2.5-U24)))*BK24*BM24*BN24*BP24 -> 15.21968969 | AB24: =(14.25+(0.015*($D$10-600))+0.11*O24+((2.5-V24)))*BL24*BM24*BO24*BQ24 -> 18.80690711 | AC24: =IF(Q24>0,0.372*N24+0.0968*$D$10^0.75*(1-EXP(-0.192*(Q24+3.67))),0.372*N24+0.0968*$D$10^0.75*(1-EXP(-0.192*($N$7+1+3.67)))) -> 25.55609749 | AD24: =IF(Q24>0,0.372*O24+0.0968*$D$10^0.75*(1-EXP(-0.192*(Q24+3.67))),0.372*O24+0.0968*$D$10^0.75*(1-EXP(-0.192*($N$7+1+3.67)))) -> 27.93916939 | AE24: =(0.0536*$D$10^0.75)*$K$6+N24*0.42+(3.14-0.077*T24)+IF(S24="",0,(0.000695*$D$12*EXP(0.116*S24)))-W24 -> 21.42759795 | AF24: =(0.0536*$D$10^0.75)*$K$6+O24*0.42+(3.14-0.077*U24)+IF(S24="",0,(0.000695*$D$12*EXP(0.116*S24)))-X24 -> 26.26824625 | AG24: =IF(S24="",19.8*AC24+0.312*$D$10+0.2*$D$10^0.6/$D$16+((270-6.66*T24)/$D$16)+(N24*31/$D$16)-Y24,19.8*AC24+0.312*$D$10+0.2*$D$10^0.6/$D$16+((270-6.66*T24)/$D$16)+(N24*31/$D$16)+0.0448*$D$12*EXP(0.111*S24)/$D$16-Y24) -> 2616.06838 | AH24: =IF(S24="",19.8*AD24+0.312*$D$10+0.2*$D$10^0.6/$D$16+(O24*31/$D$16)-Z24,19.8*AD24+0.312*$D$10+0.2*$D$10^0.6/$D$16+(O24*31/$D$16)+0.0448*$D$12*EXP(0.111*S24)/$D$16)-Z24 -> 2822.025831 | AI24: =(0.83*AC24+0.002*$D$10+0.9*N24+IF($S24=0,0,(7.38/(1+EXP(19.1-5.46*LN(S24)))))) -> 58.60153098 | AJ24: =(0.83*AD24+0.002*$D$10+0.9*O24+IF($S24=0,0,(7.38/(1+EXP(19.1-5.46*LN(S24)))))) -> 66.3449772 | AK24: =(0.663*AC24+0.008*$D$10+1.25*N24+IF(S24=0,0,(23.5/(1+EXP(18.8-(5.03*LN(S24))))))) -> 72.52976217 | AL24: =(0.663*AD24+0.008*$D$10+1.25*O24+IF(S24=0,0,(23.5/(1+EXP(18.8-(5.03*LN(S24))))))) -> 82.11737292 | AM24: =(0.011*$D$10+0.15*N24+IF(S24>36,0.33,0)) -> 13.69832834 | AN24: =(0.011*$D$10+0.15*O24+IF(S24>36,0.33,0)) -> 14.65924443 | AO24: =IF(N24>0,0.115*$D$10,0.07*$D$10)+IF(S24>24,1,0)+1.5*N24 -> 140.4832834 | AP24: =IF(O24>0,0.115*$D$10,0.07*$D$10)+IF(S24>24,1,0)+1.5*O24 -> 150.0924443 | AQ24: =IF(N24>0,0.023*$D$10,0.015*$D$10)+IF($S24>24,1.3,0)+0.45*N24 -> 34.09498503 | AR24: =IF(O24>0,0.023*$D$10,0.015*$D$10)+IF($S24>24,1.3,0)+0.45*O24 -> 36.9777333 | AS24: =2*AC24 -> 51.11219498 | AT24: =2*AD24 -> 55.87833879 | AU24: =IF(N24>0,0.035*$D$10,0.023*$D$10)+IF($S24>24,1,0)+0.15*N24 -> 30.49832834 | AV24: =IF(O24>0,0.035*$D$10,0.023*$D$10)+IF($S24>24,1,0)+0.15*O24 -> 31.45924443 | AW24: =IF(S24="",0,IF(S24<27,N24/0.1,(N24+18)/0.1)) -> 399.8885563 | AX24: =IF(S24="",0,IF(S24<27,O24/0.1,(O24+18)/0.1)) -> 463.9496289 | AY24: =0.3*AC24 -> 7.666829248 | AZ24: =0.3*AD24 -> 8.381750818 | BA24: =10*AC24 -> 255.5609749 | BB24: =10*AD24 -> 279.3916939 | BC24: =50*AC24 -> 1277.804875 | BD24: =50*AD24 -> 1396.95847 | BE24: =50*AC24 -> 1277.804875 | BF24: =50*AD24 -> 1396.95847 | BG24: =IF(N24>0,0.65*AC24,0.45*AC24) -> 16.61146337 | BH24: =IF(O24>0,0.65*AD24,0.45*AD24) -> 18.16046011 | BI24: =IF(N24>0,0.15,0) -> 0.15 | BJ24: =IF(O24>0,0.15,0) -> 0.15 | BK24: =$BK$17+(1-$BK$17)*(1-EXP(-0.25*Q24)) -> 0.8853980813 | BL24: =$BL$17+(1-$BL$17)*(1-EXP(-0.25*Q24)) -> 0.9140485609 | BM24: =0.8+0.2*(1-EXP(-0.25*(40-S24))) -> 0.99999092 | BN24: 0.8540789884 | BO24: 1 | BP24: =0.91+0.115/(1+EXP(0.13*(90-AG24/AE24))) -> 1.023252676 | BQ24: =0.91+0.115/(1+EXP(0.13*(90-AH24/AF24))) -> 1.014192886 | BR24: 365 | BS24: =BR24+10 -> 375 | BT24: =BS24+10 -> 385 | BU24: 395 | BV24: 405 | BW24: 415 | BX24: 425 | BY24: 435 | BZ24: 445 | CA24: 455 | CB24: 465
A25: Setmana inseminació fecundant | D25: =D24/7 -> 16.57142857 | J25: =IF(K25=K24,0,K25) -> 9.5 | K25: 9.5 | L25: 9.5 | M25: 0 | N25: =IF(Q25=0,0,IF(R25="",N$19*(-0.55+1.66*EXP(-0.0065*Q25)-0.72*EXP(-0.44*Q25)),N$19*(-0.55+1.66*EXP(-0.0065*Q25)-0.72*EXP(-0.44*Q25)-(0.69*EXP(-0.16*(45-R25)))))) -> 40.90727242 | O25: =IF(Q25=0,0,IF(R25="",O$19*(-0.83+1.92*EXP(-0.0083*Q25)-0.74*EXP(-0.88*Q25)),O$19*(-0.83+1.92*EXP(-0.0083*Q25)-0.74*EXP(-0.88*Q25)-(0.5*EXP(-0.12*(45-R25)))))) -> 43.68325139 | P25: 7 a 12 | Q25: =IF(K25=K24,0,K25) -> 9.5 | R25: =IF(Q25=0,R24+4,IF((Q25-$D$25)<0,"",Q25-$D$25)) ->  | S25: 0 | T25: =IF(Q25=0,T24+1,24+(Q25/4)) -> 26.375 | U25: 2.750815048 | V25: 2.862838158 | W25: 0.5031177432 | X25: 0.4467109546 | Y25: =33*W25 -> 16.60288553 | Z25: =33*X25 -> 14.7414615 | AA25: =(14.25+(0.015*($D$10-600))+(0.11*N25)+((2.5-U25)))*BK25*BM25*BN25*BP25 -> 16.99076245 | AB25: =(14.25+(0.015*($D$10-600))+0.11*O25+((2.5-V25)))*BL25*BM25*BO25*BQ25 -> 19.61717799 | AC25: =IF(Q25>0,0.372*N25+0.0968*$D$10^0.75*(1-EXP(-0.192*(Q25+3.67))),0.372*N25+0.0968*$D$10^0.75*(1-EXP(-0.192*($N$7+1+3.67)))) -> 27.34012522 | AD25: =IF(Q25>0,0.372*O25+0.0968*$D$10^0.75*(1-EXP(-0.192*(Q25+3.67))),0.372*O25+0.0968*$D$10^0.75*(1-EXP(-0.192*($N$7+1+3.67)))) -> 28.3727894 | AE25: =(0.0536*$D$10^0.75)*$K$6+N25*0.42+(3.14-0.077*T25)+IF(S25="",0,(0.000695*$D$12*EXP(0.116*S25)))-W25 -> 25.10576559 | AF25: =(0.0536*$D$10^0.75)*$K$6+O25*0.42+(3.14-0.077*U25)+IF(S25="",0,(0.000695*$D$12*EXP(0.116*S25)))-X25 -> 28.14714579 | AG25: =IF(S25="",19.8*AC25+0.312*$D$10+0.2*$D$10^0.6/$D$16+((270-6.66*T25)/$D$16)+(N25*31/$D$16)-Y25,19.8*AC25+0.312*$D$10+0.2*$D$10^0.6/$D$16+((270-6.66*T25)/$D$16)+(N25*31/$D$16)+0.0448*$D$12*EXP(0.111*S25)/$D$16-Y25) -> 2794.212105 | AH25: =IF(S25="",19.8*AD25+0.312*$D$10+0.2*$D$10^0.6/$D$16+(O25*31/$D$16)-Z25,19.8*AD25+0.312*$D$10+0.2*$D$10^0.6/$D$16+(O25*31/$D$16)+0.0448*$D$12*EXP(0.111*S25)/$D$16)-Z25 -> 2804.151396 | AI25: 60.90884912 | AJ25: 64.26434145 | AK25: 74.86059355 | AL25: 79.01522361 | AM25: 13.83609086 | AN25: 14.25248771 | AO25: =IF(N25>0,0.115*$D$10,0.07*$D$10)+IF(S25>24,1,0)+1.5*N25 -> 141.8609086 | AP25: =IF(O25>0,0.115*$D$10,0.07*$D$10)+IF(S25>24,1,0)+1.5*O25 -> 146.0248771 | AQ25: =IF(N25>0,0.023*$D$10,0.015*$D$10)+IF($S25>24,1.3,0)+0.45*N25 -> 34.50827259 | AR25: =IF(O25>0,0.023*$D$10,0.015*$D$10)+IF($S25>24,1.3,0)+0.45*O25 -> 35.75746313 | AS25: 54.68025044 | AT25: 56.74557879 | AU25: =IF(N25>0,0.035*$D$10,0.023*$D$10)+IF($S25>24,1,0)+0.15*N25 -> 30.63609086 | AV25: =IF(O25>0,0.035*$D$10,0.023*$D$10)+IF($S25>24,1,0)+0.15*O25 -> 31.05248771 | AW25: 409.0727242 | AX25: 436.8325139 | AY25: =0.3*AC25 -> 8.202037566 | AZ25: =0.3*AD25 -> 8.511836819 | BA25: =10*AC25 -> 273.4012522 | BB25: =10*AD25 -> 283.727894 | BC25: =50*AC25 -> 1367.006261 | BD25: =50*AD25 -> 1418.63947 | BE25: =50*AC25 -> 1367.006261 | BF25: =50*AD25 -> 1418.63947 | BG25: =IF(N25>0,0.65*AC25,0.45*AC25) -> 17.77108139 | BH25: =IF(O25>0,0.65*AD25,0.45*AD25) -> 18.44231311 | BI25: 0.15 | BJ25: 0.15 | BK25: =$BK$17+(1-$BK$17)*(1-EXP(-0.25*Q25)) -> 0.9627942043 | BL25: =$BL$17+(1-$BL$17)*(1-EXP(-0.25*Q25)) -> 0.9720956532 | BM25: 0.99999092 | BN25: 0.8666382369 | BO25: 1 | BP25: =0.91+0.115/(1+EXP(0.13*(90-AG25/AE25))) -> 1.018210438 | BQ25: =0.91+0.115/(1+EXP(0.13*(90-AH25/AF25))) -> 0.9994136239
A26: Període lactació (dies): IP - TE | D26: =D6-D7 -> 340 | F26: =D3*(1+(0.0055*(D4*10-40)+0.0033*(D5*10-31))) -> 10453.8 | J26: 16 | K26: 16 | L26: 16 | M26: 0 | N26: 38.69008571 | O26: 39.37987755 | P26: 13 a 16 | Q26: 16 | S26: 0 | T26: 28 | U26: 2.801392812 | V26: 2.907745422 | W26: -0.7395373551 | X26: -0.6566245026 | Y26: -24.40473272 | Z26: -21.66860858 | AA26: 17.51262632 | AB26: 19.32548578 | AC26: 27.26447743 | AD26: 27.52108 | AE26: 25.29207727 | AF26: 27.43916975 | AG26: 2714.982661 | AH26: 2624.586293 | AI26: 58.85059341 | AJ26: 59.68438619 | AK26: 72.03895568 | AL26: 73.07132297 | AM26: 13.50351286 | AN26: 13.60698163 | AO26: 138.5351286 | AP26: 139.5698163 | AQ26: 33.51053857 | AR26: 33.8209449 | AS26: 54.52895487 | AT26: 55.04216 | AU26: 30.30351286 | AV26: 30.40698163 | AW26: 386.9008571 | AX26: 393.7987755 | AY26: 8.17934323 | AZ26: 8.256323999 | BA26: 272.6447743 | BB26: 275.2108 | BC26: 1363.223872 | BD26: 1376.054 | BE26: 1363.223872 | BF26: 1376.054 | BG26: 17.72191033 | BH26: 17.888702 | BI26: 0.15 | BJ26: 0.15 | BK26: 0.9926737444 | BL26: 0.9945053083 | BM26: 0.99999092 | BN26: 0.8828956452 | BO26: 1 | BP26: 1.014083063 | BQ26: 0.9877196248
A27: % dies productius (IP - TE)/IP | D27: =D26/D6 -> 0.85 | J27: 20 | K27: 20 | L27: =L26+4 -> 20 | M27: 3.428571429 | N27: 37.10365448 | O27: 36.68242975 | P27: 17 a 20 | Q27: 20 | R27: 3.428571429 | S27: 3.428571429 | T27: 29 | U27: 2.892109449 | V27: 2.988291409 | W27: -0.9146454077 | X27: -0.8121004054 | Y27: -30.18329846 | Z27: -26.79931338 | AA27: 17.51037744 | AB27: 18.91679855 | AC27: 26.83603557 | AD27: 26.67933997 | AE27: 24.73576499 | AF27: 26.46661317 | AG27: 2630.019577 | AH27: 2489.327099 | AI27: 57.06722979 | AJ27: 56.55807019 | AK27: 69.77193874 | AL27: 69.14151864 | AM27: 13.26554817 | AN27: 13.20236446 | AO27: 136.1554817 | AP27: 135.5236446 | AQ27: 32.79664451 | AR27: 32.60709339 | AS27: 53.67207113 | AT27: 53.35867993 | AU27: 30.06554817 | AV27: 30.00236446 | AW27: 371.0365448 | AX27: 366.8242975 | AY27: 8.05081067 | AZ27: 8.00380199 | BA27: 268.3603557 | BB27: 266.7933997 | BC27: 1341.801778 | BD27: 1333.966998 | BE27: 1341.801778 | BF27: 1333.966998 | BG27: 17.44342312 | BH27: 17.34157098 | BI27: 0.15 | BJ27: 0.15 | BK27: 0.9973048212 | BL27: 0.9979786159 | BM27: 0.9999786038 | BN27: 0.8918990558 | BO27: 1 | BP27: 1.012699794 | BQ27: 0.9823153788
A28: Producció mitjana explotació, vaca munyida i any, estàndard, Pl vp 4% | D28: =(D3*(1+(0.0055*(D4*10-40)+0.0033*(D5*10-31))))/D27 -> 12298.58824 | J28: 24 | K28: 24 | L28: =L27+4 -> 24 | M28: 7.428571429 | N28: 35.54363135 | O28: 34.12842019 | P28: 21 a 24 | Q28: 24 | R28: 7.428571429 | S28: 7.428571429 | T28: 30 | U28: 2.994420992 | V28: 3.079132346 | W28: -0.9749101923 | X28: -0.8656086345 | Y28: -32.17203635 | Z28: -28.56508494 | AA28: 17.43337045 | AB28: 18.47681173 | AC28: 26.33073096 | AD28: 25.80427241 | AE28: 24.08519679 | AF28: 25.46093613 | AG28: 2541.796666 | AH28: 2357.509797 | AI28: 55.2459033 | AJ28: 53.53525266 | AK28: 67.49067672 | AL28: 65.37262075 | AM28: 13.0315447 | AN28: 12.81926303 | AO28: 133.815447 | AP28: 131.6926303 | AQ28: 32.09463411 | AR28: 31.45778909 | AS28: 52.66146192 | AT28: 51.60854482 | AU28: 29.8315447 | AV28: 29.61926303 | AW28: 355.4363135 | AX28: 341.2842019 | AY28: 7.899219289 | AZ28: 7.741281723 | BA28: 263.3073096 | BB28: 258.0427241 | BC28: 1316.536548 | BD28: 1290.213621 | BE28: 1316.536548 | BF28: 1290.213621 | BG28: 17.11497513 | BH28: 16.77277707 | BI28: 0.15 | BJ28: 0.15 | BK28: 0.9990084991 | BL28: 0.9992563743 | BM28: 0.999941839 | BN28: 0.9002102514 | BO28: 1 | BP28: 1.011523744 | BQ28: 0.9771013615
A29: Producció mitjana explotació, vaca 305 lactació Pl vl 4% | D29: =D28*385/(365+80) -> 10640.35162 | E29: =D28*385/(D6+80) -> 9864.492647 | F29: =D28*D27 -> 10453.8 | J29: 28 | K29: 28 | L29: 28 | M29: 11.42857143 | N29: 33.99053149 | O29: 31.59480437 | P29: 25 a 28 | Q29: 28 | R29: 11.42857143 | S29: 11.42857143 | T29: 31 | U29: 3.100722984 | V29: 3.173516344 | W29: -0.9956505587 | X29: -0.8840237053 | Y29: -32.85646844 | Z29: -29.17278227 | AA29: 17.3160419 | AB29: 18.01542491 | AC29: 25.78778445 | AD29: 24.89657396 | AE29: 23.41063325 | AF29: 24.44104534 | AG29: 2452.914182 | AH29: 2225.901632 | AI29: 53.41764192 | AJ29: 50.52178281 | AK29: 65.21914824 | AL29: 61.6336168 | AM29: 12.79857972 | AN29: 12.43922066 | AO29: 131.4857972 | AP29: 127.8922066 | AQ29: 31.39573917 | AR29: 30.31766197 | AS29: 51.57556889 | AT29: 49.79314792 | AU29: 29.59857972 | AV29: 29.23922066 | AW29: 339.9053149 | AX29: 315.9480437 | AY29: 7.736335334 | AZ29: 7.468972188 | BA29: 257.8778445 | BB29: 248.9657396 | BC29: 1289.389222 | BD29: 1244.828698 | BE29: 1289.389222 | BF29: 1244.828698 | BG29: 16.76205989 | BH29: 16.18277307 | BI29: 0.15 | BJ29: 0.15 | BK29: 0.9996352472 | BL29: 0.9997264354 | BM29: 0.9998419019 | BN29: 0.9078824518 | BO29: 1 | BP29: 1.010310167 | BQ29: 0.9715011554
A30: Vaques primera lactació | D30: =D8*D9 -> 70.5 | J30: 32 | K30: 32 | L30: 32 | M30: 15.42857143 | N30: 32.41957814 | O30: 29.04210027 | P30: 29 a 32 | Q30: 32 | R30: 15.42857143 | S30: 15.42857143 | T30: 32 | U30: 3.208398304 | V30: 3.269119701 | W30: -1.002788435 | X30: -0.8903613218 | Y30: -33.09201834 | Z30: -29.38192362 | AA30: 17.1676891 | AB30: 17.53571835 | AC30: 25.21953799 | AD30: 23.96311623 | AE30: 22.73504198 | AF30: 23.4210275 | AG30: 2363.923427 | AH30: 2094.169295 | AI30: 51.62322452 | AJ30: 47.54066437 | AK30: 62.99666106 | AL30: 57.94180609 | AM30: 12.56293672 | AN30: 12.05631504 | AO30: 129.1293672 | AP30: 124.0631504 | AQ30: 30.68881016 | AR30: 29.16894512 | AS30: 50.43907599 | AT30: 47.92623245 | AU30: 29.36293672 | AV30: 28.85631504 | AW30: 324.1957814 | AX30: 290.4210027 | AY30: 7.565861398 | AZ30: 7.188934868 | BA30: 252.1953799 | BB30: 239.6311623 | BC30: 1260.9769 | BD30: 1198.155811 | BE30: 1260.9769 | BF30: 1198.155811 | BG30: 16.3926997 | BH30: 15.57602555 | BI30: 0.15 | BJ30: 0.15 | BK30: 0.9998658149 | BL30: 0.9998993612 | BM30: 0.9995702449 | BN30: 0.9149647855 | BO30: 1 | BP30: 1.008923956 | BQ30: 0.9653111293
A31: Vaques adultes | D31: =D8*(1-D9) -> 164.5 | F31: =D28/D27 -> 14468.92734 | J31: 36 | K31: 36 | L31: 36 | M31: 19.42857143 | N31: 30.78036564 | O31: 26.40820052 | P31: 33 a 36 | Q31: 36 | R31: 19.42857143 | S31: 19.42857143 | T31: 33 | U31: 3.31654626 | V31: 3.365142705 | W31: -1.005244962 | X31: -0.8925424366 | Y31: -33.17308373 | Z31: -29.45390041 | AA31: 16.98254562 | AB31: 17.0287063 | AC31: 24.61724273 | AD31: 22.99079731 | AE31: 22.05802543 | AF31: 22.3946395 | AG31: 2273.545445 | AH31: 1960.373211 | AI31: 49.91896011 | AJ31: 44.63406181 | AK31: 60.87343601 | AL31: 54.3298963 | AM31: 12.31705485 | AN31: 11.66123008 | AO31: 126.6705485 | AP31: 120.1123008 | AQ31: 29.95116454 | AR31: 27.98369024 | AS31: 49.23448547 | AT31: 45.98159462 | AU31: 29.11705485 | AV31: 28.46123008 | AW31: 307.8036564 | AX31: 264.0820052 | AY31: 7.38517282 | AZ31: 6.897239193 | BA31: 246.1724273 | BB31: 229.9079731 | BC31: 1230.862137 | BD31: 1149.539866 | BE31: 1230.862137 | BF31: 1149.539866 | BG31: 16.00120778 | BH31: 14.94401825 | BI31: 0.15 | BJ31: 0.15 | BK31: 0.9999506361 | BL31: 0.9999629771 | BM31: 0.9988318045 | BN31: 0.9215026035 | BO31: 1 | BP31: 1.007225166 | BQ31: 0.9583746073
A32: Vaques adultes en lactació | D32: =D31*D27 -> 139.825 | G32: =11000*385/480 -> 8822.916667 | J32: 40 | K32: 40 | L32: 40 | M32: 23.42857143 | N32: 28.97745874 | O32: 23.59437904 | P32: 37 a 40 | Q32: 40 | R32: 23.42857143 | S32: 23.42857143 | T32: 34 | U32: 3.424856876 | V32: 3.461310131 | W32: -1.006090385 | X32: -0.8932930755 | Y32: -33.20098269 | Z32: -29.47867149 | AA32: 16.73691716 | AB32: 16.47123242 | AC32: 23.95003711 | AD32: 21.94753146 | AE32: 21.36142025 | AF32: 21.34201549 | AG32: 2178.307876 | AH32: 1820.853161 | AI32: 48.33578337 | AJ32: 41.82893194 | AK32: 58.88560397 | AL32: 50.82909309 | AM32: 12.04661881 | AN32: 11.23915686 | AO32: 123.9661881 | AP32: 115.8915686 | AQ32: 29.13985643 | AR32: 26.71747057 | AS32: 47.90007422 | AT32: 43.89506292 | AU32: 28.84661881 | AV32: 28.03915686 | AW32: 289.7745874 | AX32: 235.9437904 | AY32: 7.185011133 | AZ32: 6.584259438 | BA32: 239.5003711 | BB32: 219.4753146 | BC32: 1197.501856 | BD32: 1097.376573 | BE32: 1197.501856 | BF32: 1097.376573 | BG32: 15.56752412 | BH32: 14.26589545 | BI32: 0.15 | BJ32: 0.15 | BK32: 0.99998184 | BL32: 0.99998638 | BM32: 0.9968245155 | BN32: 0.9275377701 | BO32: 1 | BP32: 1.004974638 | BQ32: 0.9505211811
A33: Vaques adultes eixutes | D33: =D31*(1-D27) -> 24.675 | J33: 44 | K33: 44 | L33: 44 | M33: 27.42857143 | N33: 26.83062051 | O33: 20.44267753 | P33: 41 a 44 | Q33: 44 | R33: 27.42857143 | S33: 27.42857143 | T33: 35 | U33: 3.533223472 | V33: 3.557527262 | W33: -1.00638134 | X33: -0.8935514107 | Y33: -33.21058423 | Z33: -29.48719655 | AA33: 16.37114786 | AB33: 15.81399556 | AC33: 23.15302582 | AD33: 20.77671103 | AE33: 20.60056176 | AF33: 20.22773757 | AG33: 2070.886535 | AH33: 1669.475946 | AI33: 46.7222772 | AJ33: 39.00078724 | AK33: 56.95653441 | AL33: 47.39610898 | AM33: 11.72459308 | AN33: 10.76640163 | AO33: 121.7459308 | AP33: 112.1640163 | AQ33: 29.47377923 | AR33: 26.59920489 | AS33: 46.30605164 | AT33: 41.55342207 | AU33: 29.52459308 | AV33: 28.56640163 | AW33: 448.3062051 | AX33: 384.4267753 | AY33: 6.945907747 | AZ33: 6.23301331 | BA33: 231.5302582 | BB33: 207.7671103 | BC33: 1157.651291 | BD33: 1038.835552 | BE33: 1157.651291 | BF33: 1038.835552 | BG33: 15.04946678 | BH33: 13.50486217 | BI33: 0.15 | BJ33: 0.15 | BK33: 0.9999933193 | BL33: 0.9999949895 | BM33: 0.9913681381 | BN33: 0.9331089311 | BO33: 1 | BP33: 1.001667954 | BQ33: 0.9415979432
A34: Vaques primípares en lactació | D34: =D30*D27 -> 59.925 | J34: 48 | K34: 48 | L34: 48 | M34: 31.42857143 | N34: 23.99887301 | O34: 16.69936213 | P34: 45 a 48 | Q34: 48 | R34: 31.42857143 | S34: 31.42857143 | T34: 36 | U34: 3.641609334 | V34: 3.653761498 | W34: -1.006481474 | X34: -0.8936403177 | Y34: -33.21388863 | Z34: -29.49013048 | AA34: 15.74197535 | AB34: 14.9512997 | AC34: 22.10036387 | AD34: 19.38494583 | AE34: 19.68028091 | AF34: 18.99324126 | AG34: 1936.556375 | AH34: 1496.194448 | AI34: 44.52724797 | AJ34: 35.70389119 | AK34: 54.68737427 | AL34: 43.7626635 | AM34: 11.29983095 | AN34: 10.20490432 | AO34: 117.4983095 | AP34: 106.5490432 | AQ34: 28.19949286 | AR34: 24.91471296 | AS34: 44.20072775 | AT34: 38.76989165 | AU34: 29.09983095 | AV34: 28.00490432 | AW34: 419.9887301 | AX34: 346.9936213 | AY34: 6.630109162 | AZ34: 5.815483748 | BA34: 221.0036387 | BB34: 193.8494583 | BC34: 1105.018194 | BD34: 969.2472913 | BE34: 1105.018194 | BF34: 969.2472913 | BG34: 14.36523652 | BH34: 12.60021479 | BI34: 0.15 | BJ34: 0.15 | BK34: 0.9999975423 | BL34: 0.9999981567 | BM34: 0.9765361668 | BN34: 0.9382517609 | BO34: 1 | BP34: 0.9961095782 | BQ34: 0.9316871621
A35: Vaques primípares eixutes | D35: =D30*(1-D27) -> 10.575 | J35: 48.57142857 | K35: 48.57142857 | L35: 52 | M35: 32 | N35: 23.50628307 | O35: 16.09505384 | P35: 49 a 52 | Q35: 48.57142857 | R35: 32 | S35: 32 | T35: 36.14285714 | U35: 3.657093723 | V35: 3.667509863 | W35: -1.0064889 | X35: -0.8936469117 | Y35: -33.21413371 | Z35: -29.49034809 | AA35: 15.61468256 | AB35: 14.80016787 | AC35: 21.91718769 | AD35: 19.16021042 | AE35: 19.52626508 | AF35: 18.8021106 | AG35: 1913.735509 | AH35: 1468.801667 | AI35: 44.11105541 | AJ35: 35.15265797 | AK35: 54.28559111 | AL35: 43.19367865 | AM35: 11.22594246 | AN35: 10.11425808 | AO35: 116.7594246 | AP35: 105.6425808 | AQ35: 27.97782738 | AR35: 24.64277423 | AS35: 43.83437539 | AT35: 38.32042085 | AU35: 29.02594246 | AV35: 27.91425808 | AW35: 415.0628307 | AX35: 340.9505384 | AY35: 6.575156308 | AZ35: 5.748063127 | BA35: 219.1718769 | BB35: 191.6021042 | BC35: 1095.859385 | BD35: 958.0105211 | BE35: 1095.859385 | BF35: 958.0105211 | BG35: 14.246172 | BH35: 12.45413677 | BI35: 0.15 | BJ35: 0.15 | BK35: 0.9999978695 | BL35: 0.9999984021 | BM35: 0.9729329434 | BN35: 0.9389534378 | BO35: 1 | BP35: 0.9949916076 | BQ35: 0.9302258894
